Workbook

Sheet INICIO

Sheet DICCIONARIO
B11: TEMA | C11: DESCRIPCIÓN
B12: PIB | C12: El PIB representa el resultado final de la actividad productiva de las unidades de producción residentes. Se mide desde el punto de vista del valor agregado, de la demanda final o las utilizaciones finales de los bienes y servicios y de los ingresos primarios distribuidos por las unidades de producción residentes. Periodicidad: Trimestral.
B13: Mercado laboral | C13: A partir de la medición de la estructura de la fuerza de trabajo se derivan análisis de la situación del empleo, el desempleo, la inactividad y de las características sociodemográficas de la población colombiana. Esta información es primordial para la toma de decisiones del Gobierno Nacional y para la investigación del contexto del mercado laboral del país. Periodicidad: Trimestral.
B14: Tasas de Interés | C14: La tasa de interés es el precio del dinero en el mercado financiero. Al igual que el precio de cualquier producto, cuando hay más dinero la tasa baja y cuando hay escasez sube. Cuando la tasa de interés sube, los demandantes desean comprar menos, es decir, solicitan menos recursos en préstamo a los intermediarios financieros, mientras que los oferentes buscan colocar más recursos (en cuentas de ahorros, CDT, etc.). Lo contrario sucede cuando baja la tasa: los demandantes del mercado financiero solicitan más créditos, y los oferentes retiran sus ahorros. Existen dos tipos de tasas de interés: la tasa pasiva o de captación, es la que pagan los intermediarios financieros a los oferentes de recursos por el dinero captado; la tasa activa o de colocación, es la que reciben los intermediarios financieros de los demandantes por los préstamos otorgados. Esta última siempre es mayor, porque la diferencia con la tasa de captación es la que permite al intermediario financiero cubrir los costos administrativos, dejando además una utilidad. La diferencia entre la tasa activa y la pasiva se llama margen de intermediación. Periodicidad: Mensual.
B15: Licencias de construcción | C15: Tiene como objetivo conocer el potencial de la actividad edificadora del país, cuantificar el total de metros aprobados para construcción, según tipo de licencias (urbana, suburbana y rural), tipo de solicitud (nueva y/o modificación), clase de construcción (nueva y/o ampliación). Periodicidad: Mensual.
B16: Censo de Edificaciones | C16: Determina el estado actual de la actividad edificadora para establecer su composición, evolución y producción, contribuyendo a la medición y cálculo de los principales agregados macroeconómicos. Su periodicidad es trimestral.
B17: Actividad Edificadora | C17: Analiza la situación actual y perspectivas de la actividad edificadora son un servicio que permite al gremio de la construcción identificar de forma oportuna los factores determinantes del rumbo futuro de la economía nacional y el sector. Su periodicidad es mensual.
B18: Galería inmobiliaria | C18: Determina el comportamiento del mercado de vivienda en Bogotá. Su periodicidad es mensual.
B19: Censo Catastral Bogotá | C19: El Censo Inmobiliario Anual de Bogotá es el proceso de actualización catastral que la Unidad Administrativa Especial de Catastro Distrital, UAECD, realiza anualmente desde el 2010 y consiste en la revisión de los elementos físicos, jurídicos y económicos de los predios.
B20: Cemento gris | C20: Las Estadísticas de Cemento Gris, que tienen como objetivo proporcionar información de manera mensual sobre la evolución y la composición de la producción y despachos de cemento gris, incluyendo la totalidad de los grupos cementeros del país. Su periodicidad es trimestral.
B21: Financiación de vivienda | C21: Permite conocer el volumen de recursos dirigidos a la construcción y adquisición de vivienda en el país, a través del análisis de monto y número de créditos desembolsados para compra de vivienda nueva y usada y del total de operaciones de créditos: créditos a constructores, individuales y subrogaciones. Su periodicidad es trimestral.
B22: Cartera Hipotecaria de vivienda | C22: Permite conocer el comportamiento y la evolución de la cartera hipotecaria de vivienda de las entidades financiadoras, en las variables saldo de capital total, capital de una o más cuotas vencidas y número de créditos. Su periodicidad es trimestral.
B23: IPC | C23: El IPC es un indicador que mide la variación de precios de una canasta de bienes y servicios representativos del consumo de los hogares del país. Los resultados son analizados por grupos, subgrupos y clases de gastos, gastos básicos y niveles de ingreso. Periodicidad: Mensual.
B24: Indice de Precios de Producción | C24: Es el indicador coyuntural sobre los precios de los bienes en el primer canal de distribución, es decir, precios del productor. Reporta la variación promedio de los precios de una cesta de bienes que se producen en el país para consumo interno y para exportación, incluye sector primario y secundario. No contiene sector servicios. Periodicidad: Mensual.
B25: índice de precios de vivienda usada(IPVU) | C25: El índice de precios de la vivienda usada (IPVU) mide la evolución trimestral y anual de los precios de la vivienda usada.
B26: Índice de precios de vivienda nueva(IPVN) | C26: Es un indicador que permite conocer la evolución de los precios de venta de la vivienda nueva en proceso de construcción y/o hasta la última unidad vendida. Periodicidad: Trimestral.
B27: Índice de costos de construcción de vivienda (ICCV) | C27: Es un instrumento estadístico que permite conocer el cambio porcentual promedio de los precios de los principales insumos requeridos para la construcción de vivienda, en un periodo de tiempo. Periodicidad: Mensual.
B28: IVIUR | C28: Es un índice que se aplica a los predios que no han sido objeto de actualización catastral. Periodicidad: Anual.

Sheet FICHA
E12: CENSO_EDIFICACIONES
E14: Área en Proceso Colombia
E16: 2021
E18: 04
C20: PERIODO | E20: =IF(E18<10,(E16*10)+E18,E16&E18) -> 202104
C21: ANUAL | E21: =+E16 -> 2021
C22: PERIODICIDAD | E22: =+VLOOKUP(E14,'Inventario de información'!B:N,5,0) -> Trimestral
C25: Trimestral | E25: =IF($E$22="Anual",'DATOS VARIACIONES'!P3,IF($E$22="Mensual",'DATOS VARIACIONES'!BC3,'DATOS VARIACIONES'!C3)) -> 201901 | F25: =IF($E$22="Anual",'DATOS VARIACIONES'!Q3,IF($E$22="Mensual",'DATOS VARIACIONES'!BD3,'DATOS VARIACIONES'!D3)) -> 201902 | G25: =IF($E$22="Anual",'DATOS VARIACIONES'!R3,IF($E$22="Mensual",'DATOS VARIACIONES'!BE3,'DATOS VARIACIONES'!E3)) -> 201903 | H25: =IF($E$22="Anual",'DATOS VARIACIONES'!S3,IF($E$22="Mensual",'DATOS VARIACIONES'!BF3,'DATOS VARIACIONES'!F3)) -> 201904 | I25: =IF($E$22="Anual",'DATOS VARIACIONES'!T3,IF($E$22="Mensual",'DATOS VARIACIONES'!BG3,'DATOS VARIACIONES'!G3)) -> 202001 | J25: =IF($E$22="Anual",'DATOS VARIACIONES'!U3,IF($E$22="Mensual",'DATOS VARIACIONES'!BH3,'DATOS VARIACIONES'!H3)) -> 202002 | K25: =IF($E$22="Anual",'DATOS VARIACIONES'!V3,IF($E$22="Mensual",'DATOS VARIACIONES'!BI3,'DATOS VARIACIONES'!I3)) -> 202003 | L25: =IF($E$22="Anual",'DATOS VARIACIONES'!W3,IF($E$22="Mensual",'DATOS VARIACIONES'!BJ3,'DATOS VARIACIONES'!J3)) -> 202004 | M25: =IF($E$22="Anual",'DATOS VARIACIONES'!X3,IF($E$22="Mensual",'DATOS VARIACIONES'!BK3,'DATOS VARIACIONES'!K3)) -> 202101 | N25: =IF($E$22="Anual",'DATOS VARIACIONES'!Y3,IF($E$22="Mensual",'DATOS VARIACIONES'!BL3,'DATOS VARIACIONES'!L3)) -> 202102 | O25: =IF($E$22="Anual",'DATOS VARIACIONES'!Z3,IF($E$22="Mensual",'DATOS VARIACIONES'!BM3,'DATOS VARIACIONES'!M3)) -> 202103 | P25: =IF($E$22="Anual",'DATOS VARIACIONES'!AA3,IF($E$22="Mensual",'DATOS VARIACIONES'!BN3,'DATOS VARIACIONES'!N3)) -> 202104
E26: =+MID(E$25,5,2) -> 01 | F26: =+MID(F$25,5,2) -> 02 | G26: 03 | H26: 04 | I26: 01 | J26: 02 | K26: 03 | L26: 04 | M26: 01 | N26: 02 | O26: 03 | P26: 04
C27: Anual | E27: =+MID(E25,1,4) -> 2019 | F27: =+MID(F25,1,4) -> 2019 | G27: 2019 | H27: 2019 | I27: 2020 | J27: 2020 | K27: 2020 | L27: 2020 | M27: 2021 | N27: 2021 | O27: 2021 | P27: 2021
E28: =IF($E22="Trimestral",IF(E26="04","IV",IF(E26="03","III",IF(E26="02","II",IF(E26="01","I",0)))),0) -> I | F28: =IF($E22="Trimestral",IF(F26="04","IV",IF(F26="03","III",IF(F26="02","II",IF(F26="01","I",0)))),0) -> II | G28: III | H28: IV | I28: I | J28: II | K28: III | L28: IV | M28: I | N28: II | O28: III | P28: IV
C29: / | E29: - | F29: - | G29: - | H29: - | I29: - | J29: - | K29: - | L29: - | M29: - | N29: - | O29: - | P29: -
C30: Trimestre
C31: =+IF(E12="IVIUR","MEDIANA DE LAS VARIACIONES","DATOS ABSOLUTOS") -> DATOS ABSOLUTOS
C32: =IF(E22="Mensual",VLOOKUP($E$26,LISTAS!$R$2:$T$13,3,0)&$E$29&$E$27&C29&VLOOKUP($P$26,LISTAS!$R$2:$T$13,3,0)&$P$29&$P$27,IF(E22="Trimestral",$E$28&$C$30&$E$27&C29&P28&C30&$P$27,E27&$C$29&$P$27)) -> I Trimestre 2019 / IV Trimestre 2021
C33: =+E14 -> Área en Proceso Colombia | I33: =+VLOOKUP($E$14,'Inventario de información'!$B:$N,6,0) -> Metros cuadrados
E37: =+IF($E$22="Mensual",E25,IF($E$22="Trimestral",E27&E29&E28,E25)) -> 2019-I | F37: =+IF($E$22="Mensual",F25,IF($E$22="Trimestral",F27&F29&F28,F25)) -> 2019-II | G37: 2019-III | H37: 2019-IV | I37: 2020-I | J37: 2020-II | K37: 2020-III | L37: 2020-IV | M37: 2021-I | N37: 2021-II | O37: 2021-III | P37: 2021-IV
C38: ABSOLUTO | E38: =IFERROR(IF($E$22="Mensual",VLOOKUP($E$14,M_DATOS_ABSOLUTOS,28,0),IF($E$22="Trimestral",VLOOKUP($E$14,M_DATOS_ABSOLUTOS,2,0),VLOOKUP($E$14,M_DATOS_ABSOLUTOS,15,0))),"") -> 26157780 | F38: =IFERROR(IF($E$22="Mensual",VLOOKUP($E$14,M_DATOS_ABSOLUTOS,29,0),IF($E$22="Trimestral",VLOOKUP($E$14,M_DATOS_ABSOLUTOS,3,0),VLOOKUP($E$14,M_DATOS_ABSOLUTOS,16,0))),"") -> 25593703 | G38: =IFERROR(IF($E$22="Mensual",VLOOKUP($E$14,M_DATOS_ABSOLUTOS,30,0),IF($E$22="Trimestral",VLOOKUP($E$14,M_DATOS_ABSOLUTOS,4,0),VLOOKUP($E$14,M_DATOS_ABSOLUTOS,17,0))),"") -> 25909550 | H38: =IFERROR(IF($E$22="Mensual",VLOOKUP($E$14,M_DATOS_ABSOLUTOS,31,0),IF($E$22="Trimestral",VLOOKUP($E$14,M_DATOS_ABSOLUTOS,5,0),VLOOKUP($E$14,M_DATOS_ABSOLUTOS,18,0))),"") -> 25219352 | I38: =IFERROR(IF($E$22="Mensual",VLOOKUP($E$14,M_DATOS_ABSOLUTOS,32,0),IF($E$22="Trimestral",VLOOKUP($E$14,M_DATOS_ABSOLUTOS,6,0),VLOOKUP($E$14,M_DATOS_ABSOLUTOS,19,0))),"") -> 22727495 | J38: =IFERROR(IF($E$22="Mensual",VLOOKUP($E$14,M_DATOS_ABSOLUTOS,33,0),IF($E$22="Trimestral",VLOOKUP($E$14,M_DATOS_ABSOLUTOS,7,0),VLOOKUP($E$14,M_DATOS_ABSOLUTOS,20,0))),"") -> 15966130 | K38: =IFERROR(IF($E$22="Mensual",VLOOKUP($E$14,M_DATOS_ABSOLUTOS,34,0),IF($E$22="Trimestral",VLOOKUP($E$14,M_DATOS_ABSOLUTOS,8,0),VLOOKUP($E$14,M_DATOS_ABSOLUTOS,21,0))),"") -> 23161985 | L38: =IFERROR(IF($E$22="Mensual",VLOOKUP($E$14,M_DATOS_ABSOLUTOS,35,0),IF($E$22="Trimestral",VLOOKUP($E$14,M_DATOS_ABSOLUTOS,9,0),VLOOKUP($E$14,M_DATOS_ABSOLUTOS,22,0))),"") -> 22855676 | M38: =IFERROR(IF($E$22="Mensual",VLOOKUP($E$14,M_DATOS_ABSOLUTOS,36,0),IF($E$22="Trimestral",VLOOKUP($E$14,M_DATOS_ABSOLUTOS,10,0),VLOOKUP($E$14,M_DATOS_ABSOLUTOS,23,0))),"") -> 23107903 | N38: =IFERROR(IF($E$22="Mensual",VLOOKUP($E$14,M_DATOS_ABSOLUTOS,37,0),IF($E$22="Trimestral",VLOOKUP($E$14,M_DATOS_ABSOLUTOS,11,0),VLOOKUP($E$14,M_DATOS_ABSOLUTOS,24,0))),"") -> 23190636 | O38: =IFERROR(IF($E$22="Mensual",VLOOKUP($E$14,M_DATOS_ABSOLUTOS,38,0),IF($E$22="Trimestral",VLOOKUP($E$14,M_DATOS_ABSOLUTOS,12,0),VLOOKUP($E$14,M_DATOS_ABSOLUTOS,25,0))),"") -> 23844581 | P38: =IFERROR(IF($E$22="Mensual",VLOOKUP($E$14,M_DATOS_ABSOLUTOS,39,0),IF($E$22="Trimestral",VLOOKUP($E$14,M_DATOS_ABSOLUTOS,13,0),VLOOKUP($E$14,M_DATOS_ABSOLUTOS,26,0))),"") -> 24202502
C52: Fuente: | D52: =+VLOOKUP($E$14,'Inventario de información'!$B:$N,2,0) -> DANE
F58: =+IF(E12="TASAS_DE_INTERÉS","DIFERENCIAS","VARIACIONES") -> VARIACIONES | G58: TRIMESTRALES
C60: =+$C$32 -> I Trimestre 2019 / IV Trimestre 2021
E68: =+E37 -> 2019-I | F68: 2019-II | G68: 2019-III | H68: 2019-IV | I68: 2020-I | J68: 2020-II | K68: 2020-III | L68: 2020-IV | M68: 2021-I | N68: 2021-II | O68: 2021-III | P68: 2021-IV
C69: VAR TRIMESTRAL | E69: =IFERROR(IF($E$22="Mensual",VLOOKUP($E$14,M_DATOS_VARIACIONES,54,0),IF($E$22="Trimestral",VLOOKUP($E$14,M_DATOS_VARIACIONES,2,0),VLOOKUP($E$14,M_DATOS_VARIACIONES,15,0))),"") -> 2.932004926 | F69: =IFERROR(IF($E$22="Mensual",VLOOKUP($E$14,M_DATOS_VARIACIONES,55,0),IF($E$22="Trimestral",VLOOKUP($E$14,M_DATOS_VARIACIONES,3,0),VLOOKUP($E$14,M_DATOS_VARIACIONES,15,0))),"") -> -2.156440646 | G69: =IFERROR(IF($E$22="Mensual",VLOOKUP($E$14,M_DATOS_VARIACIONES,56,0),IF($E$22="Trimestral",VLOOKUP($E$14,M_DATOS_VARIACIONES,4,0),VLOOKUP($E$14,M_DATOS_VARIACIONES,15,0))),"") -> 1.234080899 | H69: =IFERROR(IF($E$22="Mensual",VLOOKUP($E$14,M_DATOS_VARIACIONES,57,0),IF($E$22="Trimestral",VLOOKUP($E$14,M_DATOS_VARIACIONES,5,0),VLOOKUP($E$14,M_DATOS_VARIACIONES,15,0))),"") -> -2.663874903 | I69: =IFERROR(IF($E$22="Mensual",VLOOKUP($E$14,M_DATOS_VARIACIONES,58,0),IF($E$22="Trimestral",VLOOKUP($E$14,M_DATOS_VARIACIONES,6,0),VLOOKUP($E$14,M_DATOS_VARIACIONES,15,0))),"") -> -9.880733652 | J69: =IFERROR(IF($E$22="Mensual",VLOOKUP($E$14,M_DATOS_VARIACIONES,59,0),IF($E$22="Trimestral",VLOOKUP($E$14,M_DATOS_VARIACIONES,7,0),VLOOKUP($E$14,M_DATOS_VARIACIONES,15,0))),"") -> -29.74971505 | K69: =IFERROR(IF($E$22="Mensual",VLOOKUP($E$14,M_DATOS_VARIACIONES,60,0),IF($E$22="Trimestral",VLOOKUP($E$14,M_DATOS_VARIACIONES,8,0),VLOOKUP($E$14,M_DATOS_VARIACIONES,15,0))),"") -> 45.06950025 | L69: =IFERROR(IF($E$22="Mensual",VLOOKUP($E$14,M_DATOS_VARIACIONES,61,0),IF($E$22="Trimestral",VLOOKUP($E$14,M_DATOS_VARIACIONES,9,0),VLOOKUP($E$14,M_DATOS_VARIACIONES,15,0))),"") -> -1.322464374 | M69: =IFERROR(IF($E$22="Mensual",VLOOKUP($E$14,M_DATOS_VARIACIONES,62,0),IF($E$22="Trimestral",VLOOKUP($E$14,M_DATOS_VARIACIONES,10,0),VLOOKUP($E$14,M_DATOS_VARIACIONES,15,0))),"") -> 1.103563946 | N69: =IFERROR(IF($E$22="Mensual",VLOOKUP($E$14,M_DATOS_VARIACIONES,63,0),IF($E$22="Trimestral",VLOOKUP($E$14,M_DATOS_VARIACIONES,11,0),VLOOKUP($E$14,M_DATOS_VARIACIONES,15,0))),"") -> 0.3580290258 | O69: =IFERROR(IF($E$22="Mensual",VLOOKUP($E$14,M_DATOS_VARIACIONES,64,0),IF($E$22="Trimestral",VLOOKUP($E$14,M_DATOS_VARIACIONES,12,0),VLOOKUP($E$14,M_DATOS_VARIACIONES,15,0))),"") -> 2.819866605 | P69: =IFERROR(IF($E$22="Mensual",VLOOKUP($E$14,M_DATOS_VARIACIONES,65,0),IF($E$22="Trimestral",VLOOKUP($E$14,M_DATOS_VARIACIONES,13,0),VLOOKUP($E$14,M_DATOS_VARIACIONES,15,0))),"") -> 1.501058039
F81: =+IF(E12="TASAS_DE_INTERÉS","DIFERENCIAS","VARIACIONES") -> VARIACIONES | G81: ANUALES
C83: =$C$32 -> I Trimestre 2019 / IV Trimestre 2021
E92: =+E68 -> 2019-I | F92: =+F68 -> 2019-II | G92: 2019-III | H92: 2019-IV | I92: 2020-I | J92: 2020-II | K92: 2020-III | L92: 2020-IV | M92: 2021-I | N92: 2021-II | O92: 2021-III | P92: 2021-IV
C93: VAR ANUAL | E93: =IFERROR(VLOOKUP($E$14,'DATOS VARIACIONES'!$B:$BA,IF($E$18="Anual",15,28),0),"0") -> -12.03296757 | F93: =IFERROR(VLOOKUP($E$14,'DATOS VARIACIONES'!$B:$BA,IF($E$18="Anual",16,29),0),0) -> -10.10084285 | G93: =IFERROR(VLOOKUP($E$14,'DATOS VARIACIONES'!$B:$BA,IF($E$18="Anual",17,30),0),0) -> -2.025461193 | H93: =IFERROR(VLOOKUP($E$14,'DATOS VARIACIONES'!$B:$BA,IF($E$18="Anual",18,31),0),"") -> -0.7607501751 | I93: =IFERROR(VLOOKUP($E$14,'DATOS VARIACIONES'!$B:$BA,IF($E$18="Anual",19,32),0),"") -> -13.11382311 | J93: =IFERROR(VLOOKUP($E$14,'DATOS VARIACIONES'!$B:$BA,IF($E$18="Anual",20,33),0),"") -> -37.61695992 | K93: =IFERROR(VLOOKUP($E$14,'DATOS VARIACIONES'!$B:$BA,IF($E$18="Anual",21,34),0),"") -> -10.60444894 | L93: =IFERROR(VLOOKUP($E$14,'DATOS VARIACIONES'!$B:$BA,IF($E$18="Anual",22,35),0),"") -> -9.372469205 | M93: =IFERROR(VLOOKUP($E$14,'DATOS VARIACIONES'!$B:$BA,IF($E$18="Anual",23,36),0),"") -> 1.67377883 | N93: =IFERROR(VLOOKUP($E$14,'DATOS VARIACIONES'!$B:$BA,IF($E$18="Anual",24,37),0),"") -> 45.24894887 | O93: =IFERROR(VLOOKUP($E$14,'DATOS VARIACIONES'!$B:$BA,IF($E$18="Anual",25,38),0),"") -> 2.947053113 | P93: =IFERROR(VLOOKUP($E$14,'DATOS VARIACIONES'!$B:$BA,IF($E$18="Anual",26,39),0),"") -> 5.892741917
C104: VARIACIONES AÑO CORRIDO
C106: =$C$32 -> I Trimestre 2019 / IV Trimestre 2021
E115: =+E68 -> 2019-I | F115: =+F68 -> 2019-II | G115: 2019-III | H115: 2019-IV | I115: 2020-I | J115: 2020-II | K115: 2020-III | L115: 2020-IV | M115: 2021-I | N115: 2021-II | O115: 2021-III | P115: 2021-IV
C116: VAR ACORRIDO | E116: =+VLOOKUP($E$14,'DATOS VARIACIONES'!$B:$BA,41,0) -> -12.03296757 | F116: =+VLOOKUP($E$14,'DATOS VARIACIONES'!$B:$BA,42,0) -> -11.08792668 | G116: =+VLOOKUP($E$14,'DATOS VARIACIONES'!$B:$BA,43,0) -> -8.25677022 | H116: =+VLOOKUP($E$14,'DATOS VARIACIONES'!$B:$BA,44,0) -> -6.525999908 | I116: =+VLOOKUP($E$14,'DATOS VARIACIONES'!$B:$BA,45,0) -> -13.11382311 | J116: =+VLOOKUP($E$14,'DATOS VARIACIONES'!$B:$BA,46,0) -> -25.23185278 | K116: =+VLOOKUP($E$14,'DATOS VARIACIONES'!$B:$BA,47,0) -> -20.35180629 | L116: =+VLOOKUP($E$14,'DATOS VARIACIONES'!$B:$BA,48,0) -> -17.66041117 | M116: =+VLOOKUP($E$14,'DATOS VARIACIONES'!$B:$BA,49,0) -> 1.67377883 | N116: =+VLOOKUP($E$14,'DATOS VARIACIONES'!$B:$BA,50,0) -> 19.65417818 | O116: =+VLOOKUP($E$14,'DATOS VARIACIONES'!$B:$BA,51,0) -> 13.39815419 | P116: =+VLOOKUP($E$14,'DATOS VARIACIONES'!$B:$BA,52,0) -> 11.37314336

Sheet Inventario de información
B1: Inventario de información interna y externa
B2: Última actualización: 2 de abril de 2018
B3: OTC
B14: INDICADORES ASOCIADOS A LA CONSTRUCCIÓN | C14: Fuente de la información | D14: Link directo | E14: Área geográfica de estudio | F14: Periodicidad | G14: Unidad de medida | H14: Período actual | I14: Año anterior | J14: Período anterior | K14: VARIACIONES (%) | N14: Período de referencia
I15: Periodo anterior | J15: Periodo anterior | K15: Anual | L15: Año corrido | M15: Período precedente
B17: MACRO
B18: PIB
A19: B | B19: PIB Colombia (base 2015) | C19: DANE | D19: https://www.dane.gov.co/index.php/estadisticas-por-tema/cuentas-nacionales/cuentas-nacionales-trimestrales#pib-por-rama-de-actividad | E19: Nacional | F19: Trimestral | G19: Miles de millones de pesos | H19: =+VLOOKUP($O19,M_PIB,2,0) -> 254870.8485 | I19: =IF($O19>0,VLOOKUP($O19-100,M_PIB,2,0),"") -> 229985.5594 | J19: =IF(MID($O19,6,1)="1",VLOOKUP($O19-97,M_PIB,2,0),VLOOKUP($O19-1,M_PIB,2,0)) -> 230497.1944 | K19: =+VLOOKUP($O19,M_PIB,10,0) -> 10.82037024 | L19: =+VLOOKUP($O19,M_PIB,26,0) -> 10.5632927 | M19: =+VLOOKUP($O19,M_PIB,18,0) -> 10.57438209 | N19: =+VLOOKUP($O19,PIB!$C:$AI,1,0) -> 202104 | O19: =+LOOKUP(1000000,PIB!C:C) -> 202104
B20: PIB Colombia - Construcción (base 2015) | C20: DANE | D20: https://www.dane.gov.co/index.php/estadisticas-por-tema/cuentas-nacionales/cuentas-nacionales-trimestrales#pib-por-rama-de-actividad | E20: Nacional | F20: Trimestral | G20: Miles de millones de pesos | H20: =+VLOOKUP($O20,M_PIB,3,0) -> 11728.65899 | I20: =IF($O20>0,VLOOKUP($O20-100,M_PIB,3,0),"") -> 11042.44948 | J20: =IF(MID($O20,6,1)="1",VLOOKUP($O20-97,M_PIB,3,0),VLOOKUP($O20-1,M_PIB,3,0)) -> 10396.58462 | K20: =+VLOOKUP($O20,M_PIB,11,0) -> 6.214287112 | L20: =+VLOOKUP($O20,M_PIB,27,0) -> 5.71298 | M20: =+VLOOKUP($O20,M_PIB,19,0) -> 12.81261511 | N20: =+VLOOKUP($O20,PIB!$C:$AI,1,0) -> 202104 | O20: =+LOOKUP(1000000,PIB!C:C) -> 202104
B21: PIB Colombia - Construcción - Edificaciones (base 2015) | C21: DANE | D21: https://www.dane.gov.co/index.php/estadisticas-por-tema/cuentas-nacionales/cuentas-nacionales-trimestrales#pib-por-rama-de-actividad | E21: Nacional | F21: Trimestral | G21: Miles de millones de pesos | H21: =+VLOOKUP($O21,M_PIB,4,0) -> 5884.680984 | I21: =IF($O21>0,VLOOKUP($O21-100,M_PIB,4,0),"") -> 5196.162519 | J21: =IF(MID($O21,6,1)="1",VLOOKUP($O21-97,M_PIB,4,0),VLOOKUP($O21-1,M_PIB,4,0)) -> 5274.965816 | K21: =+VLOOKUP($O21,M_PIB,12,0) -> 13.2505183 | L21: =+VLOOKUP($O21,M_PIB,28,0) -> 11.61963449 | M21: =+VLOOKUP($O21,M_PIB,20,0) -> 11.5586563 | N21: =+VLOOKUP($O21,PIB!$C:$AI,1,0) -> 202104 | O21: =+LOOKUP(1000000,PIB!C:C) -> 202104
B22: PIB Colombia - Construcción - Obras civiles (base 2015) | C22: DANE | D22: https://www.dane.gov.co/index.php/estadisticas-por-tema/cuentas-nacionales/cuentas-nacionales-trimestrales#pib-por-rama-de-actividad | E22: Nacional | F22: Trimestral | G22: Miles de millones de pesos | H22: =+VLOOKUP($O22,M_PIB,5,0) -> 3264.302079 | I22: =IF($O22>0,VLOOKUP($O22-100,M_PIB,5,0),"") -> 3472.306076 | J22: =IF(MID($O22,6,1)="1",VLOOKUP($O22-97,M_PIB,5,0),VLOOKUP($O22-1,M_PIB,5,0)) -> 2894.344163 | K22: =+VLOOKUP($O22,M_PIB,13,0) -> -5.990370435 | L22: =+VLOOKUP($O22,M_PIB,29,0) -> -4.64457902 | M22: =+VLOOKUP($O22,M_PIB,21,0) -> 12.78209832 | N22: =+VLOOKUP($O22,PIB!$C:$AI,1,0) -> 202104 | O22: =+LOOKUP(1000000,PIB!C:C) -> 202104
A23: G | B23: PIB Bogotá (base 2015) | C23: DANE | D23: http://www.dane.gov.co/index.php/estadisticas-por-tema/cuentas-nacionales/cuentas-nacionales-departamentales/cuentas-nacionales-departamentales-pib-trimestral-bogota-d-c | E23: Bogotá | F23: Trimestral | G23: Miles de millones de pesos | H23: =+VLOOKUP($O23,M_PIB,6,0) -> 67707.26811 | I23: =IF($O23>0,VLOOKUP($O23-100,M_PIB,6,0),"") -> 60899.50083 | J23: =IF(MID($O23,6,1)="1",VLOOKUP($O23-97,M_PIB,6,0),VLOOKUP($O23-1,M_PIB,6,0)) -> 59843.56641 | K23: =+VLOOKUP($O23,M_PIB,14,0) -> 11.17869144 | L23: =+VLOOKUP($O23,M_PIB,30,0) -> 10.30450618 | M23: =+VLOOKUP($O23,M_PIB,22,0) -> 13.14042958 | N23: =+VLOOKUP($O23,PIB!$C:$AI,1,0) -> 202104 | O23: =+LOOKUP(1000000,PIB!C:C) -> 202104
B24: PIB Bogotá - Construcción (base 2015) | C24: DANE | D24: http://www.dane.gov.co/index.php/estadisticas-por-tema/cuentas-nacionales/cuentas-nacionales-departamentales/cuentas-nacionales-departamentales-pib-trimestral-bogota-d-c | E24: Bogotá | F24: Trimestral | G24: Miles de millones de pesos | H24: =+VLOOKUP($O24,M_PIB,7,0) -> 2311.967517 | I24: =IF($O24>0,VLOOKUP($O24-100,M_PIB,7,0),"") -> 1972.916819 | J24: =IF(MID($O24,6,1)="1",VLOOKUP($O24-97,M_PIB,7,0),VLOOKUP($O24-1,M_PIB,7,0)) -> 1557.486302 | K24: =+VLOOKUP($O24,M_PIB,15,0) -> 17.18525051 | L24: =+VLOOKUP($O24,M_PIB,31,0) -> -2.045478116 | M24: =+VLOOKUP($O24,M_PIB,23,0) -> 48.44223758 | N24: =+VLOOKUP($O24,PIB!$C:$AI,1,0) -> 202104 | O24: =+LOOKUP(1000000,PIB!C:C) -> 202104
B25: PIB Bogotá - Construcción - Edificaciones (base 2005) | C25: DANE | D25: http://www.dane.gov.co/index.php/estadisticas-por-tema/cuentas-nacionales/cuentas-nacionales-departamentales/cuentas-nacionales-departamentales-pib-trimestral-bogota-d-c | E25: Bogotá | F25: Trimestral | G25: Miles de millones de pesos | H25: =+VLOOKUP($O25,M_PIB,8,0) -> 1185.542323 | I25: =IF($O25>0,VLOOKUP($O25-100,M_PIB,8,0),"") -> 908.1920429 | J25: =IF(MID($O25,6,1)="1",VLOOKUP($O25-97,M_PIB,8,0),VLOOKUP($O25-1,M_PIB,8,0)) -> 886.6983084 | K25: =+VLOOKUP($O25,M_PIB,16,0) -> 30.5387261 | L25: =+VLOOKUP($O25,M_PIB,32,0) -> 18.05602238 | M25: =+VLOOKUP($O25,M_PIB,24,0) -> 33.70300948 | N25: =+VLOOKUP($O25,PIB!$C:$AI,1,0) -> 202104 | O25: =+LOOKUP(1000000,PIB!C:C) -> 202104
A26: B | B26: PIB Bogotá - Construcción - Obras civiles (base 2005) | C26: DANE | D26: http://www.dane.gov.co/index.php/estadisticas-por-tema/cuentas-nacionales/cuentas-nacionales-departamentales/cuentas-nacionales-departamentales-pib-trimestral-bogota-d-c | E26: Bogotá | F26: Trimestral | G26: Miles de millones de pesos | H26: =+VLOOKUP($O26,M_PIB,9,0) -> 685.5318089 | I26: =IF($O26>0,VLOOKUP($O26-100,M_PIB,9,0),"") -> 704.6212484 | J26: =IF(MID($O26,6,1)="1",VLOOKUP($O26-97,M_PIB,9,0),VLOOKUP($O26-1,M_PIB,9,0)) -> 365.0210467 | K26: =+VLOOKUP($O26,M_PIB,17,0) -> -2.709177381 | L26: =+VLOOKUP($O26,M_PIB,33,0) -> -33.33864931 | M26: =+VLOOKUP($O26,M_PIB,25,0) -> 87.80610467 | N26: =+VLOOKUP($O26,PIB!$C:$AI,1,0) -> 202104 | O26: =+LOOKUP(1000000,PIB!C:C) -> 202104
B27: Mercado laboral 3
B28: Tasa ocupación Colombia | C28: DANE | D28: https://www.dane.gov.co/index.php/estadisticas-por-tema/mercado-laboral/empleo-y-desempleo | E28: Nacional | F28: Trimestral | G28: Tasa | H28: =+VLOOKUP($O28,M_MERCADO_LABORAL,2,0) -> 55.03917586 | I28: =IF($O28>0,VLOOKUP($O28-100,M_MERCADO_LABORAL,2,0),"") -> 51.79361934 | J28: =IF(MID($O28,6,1)="1",VLOOKUP($O28-97,M_MERCADO_LABORAL,2,0),VLOOKUP($O28-1,M_MERCADO_LABORAL,2,0)) -> 55.05701867 | K28: - | L28: - | M28: - | N28: =+VLOOKUP($O28,M_MERCADO_LABORAL,1,0) -> 202201 | O28: =+LOOKUP(1000000,'MERCADO LABORAL'!C:C) -> 202201
A29: G | B29: Tasa desempleo Colombia | C29: DANE | D29: https://www.dane.gov.co/index.php/estadisticas-por-tema/mercado-laboral/empleo-y-desempleo | E29: Nacional | F29: Trimestral | G29: Tasa | H29: =+VLOOKUP($O29,M_MERCADO_LABORAL,3,0) -> 13.21543578 | I29: =IF($O29>0,VLOOKUP($O29-100,M_MERCADO_LABORAL,3,0),"") -> 15.94748448 | J29: =IF(MID($O29,6,1)="1",VLOOKUP($O29-97,M_MERCADO_LABORAL,3,0),VLOOKUP($O29-1,M_MERCADO_LABORAL,3,0)) -> 11.54023087 | K29: - | L29: - | M29: - | N29: 202201 | O29: =+LOOKUP(1000000,'MERCADO LABORAL'!C:C) -> 202201
A30: B | B30: Ocupados Colombia | C30: DANE | D30: https://www.dane.gov.co/index.php/estadisticas-por-tema/mercado-laboral/empleo-y-desempleo | E30: Nacional | F30: Trimestral | G30: Miles de personas | H30: =+VLOOKUP($O30,M_MERCADO_LABORAL,4,0) -> 21352.17767 | I30: =IF($O30>0,VLOOKUP($O30-100,M_MERCADO_LABORAL,4,0),"") -> 19787.21033 | J30: =IF(MID($O30,6,1)="1",VLOOKUP($O30-97,M_MERCADO_LABORAL,4,0),VLOOKUP($O30-1,M_MERCADO_LABORAL,4,0)) -> 21282.29167 | K30: =+VLOOKUP($O30,M_MERCADO_LABORAL,26,0) -> 7.908984172 | L30: - | M30: =+VLOOKUP($O30,M_MERCADO_LABORAL,15,0) -> 0.3283762909 | N30: 202201 | O30: =+LOOKUP(1000000,'MERCADO LABORAL'!C:C) -> 202201
A31: G | B31: Desocupados Colombia | C31: DANE | D31: https://www.dane.gov.co/index.php/estadisticas-por-tema/mercado-laboral/empleo-y-desempleo | E31: Nacional | F31: Trimestral | G31: Miles de personas | H31: =+VLOOKUP($O31,M_MERCADO_LABORAL,5,0) -> 3251.480667 | I31: =IF($O31>0,VLOOKUP($O31-100,M_MERCADO_LABORAL,5,0),"") -> 3754.274667 | J31: =IF(MID($O31,6,1)="1",VLOOKUP($O31-97,M_MERCADO_LABORAL,5,0),VLOOKUP($O31-1,M_MERCADO_LABORAL,5,0)) -> 2776.432333 | K31: =+VLOOKUP($O31,M_MERCADO_LABORAL,27,0) -> -13.39257366 | L31: - | M31: =+VLOOKUP($O31,M_MERCADO_LABORAL,16,0) -> 17.11002741 | N31: 202201 | O31: =+LOOKUP(1000000,'MERCADO LABORAL'!C:C) -> 202201
A32: B | B32: Ocupados Colombia - Construcción | C32: DANE | D32: https://www.dane.gov.co/index.php/estadisticas-por-tema/mercado-laboral/empleo-y-desempleo | E32: Nacional | F32: Trimestral | G32: Miles de personas | H32: =+VLOOKUP($O32,M_MERCADO_LABORAL,6,0) -> 697.1703333 | I32: =IF($O32>0,VLOOKUP($O32-100,M_MERCADO_LABORAL,6,0),"") -> 673.452 | J32: =IF(MID($O32,6,1)="1",VLOOKUP($O32-97,M_MERCADO_LABORAL,6,0),VLOOKUP($O32-1,M_MERCADO_LABORAL,6,0)) -> 670.9589517 | K32: =+VLOOKUP($O32,M_MERCADO_LABORAL,28,0) -> 3.52190406 | L32: - | M32: =+VLOOKUP($O32,M_MERCADO_LABORAL,17,0) -> 3.906555178 | N32: 202201 | O32: =+LOOKUP(1000000,'MERCADO LABORAL'!C:C) -> 202201
A33: G | B33: Tasa de ocupación Bogotá | C33: DANE | D33: https://www.dane.gov.co/index.php/estadisticas-por-tema/mercado-laboral/empleo-y-desempleo | E33: Bogotá | F33: Trimestral | G33: Tasa | H33: =+VLOOKUP($O33,M_MERCADO_LABORAL,7,0) -> 57.80807283 | I33: =IF($O33>0,VLOOKUP($O33-100,M_MERCADO_LABORAL,7,0),"") -> 55.38599693 | J33: =IF(MID($O33,6,1)="1",VLOOKUP($O33-97,M_MERCADO_LABORAL,7,0),VLOOKUP($O33-1,M_MERCADO_LABORAL,7,0)) -> 57.06890184 | K33: - | L33: - | M33: - | N33: 202201 | O33: =+LOOKUP(1000000,'MERCADO LABORAL'!C:C) -> 202201
A34: B | B34: Tasa desempleo Bogotá | C34: DANE | D34: https://www.dane.gov.co/index.php/estadisticas-por-tema/mercado-laboral/empleo-y-desempleo | E34: Bogotá | F34: Trimestral | G34: Tasa | H34: =+VLOOKUP($O34,M_MERCADO_LABORAL,8,0) -> 14.60484526 | I34: =IF($O34>0,VLOOKUP($O34-100,M_MERCADO_LABORAL,8,0),"") -> 19.94528312 | J34: =IF(MID($O34,6,1)="1",VLOOKUP($O34-97,M_MERCADO_LABORAL,8,0),VLOOKUP($O34-1,M_MERCADO_LABORAL,8,0)) -> 12.90800125 | K34: - | L34: - | M34: - | N34: 202201 | O34: =+LOOKUP(1000000,'MERCADO LABORAL'!C:C) -> 202201
A35: G | B35: Ocupados Bogotá | C35: DANE | D35: https://www.dane.gov.co/index.php/estadisticas-por-tema/mercado-laboral/empleo-y-desempleo | E35: Bogotá | F35: Trimestral | G35: Miles de personas | H35: =+VLOOKUP($O35,M_MERCADO_LABORAL,9,0) -> 3701.409667 | I35: =IF($O35>0,VLOOKUP($O35-100,M_MERCADO_LABORAL,9,0),"") -> 3500.155 | J35: =IF(MID($O35,6,1)="1",VLOOKUP($O35-97,M_MERCADO_LABORAL,9,0),VLOOKUP($O35-1,M_MERCADO_LABORAL,9,0)) -> 3643.372667 | K35: =+VLOOKUP($O35,M_MERCADO_LABORAL,31,0) -> 5.749878696 | L35: - | M35: =+VLOOKUP($O35,M_MERCADO_LABORAL,20,0) -> 1.592947121 | N35: 202201 | O35: =+LOOKUP(1000000,'MERCADO LABORAL'!C:C) -> 202201
A36: B | B36: Desocupados Bogotá | C36: DANE | D36: https://www.dane.gov.co/index.php/estadisticas-por-tema/mercado-laboral/empleo-y-desempleo | E36: Bogotá | F36: Trimestral | G36: Miles de personas | H36: =+VLOOKUP($O36,M_MERCADO_LABORAL,10,0) -> 633.0396667 | I36: =IF($O36>0,VLOOKUP($O36-100,M_MERCADO_LABORAL,10,0),"") -> 872.0483333 | J36: =IF(MID($O36,6,1)="1",VLOOKUP($O36-97,M_MERCADO_LABORAL,10,0),VLOOKUP($O36-1,M_MERCADO_LABORAL,10,0)) -> 539.9883333 | K36: =+VLOOKUP($O36,M_MERCADO_LABORAL,32,0) -> -27.40773161 | L36: - | M36: =+VLOOKUP($O36,M_MERCADO_LABORAL,21,0) -> 17.23210069 | N36: 202201 | O36: =+LOOKUP(1000000,'MERCADO LABORAL'!C:C) -> 202201
B37: Ocupados Bogotá - Construcción | C37: DANE | D37: https://www.dane.gov.co/index.php/estadisticas-por-tema/mercado-laboral/empleo-y-desempleo | E37: Bogotá | F37: Trimestral | G37: Miles de personas | H37: =+VLOOKUP($O37,M_MERCADO_LABORAL,11,0) -> 182.9343333 | I37: =IF($O37>0,VLOOKUP($O37-100,M_MERCADO_LABORAL,11,0),"") -> 200.1806667 | J37: =IF(MID($O37,6,1)="1",VLOOKUP($O37-97,M_MERCADO_LABORAL,11,0),VLOOKUP($O37-1,M_MERCADO_LABORAL,11,0)) -> 187.1134023 | K37: =+VLOOKUP($O37,M_MERCADO_LABORAL,33,0) -> -8.615384103 | L37: - | M37: =+VLOOKUP($O37,M_MERCADO_LABORAL,22,0) -> -2.233441831 | N37: 202201 | O37: =+LOOKUP(1000000,'MERCADO LABORAL'!C:C) -> 202201
B38: Tasas de Interés
B39: Tasa de intervención de política monetaria | C39: BANREP | D39: http://www.banrep.gov.co/es/tasas-interes | E39: Nacional | F39: Mensual | G39: Tasa porcentual | H39: =+VLOOKUP($O39,M_TASAS_DE_INTERÉS,2,0) -> 0.04 | I39: =IF($O39>0,VLOOKUP($O39-100,M_TASAS_DE_INTERÉS,2,0),"") -> 0.0175 | J39: =IF(MID($O39,5,1)="1",VLOOKUP($O39-7,M_TASAS_DE_INTERÉS,2,0),VLOOKUP($O39-1,M_TASAS_DE_INTERÉS,2,0)) -> 0.04 | K39: =+VLOOKUP($O39,M_TASAS_DE_INTERÉS,10,0) -> 2.25 | L39: - | M39: =+VLOOKUP($O39,M_TASAS_DE_INTERÉS,6,0) -> 0 | N39: =+VLOOKUP($O39,M_TASAS_DE_INTERÉS,1,0) -> 202203 | O39: =+LOOKUP(1000000,TASAS_DE_INTERÉS!C:C) -> 202203
B40: Adquisición de vivienda diferente de VIS (pesos - efectiva anual) | C40: BANREP | D40: http://www.banrep.gov.co/es/tasas-interes | E40: Nacional | F40: Mensual | G40: Tasa porcentual | H40: =+VLOOKUP($O40,M_TASAS_DE_INTERÉS,3,0) -> 0.101563377 | I40: =IF($O40>0,VLOOKUP($O40-100,M_TASAS_DE_INTERÉS,3,0),"") -> 0.0910154271 | J40: =IF(MID($O40,5,1)="1",VLOOKUP($O40-7,M_TASAS_DE_INTERÉS,3,0),VLOOKUP($O40-1,M_TASAS_DE_INTERÉS,3,0)) -> 0.09585505689 | K40: =+VLOOKUP($O40,M_TASAS_DE_INTERÉS,11,0) -> 1.054794989 | L40: - | M40: =+VLOOKUP($O40,M_TASAS_DE_INTERÉS,7,0) -> 0.5708320102 | N40: =+VLOOKUP($O40,M_TASAS_DE_INTERÉS,1,0) -> 202203 | O40: =+LOOKUP(1000000,TASAS_DE_INTERÉS!C:C) -> 202203
B41: Adquisición de vivienda VIS (pesos - efectiva anual) | C41: BANREP | D41: http://www.banrep.gov.co/es/tasas-interes | E41: Nacional | F41: Mensual | G41: Tasa porcentual | H41: =+VLOOKUP($O41,M_TASAS_DE_INTERÉS,4,0) -> 0.1118741649 | I41: =IF($O41>0,VLOOKUP($O41-100,M_TASAS_DE_INTERÉS,4,0),"") -> 0.1061592382 | J41: =IF(MID($O41,5,1)="1",VLOOKUP($O41-7,M_TASAS_DE_INTERÉS,4,0),VLOOKUP($O41-1,M_TASAS_DE_INTERÉS,4,0)) -> 0.1083646234 | K41: =+VLOOKUP($O41,M_TASAS_DE_INTERÉS,12,0) -> 0.5714926762 | L41: - | M41: =+VLOOKUP($O41,M_TASAS_DE_INTERÉS,8,0) -> 0.3509541528 | N41: =+VLOOKUP($O41,M_TASAS_DE_INTERÉS,1,0) -> 202203 | O41: =+LOOKUP(1000000,TASAS_DE_INTERÉS!C:C) -> 202203
B42: Tasa de interés - efectiva anual DTF | C42: BANREP | D42: http://www.banrep.gov.co/es/tasas-interes | E42: Nacional | F42: Mensual | G42: Tasa porcentual | H42: =+VLOOKUP($O42,M_TASAS_DE_INTERÉS,5,0) -> 0.05 | I42: =IF($O42>0,VLOOKUP($O42-100,M_TASAS_DE_INTERÉS,5,0),"") -> 0.0177 | J42: =IF(MID($O42,5,1)="1",VLOOKUP($O42-7,M_TASAS_DE_INTERÉS,5,0),VLOOKUP($O42-1,M_TASAS_DE_INTERÉS,5,0)) -> 0.0473 | K42: =+VLOOKUP($O42,M_TASAS_DE_INTERÉS,13,0) -> 3.23 | L42: - | M42: =+VLOOKUP($O42,M_TASAS_DE_INTERÉS,9,0) -> 0.27 | N42: =+VLOOKUP($O42,M_TASAS_DE_INTERÉS,1,0) -> 202203 | O42: =+LOOKUP(1000000,TASAS_DE_INTERÉS!C:C) -> 202203
A44: G | B44: OFERTA
A45: G | B45: Licencias de construcción
A46: B | B46: Área total nueva licenciada | C46: DANE | D46: https://www.dane.gov.co/index.php/estadisticas-por-tema/construccion/licencias-de-construccion | E46: Nacional | F46: Mensual | G46: Metros cuadrados | H46: =+VLOOKUP($O46,M_LICENCIAS,2,0) -> 2417961 | I46: =IF($O46>0,VLOOKUP($O46-100,M_LICENCIAS,2,0),"") -> 2427336 | J46: =VLOOKUP(IF(MID($O$46,5,2) ="01",$O$46-89,$O$46-1),M_LICENCIAS,2,0) -> 1693062 | K46: =+VLOOKUP($O46,M_LICENCIAS,22,0) -> -0.3862258871 | L46: =+VLOOKUP($O46,M_LICENCIAS,42,0) -> 28.50921618 | M46: =+VLOOKUP($O46,M_LICENCIAS,12,0) -> 42.81585671 | N46: =+VLOOKUP($O46,LICENCIAS!C:BA,1,0) -> 202112 | O46: =+LOOKUP(1000000,LICENCIAS!C:C) -> 202112
A47: G | B47: Área total nueva licenciada Bogotá | C47: DANE | D47: https://www.dane.gov.co/index.php/estadisticas-por-tema/construccion/licencias-de-construccion | E47: Bogotá | F47: Mensual | G47: Metros cuadrados | H47: =+VLOOKUP($O47,M_LICENCIAS,7,0) -> 322990 | I47: =IF($O47>0,VLOOKUP($O47-100,M_LICENCIAS,7,0),"") -> 375560 | J47: =VLOOKUP(IF(MID($O$46,5,2) ="01",$O$46-89,$O$46-1),M_LICENCIAS,7,0) -> 306901 | K47: =+VLOOKUP($O47,M_LICENCIAS,27,0) -> -13.99776334 | L47: =+VLOOKUP($O47,M_LICENCIAS,47,0) -> -3.009656707 | M47: =+VLOOKUP($O47,M_LICENCIAS,17,0) -> 5.242407161 | N47: =+VLOOKUP($O47,LICENCIAS!C:BA,1,0) -> 202112 | O47: =+LOOKUP(1000000,LICENCIAS!C:C) -> 202112
A48: B | B48: Vivienda | I48: =IF($O48>0,VLOOKUP($O48-10,M_LICENCIAS,2,0),"") -> 
A49: G | B49: Área licenciada nueva para vivienda | C49: DANE | D49: https://www.dane.gov.co/index.php/estadisticas-por-tema/construccion/licencias-de-construccion | E49: Nacional | F49: Mensual | G49: Metros cuadrados | H49: =+VLOOKUP($O49,M_LICENCIAS,3,0) -> 1975839 | I49: =IF($O49>0,VLOOKUP($O49-100,M_LICENCIAS,3,0),"") -> 1965953 | J49: =VLOOKUP(IF(MID($O$46,5,2) ="01",$O$46-89,$O$46-1),M_LICENCIAS,3,0) -> 1364501 | K49: =+VLOOKUP($O49,M_LICENCIAS,23,0) -> 0.5028604448 | L49: =+VLOOKUP($O49,M_LICENCIAS,43,0) -> 30.69626523 | M49: =+VLOOKUP($O49,M_LICENCIAS,13,0) -> 44.80304522 | N49: =+VLOOKUP($O49,LICENCIAS!C:BA,1,0) -> 202112 | O49: =+LOOKUP(1000000,LICENCIAS!C:C) -> 202112
A50: B | B50: Unidades licenciadas nuevas para vivienda | C50: DANE | D50: https://www.dane.gov.co/index.php/estadisticas-por-tema/construccion/licencias-de-construccion | E50: Nacional | F50: Mensual | G50: Unidades | H50: =+VLOOKUP($O50,M_LICENCIAS,4,0) -> 24013 | I50: =IF($O50>0,VLOOKUP($O50-100,M_LICENCIAS,4,0),"") -> 22467 | J50: =VLOOKUP(IF(MID($O$46,5,2) ="01",$O$46-89,$O$46-1),M_LICENCIAS,4,0) -> 14345 | K50: =+VLOOKUP($O50,M_LICENCIAS,24,0) -> 6.881203543 | L50: =+VLOOKUP($O50,M_LICENCIAS,44,0) -> 22.48938727 | M50: =+VLOOKUP($O50,M_LICENCIAS,14,0) -> 67.39630533 | N50: =+VLOOKUP($O50,LICENCIAS!C:BA,1,0) -> 202112 | O50: =+LOOKUP(1000000,LICENCIAS!C:C) -> 202112
A51: G | B51: Área licenciada nueva para vivienda VIS | C51: DANE | D51: https://www.dane.gov.co/index.php/estadisticas-por-tema/construccion/licencias-de-construccion | E51: Nacional | F51: Mensual | G51: Metros cuadrados | H51: =+VLOOKUP($O51,M_LICENCIAS,5,0) -> 587584 | I51: =IF($O51>0,VLOOKUP($O51-100,M_LICENCIAS,5,0),"") -> 613511 | J51: =VLOOKUP(IF(MID($O$46,5,2) ="01",$O$46-89,$O$46-1),M_LICENCIAS,5,0) -> 416602 | K51: =+VLOOKUP($O51,M_LICENCIAS,25,0) -> -4.226004098 | L51: =+VLOOKUP($O51,M_LICENCIAS,45,0) -> 13.1047767 | M51: =+VLOOKUP($O51,M_LICENCIAS,15,0) -> 41.04204973 | N51: =+VLOOKUP($O51,LICENCIAS!C:BA,1,0) -> 202112 | O51: =+LOOKUP(1000000,LICENCIAS!C:C) -> 202112
A52: B | B52: Unidades licenciadas nuevas para vivienda VIS | C52: DANE | D52: https://www.dane.gov.co/index.php/estadisticas-por-tema/construccion/licencias-de-construccion | E52: Nacional | F52: Mensual | G52: Unidades | H52: =+VLOOKUP($O52,M_LICENCIAS,6,0) -> 9305 | I52: =IF($O52>0,VLOOKUP($O52-100,M_LICENCIAS,6,0),"") -> 9760 | J52: =VLOOKUP(IF(MID($O$46,5,2) ="01",$O$46-89,$O$46-1),M_LICENCIAS,6,0) -> 6775 | K52: =+VLOOKUP($O52,M_LICENCIAS,26,0) -> -4.661885246 | L52: =+VLOOKUP($O52,M_LICENCIAS,46,0) -> 9.82064954 | M52: =+VLOOKUP($O52,M_LICENCIAS,16,0) -> 37.34317343 | N52: =+VLOOKUP($O52,LICENCIAS!C:BA,1,0) -> 202112 | O52: =+LOOKUP(1000000,LICENCIAS!C:C) -> 202112
A53: G | B53: Área licenciada nueva para vivienda Bogotá | C53: DANE | D53: https://www.dane.gov.co/index.php/estadisticas-por-tema/construccion/licencias-de-construccion | E53: Bogotá | F53: Mensual | G53: Metros cuadrados | H53: =+VLOOKUP($O53,M_LICENCIAS,8,0) -> 287598 | I53: =IF($O53>0,VLOOKUP($O53-100,M_LICENCIAS,8,0),"") -> 217645 | J53: =VLOOKUP(IF(MID($O$46,5,2) ="01",$O$46-89,$O$46-1),M_LICENCIAS,8,0) -> 270563 | K53: =+VLOOKUP($O53,M_LICENCIAS,28,0) -> 32.1408716 | L53: =+VLOOKUP($O53,M_LICENCIAS,48,0) -> 3.794631688 | M53: =+VLOOKUP($O53,M_LICENCIAS,18,0) -> 6.296130661 | N53: =+VLOOKUP($O53,LICENCIAS!C:BA,1,0) -> 202112 | O53: =+LOOKUP(1000000,LICENCIAS!C:C) -> 202112
A54: B | B54: Unidades licenciadas nuevas para vivienda Bogotá | C54: DANE | D54: https://www.dane.gov.co/index.php/estadisticas-por-tema/construccion/licencias-de-construccion | E54: Bogotá | F54: Mensual | G54: Unidades | H54: =+VLOOKUP($O54,M_LICENCIAS,9,0) -> 4203 | I54: =IF($O54>0,VLOOKUP($O54-100,M_LICENCIAS,9,0),"") -> 3105 | J54: =VLOOKUP(IF(MID($O$46,5,2) ="01",$O$46-89,$O$46-1),M_LICENCIAS,9,0) -> 3446 | K54: =+VLOOKUP($O54,M_LICENCIAS,29,0) -> 35.36231884 | L54: =+VLOOKUP($O54,M_LICENCIAS,49,0) -> -4.0197027 | M54: =+VLOOKUP($O54,M_LICENCIAS,19,0) -> 21.96749855 | N54: =+VLOOKUP($O54,LICENCIAS!C:BA,1,0) -> 202112 | O54: =+LOOKUP(1000000,LICENCIAS!C:C) -> 202112
A55: G | B55: Área licenciada nueva para vivienda VIS Bogotá | C55: DANE | D55: https://www.dane.gov.co/index.php/estadisticas-por-tema/construccion/licencias-de-construccion | E55: Bogotá | F55: Mensual | G55: Metros cuadrados | H55: =+VLOOKUP($O55,M_LICENCIAS,10,0) -> 193935 | I55: =IF($O55>0,VLOOKUP($O55-100,M_LICENCIAS,10,0),"") -> 119646 | J55: =VLOOKUP(IF(MID($O$46,5,2) ="01",$O$46-89,$O$46-1),M_LICENCIAS,10,0) -> 143943 | K55: =+VLOOKUP($O55,M_LICENCIAS,30,0) -> 62.09066747 | L55: =+VLOOKUP($O55,M_LICENCIAS,50,0) -> 8.049955539 | M55: =+VLOOKUP($O55,M_LICENCIAS,20,0) -> 34.73041412 | N55: =+VLOOKUP($O55,LICENCIAS!C:BA,1,0) -> 202112 | O55: =+LOOKUP(1000000,LICENCIAS!C:C) -> 202112
A56: B | B56: Unidades licenciadas nuevas para vivienda VIS Bogotá | C56: DANE | D56: https://www.dane.gov.co/index.php/estadisticas-por-tema/construccion/licencias-de-construccion | E56: Bogotá | F56: Mensual | G56: Unidades | H56: =+VLOOKUP($O56,M_LICENCIAS,11,0) -> 3282 | I56: =IF($O56>0,VLOOKUP($O56-100,M_LICENCIAS,11,0),"") -> 2089 | J56: =VLOOKUP(IF(MID($O$46,5,2) ="01",$O$46-89,$O$46-1),M_LICENCIAS,11,0) -> 2511 | K56: =+VLOOKUP($O56,M_LICENCIAS,31,0) -> 57.10866443 | L56: =+VLOOKUP($O56,M_LICENCIAS,51,0) -> 1.53266207 | M56: =+VLOOKUP($O56,M_LICENCIAS,21,0) -> 30.70489845 | N56: =+VLOOKUP($O56,LICENCIAS!C:BA,1,0) -> 202112 | O56: =+LOOKUP(1000000,LICENCIAS!C:C) -> 202112
A57: G | B57: Censo de Edificaciones
A58: B | B58: Área Nueva Colombia | C58: DANE | D58: https://www.dane.gov.co/index.php/estadisticas-por-tema/construccion/censo-de-edificaciones | E58: Nacional | F58: Trimestral | G58: Metros cuadrados | H58: =+VLOOKUP($O58,M_CENSO_EDIFICACIONES,2,0) -> 4263186 | I58: =IF($O58>0,VLOOKUP($O58-100,M_CENSO_EDIFICACIONES,2,0),"") -> 3146353 | J58: =IF(MID($O58,6,1)="1",VLOOKUP($O58-97,M_CENSO_EDIFICACIONES,2,0),VLOOKUP($O58-1,M_CENSO_EDIFICACIONES,2,0)) -> 3927484 | K58: =+VLOOKUP($O58,M_CENSO_EDIFICACIONES,34,0) -> 35.49611248 | L58: =+VLOOKUP($O58,M_CENSO_EDIFICACIONES,50,0) -> 47.82851116 | M58: =+VLOOKUP($O58,M_CENSO_EDIFICACIONES,18,0) -> 8.547507768 | N58: =+VLOOKUP($O58,M_CENSO_EDIFICACIONES,1,0) -> 202104 | O58: =+LOOKUP(1000000,'CENSO EDIFICACIONES'!C:C) -> 202104
A59: G | B59: Área en Proceso Colombia | C59: DANE | D59: https://www.dane.gov.co/index.php/estadisticas-por-tema/construccion/censo-de-edificaciones | E59: Nacional | F59: Trimestral | G59: Metros cuadrados | H59: =+VLOOKUP($O59,M_CENSO_EDIFICACIONES,3,0) -> 24202502 | I59: =IF($O59>0,VLOOKUP($O59-100,M_CENSO_EDIFICACIONES,3,0),"") -> 22855676 | J59: =IF(MID($O59,6,1)="1",VLOOKUP($O59-97,M_CENSO_EDIFICACIONES,3,0),VLOOKUP($O59-1,M_CENSO_EDIFICACIONES,3,0)) -> 23844581 | K59: =+VLOOKUP($O59,'CENSO EDIFICACIONES'!C:BO,35,0) -> 5.892741917 | L59: =+VLOOKUP($O59,M_CENSO_EDIFICACIONES,51,0) -> 11.37314336 | M59: =+VLOOKUP($O59,M_CENSO_EDIFICACIONES,19,0) -> 1.501058039 | N59: 202104 | O59: =+LOOKUP(1000000,'CENSO EDIFICACIONES'!C:C) -> 202104
A60: B | B60: Área Culminada Colombia | C60: DANE | D60: https://www.dane.gov.co/index.php/estadisticas-por-tema/construccion/censo-de-edificaciones | E60: Nacional | F60: Trimestral | G60: Metros cuadrados | H60: =+VLOOKUP($O60,M_CENSO_EDIFICACIONES,4,0) -> 3979328 | I60: =IF($O60>0,VLOOKUP($O60-100,M_CENSO_EDIFICACIONES,4,0),"") -> 3732027 | J60: =IF(MID($O60,6,1)="1",VLOOKUP($O60-97,M_CENSO_EDIFICACIONES,4,0),VLOOKUP($O60-1,M_CENSO_EDIFICACIONES,4,0)) -> 3274379 | K60: =+VLOOKUP($O60,'CENSO EDIFICACIONES'!C:BO,36,0) -> 6.626452595 | L60: =+VLOOKUP($O60,M_CENSO_EDIFICACIONES,52,0) -> 18.76256458 | M60: =+VLOOKUP($O60,M_CENSO_EDIFICACIONES,20,0) -> 21.52924264 | N60: 202104 | O60: =+LOOKUP(1000000,'CENSO EDIFICACIONES'!C:C) -> 202104
A61: G | B61: Área Paralizada Colombia | C61: DANE | D61: https://www.dane.gov.co/index.php/estadisticas-por-tema/construccion/censo-de-edificaciones | E61: Nacional | F61: Trimestral | G61: Metros cuadrados | H61: =+VLOOKUP($O61,M_CENSO_EDIFICACIONES,5,0) -> 9850345.5 | I61: =IF($O61>0,VLOOKUP($O61-100,M_CENSO_EDIFICACIONES,5,0),"") -> 9624985 | J61: =IF(MID($O61,6,1)="1",VLOOKUP($O61-97,M_CENSO_EDIFICACIONES,5,0),VLOOKUP($O61-1,M_CENSO_EDIFICACIONES,2,0)) -> 3927484 | K61: =+VLOOKUP($O61,'CENSO EDIFICACIONES'!C:BO,37,0) -> 2.341411441 | L61: =+VLOOKUP($O61,M_CENSO_EDIFICACIONES,53,0) -> -15.96908953 | M61: =+VLOOKUP($O61,M_CENSO_EDIFICACIONES,21,0) -> -0.1003981138 | N61: 202104 | O61: =+LOOKUP(1000000,'CENSO EDIFICACIONES'!C:C) -> 202104
A62: B | B62: Área Nueva Bogotá | C62: DANE | D62: https://www.dane.gov.co/index.php/estadisticas-por-tema/construccion/censo-de-edificaciones | E62: Bogotá | F62: Trimestral | G62: Metros cuadrados | H62: =+VLOOKUP($O62,M_CENSO_EDIFICACIONES,10,0) -> 880049 | I62: =IF($O62>0,VLOOKUP($O62-100,M_CENSO_EDIFICACIONES,10,0),"") -> 533912 | J62: =IF(MID($O62,6,1)="1",VLOOKUP($O62-97,M_CENSO_EDIFICACIONES,10,0),VLOOKUP($O62-1,M_CENSO_EDIFICACIONES,10,0)) -> 844539 | K62: =+VLOOKUP($O62,'CENSO EDIFICACIONES'!C:BO,42,0) -> 64.83034657 | L62: =+VLOOKUP($O62,M_CENSO_EDIFICACIONES,58,0) -> 67.49407049 | M62: =+VLOOKUP($O62,M_CENSO_EDIFICACIONES,26,0) -> 4.204660768 | N62: 202104 | O62: =+LOOKUP(1000000,'CENSO EDIFICACIONES'!C:C) -> 202104
A63: G | B63: Área en Proceso Bogotá | C63: DANE | D63: https://www.dane.gov.co/index.php/estadisticas-por-tema/construccion/censo-de-edificaciones | E63: Bogotá | F63: Trimestral | G63: Metros cuadrados | H63: =+VLOOKUP($O63,M_CENSO_EDIFICACIONES,11,0) -> 5127128 | I63: =IF($O63>0,VLOOKUP($O63-100,M_CENSO_EDIFICACIONES,11,0),"") -> 4841152 | J63: =IF(MID($O63,6,1)="1",VLOOKUP($O63-97,M_CENSO_EDIFICACIONES,11,0),VLOOKUP($O63-1,M_CENSO_EDIFICACIONES,11,0)) -> 4969802 | K63: =+VLOOKUP($O63,'CENSO EDIFICACIONES'!C:BO,43,0) -> 5.907189033 | L63: =+VLOOKUP($O63,M_CENSO_EDIFICACIONES,59,0) -> 5.082133229 | M63: =+VLOOKUP($O63,M_CENSO_EDIFICACIONES,27,0) -> 3.165639194 | N63: 202104 | O63: =+LOOKUP(1000000,'CENSO EDIFICACIONES'!C:C) -> 202104
A64: B | B64: Área Culminada Bogotá | C64: DANE | D64: https://www.dane.gov.co/index.php/estadisticas-por-tema/construccion/censo-de-edificaciones | E64: Bogotá | F64: Trimestral | G64: Metros cuadrados | H64: =+VLOOKUP($O64,M_CENSO_EDIFICACIONES,12,0) -> 730029 | I64: =IF($O64>0,VLOOKUP($O64-100,M_CENSO_EDIFICACIONES,12,0),"") -> 898950 | J64: =IF(MID($O64,6,1)="1",VLOOKUP($O64-97,M_CENSO_EDIFICACIONES,12,0),VLOOKUP($O64-1,M_CENSO_EDIFICACIONES,12,0)) -> 599798 | K64: =+VLOOKUP($O64,'CENSO EDIFICACIONES'!C:BO,44,0) -> -18.79092274 | L64: =+VLOOKUP($O64,M_CENSO_EDIFICACIONES,60,0) -> 21.36542457 | M64: =+VLOOKUP($O64,M_CENSO_EDIFICACIONES,28,0) -> 21.71247653 | N64: 202104 | O64: =+LOOKUP(1000000,'CENSO EDIFICACIONES'!C:C) -> 202104
A65: G | B65: Área Paralizada Bogotá | C65: DANE | D65: https://www.dane.gov.co/index.php/estadisticas-por-tema/construccion/censo-de-edificaciones | E65: Bogotá | F65: Trimestral | G65: Metros cuadrados | H65: =+VLOOKUP($O65,M_CENSO_EDIFICACIONES,13,0) -> 1644996.5 | I65: =IF($O65>0,VLOOKUP($O65-100,M_CENSO_EDIFICACIONES,13,0),"") -> 1614340 | J65: =IF(MID($O65,6,1)="1",VLOOKUP($O65-97,M_CENSO_EDIFICACIONES,13,0),VLOOKUP($O65-1,M_CENSO_EDIFICACIONES,13,0)) -> 1624152 | K65: =+VLOOKUP($O65,'CENSO EDIFICACIONES'!C:BO,45,0) -> 1.899011361 | L65: =+VLOOKUP($O65,M_CENSO_EDIFICACIONES,61,0) -> -16.31012935 | M65: =+VLOOKUP($O65,M_CENSO_EDIFICACIONES,29,0) -> 1.283408203 | N65: 202104 | O65: =+LOOKUP(1000000,'CENSO EDIFICACIONES'!C:C) -> 202104
A66: B | B66: Vivienda
A67: G | B67: Área Nueva Colombia Vivienda | C67: DANE | D67: https://www.dane.gov.co/index.php/estadisticas-por-tema/construccion/censo-de-edificaciones | E67: Nacional | F67: Trimestral | G67: Metros cuadrados | H67: =+VLOOKUP($O67,M_CENSO_EDIFICACIONES,6,0) -> 3351773 | I67: =IF($O67>0,VLOOKUP($O67-100,M_CENSO_EDIFICACIONES,6,0),"") -> 2620039 | J67: =IF(MID($O67,6,1)="1",VLOOKUP($O67-97,M_CENSO_EDIFICACIONES,6,0),VLOOKUP($O67-1,M_CENSO_EDIFICACIONES,6,0)) -> 3143079 | K67: =+VLOOKUP($O67,'CENSO EDIFICACIONES'!C:BO,38,0) -> 27.9283629 | L67: =+VLOOKUP($O67,M_CENSO_EDIFICACIONES,54,0) -> 48.87884735 | M67: =+VLOOKUP($O67,M_CENSO_EDIFICACIONES,22,0) -> 6.639794927 | N67: =+VLOOKUP($O67,M_CENSO_EDIFICACIONES,1,0) -> 202104 | O67: =+LOOKUP(1000000,'CENSO EDIFICACIONES'!C:C) -> 202104
A68: B | B68: Área Nueva Colombia Vivienda VIS | C68: DANE | D68: https://www.dane.gov.co/index.php/estadisticas-por-tema/construccion/censo-de-edificaciones | E68: Nacional | F68: Trimestral | G68: Metros cuadrados | H68: =+VLOOKUP($O68,M_CENSO_EDIFICACIONES,7,0) -> 1692426 | I68: =IF($O68>0,VLOOKUP($O68-100,M_CENSO_EDIFICACIONES,7,0),"") -> 1379410 | J68: =IF(MID($O68,6,1)="1",VLOOKUP($O68-97,M_CENSO_EDIFICACIONES,7,0),VLOOKUP($O68-1,M_CENSO_EDIFICACIONES,7,0)) -> 1303993 | K68: =+VLOOKUP($O68,'CENSO EDIFICACIONES'!C:BO,39,0) -> 22.6920205 | L68: =+VLOOKUP($O68,M_CENSO_EDIFICACIONES,55,0) -> 46.48478155 | M68: =+VLOOKUP($O68,M_CENSO_EDIFICACIONES,23,0) -> 29.78796665 | N68: 202104 | O68: =+LOOKUP(1000000,'CENSO EDIFICACIONES'!C:C) -> 202104
A69: G | B69: Unidades Nuevas Colombia Vivienda | C69: DANE | D69: https://www.dane.gov.co/index.php/estadisticas-por-tema/construccion/censo-de-edificaciones | E69: Nacional | F69: Trimestral | G69: Unidades | H69: =+VLOOKUP($O69,M_CENSO_EDIFICACIONES,8,0) -> 44757 | I69: =IF($O69>0,VLOOKUP($O69-100,M_CENSO_EDIFICACIONES,8,0),"") -> 36726 | J69: =IF(MID($O69,6,1)="1",VLOOKUP($O69-97,M_CENSO_EDIFICACIONES,8,0),VLOOKUP($O69-1,M_CENSO_EDIFICACIONES,8,0)) -> 40069 | K69: =+VLOOKUP($O69,'CENSO EDIFICACIONES'!C:BO,40,0) -> 21.86734194 | L69: =+VLOOKUP($O69,M_CENSO_EDIFICACIONES,56,0) -> 45.04251579 | M69: =+VLOOKUP($O69,M_CENSO_EDIFICACIONES,24,0) -> 11.69981781 | N69: 202104 | O69: =+LOOKUP(1000000,'CENSO EDIFICACIONES'!C:C) -> 202104
A70: B | B70: Unidades Nuevas Colombia Vivienda VIS | C70: DANE | D70: https://www.dane.gov.co/index.php/estadisticas-por-tema/construccion/censo-de-edificaciones | E70: Nacional | F70: Trimestral | G70: Unidades | H70: =+VLOOKUP($O70,M_CENSO_EDIFICACIONES,9,0) -> 28605 | I70: =IF($O70>0,VLOOKUP($O70-100,M_CENSO_EDIFICACIONES,9,0),"") -> 23718 | J70: =IF(MID($O70,6,1)="1",VLOOKUP($O70-97,M_CENSO_EDIFICACIONES,9,0),VLOOKUP($O70-1,M_CENSO_EDIFICACIONES,9,0)) -> 21705 | K70: =+VLOOKUP($O70,'CENSO EDIFICACIONES'!C:BO,41,0) -> 20.6046041 | L70: =+VLOOKUP($O70,M_CENSO_EDIFICACIONES,57,0) -> 46.84379707 | M70: =+VLOOKUP($O70,M_CENSO_EDIFICACIONES,25,0) -> 31.78991016 | N70: 202104 | O70: =+LOOKUP(1000000,'CENSO EDIFICACIONES'!C:C) -> 202104
A71: G | B71: Área Nueva Bogotá Vivienda | C71: DANE | D71: https://www.dane.gov.co/index.php/estadisticas-por-tema/construccion/censo-de-edificaciones | E71: Bogotá | F71: Trimestral | G71: Metros cuadrados | H71: =+VLOOKUP($O71,M_CENSO_EDIFICACIONES,14,0) -> 673563 | I71: =IF($O71>0,VLOOKUP($O71-100,M_CENSO_EDIFICACIONES,14,0),"") -> 452026 | J71: =IF(MID($O71,6,1)="1",VLOOKUP($O71-97,M_CENSO_EDIFICACIONES,14,0),VLOOKUP($O71-1,M_CENSO_EDIFICACIONES,14,0)) -> 646608 | K71: =+VLOOKUP($O71,'CENSO EDIFICACIONES'!C:BO,46,0) -> 49.00979147 | L71: =+VLOOKUP($O71,M_CENSO_EDIFICACIONES,62,0) -> 59.61027393 | M71: =+VLOOKUP($O71,M_CENSO_EDIFICACIONES,30,0) -> 4.168677158 | N71: 202104 | O71: =+LOOKUP(1000000,'CENSO EDIFICACIONES'!C:C) -> 202104
A72: B | B72: Área Nueva Bogotá Vivienda VIS | C72: DANE | D72: https://www.dane.gov.co/index.php/estadisticas-por-tema/construccion/censo-de-edificaciones | E72: Bogotá | F72: Trimestral | G72: Metros cuadrados | H72: =+VLOOKUP($O72,M_CENSO_EDIFICACIONES,15,0) -> 350560 | I72: =IF($O72>0,VLOOKUP($O72-100,M_CENSO_EDIFICACIONES,15,0),"") -> 228697 | J72: =IF(MID($O72,6,1)="1",VLOOKUP($O72-97,M_CENSO_EDIFICACIONES,15,0),VLOOKUP($O72-1,M_CENSO_EDIFICACIONES,15,0)) -> 235977 | K72: =+VLOOKUP($O72,'CENSO EDIFICACIONES'!C:BO,47,0) -> 53.28578862 | L72: =+VLOOKUP($O72,M_CENSO_EDIFICACIONES,63,0) -> 102.1629266 | M72: =+VLOOKUP($O72,M_CENSO_EDIFICACIONES,31,0) -> 48.55685088 | N72: 202104 | O72: =+LOOKUP(1000000,'CENSO EDIFICACIONES'!C:C) -> 202104
A73: G | B73: Unidades Nuevas Bogotá Vivienda | C73: DANE | D73: https://www.dane.gov.co/index.php/estadisticas-por-tema/construccion/censo-de-edificaciones | E73: Bogotá | F73: Trimestral | G73: Unidades | H73: =+VLOOKUP($O73,M_CENSO_EDIFICACIONES,16,0) -> 11069 | I73: =IF($O73>0,VLOOKUP($O73-100,M_CENSO_EDIFICACIONES,16,0),"") -> 7801 | J73: =IF(MID($O73,6,1)="1",VLOOKUP($O73-97,M_CENSO_EDIFICACIONES,16,0),VLOOKUP($O73-1,M_CENSO_EDIFICACIONES,16,0)) -> 10546 | K73: =+VLOOKUP($O73,'CENSO EDIFICACIONES'!C:BO,48,0) -> 41.89206512 | L73: =+VLOOKUP($O73,M_CENSO_EDIFICACIONES,64,0) -> 67.12744291 | M73: =+VLOOKUP($O73,M_CENSO_EDIFICACIONES,32,0) -> 4.959226247 | N73: 202104 | O73: =+LOOKUP(1000000,'CENSO EDIFICACIONES'!C:C) -> 202104
A74: B | B74: Unidades Nuevas Bogotá Vivienda VIS | C74: DANE | D74: https://www.dane.gov.co/index.php/estadisticas-por-tema/construccion/censo-de-edificaciones | E74: Bogotá | F74: Trimestral | G74: Unidades | H74: =+VLOOKUP($O74,M_CENSO_EDIFICACIONES,17,0) -> 7171 | I74: =IF($O74>0,VLOOKUP($O74-100,M_CENSO_EDIFICACIONES,17,0),"") -> 4648 | J74: =IF(MID($O74,6,1)="1",VLOOKUP($O74-97,M_CENSO_EDIFICACIONES,17,0),VLOOKUP($O74-1,M_CENSO_EDIFICACIONES,17,0)) -> 4787 | K74: =+VLOOKUP($O74,'CENSO EDIFICACIONES'!C:BO,49,0) -> 54.28141136 | L74: =+VLOOKUP($O74,M_CENSO_EDIFICACIONES,65,0) -> 116.2055336 | M74: =+VLOOKUP($O74,M_CENSO_EDIFICACIONES,33,0) -> 49.80154585 | N74: 202104 | O74: =+LOOKUP(1000000,'CENSO EDIFICACIONES'!C:C) -> 202104
B75: Actividad Edificadora
B76: Área Culminada - Bogotá | C76: CAMACOL | E76: Bogotá | F76: Mensual | G76: Metros cuadrados | H76: =+VLOOKUP($O76,M_STOCK_DE_VIVIENDA,2,0) -> 326964 | I76: =IF($O76>0,VLOOKUP($O76-100,M_STOCK_DE_VIVIENDA,2,0),"") -> 297754 | J76: =IF($O76>0,VLOOKUP($O76-1,M_STOCK_DE_VIVIENDA,2,0),"") -> 228591 | K76: =+VLOOKUP($O76,M_STOCK_DE_VIVIENDA,22,0) -> 9.810111703 | L76: =+VLOOKUP($O76,M_STOCK_DE_VIVIENDA,42,0) -> 27.77153822 | M76: =+VLOOKUP($O76,M_STOCK_DE_VIVIENDA,12,0) -> 43.03450267 | N76: =+VLOOKUP($O76,'STOCK DE VIVIENDA'!D:AT,1,0) -> 202112 | O76: =+LOOKUP(1000000,'STOCK DE VIVIENDA'!D:D) -> 202112
B77: Área Nueva - Bogotá | C77: CAMACOL | E77: Bogotá | F77: Mensual | G77: Metros cuadrados | H77: =+VLOOKUP($O77,M_STOCK_DE_VIVIENDA,3,0) -> 116133 | I77: =IF($O77>0,VLOOKUP($O77-100,M_STOCK_DE_VIVIENDA,3,0),"") -> 206222 | J77: =IF($O77>0,VLOOKUP($O77-1,M_STOCK_DE_VIVIENDA,3,0),"") -> 335405 | K77: =+VLOOKUP($O77,M_STOCK_DE_VIVIENDA,23,0) -> -43.68544578 | L77: =+VLOOKUP($O77,M_STOCK_DE_VIVIENDA,43,0) -> 23.29926144 | M77: =+VLOOKUP($O77,M_STOCK_DE_VIVIENDA,13,0) -> -65.37529256 | N77: =+VLOOKUP($O77,'STOCK DE VIVIENDA'!D:AT,1,0) -> 202112 | O77: =+LOOKUP(1000000,'STOCK DE VIVIENDA'!D:D) -> 202112
B78: Área Nueva - Bogotá vivienda | C78: CAMACOL | E78: Bogotá | F78: Mensual | G78: Metros cuadrados | H78: =+VLOOKUP($O78,M_STOCK_DE_VIVIENDA,4,0) -> 115333 | I78: =IF($O78>0,VLOOKUP($O78-100,M_STOCK_DE_VIVIENDA,4,0),"") -> 145354 | J78: =IF($O78>0,VLOOKUP($O78-1,M_STOCK_DE_VIVIENDA,4,0),"") -> 333074 | K78: =+VLOOKUP($O78,M_STOCK_DE_VIVIENDA,24,0) -> -20.65371438 | L78: =+VLOOKUP($O78,M_STOCK_DE_VIVIENDA,44,0) -> 38.23188714 | M78: =+VLOOKUP($O78,M_STOCK_DE_VIVIENDA,14,0) -> -65.37316032 | N78: =+VLOOKUP($O78,'STOCK DE VIVIENDA'!D:AT,1,0) -> 202112 | O78: =+LOOKUP(1000000,'STOCK DE VIVIENDA'!D:D) -> 202112
B79: Área Nueva Bogotá vivienda - VIS | C79: CAMACOL | E79: Bogotá | F79: Mensual | G79: Metros cuadrados | H79: =+VLOOKUP($O79,M_STOCK_DE_VIVIENDA,5,0) -> 71785 | I79: =IF($O79>0,VLOOKUP($O79-100,M_STOCK_DE_VIVIENDA,5,0),"") -> 90187 | J79: =IF($O79>0,VLOOKUP($O79-1,M_STOCK_DE_VIVIENDA,5,0),"") -> 130410 | K79: =+VLOOKUP($O79,M_STOCK_DE_VIVIENDA,25,0) -> -20.40427113 | L79: =+VLOOKUP($O79,M_STOCK_DE_VIVIENDA,45,0) -> -5.595702568 | M79: =+VLOOKUP($O79,M_STOCK_DE_VIVIENDA,15,0) -> -44.95437466 | N79: =+VLOOKUP($O79,'STOCK DE VIVIENDA'!D:AT,1,0) -> 202112 | O79: =+LOOKUP(1000000,'STOCK DE VIVIENDA'!D:D) -> 202112
B80: Unidades Nuevas Bogotá vivienda | C80: CAMACOL | E80: Bogotá | F80: Mensual | G80: Unidades | H80: =+VLOOKUP($O80,M_STOCK_DE_VIVIENDA,6,0) -> 2284 | I80: =IF($O80>0,VLOOKUP($O80-100,M_STOCK_DE_VIVIENDA,6,0),"") -> 2897 | J80: =IF($O80>0,VLOOKUP($O80-1,M_STOCK_DE_VIVIENDA,6,0),"") -> 5501 | K80: =+VLOOKUP($O80,M_STOCK_DE_VIVIENDA,26,0) -> -21.1598205 | L80: =+VLOOKUP($O80,M_STOCK_DE_VIVIENDA,46,0) -> 36.03104985 | M80: =+VLOOKUP($O80,M_STOCK_DE_VIVIENDA,16,0) -> -58.48027631 | N80: =+VLOOKUP($O80,'STOCK DE VIVIENDA'!D:AT,1,0) -> 202112 | O80: =+LOOKUP(1000000,'STOCK DE VIVIENDA'!D:D) -> 202112
B81: Unidades Nuevas Bogotá vivienda - VIS | C81: CAMACOL | E81: Bogotá | F81: Mensual | G81: Unidades | H81: =+VLOOKUP($O81,M_STOCK_DE_VIVIENDA,7,0) -> 1467 | I81: =IF($O81>0,VLOOKUP($O81-100,M_STOCK_DE_VIVIENDA,7,0),"") -> 1952 | J81: =IF($O81>0,VLOOKUP($O81-1,M_STOCK_DE_VIVIENDA,7,0),"") -> 2749 | K81: =+VLOOKUP($O81,M_STOCK_DE_VIVIENDA,27,0) -> -24.84631148 | L81: =+VLOOKUP($O81,M_STOCK_DE_VIVIENDA,47,0) -> -3.223756672 | M81: =+VLOOKUP($O81,M_STOCK_DE_VIVIENDA,17,0) -> -46.63514005 | N81: =+VLOOKUP($O81,'STOCK DE VIVIENDA'!D:AT,1,0) -> 202112 | O81: =+LOOKUP(1000000,'STOCK DE VIVIENDA'!D:D) -> 202112
B82: Unidades Oferta vivienda | C82: CAMACOL | E82: Bogotá | F82: Mensual | G82: Unidades | H82: =+VLOOKUP($O82,M_STOCK_DE_VIVIENDA,8,0) -> 34083 | I82: =IF($O82>0,VLOOKUP($O82-100,M_STOCK_DE_VIVIENDA,8,0),"") -> 36705 | J82: =IF($O82>0,VLOOKUP($O82-1,M_STOCK_DE_VIVIENDA,8,0),"") -> 32777 | K82: =+VLOOKUP($O82,M_STOCK_DE_VIVIENDA,28,0) -> -7.143440948 | L82: =+VLOOKUP($O82,M_STOCK_DE_VIVIENDA,48,0) -> 12.63067509 | M82: =+VLOOKUP($O82,M_STOCK_DE_VIVIENDA,18,0) -> 3.984501327 | N82: =+VLOOKUP($O82,'STOCK DE VIVIENDA'!D:AT,1,0) -> 202112 | O82: =+LOOKUP(1000000,'STOCK DE VIVIENDA'!D:D) -> 202112
B83: Unidades Ventas vivienda | C83: CAMACOL | E83: Bogotá | F83: Mensual | G83: Unidades | H83: =+VLOOKUP($O83,M_STOCK_DE_VIVIENDA,9,0) -> 2951 | I83: =IF($O83>0,VLOOKUP($O83-100,M_STOCK_DE_VIVIENDA,9,0),"") -> 6629 | J83: =IF($O83>0,VLOOKUP($O83-1,M_STOCK_DE_VIVIENDA,9,0),"") -> 3294 | K83: =+VLOOKUP($O83,M_STOCK_DE_VIVIENDA,29,0) -> -55.48348167 | L83: =+VLOOKUP($O83,M_STOCK_DE_VIVIENDA,49,0) -> 11.2257295 | M83: =+VLOOKUP($O83,M_STOCK_DE_VIVIENDA,19,0) -> -10.41287189 | N83: =+VLOOKUP($O83,'STOCK DE VIVIENDA'!D:AT,1,0) -> 202112 | O83: =+LOOKUP(1000000,'STOCK DE VIVIENDA'!D:D) -> 202112
B84: Unidades Oferta vivienda - VIS | C84: CAMACOL | E84: Bogotá | F84: Mensual | G84: Unidades | H84: =+VLOOKUP($O84,M_STOCK_DE_VIVIENDA,10,0) -> 18628 | I84: =IF($O84>0,VLOOKUP($O84-100,M_STOCK_DE_VIVIENDA,10,0),"") -> 18327 | J84: =IF($O84>0,VLOOKUP($O84-1,M_STOCK_DE_VIVIENDA,10,0),"") -> 17919 | K84: =+VLOOKUP($O84,M_STOCK_DE_VIVIENDA,30,0) -> 1.642385551 | L84: =+VLOOKUP($O84,M_STOCK_DE_VIVIENDA,50,0) -> 37.74381982 | M84: =+VLOOKUP($O84,M_STOCK_DE_VIVIENDA,20,0) -> 3.956694012 | N84: =+VLOOKUP($O84,'STOCK DE VIVIENDA'!D:AT,1,0) -> 202112 | O84: =+LOOKUP(1000000,'STOCK DE VIVIENDA'!D:D) -> 202112
B85: Unidades Ventas vivienda - VIS | C85: CAMACOL | E85: Bogotá | F85: Mensual | G85: Unidades | H85: =+VLOOKUP($O85,M_STOCK_DE_VIVIENDA,11,0) -> 1990 | I85: =IF($O85>0,VLOOKUP($O85-100,M_STOCK_DE_VIVIENDA,11,0),"") -> 4641 | J85: =IF($O85>0,VLOOKUP($O85-1,M_STOCK_DE_VIVIENDA,11,0),"") -> 2297 | K85: =+VLOOKUP($O85,M_STOCK_DE_VIVIENDA,31,0) -> -57.12131006 | L85: =+VLOOKUP($O85,M_STOCK_DE_VIVIENDA,51,0) -> 12.78803753 | M85: =+VLOOKUP($O85,M_STOCK_DE_VIVIENDA,21,0) -> -13.36525903 | N85: =+VLOOKUP($O85,'STOCK DE VIVIENDA'!D:AT,1,0) -> 202112 | O85: =+LOOKUP(1000000,'STOCK DE VIVIENDA'!D:D) -> 202112
B86: Galería inmobiliaria
B87: Unidades de viviendas vendidas | C87: GALERIA INM | E87: Bogotá | F87: Mensual | G87: Unidades | H87: =+VLOOKUP($O87,M_GALERÍA_INMOBILIARIA,2,0) -> 4139 | I87: =IF($O87>0,VLOOKUP($O87-100,M_GALERÍA_INMOBILIARIA,2,0),"") -> 5311 | J87: =IF($O87>0,VLOOKUP($O87-1,M_GALERÍA_INMOBILIARIA,2,0),"") -> 4404 | K87: =+VLOOKUP($O87,M_GALERÍA_INMOBILIARIA,20,0) -> -22.06740727 | L87: =+VLOOKUP($O87,M_GALERÍA_INMOBILIARIA,38,0) -> -7.751284214 | M87: =+VLOOKUP($O87,M_GALERÍA_INMOBILIARIA,11,0) -> -6.017257039 | N87: =+VLOOKUP($O87,GALERÍA_INMOBILIARIA!D:AT,1,0) -> 202203 | O87: =+LOOKUP(1000000,GALERÍA_INMOBILIARIA!D:D) -> 202203
B88: Unidades de viviendas disponibles | C88: GALERIA INM | E88: Bogotá | F88: Mensual | G88: Unidades | H88: =+VLOOKUP($O88,M_GALERÍA_INMOBILIARIA,3,0) -> 24375 | I88: =IF($O88>0,VLOOKUP($O88-100,M_GALERÍA_INMOBILIARIA,3,0),"") -> 27887 | J88: =IF($O88>0,VLOOKUP($O88-1,M_GALERÍA_INMOBILIARIA,3,0),"") -> 24917 | K88: =+VLOOKUP($O88,M_GALERÍA_INMOBILIARIA,21,0) -> -12.59368164 | L88: =+VLOOKUP($O88,M_GALERÍA_INMOBILIARIA,39,0) -> -9.77357409 | M88: =+VLOOKUP($O88,M_GALERÍA_INMOBILIARIA,12,0) -> -2.175221736 | N88: =+VLOOKUP($O88,GALERÍA_INMOBILIARIA!D:AT,1,0) -> 202203 | O88: =+LOOKUP(1000000,GALERÍA_INMOBILIARIA!D:D) -> 202203
B89: Unidades de viviendas nuevas | C89: GALERIA INM | E89: Bogotá | F89: Mensual | G89: Unidades | H89: =+VLOOKUP($O89,M_GALERÍA_INMOBILIARIA,4,0) -> 3597 | I89: =IF($O89>0,VLOOKUP($O89-100,M_GALERÍA_INMOBILIARIA,4,0),"") -> 6127 | J89: =IF($O89>0,VLOOKUP($O89-1,M_GALERÍA_INMOBILIARIA,4,0),"") -> 3061 | K89: =+VLOOKUP($O89,M_GALERÍA_INMOBILIARIA,22,0) -> -41.29263914 | L89: =+VLOOKUP($O89,M_GALERÍA_INMOBILIARIA,40,0) -> -17.09629137 | M89: =+VLOOKUP($O89,M_GALERÍA_INMOBILIARIA,13,0) -> 17.51061745 | N89: =+VLOOKUP($O89,GALERÍA_INMOBILIARIA!D:AT,1,0) -> 202203 | O89: =+LOOKUP(1000000,GALERÍA_INMOBILIARIA!D:D) -> 202203
B90: Área de viviendas vendidas | C90: GALERIA INM | E90: Bogotá | F90: Mensual | G90: Metros cuadrados | H90: =+VLOOKUP($O90,M_GALERÍA_INMOBILIARIA,5,0) -> 187533.18 | I90: =IF($O90>0,VLOOKUP($O90-100,M_GALERÍA_INMOBILIARIA,5,0),"") -> 242413.77 | J90: =IF($O90>0,VLOOKUP($O90-1,M_GALERÍA_INMOBILIARIA,5,0),"") -> 205505.76 | K90: =+VLOOKUP($O90,M_GALERÍA_INMOBILIARIA,23,0) -> -22.63922136 | L90: =+VLOOKUP($O90,M_GALERÍA_INMOBILIARIA,41,0) -> -7.587705311 | M90: =+VLOOKUP($O90,M_GALERÍA_INMOBILIARIA,14,0) -> -8.745535892 | N90: =+VLOOKUP($O90,GALERÍA_INMOBILIARIA!D:AT,1,0) -> 202203 | O90: =+LOOKUP(1000000,GALERÍA_INMOBILIARIA!D:D) -> 202203
B91: Área de viviendas disponibles | C91: GALERIA INM | E91: Bogotá | F91: Mensual | G91: Metros cuadrados | H91: =+VLOOKUP($O91,M_GALERÍA_INMOBILIARIA,6,0) -> 1293135.61 | I91: =IF($O91>0,VLOOKUP($O91-100,M_GALERÍA_INMOBILIARIA,6,0),"") -> 1465538.7 | J91: =IF($O91>0,VLOOKUP($O91-1,M_GALERÍA_INMOBILIARIA,6,0),"") -> 1309296.71 | K91: =+VLOOKUP($O91,M_GALERÍA_INMOBILIARIA,24,0) -> -11.7638033 | L91: =+VLOOKUP($O91,M_GALERÍA_INMOBILIARIA,42,0) -> -10.08355894 | M91: =+VLOOKUP($O91,M_GALERÍA_INMOBILIARIA,15,0) -> -1.234334424 | N91: =+VLOOKUP($O91,GALERÍA_INMOBILIARIA!D:AT,1,0) -> 202203 | O91: =+LOOKUP(1000000,GALERÍA_INMOBILIARIA!D:D) -> 202203
B92: Área de viviendas nuevas | C92: GALERIA INM | E92: Bogotá | F92: Mensual | G92: Metros cuadrados | H92: =+VLOOKUP($O92,M_GALERÍA_INMOBILIARIA,7,0) -> 171372.08 | I92: =IF($O92>0,VLOOKUP($O92-100,M_GALERÍA_INMOBILIARIA,7,0),"") -> 269364.3 | J92: =IF($O92>0,VLOOKUP($O92-1,M_GALERÍA_INMOBILIARIA,7,0),"") -> 133209.27 | K92: =+VLOOKUP($O92,M_GALERÍA_INMOBILIARIA,25,0) -> -36.37906731 | L92: =+VLOOKUP($O92,M_GALERÍA_INMOBILIARIA,43,0) -> -9.250208596 | M92: =+VLOOKUP($O92,M_GALERÍA_INMOBILIARIA,16,0) -> 28.64876446 | N92: =+VLOOKUP($O92,GALERÍA_INMOBILIARIA!D:AT,1,0) -> 202203 | O92: =+LOOKUP(1000000,GALERÍA_INMOBILIARIA!D:D) -> 202203
B93: Unidades de viviendas VIS/VIP vendidas | C93: GALERIA INM | E93: Bogotá | F93: Mensual | G93: Unidades | H93: =+VLOOKUP($O93,M_GALERÍA_INMOBILIARIA,8,0) -> 3212 | I93: =IF($O93>0,VLOOKUP($O93-100,M_GALERÍA_INMOBILIARIA,8,0),"") -> 4224 | J93: =IF($O93>0,VLOOKUP($O93-1,M_GALERÍA_INMOBILIARIA,8,0),"") -> 3299 | K93: =+VLOOKUP($O93,M_GALERÍA_INMOBILIARIA,26,0) -> -23.95833333 | L93: =+VLOOKUP($O93,M_GALERÍA_INMOBILIARIA,44,0) -> -9.390135416 | M93: =+VLOOKUP($O93,M_GALERÍA_INMOBILIARIA,17,0) -> -2.637162777 | N93: =+VLOOKUP($O93,GALERÍA_INMOBILIARIA!D:AT,1,0) -> 202203 | O93: =+LOOKUP(1000000,GALERÍA_INMOBILIARIA!D:D) -> 202203
B94: Unidades de viviendas VIS/VIP disponibles | C94: GALERIA INM | E94: Bogotá | F94: Mensual | G94: Unidades | H94: =+VLOOKUP($O94,M_GALERÍA_INMOBILIARIA,9,0) -> 13577 | I94: =IF($O94>0,VLOOKUP($O94-100,M_GALERÍA_INMOBILIARIA,9,0),"") -> 14590 | J94: =IF($O94>0,VLOOKUP($O94-1,M_GALERÍA_INMOBILIARIA,9,0),"") -> 13753 | K94: =+VLOOKUP($O94,M_GALERÍA_INMOBILIARIA,27,0) -> -6.94311172 | L94: =+VLOOKUP($O94,M_GALERÍA_INMOBILIARIA,45,0) -> -3.743698839 | M94: =+VLOOKUP($O94,M_GALERÍA_INMOBILIARIA,18,0) -> -1.279720788 | N94: =+VLOOKUP($O94,GALERÍA_INMOBILIARIA!D:AT,1,0) -> 202203 | O94: =+LOOKUP(1000000,GALERÍA_INMOBILIARIA!D:D) -> 202203
B95: Unidades de viviendas VIS/VIP nuevas | C95: GALERIA INM | E95: Bogotá | F95: Mensual | G95: Unidades | H95: =+VLOOKUP($O95,M_GALERÍA_INMOBILIARIA,10,0) -> 3036 | I95: =IF($O95>0,VLOOKUP($O95-100,M_GALERÍA_INMOBILIARIA,10,0),"") -> 5037 | J95: =IF($O95>0,VLOOKUP($O95-1,M_GALERÍA_INMOBILIARIA,10,0),"") -> 2755 | K95: =+VLOOKUP($O95,M_GALERÍA_INMOBILIARIA,28,0) -> -39.7260274 | L95: =+VLOOKUP($O95,M_GALERÍA_INMOBILIARIA,46,0) -> -14.80133455 | M95: =+VLOOKUP($O95,M_GALERÍA_INMOBILIARIA,19,0) -> 10.19963702 | N95: =+VLOOKUP($O95,GALERÍA_INMOBILIARIA!D:AT,1,0) -> 202203 | O95: =+LOOKUP(1000000,GALERÍA_INMOBILIARIA!D:D) -> 202203
B96: Censo Catastral Bogotá
B97: Área construida | C97: UAECD | E97: Bogotá | F97: Anual | G97: Metros cuadrados | H97: =+VLOOKUP($O97,M_CENSO_CATASTRO,2,0) -> 296606481.5 | I97: =IF($O97>0,VLOOKUP($O97-1,M_CENSO_CATASTRO,2,0),"") -> 292260793.6 | J97: - | K97: =+VLOOKUP($O97,M_CENSO_CATASTRO,7,0) -> 1.486921286 | L97: - | M97: - | N97: =+VLOOKUP($O97,M_CENSO_CATASTRO,1,0) -> 2022 | O97: =+LOOKUP(100000,CENSO_CATASTRO!A:A) -> 2022
B98: Área construida vivienda | C98: UAECD | E98: Bogotá | F98: Anual | G98: Metros cuadrados | H98: =+VLOOKUP($O98,M_CENSO_CATASTRO,3,0) -> 223454260.4 | I98: =IF($O98>0,VLOOKUP($O98-1,M_CENSO_CATASTRO,3,0),"") -> 219338725.9 | J98: - | K98: =+VLOOKUP($O98,M_CENSO_CATASTRO,8,0) -> 1.876337416 | L98: - | M98: - | N98: =+VLOOKUP($O98,M_CENSO_CATASTRO,1,0) -> 2022 | O98: =+LOOKUP(100000,CENSO_CATASTRO!A:A) -> 2022
B99: Número de predios | C99: UAECD | E99: Bogotá | F99: Anual | G99: Número | H99: =+VLOOKUP($O99,M_CENSO_CATASTRO,4,0) -> 2742388 | I99: =IF($O99>0,VLOOKUP($O99-1,M_CENSO_CATASTRO,4,0),"") -> 2706313 | J99: - | K99: =+VLOOKUP($O99,M_CENSO_CATASTRO,9,0) -> 1.332994373 | L99: - | M99: - | N99: =+VLOOKUP($O99,M_CENSO_CATASTRO,1,0) -> 2022 | O99: =+LOOKUP(100000,CENSO_CATASTRO!A:A) -> 2022
B100: Número de predios vivienda | C100: UAECD | E100: Bogotá | F100: Anual | G100: Número | H100: =+VLOOKUP($O100,M_CENSO_CATASTRO,5,0) -> 2419991 | I100: =IF($O100>0,VLOOKUP($O100-1,M_CENSO_CATASTRO,5,0),"") -> 2385033 | J100: - | K100: =+VLOOKUP($O100,M_CENSO_CATASTRO,10,0) -> 1.465723954 | L100: - | M100: - | N100: =+VLOOKUP($O100,M_CENSO_CATASTRO,1,0) -> 2022 | O100: =+LOOKUP(100000,CENSO_CATASTRO!A:A) -> 2022
B101: Cemento gris
B102: Producción de cemento - Colombia | C102: DANE | D102: https://www.dane.gov.co/index.php/estadisticas-por-tema/construccion/estadisticas-de-cemento-gris | E102: Nacional | F102: Mensual | G102: Toneladas | H102: =+VLOOKUP($O102,M_CEMENTO,2,0) -> 1267878.431 | I102: =IF($O102>0,VLOOKUP($O102-100,M_CEMENTO,2,0),"") -> 1176276.667 | J102: =IF($O102>0,VLOOKUP($O102-1,M_CEMENTO,2,0),"") -> 1201226.827 | K102: =+VLOOKUP($O102,M_CEMENTO,8,0) -> 7.787433559 | L102: =+VLOOKUP($O102,M_CEMENTO,14,0) -> 16.44854155 | M102: =+VLOOKUP($O102,M_CEMENTO,5,0) -> 5.548627625 | N102: =+VLOOKUP($O102,CEMENTO!C:C,1,0) -> 202112 | O102: =+LOOKUP(1000000,CEMENTO!C:C) -> 202112
A103: G | B103: DEMANDA
B104: Financiación de vivienda
B105: Total Viviendas Financiadas - Colombia | C105: DANE | D105: https://www.dane.gov.co/index.php/estadisticas-por-tema/construccion/financiacion-de-vivienda | E105: Nacional | F105: Trimestral | G105: Unidades | H105: =+VLOOKUP($O105,M_CHV_FIVI,2,0) -> 57839 | I105: =IF($O105>0,VLOOKUP($O105-100,M_CHV_FIVI,2,0),"") -> 48848 | J105: =IF(MID($O105,6,1)="1",VLOOKUP($O105-97,M_CHV_FIVI,2,0),VLOOKUP($O105-1,M_CHV_FIVI,2,0)) -> 59394 | K105: =+VLOOKUP($O105,M_CHV_FIVI,11,0) -> 18.40607599 | L105: =+VLOOKUP($O105,M_CHV_FIVI,20,0) -> 43.58377344 | M105: - | N105: =+VLOOKUP($O105,M_CHV_FIVI,1,0) -> 202104 | O105: =+LOOKUP(1000000,CHV_FIVI!C:C) -> 202104
B106: Total Vivienda Financiadas Nuevas - Colombia | C106: DANE | D106: https://www.dane.gov.co/index.php/estadisticas-por-tema/construccion/financiacion-de-vivienda | E106: Nacional | F106: Trimestral | G106: Unidades | H106: =+VLOOKUP($O106,M_CHV_FIVI,3,0) -> 36181 | I106: =IF($O106>0,VLOOKUP($O106-100,M_CHV_FIVI,3,0),"") -> 32198 | J106: =IF(MID($O106,6,1)="1",VLOOKUP($O106-97,M_CHV_FIVI,3,0),VLOOKUP($O106-1,M_CHV_FIVI,3,0)) -> 37520 | K106: =+VLOOKUP($O106,M_CHV_FIVI,12,0) -> 12.37033356 | L106: =+VLOOKUP($O106,M_CHV_FIVI,21,0) -> 37.8874748 | M106: - | N106: =+VLOOKUP($O106,M_CHV_FIVI,1,0) -> 202104 | O106: =+LOOKUP(1000000,CHV_FIVI!C:C) -> 202104
B107: Total Vivienda Financiadas Usadas - Colombia | C107: DANE | D107: https://www.dane.gov.co/index.php/estadisticas-por-tema/construccion/financiacion-de-vivienda | E107: Nacional | F107: Trimestral | G107: Unidades | H107: =+VLOOKUP($O107,M_CHV_FIVI,4,0) -> 21658 | I107: =IF($O107>0,VLOOKUP($O107-100,M_CHV_FIVI,4,0),"") -> 16650 | J107: =IF(MID($O107,6,1)="1",VLOOKUP($O107-97,M_CHV_FIVI,4,0),VLOOKUP($O107-1,M_CHV_FIVI,4,0)) -> 21874 | K107: =+VLOOKUP($O107,M_CHV_FIVI,13,0) -> 30.07807808 | L107: =+VLOOKUP($O107,M_CHV_FIVI,22,0) -> 53.99946239 | M107: - | N107: =+VLOOKUP($O107,M_CHV_FIVI,1,0) -> 202104 | O107: =+LOOKUP(1000000,CHV_FIVI!C:C) -> 202104
B108: Cartera Hipotecaria de vivienda
B109: Número de créditos - Colombia | C109: DANE | D109: https://www.dane.gov.co/index.php/estadisticas-por-tema/construccion/cartera-hipotecaria-de-vivienda | E109: Nacional | F109: Trimestral | G109: Número | H109: =+VLOOKUP($O109,M_CHV_FIVI,5,0) -> 1267322 | I109: =IF($O109>0,VLOOKUP($O109-100,M_CHV_FIVI,5,0),"") -> 1223238 | J109: =IF(MID($O109,6,1)="1",VLOOKUP($O109-97,M_CHV_FIVI,5,0),VLOOKUP($O109-1,M_CHV_FIVI,5,0)) -> 1248878 | K109: =+VLOOKUP($O109,M_CHV_FIVI,14,0) -> 3.603877577 | L109: - | M109: =+VLOOKUP($O109,M_CHV_FIVI,8,0) -> 1.476845617 | N109: =+VLOOKUP($O109,M_CHV_FIVI,1,0) -> 202104 | O109: =+LOOKUP(1000000,CHV_FIVI!C:C) -> 202104
B110: Número de créditos - Bogotá | C110: DANE | D110: https://www.dane.gov.co/index.php/estadisticas-por-tema/construccion/cartera-hipotecaria-de-vivienda | E110: Nacional | F110: Trimestral | G110: Número | H110: =+VLOOKUP($O110,M_CHV_FIVI,6,0) -> 456361 | I110: =IF($O110>0,VLOOKUP($O110-100,M_CHV_FIVI,6,0),"") -> 443778 | J110: =IF(MID($O110,6,1)="1",VLOOKUP($O110-97,M_CHV_FIVI,6,0),VLOOKUP($O110-1,M_CHV_FIVI,6,0)) -> 454002 | K110: =+VLOOKUP($O110,M_CHV_FIVI,15,0) -> 2.835426722 | L110: - | M110: =+VLOOKUP($O110,M_CHV_FIVI,9,0) -> 0.5196012352 | N110: =+VLOOKUP($O110,M_CHV_FIVI,1,0) -> 202104 | O110: =+LOOKUP(1000000,CHV_FIVI!C:C) -> 202104
B111: Número de créditos - Bogotá - VIS/VIP | C111: DANE | D111: https://www.dane.gov.co/index.php/estadisticas-por-tema/construccion/cartera-hipotecaria-de-vivienda | E111: Nacional | F111: Trimestral | G111: Número | H111: =+VLOOKUP($O111,M_CHV_FIVI,7,0) -> 196392 | I111: =IF($O111>0,VLOOKUP($O111-100,M_CHV_FIVI,7,0),"") -> 191565 | J111: =IF(MID($O111,6,1)="1",VLOOKUP($O111-97,M_CHV_FIVI,7,0),VLOOKUP($O111-1,M_CHV_FIVI,7,0)) -> 193557 | K111: =+VLOOKUP($O111,M_CHV_FIVI,16,0) -> 2.519771357 | L111: - | M111: =+VLOOKUP($O111,M_CHV_FIVI,10,0) -> 1.464684822 | N111: =+VLOOKUP($O111,M_CHV_FIVI,1,0) -> 202104 | O111: =+LOOKUP(1000000,CHV_FIVI!C:C) -> 202104
B112: Cemento gris 1
B113: Despacho de cemento - Colombia | C113: DANE | D113: https://www.dane.gov.co/index.php/estadisticas-por-tema/construccion/estadisticas-de-cemento-gris | E113: Nacional | F113: Mensual | G113: Toneladas | H113: =+VLOOKUP($O113,M_CEMENTO,3,0) -> 1134856.199 | I113: =IF($O113>0,VLOOKUP($O113-100,M_CEMENTO,3,0),"") -> 1054316.552 | J113: =IF($O113>0,VLOOKUP($O113-1,M_CEMENTO,3,0),"") -> 1166822.446 | K113: =+VLOOKUP($O113,M_CEMENTO,9,0) -> 7.63903852 | L113: =+VLOOKUP($O113,M_CEMENTO,15,0) -> 16.08508103 | M113: =+VLOOKUP($O113,M_CEMENTO,6,0) -> -2.739598197 | N113: =+VLOOKUP($O113,CEMENTO!C:C,1,0) -> 202112 | O113: =+LOOKUP(1000000,CEMENTO!C:C) -> 202112
B114: Despacho de cemento - Bogotá | C114: DANE | D114: https://www.dane.gov.co/index.php/estadisticas-por-tema/construccion/estadisticas-de-cemento-gris | E114: Bogotá | F114: Mensual | G114: Toneladas | H114: =+VLOOKUP($O114,M_CEMENTO,4,0) -> 99873.4071 | I114: =IF($O114>0,VLOOKUP($O114-100,M_CEMENTO,4,0),"") -> 97794.09001 | J114: =IF($O114>0,VLOOKUP($O114-1,M_CEMENTO,4,0),"") -> 114168.9263 | K114: =+VLOOKUP($O114,M_CEMENTO,10,0) -> 2.126219582 | L114: =+VLOOKUP($O114,M_CEMENTO,16,0) -> 17.21056932 | M114: =+VLOOKUP($O114,M_CEMENTO,7,0) -> -12.52137486 | N114: =+VLOOKUP($O114,CEMENTO!C:C,1,0) -> 202112 | O114: =+LOOKUP(1000000,CEMENTO!C:C) -> 202112
A115: G | B115: PRECIOS
B116: IPC
B117: IPC Colombia | C117: DANE | D117: https://www.dane.gov.co/index.php/estadisticas-por-tema/precios-y-costos/indice-de-precios-al-consumidor-ipc | E117: Nacional | F117: Mensual | G117: Número Índice | H117: =+VLOOKUP($O117,M_IPC,2,0) -> 116.26 | I117: =IF($O117>0,VLOOKUP($O117-100,M_IPC,2,0),"") -> 107.12 | J117: =IF(MID($O117,5,2)="01",VLOOKUP($O117-7,M_IPC,2,0),VLOOKUP($O117-1,M_IPC,2,0)) -> 115.11 | K117: =+VLOOKUP($O117,M_IPC,10,0) -> 8.532486931 | L117: =+VLOOKUP($O117,M_IPC,14,0) -> 4.36 | M117: =+VLOOKUP($O117,M_IPC,6,0) -> 0.9990443923 | N117: =+VLOOKUP($O117,IPC!$C:$S,1,0) -> 202203 | O117: =+LOOKUP(1000000,IPC!C:C) -> 202203
B118: IPC Colombia - Vivienda | C118: DANE | D118: https://www.dane.gov.co/index.php/estadisticas-por-tema/precios-y-costos/indice-de-precios-al-consumidor-ipc | E118: Nacional | F118: Mensual | G118: Número Índice | H118: =+VLOOKUP($O118,M_IPC,3,0) -> 0 | I118: =IF($O118>0,VLOOKUP($O118-100,M_IPC,3,0),"") -> 96.64298371 | J118: =IF(MID($O118,5,2)="01",VLOOKUP($O118-7,M_IPC,3,0),VLOOKUP($O118-1,IPC!$C:$S,3,0)) -> 0 | K118: =+VLOOKUP($O118,M_IPC,11,0) -> 0 | L118: =+VLOOKUP($O118,M_IPC,15,0) -> 0 | M118: =+VLOOKUP($O118,M_IPC,7,0) -> 0 | N118: =+VLOOKUP($O118,IPC!$C:$S,1,0) -> 202203 | O118: =+LOOKUP(1000000,IPC!C:C) -> 202203
B119: IPC Bogotá | C119: SDHT | D119: https://www.habitatbogota.gov.co/transparencia/informacion-interes/publicaciones | E119: Bogotá | F119: Mensual | G119: Número Índice | H119: =+VLOOKUP($O119,M_IPC,4,0) -> 0 | I119: =IF($O119>0,VLOOKUP($O119-100,M_IPC,4,0),"") -> 106.15 | J119: =IF(MID($O119,5,2)="01",VLOOKUP($O119-7,M_IPC,4,0),VLOOKUP($O119-1,M_IPC,4,0)) -> 0 | K119: =+VLOOKUP($O119,M_IPC,12,0) -> 0 | L119: =+VLOOKUP($O119,M_IPC,16,0) -> 0 | M119: =+VLOOKUP($O119,M_IPC,8,0) -> 0 | N119: =+VLOOKUP($O119,IPC!$C:$S,1,0) -> 202203 | O119: =+LOOKUP(1000000,IPC!C:C) -> 202203
B120: IPC Bogotá - Vivienda | C120: SDHT | D120: https://www.habitatbogota.gov.co/transparencia/informacion-interes/publicaciones | E120: Bogotá | F120: Mensual | G120: Número Índice | H120: =+VLOOKUP($O120,M_IPC,5,0) -> 0 | I120: =IF($O120>0,VLOOKUP($O120-100,M_IPC,5,0),"") -> 97.51204479 | J120: =IF(MID($O120,5,2)="01",VLOOKUP($O120-7,M_IPC,4,0),VLOOKUP($O120-1,M_IPC,5,0)) -> 0 | K120: =+VLOOKUP($O120,M_IPC,13,0) -> 0 | L120: =+VLOOKUP($O120,M_IPC,17,0) -> 0 | M120: =+VLOOKUP($O120,M_IPC,9,0) -> 0 | N120: =+VLOOKUP($O120,IPC!$C:$S,1,0) -> 202203 | O120: =+LOOKUP(1000000,IPC!C:C) -> 202203
B121: Índices de precios sector constructor
B122: Indice de Precios de Producción - Materiales de construcción | C122: DANE | D122: https://www.dane.gov.co/index.php/estadisticas-por-tema/precios-y-costos/indice-de-precios-del-productor-ipp | E122: Nacional | F122: Mensual | G122: Número Índice | H122: =+VLOOKUP($O122,M_IPP_MC,2,0) -> 140.54 | I122: =IF($O122>0,VLOOKUP($O122-100,M_IPP_MC,2,0),"") -> 122.22 | J122: =IF(MID($O122,5,2)="01",VLOOKUP($O122-7,M_IPP_MC,2,0),VLOOKUP($O122-1,M_IPP_MC,2,0)) -> 138.16 | K122: =+VLOOKUP($O122,M_IPP_MC,3,0) -> 1.73 | L122: =+VLOOKUP($O122,M_IPP_MC,4,0) -> 14.98936344 | M122: =+VLOOKUP($O122,M_IPP_MC,5,0) -> 6.03 | N122: =+VLOOKUP($O122,M_IPP_MC,1,0) -> 202203 | O122: =+LOOKUP(1000000,IPP_MC!C:C) -> 202203
B123: Índice del Precio del Suelo en Bogotá (IPSB) | C123: BANREP | D123: http://www.banrep.gov.co/es/ipsv | E123: Bogotá | F123: Anual | G123: Número Índice | H123: =+VLOOKUP($O123,M_INDICES_A,2,0) -> 0 | I123: =IF($O123>0,VLOOKUP($O123-1,M_INDICES_A,2,0),"") -> 0 | J123: - | K123: =+VLOOKUP($O123,M_INDICES_A,5,0) -> 0 | L123: - | M123: - | N123: =+VLOOKUP($O123,M_INDICES_A,1,0) -> 2020 | O123: =+LOOKUP(1000000,INDICES_A!A:A) -> 2020
B124: índice de precios de vivienda usada-Colombia (IPVU) | C124: BANREP | D124: http://www.banrep.gov.co/es/ipvu | E124: Nacional | F124: Anual | G124: Número Índice | H124: =+VLOOKUP($O124,M_INDICES_A,3,0) -> 142.9564191 | I124: =IF($O124>0,VLOOKUP($O124-1,M_INDICES_A,3,0),"") -> 141.7889423 | J124: - | K124: =+VLOOKUP($O124,M_INDICES_A,6,0) -> 0.8233906054 | L124: - | M124: - | N124: =+VLOOKUP($O124,M_INDICES_A,1,0) -> 2020 | O124: =+LOOKUP(1000000,INDICES_A!A:A) -> 2020
B125: índice de precios de vivienda usada-Bogotá (IPVU) | C125: BANREP | D125: http://www.banrep.gov.co/es/ipvu | E125: Bogotá | F125: Anual | G125: Número Índice | H125: =+VLOOKUP($O125,M_INDICES_A,4,0) -> 151.1180647 | I125: =IF($O125>0,VLOOKUP($O125-1,M_INDICES_A,4,0),"") -> 149.9391577 | J125: - | K125: =+VLOOKUP($O125,M_INDICES_A,7,0) -> 0.7862569043 | L125: - | M125: - | N125: =+VLOOKUP($O125,M_INDICES_A,1,0) -> 2020 | O125: =+LOOKUP(1000000,INDICES_A!A:A) -> 2020
B126: Índice de precios de vivienda nueva-Colombia (IPVN) | C126: BANREP | D126: http://www.banrep.gov.co/es/precios/indice-precios-vivienda-nueva-ipvnbr | E126: Nacional | F126: Mensual | G126: Número Índice | H126: =+VLOOKUP($O126,M_INDICES_M,2,0) -> 187.5814378 | I126: =IF($O126>0,VLOOKUP($O126-100,M_INDICES_M,2,0),"") -> 186.5940334 | J126: =IF(MID($O126,5,2)="01",VLOOKUP($O126-7,M_INDICES_M,2,0),VLOOKUP($O126-1,M_INDICES_M,2,0)) -> 187.742677 | K126: =+VLOOKUP($O126,M_INDICES_M,10,0) -> 0.5291725776 | L126: =+VLOOKUP($O126,M_INDICES_M,14,0) -> 0.5291725776 | M126: =+VLOOKUP($O126,M_INDICES_M,6,0) -> -0.08588304851 | N126: =+VLOOKUP($O126,M_INDICES_M,1,0) -> 202112 | O126: =+LOOKUP(1000000,INDICES_M!C:C) -> 202112
B127: Índice de precios de vivienda nueva-Bogotá (IPVN) | C127: BANREP | D127: http://www.banrep.gov.co/es/precios/indice-precios-vivienda-nueva-ipvnbr | E127: Bogotá | F127: Mensual | G127: Número Índice | H127: =+VLOOKUP($O127,M_INDICES_M,3,0) -> 201.2606277 | I127: =IF($O127>0,VLOOKUP($O127-100,M_INDICES_M,3,0),"") -> 201.7844761 | J127: =IF(MID($O127,5,2)="01",VLOOKUP($O127-7,M_INDICES_M,3,0),VLOOKUP($O127-1,M_INDICES_M,3,0)) -> 202.4326014 | K127: =+VLOOKUP($O127,M_INDICES_M,11,0) -> -0.2596078518 | L127: =+VLOOKUP($O127,M_INDICES_M,15,0) -> -0.2596078518 | M127: =+VLOOKUP($O127,M_INDICES_M,7,0) -> -0.5789451225 | N127: =+VLOOKUP($O127,M_INDICES_M,1,0) -> 202112 | O127: =+LOOKUP(1000000,INDICES_M!C:C) -> 202112
B128: Índice de costos de construcción de vivienda -Colombia (ICCV) | C128: DANE | D128: https://www.dane.gov.co/index.php/estadisticas-por-tema/precios-y-costos/indice-de-costos-de-la-construccion-de-vivienda-iccv | E128: Nacional | F128: Mensual | G128: Número Índice | H128: =+VLOOKUP($O128,M_INDICES_M,4,0) -> 274.69 | I128: =IF($O128>0,VLOOKUP($O128-100,M_INDICES_M,4,0),"") -> 257.04 | J128: =IF(MID($O128,5,2)="01",VLOOKUP($O128-7,M_INDICES_M,4,0),VLOOKUP($O128-1,M_INDICES_M,4,0)) -> 274.63 | K128: =+VLOOKUP($O128,M_INDICES_M,12,0) -> 6.866635543 | L128: =+VLOOKUP($O128,M_INDICES_M,16,0) -> 6.866635543 | M128: =+VLOOKUP($O128,M_INDICES_M,8,0) -> 0.02184757674 | N128: =+VLOOKUP($O128,M_INDICES_M,1,0) -> 202112 | O128: =+LOOKUP(1000000,INDICES_M!C:C) -> 202112
B129: Índice de costos de construcción de vivienda -Bogotá (ICCV) | C129: DANE | D129: https://www.dane.gov.co/index.php/estadisticas-por-tema/precios-y-costos/indice-de-costos-de-la-construccion-de-vivienda-iccv | E129: Bogotá | F129: Mensual | G129: Número Índice | H129: =+VLOOKUP($O129,M_INDICES_M,5,0) -> 263.72 | I129: =IF($O129>0,VLOOKUP($O129-100,M_INDICES_M,5,0),"") -> 247.93 | J129: =IF(MID($O129,5,2)="01",VLOOKUP($O129-7,M_INDICES_M,5,0),VLOOKUP($O129-1,M_INDICES_M,5,0)) -> 263.81 | K129: =+VLOOKUP($O129,M_INDICES_M,13,0) -> 6.36873311 | L129: =+VLOOKUP($O129,M_INDICES_M,17,0) -> 6.36873311 | M129: =+VLOOKUP($O129,M_INDICES_M,9,0) -> -0.03411546189 | N129: =+VLOOKUP($O129,M_INDICES_M,1,0) -> 202112 | O129: =+LOOKUP(1000000,INDICES_M!C:C) -> 202112
B130: Indice de Valorización Inmobiliaria Urbano y Rural 2
B131: Residencial 1 | C131: UAECD | D131: https://www.catastrobogota.gov.co/es/noticia/Este-es-el-proyecto-de-decreto-que-determina-el-porcentaje-de-incremento-de-los-avaluos-catastrales-para-el-Distrito | E131: Bogotá | F131: Anual | G131: Variación | H131: =+VLOOKUP($O131,M_IVIUR,2,0) -> 4.16 | I131: - | J131: =IF($O131>0,VLOOKUP($O131-1,M_IVIUR,2,0),"") -> 0.64 | K131: - | L131: - | M131: - | N131: =+VLOOKUP($O131,M_IVIUR,1,0) -> 2022 | O131: =+LOOKUP(1000000,IVIUR!A:A) -> 2022
B132: Residencial 2 | C132: UAECD | D132: https://www.catastrobogota.gov.co/es/noticia/Este-es-el-proyecto-de-decreto-que-determina-el-porcentaje-de-incremento-de-los-avaluos-catastrales-para-el-Distrito | E132: Bogotá | F132: Anual | G132: Variación | H132: =+VLOOKUP($O132,M_IVIUR,3,0) -> 4.16 | I132: - | J132: =IF($O132>0,VLOOKUP($O132-1,M_IVIUR,3,0),"") -> 0.64 | K132: - | L132: - | M132: - | N132: 2022 | O132: =+LOOKUP(1000000,IVIUR!A:A) -> 2022
B133: Residencial 3 | C133: UAECD | D133: https://www.catastrobogota.gov.co/es/noticia/Este-es-el-proyecto-de-decreto-que-determina-el-porcentaje-de-incremento-de-los-avaluos-catastrales-para-el-Distrito | E133: Bogotá | F133: Anual | G133: Variación | H133: =+VLOOKUP($O133,M_IVIUR,4,0) -> 4.16 | I133: - | J133: =IF($O133>0,VLOOKUP($O133-1,M_IVIUR,4,0),"") -> 0.64 | K133: - | L133: - | M133: - | N133: 2022 | O133: =+LOOKUP(1000000,IVIUR!A:A) -> 2022
B134: Residencial 4 | C134: UAECD | D134: https://www.catastrobogota.gov.co/es/noticia/Este-es-el-proyecto-de-decreto-que-determina-el-porcentaje-de-incremento-de-los-avaluos-catastrales-para-el-Distrito | E134: Bogotá | F134: Anual | G134: Variación | H134: =+VLOOKUP($O134,M_IVIUR,5,0) -> 4.16 | I134: - | J134: =IF($O134>0,VLOOKUP($O134-1,M_IVIUR,5,0),"") -> 0.64 | K134: - | L134: - | M134: - | N134: 2022 | O134: =+LOOKUP(1000000,IVIUR!A:A) -> 2022
B135: Residencial 5 | C135: UAECD | D135: https://www.catastrobogota.gov.co/es/noticia/Este-es-el-proyecto-de-decreto-que-determina-el-porcentaje-de-incremento-de-los-avaluos-catastrales-para-el-Distrito | E135: Bogotá | F135: Anual | G135: Variación | H135: =+VLOOKUP($O135,M_IVIUR,6,0) -> 4.16 | I135: - | J135: =IF($O135>0,VLOOKUP($O135-1,M_IVIUR,6,0),"") -> 0.64 | K135: - | L135: - | M135: - | N135: 2022 | O135: =+LOOKUP(1000000,IVIUR!A:A) -> 2022
B136: Residencial 6 | C136: UAECD | D136: https://www.catastrobogota.gov.co/es/noticia/Este-es-el-proyecto-de-decreto-que-determina-el-porcentaje-de-incremento-de-los-avaluos-catastrales-para-el-Distrito | E136: Bogotá | F136: Anual | G136: Variación | H136: =+VLOOKUP($O136,M_IVIUR,7,0) -> 4.16 | I136: - | J136: =IF($O136>0,VLOOKUP($O136-1,M_IVIUR,7,0),"") -> 0.64 | K136: - | L136: - | M136: - | N136: 2022 | O136: =+LOOKUP(1000000,IVIUR!A:A) -> 2022
B137: Comercio y Oficinas | C137: UAECD | D137: https://www.catastrobogota.gov.co/es/noticia/Este-es-el-proyecto-de-decreto-que-determina-el-porcentaje-de-incremento-de-los-avaluos-catastrales-para-el-Distrito | E137: Bogotá | F137: Anual | G137: Variación | H137: =+VLOOKUP($O137,M_IVIUR,8,0) -> 4.16 | I137: - | J137: =IF($O137>0,VLOOKUP($O137-1,M_IVIUR,8,0),"") -> 0.74 | K137: - | L137: - | M137: - | N137: 2022 | O137: =+LOOKUP(1000000,IVIUR!A:A) -> 2022
B138: Depósitos y Parqueaderos | C138: UAECD | D138: https://www.catastrobogota.gov.co/es/noticia/Este-es-el-proyecto-de-decreto-que-determina-el-porcentaje-de-incremento-de-los-avaluos-catastrales-para-el-Distrito | E138: Bogotá | F138: Anual | G138: Variación | H138: =+VLOOKUP($O138,M_IVIUR,9,0) -> 4.16 | I138: - | J138: =IF($O138>0,VLOOKUP($O138-1,M_IVIUR,9,0),"") -> 0.74 | K138: - | L138: - | M138: - | N138: 2022 | O138: =+LOOKUP(1000000,IVIUR!A:A) -> 2022
B139: Industria | C139: UAECD | D139: https://www.catastrobogota.gov.co/es/noticia/Este-es-el-proyecto-de-decreto-que-determina-el-porcentaje-de-incremento-de-los-avaluos-catastrales-para-el-Distrito | E139: Bogotá | F139: Anual | G139: Variación | H139: =+VLOOKUP($O139,M_IVIUR,10,0) -> 4.16 | I139: - | J139: =IF($O139>0,VLOOKUP($O139-1,M_IVIUR,10,0),"") -> 0.74 | K139: - | L139: - | M139: - | N139: 2022 | O139: =+LOOKUP(1000000,IVIUR!A:A) -> 2022
B140: Dotacional Público | C140: UAECD | D140: https://www.catastrobogota.gov.co/es/noticia/Este-es-el-proyecto-de-decreto-que-determina-el-porcentaje-de-incremento-de-los-avaluos-catastrales-para-el-Distrito | E140: Bogotá | F140: Anual | G140: Variación | H140: =+VLOOKUP($O140,M_IVIUR,11,0) -> 4.16 | I140: - | J140: =IF($O140>0,VLOOKUP($O140-1,M_IVIUR,11,0),"") -> 0.74 | K140: - | L140: - | M140: - | N140: 2022 | O140: =+LOOKUP(1000000,IVIUR!A:A) -> 2022
B141: Dotacional Privado | C141: UAECD | D141: https://www.catastrobogota.gov.co/es/noticia/Este-es-el-proyecto-de-decreto-que-determina-el-porcentaje-de-incremento-de-los-avaluos-catastrales-para-el-Distrito | E141: Bogotá | F141: Anual | G141: Variación | H141: =+VLOOKUP($O141,M_IVIUR,12,0) -> 4.16 | I141: - | J141: =IF($O141>0,VLOOKUP($O141-1,M_IVIUR,12,0),"") -> 0.74 | K141: - | L141: - | M141: - | N141: 2022 | O141: =+LOOKUP(1000000,IVIUR!A:A) -> 2022
B142: Lotes | C142: UAECD | D142: https://www.catastrobogota.gov.co/es/noticia/Este-es-el-proyecto-de-decreto-que-determina-el-porcentaje-de-incremento-de-los-avaluos-catastrales-para-el-Distrito | E142: Bogotá | F142: Anual | G142: Variación | H142: =+VLOOKUP($O142,M_IVIUR,13,0) -> 4.16 | I142: - | J142: =IF($O142>0,VLOOKUP($O142-1,M_IVIUR,13,0),"") -> 0.74 | K142: - | L142: - | M142: - | N142: 2022 | O142: =+LOOKUP(1000000,IVIUR!A:A) -> 2022
B143: Otros | C143: UAECD | D143: https://www.catastrobogota.gov.co/es/noticia/Este-es-el-proyecto-de-decreto-que-determina-el-porcentaje-de-incremento-de-los-avaluos-catastrales-para-el-Distrito | E143: Bogotá | F143: Anual | G143: Variación | H143: =+VLOOKUP($O143,M_IVIUR,14,0) -> 4.16 | I143: - | J143: =IF($O143>0,VLOOKUP($O143-1,M_IVIUR,14,0),"") -> 0.74 | K143: - | L143: - | M143: - | N143: 2022 | O143: =+LOOKUP(1000000,IVIUR!A:A) -> 2022
B144: Total | C144: UAECD | D144: https://www.catastrobogota.gov.co/es/noticia/Este-es-el-proyecto-de-decreto-que-determina-el-porcentaje-de-incremento-de-los-avaluos-catastrales-para-el-Distrito | E144: Bogotá | F144: Anual | G144: Variación | H144: =+VLOOKUP($O144,M_IVIUR,15,0) -> 4.16 | I144: - | J144: =IF($O144>0,VLOOKUP($O144-1,M_IVIUR,15,0),"") -> 0 | K144: - | L144: - | M144: - | N144: 2022 | O144: =+LOOKUP(1000000,IVIUR!A:A) -> 2022
B146: Notas Técnicas:
B147: 1 El área de Bogotá incluye los despachos a Bogotá D.C., Soacha, Funza, Chía y Mosquera.
B148: 2 La diferencia en las cifras con referencia al CONFIS del 12 de diciembre 2018, corresponde a un reproceso de información realizado después de la fecha de publicación
B149: 3 A partir del I trimestre 2021 cambia el marco estadisco, el cual está constituido por el inventario cartográfico y el listado de viviendas, obtenidos de la información del Censo Nacional de Población y vivienda de 2018, con actualizaciones permanentes y nuevos recuentos de edificaciones y viviendas a través de la misma.
B161: Índice de costos de construcción de vivienda -Bogotá (ICCV)
B164: 1 El deficit de vivienda corresponde al calculo realizado con el Censo general de población en el 2005
B165: 2 La población corresponde al número de habitantes de los municipios de referencia según el Censo general de población del año 2005
B166: 3 Corresponde a las proyeciones realizadas por el DANE con base en el Censo General de población del año 2005

Sheet LISTAS (hidden)
A1: TEMAS | B1: PIB | C1: LICENCIAS | D1: CENSO EDIFICACIONES | E1: STOCK DE VIVIENDA | F1: IPC | G1: CENSO_CATASTRO | H1: MERCADO_LABORAL | I1: GALERÍA_INMOBILIARIA | J1: TASAS_DE_INTERÉS | K1: ÍNDICES_DE_PRECIOS | L1: CARTERA_HIPOTECARIA | M1: FINANCIACION_VIVIENDA | N1: CEMENTO | O1: IPP | P1: AÑO | Q1: Trimestral | R1: Mensual | S1: IVIUR | T1: Mes
A2: PIB | B2: PIB Colombia (base 2015) | C2: Área total nueva licenciada | D2: Área Nueva Colombia | E2: Área Culminada - Bogotá | F2: IPC Colombia | G2: Área construida | H2: Tasa ocupación Colombia | I2: Unidades de viviendas vendidas | J2: Tasa de intervención de política monetaria | K2: Índice del Precio del Suelo en Bogotá (IPSB) | L2: Número de créditos - Colombia | M2: Total Viviendas Financiadas - Colombia | N2: Producción de cemento - Colombia | O2: Indice de Precios de Producción - Materiales de construcción | P2: 2000 | Q2: 01 | R2: 01 | S2: Residencial 1 | T2: Enero
A3: LICENCIAS | B3: PIB Colombia - Construcción (base 2015) | C3: Área total nueva licenciada Bogotá | D3: Área en Proceso Colombia | E3: Área Nueva - Bogotá | F3: IPC Colombia - Vivienda | G3: Área construida vivienda | H3: Tasa desempleo Colombia | I3: Unidades de viviendas disponibles | J3: Adquisición de vivienda diferente de VIS (pesos - efectiva anual) | K3: índice de precios de vivienda usada-Colombia (IPVU) | L3: Número de créditos - Bogotá | M3: Total Vivienda Financiadas Nuevas - Colombia | N3: Despacho de cemento - Colombia | P3: 2001 | Q3: 02 | R3: 02 | S3: Residencial 2 | T3: Febrero
A4: CENSO_EDIFICACIONES | B4: PIB Colombia - Construcción - Edificaciones (base 2015) | C4: Área licenciada nueva para vivienda | D4: Área Culminada Colombia | E4: Área Nueva - Bogotá vivienda | F4: IPC Bogotá | G4: Número de predios | H4: Ocupados Colombia | I4: Unidades de viviendas nuevas | J4: Adquisición de vivienda VIS (pesos - efectiva anual) | K4: índice de precios de vivienda usada-Bogotá (IPVU) | L4: Número de créditos - Bogotá - VIS/VIP | M4: Total Vivienda Financiadas Usadas - Colombia | N4: Despacho de cemento - Bogotá | P4: 2002 | Q4: 03 | R4: 03 | S4: Residencial 3 | T4: Marzo
A5: STOCK_DE_VIVIENDA | B5: PIB Colombia - Construcción - Obras civiles (base 2015) | C5: Unidades licenciadas nuevas para vivienda | D5: Área Paralizada Colombia | E5: Área Nueva Bogotá vivienda - VIS | F5: IPC Bogotá - Vivienda | G5: Número de predios vivienda | H5: Desocupados Colombia | I5: Área de viviendas vendidas | J5: Tasa de interés - efectiva anual DTF | K5: Índice de precios de vivienda nueva-Colombia (IPVN) | P5: 2003 | Q5: 04 | R5: 04 | S5: Residencial 4 | T5: Abril
A6: IPC | B6: PIB Bogotá (base 2015) | C6: Área licenciada nueva para vivienda VIS | D6: Área Nueva Colombia Vivienda | E6: Unidades Nuevas Bogotá vivienda | H6: Ocupados Colombia - Construcción | I6: Área de viviendas disponibles | K6: Índice de precios de vivienda nueva-Bogotá (IPVN) | P6: 2004 | Q6: =+IF(FICHA!$E$22="Anual","Anual","") ->  | R6: 05 | S6: Residencial 5 | T6: Mayo
A7: CENSO_CATASTRO | B7: PIB Bogotá - Construcción (base 2015) | C7: Unidades licenciadas nuevas para vivienda VIS | D7: Área Nueva Colombia Vivienda VIS | E7: Unidades Nuevas Bogotá vivienda - VIS | H7: Tasa de ocupación Bogotá | I7: Área de viviendas nuevas | K7: Índice de costos de construcción de vivienda -Colombia (ICCV) | P7: 2005 | R7: 06 | S7: Residencial 6 | T7: Junio
A8: MERCADO_LABORAL | B8: PIB Bogotá - Construcción - Edificaciones (base 2005) | C8: Área licenciada nueva para vivienda Bogotá | D8: Unidades Nuevas Colombia Vivienda | E8: Unidades Oferta vivienda | H8: Tasa desempleo Bogotá | I8: Unidades de viviendas VIS/VIP vendidas | K8: Índice de costos de construcción de vivienda -Bogotá (ICCV) | P8: 2006 | R8: 07 | S8: Comercio y Oficinas | T8: Julio
A9: GALERÍA_INMOBILIARIA | B9: PIB Bogotá - Construcción - Obras civiles (base 2005) | C9: Unidades licenciadas nuevas para vivienda Bogotá | D9: Unidades Nuevas Colombia Vivienda VIS | E9: Unidades Ventas vivienda | H9: Ocupados Bogotá | I9: Unidades de viviendas VIS/VIP disponibles | P9: 2007 | R9: 08 | S9: Depósitos y Parqueaderos | T9: Agosto
A10: TASAS_DE_INTERÉS | C10: Área licenciada nueva para vivienda VIS Bogotá | D10: Área Nueva Bogotá | E10: Unidades Oferta vivienda - VIS | H10: Desocupados Bogotá | I10: Unidades de viviendas VIS/VIP nuevas | P10: 2008 | R10: 09 | S10: Industria | T10: Septiembre
A11: ÍNDICES_DE_PRECIOS | C11: Unidades licenciadas nuevas para vivienda VIS Bogotá | D11: Área en Proceso Bogotá | E11: Unidades Ventas vivienda - VIS | H11: Ocupados Bogotá - Construcción | P11: 2009 | R11: 10 | S11: Dotacional Público | T11: Octubre
A12: CARTERA_HIPOTECARIA | D12: Área Culminada Bogotá | P12: 2010 | R12: 11 | S12: Dotacional Privado | T12: Noviembre
A13: FINANCIACION_VIVIENDA | D13: Área Paralizada Bogotá | P13: 2011 | R13: 12 | S13: Lotes | T13: Diciembre
A14: CEMENTO | D14: Área Nueva Bogotá Vivienda | P14: 2012 | R14: =+IF(FICHA!$E$22="Anual","Anual","") ->  | S14: Otros
A15: IPP | D15: Área Nueva Bogotá Vivienda VIS | P15: 2013 | S15: Total
A16: IVIUR | D16: Unidades Nuevas Bogotá Vivienda | P16: 2014
D17: Unidades Nuevas Bogotá Vivienda VIS | P17: 2015
P18: 2016
P19: 2017
P20: 2018
P21: 2019
P22: 2020
P23: 2021
P24: 2022

Sheet DATOS ABSOLUTOS (hidden)
C1: DATOS TRIMESTRALES | P1: DATOS ANUALES | AC1: DATOS MENSUALES
B2: 1 | C2: 2 | D2: 3 | E2: 4 | F2: 5 | G2: 6 | H2: 7 | I2: 8 | J2: 9 | K2: 10 | L2: 11 | M2: 12 | N2: 13 | O2: 14 | P2: 15 | Q2: 16 | R2: 17 | S2: 18 | T2: 19 | U2: 20 | V2: 21 | W2: 22 | X2: 23 | Y2: 24 | Z2: 25 | AA2: 26 | AB2: 27 | AC2: 28 | AD2: 29 | AE2: 30 | AF2: 31 | AG2: 32 | AH2: 33 | AI2: 34 | AJ2: 35 | AK2: 36 | AL2: 37 | AM2: 38 | AN2: 39
A3: TEMA | B3: VARIABLE | C3: =+IF(MID($D$3,5,2) ="01",$D$3-97,$D$3-1) -> 201901 | D3: =+IF(MID($E$3,5,2) ="01",$E$3-97,$E$3-1) -> 201902 | E3: =+IF(MID($F$3,5,2) ="01",$F$3-97,$F$3-1) -> 201903 | F3: =+IF(MID($G$3,5,21) ="01",$G$3-97,$G$3-1) -> 201904 | G3: =+IF(MID($H$3,5,2) ="01",$H$3-97,$H$3-1) -> 202001 | H3: =+IF(MID($I$3,5,2) ="01",$I$3-97,$I$3-1) -> 202002 | I3: =+IF(MID($J$3,5,2) ="01",$J$3-97,$J$3-1) -> 202003 | J3: =+IF(MID($K$3,5,2) ="01",$K$3-97,$K$3-1) -> 202004 | K3: =+IF(MID($L$3,5,2) ="01",$L$3-97,$L$3-1) -> 202101 | L3: =+IF(MID($M$3,5,2) ="01",$M$3-97,$M$3-1) -> 202102 | M3: =+IF(MID($N$3,5,2) ="01",$N$3-97,$N$3-1) -> 202103 | N3: =+FICHA!$E$20-0 -> 202104 | P3: =+FICHA!$E$16-11 -> 2010 | Q3: =+FICHA!$E$16-10 -> 2011 | R3: =+FICHA!$E$16-9 -> 2012 | S3: =+FICHA!$E$16-8 -> 2013 | T3: =+FICHA!$E$16-7 -> 2014 | U3: =+FICHA!$E$16-6 -> 2015 | V3: =+FICHA!$E$16-5 -> 2016 | W3: =+FICHA!$E$16-4 -> 2017 | X3: =+FICHA!$E$16-3 -> 2018 | Y3: =+FICHA!$E$16-2 -> 2019 | Z3: =+FICHA!$E$16-1 -> 2020 | AA3: =+FICHA!$E$16-0 -> 2021 | AC3: =+IF(MID($AD$3,5,2) ="01",$AN$3-99,$AD$3-1) -> 202005 | AD3: =+IF(MID($AE$3,5,2) ="01",$AE$3-99,$AE$3-1) -> 202006 | AE3: =+IF(MID($AF$3,5,2) ="01",$AF$3-99,$AF$3-1) -> 202007 | AF3: =+IF(MID($AG$3,5,2) ="01",$AG$3-89,$AG$3-1) -> 202008 | AG3: =+IF(MID($AH$3,5,2) ="01",$AH$3-89,$AH$3-1) -> 202009 | AH3: =+IF(MID($AI$3,5,2) ="01",$AI$3-89,$AI$3-1) -> 202010 | AI3: =+IF(MID($AJ$3,5,2) ="01",$AJ$3-89,$AJ$3-1) -> 202011 | AJ3: =+IF(MID($AK$3,5,2) ="01",$AK$3-89,$AK$3-1) -> 202012 | AK3: =+IF(MID($AL$3,5,2) ="01",$AL$3-89,$AL$3-1) -> 202101 | AL3: =+IF(MID($AM$3,5,2) ="01",$AM$3-89,$AM$3-1) -> 202102 | AM3: =+IF(MID($AN$3,5,2) ="01",$AN$3-89,$AN$3-1) -> 202103 | AN3: =+FICHA!$E$20-0 -> 202104
A4: PIB | B4: PIB Colombia (base 2015) | C4: =+VLOOKUP(C$3,M_PIB,2,0) -> 205106.6925 | D4: 214855.4452 | E4: 222596.6698 | F4: 238665.1925 | G4: 206721.4619 | H4: 179345.339 | I4: 203061.6396 | J4: 229985.5594 | K4: 208553.7448 | L4: 211717.6216 | M4: 230497.1944 | N4: 254870.8485
A5: PIB | B5: PIB Colombia - Construcción (base 2015) | C5: =+VLOOKUP(C$3,M_PIB,3,0) -> 13610.32064 | D5: 13775.54309 | E5: 14069.76639 | F5: 14437.36989 | G5: 11394.85074 | H5: 8220.554255 | I5: 10265.14553 | J5: 11042.44948 | K5: 10899.94778 | L5: 10235.7314 | M5: 10396.58462 | N5: 11728.65899
A6: PIB | B6: PIB Colombia - Construcción - Edificaciones (base 2015) | C6: =+VLOOKUP(C$3,M_PIB,4,0) -> 6418.582623 | D6: 6450.096576 | E6: 6562.88311 | F6: 6623.437691 | G6: 5192.776193 | H6: 4130.070793 | I6: 4799.990494 | J6: 5196.162519 | K6: 5223.551855 | L6: 5180.598532 | M6: 5274.965816 | N6: 5884.680984
A7: PIB | B7: PIB Colombia - Construcción - Obras civiles (base 2015) | C7: =+VLOOKUP(C$3,M_PIB,5,0) -> 4092.080774 | D7: 4525.939848 | E7: 4757.918974 | F7: 4874.060404 | G7: 3510.820097 | H7: 2275.598119 | I7: 3334.275708 | J7: 3472.306076 | K7: 3061.774826 | L7: 2787.687096 | M7: 2894.344163 | N7: 3264.302079
A8: PIB | B8: PIB Bogotá (base 2015) | C8: =+VLOOKUP(C$3,M_PIB,6,0) -> 52272.67906 | D8: 56230.42756 | E8: 57572.92201 | F8: 63237.73315 | G8: 52871.7373 | H8: 47541.28129 | I8: 53172.65043 | J8: 60899.50083 | K8: 53271.96823 | L8: 55764.00467 | M8: 59843.56641 | N8: 67707.26811
A9: PIB | B9: PIB Bogotá - Construcción (base 2015) | C9: =+VLOOKUP(C$3,M_PIB,7,0) -> 1951.276621 | D9: 2549.703647 | E9: 2411.567526 | F9: 2816.204942 | G9: 1847.245913 | H9: 1227.020825 | I9: 1922.924361 | J9: 1972.916819 | K9: 1491.03613 | L9: 1467.045937 | M9: 1557.486302 | N9: 2311.967517 | AQ9: =201701-201612 -> 89
A10: PIB | B10: PIB Bogotá - Construcción - Edificaciones (base 2005) | C10: =+VLOOKUP(C$3,M_PIB,8,0) -> 1130.672933 | D10: 1242.561477 | E10: 1245.590464 | F10: 1280.670964 | G10: 890.8611274 | H10: 662.8346792 | I10: 850.6513049 | J10: 908.1920429 | K10: 882.2038199 | L10: 956.2075137 | M10: 886.6983084 | N10: 1185.542323
A11: PIB | B11: PIB Bogotá - Construcción - Obras civiles (base 2005) | C11: =+VLOOKUP(C$3,M_PIB,9,0) -> 546.0986729 | D11: 862.4142736 | E11: 739.1342609 | F11: 1029.327571 | G11: 696.7939345 | H11: 337.6930225 | I11: 737.1317472 | J11: 704.6212484 | K11: 375.8234741 | L11: 224.318669 | M11: 365.0210467 | N11: 685.5318089
A12: LICENCIAS | B12: Área total nueva licenciada | AC12: =+VLOOKUP(AC$3,M_LICENCIAS,2,0) -> 920966 | AD12: 1256442 | AE12: 1351479 | AF12: 1188841 | AG12: 1889254 | AH12: 1415799 | AI12: 1447942 | AJ12: 2427336 | AK12: 1322097 | AL12: 1924290 | AM12: 1781177 | AN12: 1722584
A13: LICENCIAS | B13: Área licenciada nueva para vivienda | AC13: =+VLOOKUP(AC$3,M_LICENCIAS,3,0) -> 724809 | AD13: 948696 | AE13: 1042196 | AF13: 947342 | AG13: 1426005 | AH13: 1188899 | AI13: 1242443 | AJ13: 1965953 | AK13: 1158383 | AL13: 1594565 | AM13: 1567677 | AN13: 1385698
A14: LICENCIAS | B14: Unidades licenciadas nuevas para vivienda | AC14: =+VLOOKUP(AC$3,M_LICENCIAS,4,0) -> 8381 | AD14: 10924 | AE14: 12102 | AF14: 11799 | AG14: 16058 | AH14: 14669 | AI14: 14332 | AJ14: 22467 | AK14: 12532 | AL14: 17001 | AM14: 18879 | AN14: 14859
A15: LICENCIAS | B15: Área licenciada nueva para vivienda VIS | AC15: =+VLOOKUP(AC$3,M_LICENCIAS,5,0) -> 299600 | AD15: 376369 | AE15: 264615 | AF15: 360573 | AG15: 506612 | AH15: 428283 | AI15: 472902 | AJ15: 613511 | AK15: 314337 | AL15: 444759 | AM15: 692247 | AN15: 344840
A16: LICENCIAS | B16: Unidades licenciadas nuevas para vivienda VIS | AC16: =+VLOOKUP(AC$3,M_LICENCIAS,6,0) -> 4701 | AD16: 5736 | AE16: 4306 | AF16: 6028 | AG16: 6745 | AH16: 7119 | AI16: 7111 | AJ16: 9760 | AK16: 4811 | AL16: 6417 | AM16: 10503 | AN16: 5219
A17: LICENCIAS | B17: Área total nueva licenciada Bogotá | AC17: =+VLOOKUP(AC$3,M_LICENCIAS,7,0) -> 185301 | AD17: 228131 | AE17: 313321 | AF17: 239270 | AG17: 414034 | AH17: 295232 | AI17: 233798 | AJ17: 375560 | AK17: 168557 | AL17: 461199 | AM17: 231891 | AN17: 204597
A18: LICENCIAS | B18: Área licenciada nueva para vivienda Bogotá | AC18: =+VLOOKUP(AC$3,M_LICENCIAS,8,0) -> 121438 | AD18: 196677 | AE18: 249318 | AF18: 188057 | AG18: 245395 | AH18: 243449 | AI18: 197129 | AJ18: 217645 | AK18: 131799 | AL18: 305739 | AM18: 204802 | AN18: 134683
A19: LICENCIAS | B19: Unidades licenciadas nuevas para vivienda Bogotá | AC19: =+VLOOKUP(AC$3,M_LICENCIAS,9,0) -> 1735 | AD19: 2902 | AE19: 3695 | AF19: 3107 | AG19: 3232 | AH19: 3850 | AI19: 2069 | AJ19: 3105 | AK19: 1559 | AL19: 3300 | AM19: 3119 | AN19: 1806
A20: LICENCIAS | B20: Área licenciada nueva para vivienda VIS Bogotá | AC20: =+VLOOKUP(AC$3,M_LICENCIAS,10,0) -> 45678 | AD20: 106419 | AE20: 102434 | AF20: 126029 | AG20: 83294 | AH20: 150427 | AI20: 59918 | AJ20: 119646 | AK20: 49363 | AL20: 74759 | AM20: 117729 | AN20: 55870
A21: LICENCIAS | B21: Unidades licenciadas nuevas para vivienda VIS Bogotá | AC21: =+VLOOKUP(AC$3,M_LICENCIAS,11,0) -> 895 | AD21: 1921 | AE21: 1917 | AF21: 2399 | AG21: 1446 | AH21: 2853 | AI21: 956 | AJ21: 2089 | AK21: 852 | AL21: 1236 | AM21: 2410 | AN21: 1047
A22: CENSO_EDIFICACIONES | B22: Área Nueva Colombia | C22: =+VLOOKUP(C$3,M_CENSO_EDIFICACIONES,2,0) -> 4398079 | D22: 3702627 | E22: 3791819 | F22: 3371097 | G22: =+VLOOKUP(G$3,M_CENSO_EDIFICACIONES,2,0) -> 2607883 | H22: 1746480 | I22: 2942879 | J22: 3146353 | K22: 3545576 | L22: 3702365 | M22: 3927484 | N22: 4263186
A23: CENSO_EDIFICACIONES | B23: Área en Proceso Colombia | C23: =+VLOOKUP(C$3,M_CENSO_EDIFICACIONES,3,0) -> 26157780 | D23: 25593703 | E23: 25909550 | F23: 25219352 | G23: 22727495 | H23: 15966130 | I23: 23161985 | J23: 22855676 | K23: 23107903 | L23: 23190636 | M23: 23844581 | N23: 24202502
A24: CENSO_EDIFICACIONES | B24: Área Culminada Colombia | C24: =+VLOOKUP(C$3,M_CENSO_EDIFICACIONES,4,0) -> 3858400 | D24: 4158326 | E24: 3572498 | F24: 3772481 | G24: 3267911 | H24: 2361540 | I24: 2450500 | J24: 3732027 | K24: 3370663 | L24: 3403838 | M24: 3274379 | N24: 3979328
A25: CENSO_EDIFICACIONES | B25: Área Paralizada Colombia | C25: =+VLOOKUP(C$3,M_CENSO_EDIFICACIONES,5,0) -> 7921813 | D25: 8017194 | E25: 7950783 | F25: 8304977 | G25: 10234124 | H25: 16779784 | I25: 9953804 | J25: 9624985 | K25: 9620352 | L25: 9821325 | M25: 9860245 | N25: 9850345.5
A26: CENSO_EDIFICACIONES | B26: Área Nueva Colombia Vivienda | C26: =+VLOOKUP(C$3,M_CENSO_EDIFICACIONES,6,0) -> 3148766 | D26: 2816422 | E26: 2882302 | F26: 2366086 | G26: 1938730 | H26: 1390160 | I26: 2343073 | J26: 2620039 | K26: 2852963 | L26: 2997222 | M26: 3143079 | N26: 3351773
A27: CENSO_EDIFICACIONES | B27: Área Nueva Colombia Vivienda VIS | C27: =+VLOOKUP(C$3,M_CENSO_EDIFICACIONES,7,0) -> 1473643 | D27: 1146599 | E27: 1144224 | F27: 831416 | G27: 740123 | H27: 671373 | I27: 1041843 | J27: 1379410 | K27: 1254648 | L27: 1363327 | M27: 1303993 | N27: 1692426
A28: CENSO_EDIFICACIONES | B28: Unidades Nuevas Colombia Vivienda | C28: =+VLOOKUP(C$3,M_CENSO_EDIFICACIONES,8,0) -> 39255 | D28: 36066 | E28: 35321 | F28: 28653 | G28: 24455 | H28: 18239 | I28: 32068 | J28: 36726 | K28: 38115 | L28: 38764 | M28: 40069 | N28: 44757
A29: CENSO_EDIFICACIONES | B29: Unidades Nuevas Colombia Vivienda VIS | C29: =+VLOOKUP(C$3,M_CENSO_EDIFICACIONES,9,0) -> 24091 | D29: 19576 | E29: 18662 | F29: 14132 | G29: 12140 | H29: 11192 | I29: 17347 | J29: 23718 | K29: 21028 | L29: 23225 | M29: 21705 | N29: 28605
A30: CENSO_EDIFICACIONES | B30: Área Nueva Bogotá | C30: =+VLOOKUP(C$3,M_CENSO_EDIFICACIONES,10,0) -> 711457 | D30: 715132 | E30: 748107 | F30: 725032 | G30: 492181 | H30: 201020 | I30: 636870 | J30: 533912 | K30: 701472 | L30: 696001 | M30: 844539 | N30: 880049
A31: CENSO_EDIFICACIONES | B31: Área en Proceso Bogotá | C31: =+VLOOKUP(C$3,M_CENSO_EDIFICACIONES,11,0) -> 6213616 | D31: 6096222 | E31: 6016150 | F31: 6008948 | G31: 5191112 | H31: 3714286 | I31: 5116887 | J31: 4841152 | K31: 4985372 | L31: 4739800 | M31: 4969802 | N31: 5127128
A32: CENSO_EDIFICACIONES | B32: Área Culminada Bogotá | C32: =+VLOOKUP(C$3,M_CENSO_EDIFICACIONES,12,0) -> 947972 | D32: 887325 | E32: 1029568 | F32: 753634 | G32: 711146 | H32: 427110 | I32: 384473 | J32: 898950 | K32: 663775 | L32: 945479 | M32: 599798 | N32: 730029
A33: CENSO_EDIFICACIONES | B33: Área Paralizada Bogotá | C33: =+VLOOKUP(C$3,M_CENSO_EDIFICACIONES,13,0) -> 1116335 | D33: 1057503 | E33: 899939 | F33: 918298 | G33: 1543290 | H33: 2864814 | I33: 1712464 | J33: 1614340 | K33: 1607061 | L33: 1597125 | M33: 1624152 | N33: 1644996.5
A34: CENSO_EDIFICACIONES | B34: Área Nueva Bogotá Vivienda | C34: =+VLOOKUP(C$3,M_CENSO_EDIFICACIONES,14,0) -> 543772 | D34: 462701 | E34: 564876 | F34: 505802 | G34: 416780 | H34: 134190 | I34: 501394 | J34: 452026 | K34: 536737 | L34: 544253 | M34: 646608 | N34: 673563
A35: CENSO_EDIFICACIONES | B35: Área Nueva Bogotá Vivienda VIS | C35: =+VLOOKUP(C$3,M_CENSO_EDIFICACIONES,15,0) -> 199659 | D35: 84899 | E35: 104565 | F35: 115006 | G35: 95928 | H35: 31457 | I35: 100013 | J35: 228697 | K35: 156204 | L35: 179314 | M35: 235977 | N35: 350560
A36: CENSO_EDIFICACIONES | B36: Unidades Nuevas Bogotá Vivienda | C36: =+VLOOKUP(C$3,M_CENSO_EDIFICACIONES,16,0) -> 7544 | D36: 5946 | E36: 7385 | F36: 6720 | G36: 6165 | H36: 1865 | I36: 7246 | J36: 7801 | K36: 8922 | L36: 8031 | M36: 10546 | N36: 11069
A37: CENSO_EDIFICACIONES | B37: Unidades Nuevas Bogotá Vivienda VIS | C37: =+VLOOKUP(C$3,M_CENSO_EDIFICACIONES,17,0) -> 3870 | D37: 1703 | E37: 1997 | F37: 2134 | G37: 1805 | H37: 639 | I37: 1763 | J37: 4648 | K37: 3142 | L37: 4045 | M37: 4787 | N37: 7171
A38: STOCK_DE_VIVIENDA | B38: Área Culminada - Bogotá | AC38: =+VLOOKUP(AC$3,M_STOCK_DE_VIVIENDA,2,0) -> 22107 | AD38: 105837 | AE38: 65262 | AF38: 244999 | AG38: 168463 | AH38: 177388 | AI38: 165472 | AJ38: 297754 | AK38: 280032 | AL38: 133703 | AM38: 188100 | AN38: 193532
A39: STOCK_DE_VIVIENDA | B39: Área Nueva - Bogotá | AC39: =+VLOOKUP(AC$3,M_STOCK_DE_VIVIENDA,3,0) -> 130412 | AD39: 128696 | AE39: 102420 | AF39: 217349 | AG39: 140460 | AH39: 259798 | AI39: 153414 | AJ39: 206222 | AK39: 182882 | AL39: 150293 | AM39: 207566 | AN39: 180388
A40: STOCK_DE_VIVIENDA | B40: Área Nueva - Bogotá vivienda | AC40: =+VLOOKUP(AC$3,M_STOCK_DE_VIVIENDA,4,0) -> 121052 | AD40: 114428 | AE40: 95174 | AF40: 136568 | AG40: 129875 | AH40: 243347 | AI40: 140221 | AJ40: 145354 | AK40: 169722 | AL40: 146002 | AM40: 135491 | AN40: 122221
A41: STOCK_DE_VIVIENDA | B41: Área Nueva Bogotá vivienda - VIS | AC41: =+VLOOKUP(AC$3,M_STOCK_DE_VIVIENDA,5,0) -> 95868 | AD41: 78486 | AE41: 59248 | AF41: 70308 | AG41: 77620 | AH41: 170452 | AI41: 73535 | AJ41: 90187 | AK41: 69889 | AL41: 73361 | AM41: 100117 | AN41: 3719
A42: STOCK_DE_VIVIENDA | B42: Unidades Nuevas Bogotá vivienda | AC42: =+VLOOKUP(AC$3,M_STOCK_DE_VIVIENDA,6,0) -> 2274 | AD42: 2075 | AE42: 1693 | AF42: 2374 | AG42: 2426 | AH42: 4789 | AI42: 2813 | AJ42: 2897 | AK42: 2804 | AL42: 2612 | AM42: 2416 | AN42: 2380
A43: STOCK_DE_VIVIENDA | B43: Unidades Nuevas Bogotá vivienda - VIS | AC43: =+VLOOKUP(AC$3,M_STOCK_DE_VIVIENDA,7,0) -> 1916 | AD43: 1612 | AE43: 1180 | AF43: 1463 | AG43: 1453 | AH43: 3737 | AI43: 1722 | AJ43: 1952 | AK43: 1379 | AL43: 1606 | AM43: 2017 | AN43: 94
A44: STOCK_DE_VIVIENDA | B44: Unidades Oferta vivienda | AC44: =+VLOOKUP(AC$3,M_STOCK_DE_VIVIENDA,8,0) -> 27048 | AD44: 27884 | AE44: 28729 | AF44: 28829 | AG44: 31545 | AH44: 33731 | AI44: 38110 | AJ44: 36705 | AK44: 38127 | AL44: 36740 | AM44: 37006 | AN44: 34687
A45: STOCK_DE_VIVIENDA | B45: Unidades Ventas vivienda | AC45: =+VLOOKUP(AC$3,M_STOCK_DE_VIVIENDA,9,0) -> 1610 | AD45: 2794 | AE45: 3840 | AF45: 3562 | AG45: 4697 | AH45: 4514 | AI45: 5289 | AJ45: 6629 | AK45: 4165 | AL45: 4504 | AM45: 5233 | AN45: 5425
A46: STOCK_DE_VIVIENDA | B46: Unidades Oferta vivienda - VIS | AC46: =+VLOOKUP(AC$3,M_STOCK_DE_VIVIENDA,10,0) -> 10467 | AD46: 11372 | AE46: 12325 | AF46: 11728 | AG46: 14879 | AH46: 16528 | AI46: 19096 | AJ46: 18327 | AK46: 20238 | AL46: 19652 | AM46: 20060 | AN46: 18221
A47: STOCK_DE_VIVIENDA | B47: Unidades Ventas vivienda - VIS | AC47: =+VLOOKUP(AC$3,M_STOCK_DE_VIVIENDA,11,0) -> 965 | AD47: 1769 | AE47: 2774 | AF47: 2369 | AG47: 3220 | AH47: 2962 | AI47: 3419 | AJ47: 4641 | AK47: 2731 | AL47: 2882 | AM47: 3516 | AN47: 4155
A48: GALERÍA_INMOVILIARIA | B48: Unidades de viviendas vendidas | AC48: =+VLOOKUP(AC$3,M_GALERÍA_INMOBILIARIA,2,0) -> 869 | AD48: 2266 | AE48: 3342 | AF48: 3534 | AG48: 4216 | AH48: 4834 | AI48: 4874 | AJ48: 4846 | AK48: 3474 | AL48: 4258 | AM48: =+VLOOKUP(AM$3,M_GALERÍA_INMOBILIARIA,2,0) -> 5311 | AN48: 3479
A49: GALERÍA_INMOBILIARIA | B49: Unidades de viviendas disponibles | AC49: =+VLOOKUP(AC$3,M_GALERÍA_INMOBILIARIA,3,0) -> 23056 | AD49: 23362 | AE49: 21902 | AF49: 24293 | AG49: 23735 | AH49: 25270 | AI49: 27951 | AJ49: 28904 | AK49: 28778 | AL49: 27071 | AM49: 27887 | AN49: 27259
A50: GALERÍA_INMOBILIARIA | B50: Unidades de viviendas nuevas | AC50: =+VLOOKUP(AC$3,M_GALERÍA_INMOBILIARIA,4,0) -> 1369 | AD50: 2572 | AE50: 1882 | AF50: 5925 | AG50: 3658 | AH50: 6369 | AI50: 7555 | AJ50: 5799 | AK50: 3348 | AL50: 2551 | AM50: 6127 | AN50: 2851
A51: GALERÍA_INMOBILIARIA | B51: Área de viviendas vendidas | AC51: =+VLOOKUP(AC$3,M_GALERÍA_INMOBILIARIA,5,0) -> 40233.42 | AD51: 104441.08 | AE51: 153138.46 | AF51: 166571.07 | AG51: 196386.73 | AH51: 233300.2 | AI51: 234449.87 | AJ51: 223383.13 | AK51: 155181.12 | AL51: 204181.38 | AM51: 242413.77 | AN51: 167210.31
A52: GALERÍA_INMOBILIARIA | B52: Área de viviendas disponibles | AC52: =+VLOOKUP(AC$3,M_GALERÍA_INMOBILIARIA,6,0) -> 1371257.91 | AD52: 1371629.74 | AE52: 1307021.88 | AF52: 1399418.53 | AG52: 1363065.08 | AH52: 1424864 | AI52: 1504869.78 | AJ52: 1545145.34 | AK52: 1526681.86 | AL52: 1438588.17 | AM52: 1465538.7 | AN52: 1434280.98
A53: GALERÍA_INMOBILIARIA | B53: Área de viviendas nuevas | AC53: =+VLOOKUP(AC$3,M_GALERÍA_INMOBILIARIA,7,0) -> 58315.75 | AD53: 104812.91 | AE53: 88530.6 | AF53: 258967.72 | AG53: 160033.28 | AH53: 295099.12 | AI53: 314455.65 | AJ53: 263658.69 | AK53: 136717.64 | AL53: 116087.69 | AM53: 269364.3 | AN53: 135952.59
A54: GALERÍA_INMOBILIARIA | B54: Unidades de viviendas VIS/VIP vendidas | AC54: =+VLOOKUP(AC$3,M_GALERÍA_INMOBILIARIA,8,0) -> 792 | AD54: 1843 | AE54: 2703 | AF54: 2667 | AG54: 3126 | AH54: 3370 | AI54: 3511 | AJ54: 3899 | AK54: 2668 | AL54: 3225 | AM54: 4224 | AN54: 2577
A55: GALERÍA_INMOBILIARIA | B55: Unidades de viviendas VIS/VIP disponibles | AC55: =+VLOOKUP(AC$3,M_GALERÍA_INMOBILIARIA,9,0) -> 9187 | AD55: 9740 | AE55: 8613 | AF55: 10666 | AG55: 10357 | AH55: 11549 | AI55: 13894 | AJ55: 14816 | AK55: 14879 | AL55: 13777 | AM55: 14590 | AN55: 14042
A56: GALERÍA_INMOBILIARIA | B56: Unidades de viviendas VIS/VIP nuevas | AC56: =+VLOOKUP(AC$3,M_GALERÍA_INMOBILIARIA,10,0) -> 1345 | AD56: 2396 | AE56: 1576 | AF56: 4720 | AG56: 2817 | AH56: 4562 | AI56: 5856 | AJ56: 4821 | AK56: 2731 | AL56: 2123 | AM56: 5037 | AN56: 2029
A57: CENSO_CATASTRO | B57: Área construida | P57: =IFERROR(VLOOKUP(P$3,M_CENSO_CATASTRO,2,0),"") -> 235220212.5 | Q57: =IFERROR(VLOOKUP(Q$3,M_CENSO_CATASTRO,2,0),"") -> 242998644.3 | R57: =IFERROR(VLOOKUP(R$3,M_CENSO_CATASTRO,2,0),"") -> 248509204.7 | S57: 254823241.6 | T57: 264484661.7 | U57: 269840830.5 | V57: 274089168.4 | W57: 278421400.2 | X57: 283240679 | Y57: 287325405 | Z57: 292030950.8 | AA57: 292260793.6
A58: CENSO_CATASTRO | B58: Área construida vivienda | P58: =IFERROR(VLOOKUP(P$3,M_CENSO_CATASTRO,3,0),"") -> 178555287.2 | Q58: =IFERROR(VLOOKUP(Q$3,M_CENSO_CATASTRO,3,0),"") -> 183474436 | R58: =IFERROR(VLOOKUP(R$3,M_CENSO_CATASTRO,3,0),"") -> 187821014.6 | S58: 193256977.3 | T58: 197945640.7 | U58: 202110994.6 | V58: 205484567 | W58: 209158425.6 | X58: 212779251.6 | Y58: 215777421.5 | Z58: 219062110.6 | AA58: 219338725.9
A59: CENSO_CATASTRO | B59: Número de predios | P59: =IFERROR(VLOOKUP(P$3,M_CENSO_CATASTRO,4,0),"") -> 2140408 | Q59: =IFERROR(VLOOKUP(Q$3,M_CENSO_CATASTRO,4,0),"") -> 2213981 | R59: =IFERROR(VLOOKUP(R$3,M_CENSO_CATASTRO,4,0),"") -> 2269253 | S59: 2326967 | T59: 2384390 | U59: 2429238 | V59: 2481706 | W59: 2543290 | X59: 2587226 | Y59: 2643666 | Z59: 2681886 | AA59: 2706313
A60: CENSO_CATASTRO | B60: Número de predios vivienda | P60: =IFERROR(VLOOKUP(P$3,M_CENSO_CATASTRO,5,0),"") -> 1832724 | Q60: =IFERROR(VLOOKUP(Q$3,M_CENSO_CATASTRO,5,0),"") -> 1902755 | R60: =IFERROR(VLOOKUP(R$3,M_CENSO_CATASTRO,5,0),"") -> 1958349 | S60: 2013976 | T60: 2069980 | U60: 2114219 | V60: 2166293 | W60: 2227855 | X60: 2272001 | Y60: 2325391 | Z60: 2362714 | AA60: 2385033
A61: IPC | B61: IPC Colombia | AC61: =+VLOOKUP(AC$3,M_IPC,2,0) -> 105.36 | AD61: =+VLOOKUP(AD$3,M_IPC,2,0) -> 104.97 | AE61: 104.97 | AF61: 104.96 | AG61: 105.29 | AH61: 105.23 | AI61: 105.08 | AJ61: 105.48 | AK61: 105.91 | AL61: 106.58 | AM61: 107.12 | AN61: 107.76
A62: IPC | B62: IPC Colombia - Vivienda | AC62: =+VLOOKUP(AC$3,M_IPC,3,0) -> 97.14507122 | AD62: 96.33033422 | AE62: 96.63401959 | AF62: 96.66006479 | AG62: 97.20712006 | AH62: 97.261995 | AI62: 97.39124245 | AJ62: 95.44863772 | AK62: 95.66595332 | AL62: 96.03493664 | AM62: 96.64298371 | AN62: 96.9238083
A63: IPC | B63: IPC Bogotá | AC63: =+VLOOKUP(AC$3,M_IPC,4,0) -> 104.88 | AD63: 104.32 | AE63: 104.24 | AF63: 104.13 | AG63: 104.72 | AH63: 104.65 | AI63: 104.51 | AJ63: 104.7 | AK63: 104.97 | AL63: 105.66 | AM63: 106.15 | AN63: 106.75
A64: IPC | B64: IPC Bogotá - Vivienda | AC64: =+VLOOKUP(AC$3,M_IPC,5,0) -> 97.94330748 | AD64: 96.93721437 | AE64: 97.00703518 | AF64: 96.75838573 | AG64: 97.40942118 | AH64: 97.29304917 | AI64: 97.53364492 | AJ64: 96.27149517 | AK64: 96.42003594 | AL64: 96.80067745 | AM64: 97.51204479 | AN64: 97.76114087
A65: MERCADO LABORAL | B65: Tasa ocupación Colombia | C65: =+VLOOKUP(C$3,M_MERCADO_LABORAL,2,0) -> 56.02619198 | D65: 56.56573473 | E65: 56.22342331 | F65: 57.70034015 | G65: 53.84856142 | H65: 43.66936039 | I65: 48.35980204 | J65: 53.27394249 | K65: 51.79361934 | L65: 51.97729764 | M65: 53.38485109 | N65: 55.05701867
A66: MERCADO LABORAL | B66: Tasa desempleo Colombia | C66: =+VLOOKUP(C$3,M_MERCADO_LABORAL,3,0) -> 11.79380873 | D66: 10.10012196 | E66: 10.57886483 | F66: 9.54183279 | G66: 12.59000971 | H66: 20.33772139 | I66: 17.53261549 | J66: 13.78118987 | K66: 15.94748448 | L66: 15.11226927 | M66: 12.62743564 | N66: 11.54023087
A67: MERCADO LABORAL | B67: Ocupados Colombia | C67: =+VLOOKUP(C$3,M_MERCADO_LABORAL,4,0) -> 21945.03267 | D67: 22226.10867 | E67: 22161.83733 | F67: 22816.142 | G67: 21360.414 | H67: 17377.21233 | I67: 19304.19533 | J67: 21332.07867 | K67: 19787.21033 | L67: 19939.257 | M67: 20558.20667 | N67: 21282.29167
A68: MERCADO LABORAL | B68: Desocupados Colombia | C68: =+VLOOKUP(C$3,M_MERCADO_LABORAL,5,0) -> 2934.210333 | D68: 2497.071333 | E68: 2621.830667 | F68: 2406.723667 | G68: 3076.625667 | H68: 4436.389667 | I68: 4104.083667 | J68: 3409.713333 | K68: 3754.274667 | L68: 3549.717 | M68: 2971.155 | N68: 2776.432333
A69: MERCADO LABORAL | B69: Ocupados Colombia - Construcción | C69: =+VLOOKUP(C$3,M_MERCADO_LABORAL,6,0) -> 756.6227333 | D69: 812.2621667 | E69: 829.6359333 | F69: 820.3273333 | G69: 787.9556667 | H69: 570.6937667 | I69: 681.5712333 | J69: 757.5313 | K69: 673.452 | L69: 658.6395047 | M69: 672.8428297 | N69: 670.9589517
A70: MERCADO LABORAL | B70: Tasa de ocupación Bogotá | C70: =+VLOOKUP(C$3,M_MERCADO_LABORAL,7,0) -> 60.15307865 | D70: 61.75930237 | E70: 61.75281989 | F70: 62.19589561 | G70: 58.60071589 | H70: 44.85494988 | I70: 50.6099322 | J70: 56.07131625 | K70: 55.38599693 | L70: 55.98865313 | M70: 57.96549386 | N70: 57.06890184
A71: MERCADO LABORAL | B71: Tasa desempleo Bogotá | C71: =+VLOOKUP(C$3,M_MERCADO_LABORAL,8,0) -> 13.41855775 | D71: 10.32719338 | E71: 9.992474241 | F71: 9.85352176 | G71: 11.79287124 | H71: 23.63306315 | I71: 21.96684592 | J71: 16.29147356 | K71: 19.94528312 | L71: 17.65846893 | M71: 13.97187609 | N71: 12.90800125
A72: MERCADO LABORAL | B72: Ocupados Bogotá | C72: =+VLOOKUP(C$3,M_MERCADO_LABORAL,9,0) -> 4075.183 | D72: 4198.765667 | E72: 4213.083667 | F72: 4258.172333 | G72: 4026.030333 | H72: 3092.370667 | I72: 3501.213667 | J72: 3892.439 | K72: 3500.155 | L72: 3551.105333 | M72: 3689.029333 | N72: 3643.372667
A73: MERCADO LABORAL | B73: Desocupados Bogotá | C73: =+VLOOKUP(C$3,M_MERCADO_LABORAL,10,0) -> 631.5796667 | D73: 483.552 | E73: 467.729 | F73: 465.4423333 | G73: 538.261 | H73: 956.9873333 | I73: 985.6146667 | J73: 757.552 | K73: 872.0483333 | L73: 761.5486667 | M73: 599.1373333 | N73: 539.9883333
A74: MERCADO LABORAL | B74: Ocupados Bogotá - Construcción | C74: =+VLOOKUP(C$3,M_MERCADO_LABORAL,11,0) -> 268.5399 | D74: 301.0624667 | E74: 303.0916667 | F74: 300.5075333 | G74: 298.9250333 | H74: 202.8486333 | I74: 233.1248333 | J74: 261.5556333 | K74: 200.1806667 | L74: 189.880005 | M74: 195.8160067 | N74: 187.1134023
A75: TASAS_DE_INTERÉS | B75: Tasa de intervención de política monetaria | AC75: =+VLOOKUP(AC$3,M_TASAS_DE_INTERÉS,2,0)*100 -> 3.25 | AD75: 2.75 | AE75: 2.5 | AF75: 2.25 | AG75: 2 | AH75: 1.75 | AI75: 1.75 | AJ75: 1.75 | AK75: 1.75 | AL75: 1.75 | AM75: 1.75 | AN75: 1.75
A76: TASAS_DE_INTERÉS | B76: Adquisición de vivienda diferente de VIS (pesos - efectiva anual) | AC76: =+VLOOKUP(AC$3,M_TASAS_DE_INTERÉS,3,0)*100 -> 10.35093481 | AD76: 10.31507467 | AE76: 10.31983844 | AF76: 10.3219761 | AG76: 10.07747724 | AH76: 9.866278527 | AI76: 9.717093444 | AJ76: 9.492147077 | AK76: 9.409002571 | AL76: 9.291235946 | AM76: 9.10154271 | AN76: 9.020967224
A77: TASAS_DE_INTERÉS | B77: Adquisición de vivienda VIS (pesos - efectiva anual) | AC77: =+VLOOKUP(AC$3,M_TASAS_DE_INTERÉS,4,0)*100 -> 11.57239987 | AD77: 11.69513417 | AE77: 11.67131402 | AF77: 11.66263899 | AG77: 11.50971051 | AH77: 11.47734574 | AI77: 11.38007126 | AJ77: 11.34330295 | AK77: 11.35033482 | AL77: 10.85393853 | AM77: 10.61592382 | AN77: 10.70807071
A78: TASAS_DE_INTERÉS | B78: Tasa de interés - efectiva anual DTF | AC78: =+VLOOKUP(AC$3,M_TASAS_DE_INTERÉS,5,0)*100 -> 4.29 | AD78: 3.76 | AE78: 3.34 | AF78: 2.79 | AG78: 2.39 | AH78: 2.03 | AI78: 1.96 | AJ78: 1.93 | AK78: 1.91 | AL78: 1.81 | AM78: 1.77 | AN78: 1.76
A79: ÍNDICES_DE_PRECIOS | B79: Índice del Precio del Suelo en Bogotá (IPSB) | P79: =IFERROR(VLOOKUP(P$3,M_INDICES_A,2,0),"") -> 927.7369807 | Q79: 1005.175065 | R79: 1301.003437 | S79: 1530.691102 | T79: 1778.09811 | U79: 1905.719249 | V79: 1998.565284 | W79: 0 | X79: 0 | Y79: 0 | Z79: 0
A80: ÍNDICES_DE_PRECIOS | B80: índice de precios de vivienda usada-Colombia (IPVU) | P80: =IFERROR(VLOOKUP(P$3,M_INDICES_A,3,0),"") -> 96.20793653 | Q80: 100.8229688 | R80: 108.1724357 | S80: 116.3347008 | T80: 122.107618 | U80: 126.5497715 | V80: 131.6630917 | W80: 134.4020911 | X80: 137.8562641 | Y80: 141.7889423 | Z80: 142.9564191
A81: ÍNDICES_DE_PRECIOS | B81: índice de precios de vivienda usada-Bogotá (IPVU) | P81: =IFERROR(VLOOKUP(P$3,M_INDICES_A,4,0),"") -> 96.26347436 | Q81: 101.2675761 | R81: 110.8064175 | S81: 122.3700621 | T81: 130.0111063 | U81: 134.5257103 | V81: 142.8224761 | W81: 145.1303236 | X81: 147.2970572 | Y81: 149.9391577 | Z81: 151.1180647
A82: ÍNDICES_DE_PRECIOS | B82: Índice de precios de vivienda nueva-Colombia (IPVN) | AC82: =+VLOOKUP(AC$3,M_INDICES_M,2,0) -> 181.4823961 | AD82: 182.8596836 | AE82: 182.700269 | AF82: 183.1808248 | AG82: 182.4057025 | AH82: 184.4784915 | AI82: 186.3839431 | AJ82: 186.5940334 | AK82: 186.2389716 | AL82: 185.9901276 | AM82: 186.203762 | AN82: 185.5544685
A83: ÍNDICES_DE_PRECIOS | B83: Índice de precios de vivienda nueva-Bogotá (IPVN) | AC83: =+VLOOKUP(AC$3,M_INDICES_M,3,0) -> 197.8813768 | AD83: 199.1207288 | AE83: 198.831817 | AF83: 198.5785823 | AG83: 197.8986475 | AH83: 200.1429778 | AI83: 201.8587658 | AJ83: 201.7844761 | AK83: 201.3444799 | AL83: 201.7104207 | AM83: 201.1026352 | AN83: 200.4178971
A84: ÍNDICES_DE_PRECIOS | B84: Índice de costos de construcción de vivienda -Colombia (ICCV) | AC84: =+VLOOKUP(AC$3,M_INDICES_M,4,0) -> 252.62 | AD84: 253.1194781 | AE84: 253.36 | AF84: 253.7 | AG84: 254.24 | AH84: 254.92 | AI84: 255.8 | AJ84: 257.04 | AK84: 259.05 | AL84: 260.78 | AM84: 263.95 | AN84: 265.77
A85: ÍNDICES_DE_PRECIOS | B85: Índice de costos de construcción de vivienda -Bogotá (ICCV) | AC85: =+VLOOKUP(AC$3,M_INDICES_M,5,0) -> 245.68 | AD85: 246.0639611 | AE85: 246.1 | AF85: 246.08 | AG85: 246.4 | AH85: 246.83 | AI85: 246.92 | AJ85: 247.93 | AK85: 249.64 | AL85: 250.84 | AM85: 254.14 | AN85: 255.38
A86: CEMENTO | B86: Producción de cemento - Colombia | AC86: =+VLOOKUP(AC$3,M_CEMENTO,2,0) -> 778730.3246 | AD86: 977660.2515 | AE86: 1131331.25 | AF86: 1095590.716 | AG86: 1148007.056 | AH86: 1190414.394 | AI86: 1213983.874 | AJ86: 1176276.667 | AK86: 1034344.651 | AL86: 1139862.903 | AM86: 1200339.115 | AN86: 1135881.759
A87: CEMENTO | B87: Despacho de cemento - Colombia | AC87: =+VLOOKUP(AC$3,M_CEMENTO,3,0) -> 705921.0155 | AD87: 904954.7502 | AE87: 1093059.421 | AF87: 1052074.006 | AG87: 1131203.364 | AH87: 1169113.168 | AI87: 1121991.029 | AJ87: 1054316.552 | AK87: 989097.5017 | AL87: 1079241.739 | AM87: 1189013.946 | AN87: 1050774.54
A88: CEMENTO | B88: Despacho de cemento - Bogotá | AC88: =+VLOOKUP(AC$3,M_CEMENTO,4,0) -> 59455.90259 | AD88: 89300.0578 | AE88: 99404.99823 | AF88: 99110.44459 | AG88: 112861.1638 | AH88: 121049.6906 | AI88: 105705.3377 | AJ88: 97794.09001 | AK88: 83805.15383 | AL88: 105182.6771 | AM88: 116542.6092 | AN88: 102178.5825
A89: FINANCIACION_VIVIENDA | B89: Total Viviendas Financiadas - Colombia | C89: =+VLOOKUP(C$3,M_CHV_FIVI,2,0) -> 37407 | D89: 44891 | E89: 50344 | F89: 47531 | G89: 39855 | H89: 21107 | I89: 37504 | J89: 48848 | K89: 44576 | L89: 49710 | M89: 59394 | N89: 57839
A90: FINANCIACION_VIVIENDA | B90: Total Vivienda Financiadas Nuevas - Colombia | C90: =+VLOOKUP(C$3,M_CHV_FIVI,3,0) -> 22770 | D90: 26467 | E90: 31478 | F90: 28896 | G90: 24662 | H90: 13576 | I90: 24796 | J90: 32198 | K90: 26920 | L90: 30692 | M90: 37520 | N90: 36181
A91: FINANCIACION_VIVIENDA | B91: Total Vivienda Financiadas Usadas - Colombia | C91: =+VLOOKUP(C$3,M_CHV_FIVI,4,0) -> 14637 | D91: 18424 | E91: 18866 | F91: 18635 | G91: 15193 | H91: 7531 | I91: 12708 | J91: 16650 | K91: 17656 | L91: 19018 | M91: 21874 | N91: 21658
A92: CARTERA_HIPOTECARIA | B92: Número de créditos - Colombia | C92: =+VLOOKUP(C$3,M_CHV_FIVI,5,0) -> 1160132 | D92: 1170951 | E92: 1185856 | F92: 1197618 | G92: 1203809 | H92: 1200061 | I92: 1211132 | J92: 1223238 | K92: 1225392 | L92: 1231705 | M92: 1248878 | N92: 1267322
A93: CARTERA_HIPOTECARIA | B93: Número de créditos - Bogotá | C93: =+VLOOKUP(C$3,M_CHV_FIVI,6,0) -> 461827 | D93: 462526 | E93: 464182 | F93: 461201 | G93: 453451 | H93: 447924 | I93: 448016 | J93: 443778 | K93: 450304 | L93: 449165 | M93: 454002 | N93: 456361
A94: CARTERA_HIPOTECARIA | B94: Número de créditos - Bogotá - VIS/VIP | C94: =+VLOOKUP(C$3,M_CHV_FIVI,7,0) -> 195125 | D94: 186847 | E94: 186582 | F94: 188995 | G94: 182505 | H94: 189659 | I94: 189703 | J94: 191565 | K94: 190248 | L94: 188342 | M94: 193557 | N94: 196392
A95: IPP | B95: Indice de Precios de Producción - Materiales de construcción | AC95: =+VLOOKUP(AC$3,M_IPP_MC,2,0) -> 117.73 | AD95: 117.27 | AE95: 117.13 | AF95: 117.46 | AG95: 117.88 | AH95: 118.3 | AI95: 118.42 | AJ95: 118.06 | AK95: 119.28 | AL95: 121.19 | AM95: 122.22 | AN95: 124.17
A96: IVIUR | B96: Residencial 1 | R96: =IFERROR(VLOOKUP(R$3,IVIUR!$A$3:$O$12,2,0),"") -> 6.91 | S96: =IFERROR(VLOOKUP(S$3,IVIUR!$A$3:$O$12,2,0),"") -> 17.29 | T96: =IFERROR(VLOOKUP(T$3,IVIUR!$A$3:$O$12,2,0),"") -> 22.45 | U96: =IFERROR(VLOOKUP(U$3,IVIUR!$A$3:$O$12,2,0),"") -> 8.44 | V96: =IFERROR(VLOOKUP(V$3,IVIUR!$A$3:$O$12,2,0),"") -> 3.04 | W96: =IFERROR(VLOOKUP(W$3,IVIUR!$A$3:$O$12,2,0),"") -> 15.6 | X96: =IFERROR(VLOOKUP(X$3,IVIUR!$A$3:$O$12,2,0),"") -> 13 | Y96: =IFERROR(VLOOKUP(Y$3,IVIUR!$A$3:$O$12,2,0),"") -> 18.8 | Z96: =IFERROR(VLOOKUP(Z$3,IVIUR!$A$3:$O$12,2,0),"") ->  | AA96: =IFERROR(VLOOKUP(AA$3,IVIUR!$A$3:$O$12,2,0),"") -> 
A97: IVIUR | B97: Residencial 2 | R97: =IFERROR(VLOOKUP(R$3,IVIUR!$A$3:$O$12,3,0),"") -> 10.69 | S97: =IFERROR(VLOOKUP(S$3,IVIUR!$A$3:$O$12,3,0),"") -> 17.29 | T97: =IFERROR(VLOOKUP(T$3,IVIUR!$A$3:$O$12,3,0),"") -> 10.68 | U97: =IFERROR(VLOOKUP(U$3,IVIUR!$A$3:$O$12,3,0),"") -> 12.7 | V97: =IFERROR(VLOOKUP(V$3,IVIUR!$A$3:$O$12,3,0),"") -> 7.93 | W97: =IFERROR(VLOOKUP(W$3,IVIUR!$A$3:$O$12,3,0),"") -> 12.2 | X97: =IFERROR(VLOOKUP(X$3,IVIUR!$A$3:$O$12,3,0),"") -> 14.3 | Y97: =IFERROR(VLOOKUP(Y$3,IVIUR!$A$3:$O$12,3,0),"") -> 9.1 | Z97: =IFERROR(VLOOKUP(Z$3,IVIUR!$A$3:$O$12,3,0),"") ->  | AA97: =IFERROR(VLOOKUP(AA$3,IVIUR!$A$3:$O$12,3,0),"") -> 
A98: IVIUR | B98: Residencial 3 | R98: =IFERROR(VLOOKUP(R$3,IVIUR!$A$3:$O$12,4,0),"") -> 12.2 | S98: =IFERROR(VLOOKUP(S$3,IVIUR!$A$3:$O$12,4,0),"") -> 20.39 | T98: =IFERROR(VLOOKUP(T$3,IVIUR!$A$3:$O$12,4,0),"") -> 7.23 | U98: =IFERROR(VLOOKUP(U$3,IVIUR!$A$3:$O$12,4,0),"") -> 14.15 | V98: =IFERROR(VLOOKUP(V$3,IVIUR!$A$3:$O$12,4,0),"") -> 10.52 | W98: =IFERROR(VLOOKUP(W$3,IVIUR!$A$3:$O$12,4,0),"") -> 9.5 | X98: =IFERROR(VLOOKUP(X$3,IVIUR!$A$3:$O$12,4,0),"") -> 13.9 | Y98: =IFERROR(VLOOKUP(Y$3,IVIUR!$A$3:$O$12,4,0),"") -> 5.8 | Z98: =IFERROR(VLOOKUP(Z$3,IVIUR!$A$3:$O$12,4,0),"") ->  | AA98: =IFERROR(VLOOKUP(AA$3,IVIUR!$A$3:$O$12,4,0),"") -> 
A99: IVIUR | B99: Residencial 4 | R99: =IFERROR(VLOOKUP(R$3,IVIUR!$A$3:$O$12,5,0),"") -> 4.21 | S99: =IFERROR(VLOOKUP(S$3,IVIUR!$A$3:$O$12,5,0),"") -> 19.96 | T99: =IFERROR(VLOOKUP(T$3,IVIUR!$A$3:$O$12,5,0),"") -> 5.42 | U99: =IFERROR(VLOOKUP(U$3,IVIUR!$A$3:$O$12,5,0),"") -> 9.95 | V99: =IFERROR(VLOOKUP(V$3,IVIUR!$A$3:$O$12,5,0),"") -> 9.17 | W99: =IFERROR(VLOOKUP(W$3,IVIUR!$A$3:$O$12,5,0),"") -> 6.6 | X99: =IFERROR(VLOOKUP(X$3,IVIUR!$A$3:$O$12,5,0),"") -> 9.1 | Y99: =IFERROR(VLOOKUP(Y$3,IVIUR!$A$3:$O$12,5,0),"") -> 3.7 | Z99: =IFERROR(VLOOKUP(Z$3,IVIUR!$A$3:$O$12,5,0),"") ->  | AA99: =IFERROR(VLOOKUP(AA$3,IVIUR!$A$3:$O$12,5,0),"") -> 
A100: IVIUR | B100: Residencial 5 | R100: =IFERROR(VLOOKUP(R$3,IVIUR!$A$3:$O$12,6,0),"") -> 5.99 | S100: =IFERROR(VLOOKUP(S$3,IVIUR!$A$3:$O$12,6,0),"") -> 22.32 | T100: =IFERROR(VLOOKUP(T$3,IVIUR!$A$3:$O$12,6,0),"") -> 7.16 | U100: =IFERROR(VLOOKUP(U$3,IVIUR!$A$3:$O$12,6,0),"") -> 11.71 | V100: =IFERROR(VLOOKUP(V$3,IVIUR!$A$3:$O$12,6,0),"") -> 6.68 | W100: =IFERROR(VLOOKUP(W$3,IVIUR!$A$3:$O$12,6,0),"") -> 7 | X100: =IFERROR(VLOOKUP(X$3,IVIUR!$A$3:$O$12,6,0),"") -> 7.9 | Y100: =IFERROR(VLOOKUP(Y$3,IVIUR!$A$3:$O$12,6,0),"") -> 2.7 | Z100: =IFERROR(VLOOKUP(Z$3,IVIUR!$A$3:$O$12,6,0),"") ->  | AA100: =IFERROR(VLOOKUP(AA$3,IVIUR!$A$3:$O$12,6,0),"") -> 
A101: IVIUR | B101: Residencial 6 | R101: =IFERROR(VLOOKUP(R$3,IVIUR!$A$3:$O$12,7,0),"") -> -0.21 | S101: =IFERROR(VLOOKUP(S$3,IVIUR!$A$3:$O$12,7,0),"") -> 44.78 | T101: =IFERROR(VLOOKUP(T$3,IVIUR!$A$3:$O$12,7,0),"") -> 4.47 | U101: =IFERROR(VLOOKUP(U$3,IVIUR!$A$3:$O$12,7,0),"") -> 5.53 | V101: =IFERROR(VLOOKUP(V$3,IVIUR!$A$3:$O$12,7,0),"") -> 3.35 | W101: =IFERROR(VLOOKUP(W$3,IVIUR!$A$3:$O$12,7,0),"") -> 0.2 | X101: =IFERROR(VLOOKUP(X$3,IVIUR!$A$3:$O$12,7,0),"") -> 9.6 | Y101: =IFERROR(VLOOKUP(Y$3,IVIUR!$A$3:$O$12,7,0),"") -> 1.7 | Z101: =IFERROR(VLOOKUP(Z$3,IVIUR!$A$3:$O$12,7,0),"") ->  | AA101: =IFERROR(VLOOKUP(AA$3,IVIUR!$A$3:$O$12,7,0),"") -> 
A102: IVIUR | B102: Comercio y Oficinas | R102: =IFERROR(VLOOKUP(R$3,IVIUR!$A$3:$O$12,8,0),"") -> 11.94 | S102: =IFERROR(VLOOKUP(S$3,IVIUR!$A$3:$O$12,8,0),"") -> 17.48 | T102: =IFERROR(VLOOKUP(T$3,IVIUR!$A$3:$O$12,8,0),"") -> 9.29 | U102: =IFERROR(VLOOKUP(U$3,IVIUR!$A$3:$O$12,8,0),"") -> 9.91 | V102: =IFERROR(VLOOKUP(V$3,IVIUR!$A$3:$O$12,8,0),"") -> 10.55 | W102: =IFERROR(VLOOKUP(W$3,IVIUR!$A$3:$O$12,8,0),"") -> 8 | X102: =IFERROR(VLOOKUP(X$3,IVIUR!$A$3:$O$12,8,0),"") -> 9.8 | Y102: =IFERROR(VLOOKUP(Y$3,IVIUR!$A$3:$O$12,8,0),"") -> 9.4 | Z102: =IFERROR(VLOOKUP(Z$3,IVIUR!$A$3:$O$12,8,0),"") ->  | AA102: =IFERROR(VLOOKUP(AA$3,IVIUR!$A$3:$O$12,8,0),"") -> 
A103: IVIUR | B103: Depósitos y Parqueaderos | R103: =IFERROR(VLOOKUP(R$3,IVIUR!$A$3:$O$12,9,0),"") -> 10.51 | S103: =IFERROR(VLOOKUP(S$3,IVIUR!$A$3:$O$12,9,0),"") -> 17.16 | T103: =IFERROR(VLOOKUP(T$3,IVIUR!$A$3:$O$12,9,0),"") -> 12.64 | U103: =IFERROR(VLOOKUP(U$3,IVIUR!$A$3:$O$12,9,0),"") -> 9.37 | V103: =IFERROR(VLOOKUP(V$3,IVIUR!$A$3:$O$12,9,0),"") -> 16.83 | W103: =IFERROR(VLOOKUP(W$3,IVIUR!$A$3:$O$12,9,0),"") -> 12.7 | X103: =IFERROR(VLOOKUP(X$3,IVIUR!$A$3:$O$12,9,0),"") -> 12.5 | Y103: =IFERROR(VLOOKUP(Y$3,IVIUR!$A$3:$O$12,9,0),"") -> 11.5 | Z103: =IFERROR(VLOOKUP(Z$3,IVIUR!$A$3:$O$12,9,0),"") ->  | AA103: =IFERROR(VLOOKUP(AA$3,IVIUR!$A$3:$O$12,9,0),"") -> 
A104: IVIUR | B104: Industria | R104: =IFERROR(VLOOKUP(R$3,IVIUR!$A$3:$O$12,10,0),"") -> 7.38 | S104: =IFERROR(VLOOKUP(S$3,IVIUR!$A$3:$O$12,10,0),"") -> 9.54 | T104: =IFERROR(VLOOKUP(T$3,IVIUR!$A$3:$O$12,10,0),"") -> 13.86 | U104: =IFERROR(VLOOKUP(U$3,IVIUR!$A$3:$O$12,10,0),"") -> 14.51 | V104: =IFERROR(VLOOKUP(V$3,IVIUR!$A$3:$O$12,10,0),"") -> 12.19 | W104: =IFERROR(VLOOKUP(W$3,IVIUR!$A$3:$O$12,10,0),"") -> 8.6 | X104: =IFERROR(VLOOKUP(X$3,IVIUR!$A$3:$O$12,10,0),"") -> 12.1 | Y104: =IFERROR(VLOOKUP(Y$3,IVIUR!$A$3:$O$12,10,0),"") -> 6.2 | Z104: =IFERROR(VLOOKUP(Z$3,IVIUR!$A$3:$O$12,10,0),"") ->  | AA104: =IFERROR(VLOOKUP(AA$3,IVIUR!$A$3:$O$12,10,0),"") -> 
A105: IVIUR | B105: Dotacional Público | R105: =IFERROR(VLOOKUP(R$3,IVIUR!$A$3:$O$12,11,0),"") -> 14.43 | S105: =IFERROR(VLOOKUP(S$3,IVIUR!$A$3:$O$12,11,0),"") -> 17.14 | T105: =IFERROR(VLOOKUP(T$3,IVIUR!$A$3:$O$12,11,0),"") -> 12.42 | U105: =IFERROR(VLOOKUP(U$3,IVIUR!$A$3:$O$12,11,0),"") -> 10.01 | V105: =IFERROR(VLOOKUP(V$3,IVIUR!$A$3:$O$12,11,0),"") -> 11.86 | W105: =IFERROR(VLOOKUP(W$3,IVIUR!$A$3:$O$12,11,0),"") -> 8 | X105: =IFERROR(VLOOKUP(X$3,IVIUR!$A$3:$O$12,11,0),"") -> 5.3 | Y105: =IFERROR(VLOOKUP(Y$3,IVIUR!$A$3:$O$12,11,0),"") -> 6.8 | Z105: =IFERROR(VLOOKUP(Z$3,IVIUR!$A$3:$O$12,11,0),"") ->  | AA105: =IFERROR(VLOOKUP(AA$3,IVIUR!$A$3:$O$12,11,0),"") -> 
A106: IVIUR | B106: Dotacional Privado | R106: =IFERROR(VLOOKUP(R$3,IVIUR!$A$3:$O$12,12,0),"") -> 11.91 | S106: =IFERROR(VLOOKUP(S$3,IVIUR!$A$3:$O$12,12,0),"") -> 12.42 | T106: =IFERROR(VLOOKUP(T$3,IVIUR!$A$3:$O$12,12,0),"") -> 19.03 | U106: =IFERROR(VLOOKUP(U$3,IVIUR!$A$3:$O$12,12,0),"") -> 11.62 | V106: =IFERROR(VLOOKUP(V$3,IVIUR!$A$3:$O$12,12,0),"") -> 9.38 | W106: =IFERROR(VLOOKUP(W$3,IVIUR!$A$3:$O$12,12,0),"") -> 9.5 | X106: =IFERROR(VLOOKUP(X$3,IVIUR!$A$3:$O$12,12,0),"") -> 2 | Y106: =IFERROR(VLOOKUP(Y$3,IVIUR!$A$3:$O$12,12,0),"") -> 8 | Z106: =IFERROR(VLOOKUP(Z$3,IVIUR!$A$3:$O$12,12,0),"") ->  | AA106: =IFERROR(VLOOKUP(AA$3,IVIUR!$A$3:$O$12,12,0),"") -> 
A107: IVIUR | B107: Lotes | R107: =IFERROR(VLOOKUP(R$3,IVIUR!$A$3:$O$12,13,0),"") -> 10.19 | S107: =IFERROR(VLOOKUP(S$3,IVIUR!$A$3:$O$12,13,0),"") -> 8.02 | T107: =IFERROR(VLOOKUP(T$3,IVIUR!$A$3:$O$12,13,0),"") -> 23.08 | U107: =IFERROR(VLOOKUP(U$3,IVIUR!$A$3:$O$12,13,0),"") -> 8.33 | V107: =IFERROR(VLOOKUP(V$3,IVIUR!$A$3:$O$12,13,0),"") -> 7.17 | W107: =IFERROR(VLOOKUP(W$3,IVIUR!$A$3:$O$12,13,0),"") -> 10 | X107: =IFERROR(VLOOKUP(X$3,IVIUR!$A$3:$O$12,13,0),"") -> 11.5 | Y107: =IFERROR(VLOOKUP(Y$3,IVIUR!$A$3:$O$12,13,0),"") -> 10 | Z107: =IFERROR(VLOOKUP(Z$3,IVIUR!$A$3:$O$12,13,0),"") ->  | AA107: =IFERROR(VLOOKUP(AA$3,IVIUR!$A$3:$O$12,13,0),"") -> 
A108: IVIUR | B108: Otros | R108: =IFERROR(VLOOKUP(R$3,IVIUR!$A$3:$O$12,14,0),"") -> 15.38 | S108: =IFERROR(VLOOKUP(S$3,IVIUR!$A$3:$O$12,14,0),"") -> 15.38 | T108: =IFERROR(VLOOKUP(T$3,IVIUR!$A$3:$O$12,14,0),"") -> 5.33 | U108: =IFERROR(VLOOKUP(U$3,IVIUR!$A$3:$O$12,14,0),"") -> 7.59 | V108: =IFERROR(VLOOKUP(V$3,IVIUR!$A$3:$O$12,14,0),"") -> 17.65 | W108: =IFERROR(VLOOKUP(W$3,IVIUR!$A$3:$O$12,14,0),"") -> 8.5 | X108: =IFERROR(VLOOKUP(X$3,IVIUR!$A$3:$O$12,14,0),"") -> 13.5 | Y108: =IFERROR(VLOOKUP(Y$3,IVIUR!$A$3:$O$12,14,0),"") -> 1.2 | Z108: =IFERROR(VLOOKUP(Z$3,IVIUR!$A$3:$O$12,14,0),"") ->  | AA108: =IFERROR(VLOOKUP(AA$3,IVIUR!$A$3:$O$12,14,0),"") -> 
A109: IVIUR | B109: Total | R109: =IFERROR(VLOOKUP(R$3,IVIUR!$A$3:$O$12,15,0),"") -> 10.7 | S109: =IFERROR(VLOOKUP(S$3,IVIUR!$A$3:$O$12,15,0),"") -> 18.7 | T109: =IFERROR(VLOOKUP(T$3,IVIUR!$A$3:$O$12,15,0),"") -> 8.7 | U109: =IFERROR(VLOOKUP(U$3,IVIUR!$A$3:$O$12,15,0),"") -> 10.8 | V109: =IFERROR(VLOOKUP(V$3,IVIUR!$A$3:$O$12,15,0),"") -> 10.5 | W109: =IFERROR(VLOOKUP(W$3,IVIUR!$A$3:$O$12,15,0),"") -> 9.3 | X109: =IFERROR(VLOOKUP(X$3,IVIUR!$A$3:$O$12,15,0),"") -> 12.4 | Y109: =IFERROR(VLOOKUP(Y$3,IVIUR!$A$3:$O$12,15,0),"") -> 6.14 | Z109: =IFERROR(VLOOKUP(Z$3,IVIUR!$A$3:$O$12,15,0),"") ->  | AA109: =IFERROR(VLOOKUP(AA$3,IVIUR!$A$3:$O$12,15,0),"") -> 

Sheet DATOS VARIACIONES (hidden)
C1: VARIACIONES TRIMESTRALES | AC1: VARIACIONES ANUALES | AP1: VARIACIONES AÑO CORRIDO | BC1: VARIACIONES MESUALES
B2: 1 | C2: 2 | D2: 3 | E2: 4 | F2: 5 | G2: 6 | H2: 7 | I2: 8 | J2: 9 | K2: 10 | L2: 11 | M2: 12 | N2: 13 | O2: 14 | P2: 15 | Q2: 16 | R2: 17 | S2: 18 | T2: 19 | U2: 20 | V2: 21 | W2: 22 | X2: 23 | Y2: 24 | Z2: 25 | AA2: 26 | AB2: 27 | AC2: 28 | AD2: 29 | AE2: 30 | AF2: 31 | AG2: 32 | AH2: 33 | AI2: 34 | AJ2: 35 | AK2: 36 | AL2: 37 | AM2: 38 | AN2: 39 | AO2: 40 | AP2: 41 | AQ2: 42 | AR2: 43 | AS2: 44 | AT2: 45 | AU2: 46 | AV2: 47 | AW2: 48 | AX2: 49 | AY2: 50 | AZ2: 51 | BA2: 52 | BB2: 53 | BC2: 54 | BD2: 55 | BE2: 56 | BF2: 57 | BG2: 58 | BH2: 59 | BI2: 60 | BJ2: 61 | BK2: 62 | BL2: 63 | BM2: 64 | BN2: 65
A3: TEMA | B3: VARIABLE | C3: =+IF(MID($D$3,5,2) ="01",$D$3-97,$D$3-1) -> 201901 | D3: =+IF(MID($E$3,5,2) ="01",$E$3-97,$E$3-1) -> 201902 | E3: =+IF(MID($F$3,5,2) ="01",$F$3-97,$F$3-1) -> 201903 | F3: =+IF(MID($G$3,5,2) ="01",$G$3-97,$G$3-1) -> 201904 | G3: =+IF(MID($H$3,5,2) ="01",$H$3-97,$H$3-1) -> 202001 | H3: =+IF(MID($I$3,5,2) ="01",$I$3-97,$I$3-1) -> 202002 | I3: =+IF(MID($J$3,5,2) ="01",$J$3-97,$J$3-1) -> 202003 | J3: =+IF(MID($K$3,5,2) ="01",$K$3-97,$K$3-1) -> 202004 | K3: =+IF(MID($L$3,5,2) ="01",$L$3-97,$L$3-1) -> 202101 | L3: =+IF(MID($M$3,5,2) ="01",$M$3-97,$M$3-1) -> 202102 | M3: =+IF(MID($N$3,5,2) ="01",$N$3-97,$N$3-1) -> 202103 | N3: =+FICHA!$E$20-0 -> 202104 | P3: =+FICHA!$E$16-11 -> 2010 | Q3: =+FICHA!$E$16-10 -> 2011 | R3: =+FICHA!$E$16-9 -> 2012 | S3: =+FICHA!$E$16-8 -> 2013 | T3: =+FICHA!$E$16-7 -> 2014 | U3: =+FICHA!$E$16-6 -> 2015 | V3: =+FICHA!$E$16-5 -> 2016 | W3: =+FICHA!$E$16-4 -> 2017 | X3: =+FICHA!$E$16-3 -> 2018 | Y3: =+FICHA!$E$16-2 -> 2019 | Z3: =+FICHA!$E$16-1 -> 2020 | AA3: =+FICHA!$E$16-0 -> 2021 | AC3: =IF(FICHA!$E$22="Trimestral",C3,BC3) -> 201901 | AD3: =IF(FICHA!$E$22="Trimestral",D3,BD3) -> 201902 | AE3: =IF(FICHA!$E$22="Trimestral",E3,BE3) -> 201903 | AF3: =IF(FICHA!$E$22="Trimestral",F3,BF3) -> 201904 | AG3: =IF(FICHA!$E$22="Trimestral",G3,BG3) -> 202001 | AH3: =IF(FICHA!$E$22="Trimestral",H3,BH3) -> 202002 | AI3: =IF(FICHA!$E$22="Trimestral",I3,BI3) -> 202003 | AJ3: =IF(FICHA!$E$22="Trimestral",J3,BJ3) -> 202004 | AK3: =IF(FICHA!$E$22="Trimestral",K3,BK3) -> 202101 | AL3: =IF(FICHA!$E$22="Trimestral",L3,BL3) -> 202102 | AM3: =IF(FICHA!$E$22="Trimestral",M3,BM3) -> 202103 | AN3: =IF(FICHA!$E$22="Trimestral",N3,BN3) -> 202104 | AP3: =+IF(MID($D$3,5,2) ="01",$D$3-97,$D$3-1) -> 201901 | AQ3: =+IF(MID($E$3,5,2) ="01",$E$3-97,$E$3-1) -> 201902 | AR3: =+IF(MID($F$3,5,2) ="01",$F$3-97,$F$3-1) -> 201903 | AS3: =+IF(MID($G$3,5,2) ="01",$G$3-97,$G$3-1) -> 201904 | AT3: =+IF(MID($H$3,5,2) ="01",$H$3-97,$H$3-1) -> 202001 | AU3: =+IF(MID($I$3,5,2) ="01",$I$3-97,$I$3-1) -> 202002 | AV3: =+IF(MID($J$3,5,2) ="01",$J$3-97,$J$3-1) -> 202003 | AW3: =+IF(MID($K$3,5,2) ="01",$K$3-97,$K$3-1) -> 202004 | AX3: =+IF(MID($L$3,5,2) ="01",$L$3-97,$L$3-1) -> 202101 | AY3: =+IF(MID($M$3,5,2) ="01",$M$3-97,$M$3-1) -> 202102 | AZ3: =+IF(MID($N$3,5,2) ="01",$N$3-97,$N$3-1) -> 202103 | BA3: =+FICHA!$E$20-0 -> 202104 | BC3: =+IF(MID($BD$3,5,2) ="01",$BD$3-89,$BD$3-1) -> 202005 | BD3: =+IF(MID($BE$3,5,2) ="01",$BE$3-89,$BE$3-1) -> 202006 | BE3: =+IF(MID($BF$3,5,2) ="01",$BF$3-89,$BF$3-1) -> 202007 | BF3: =+IF(MID($BG$3,5,2) ="01",$BG$3-89,$BG$3-1) -> 202008 | BG3: =+IF(MID($BH$3,5,2) ="01",$BH$3-89,$BH$3-1) -> 202009 | BH3: =+IF(MID($BI$3,5,2) ="01",$BI$3-89,$BI$3-1) -> 202010 | BI3: =+IF(MID($BJ$3,5,2) ="01",$BJ$3-89,$BJ$3-1) -> 202011 | BJ3: =+IF(MID($BK$3,5,2) ="01",$BK$3-89,$BK$3-1) -> 202012 | BK3: =+IF(MID($BL$3,5,2) ="01",$BL$3-89,$BL$3-1) -> 202101 | BL3: =+IF(MID($BM$3,5,2) ="01",$BM$3-89,$BM$3-1) -> 202102 | BM3: =+IF(MID($BN$3,5,2) ="01",$BN$3-89,$BN$3-1) -> 202103 | BN3: =+FICHA!$E$20-0 -> 202104
A4: PIB | B4: PIB Colombia (base 2015) | C4: =+VLOOKUP(C$3,M_PIB,18,0) -> -11.39552601 | D4: 4.75301541 | E4: 3.602992063 | F4: 7.21867161 | G4: -13.38432731 | H4: -13.24299986 | I4: 13.22381766 | J4: 13.25898869 | K4: -9.318765363 | L4: 1.517055857 | M4: 8.870103825 | N4: =+VLOOKUP(N$3,M_PIB,18,0) -> 10.57438209 | AC4: =IF(FICHA!$E$22="Trimestral",VLOOKUP(AC$3,M_PIB,10,0),"") -> 3.501957286 | AD4: =IF(FICHA!$E$22="Trimestral",VLOOKUP(AD$3,M_PIB,10,0),"") -> 2.995470372 | AE4: =IF(FICHA!$E$22="Trimestral",VLOOKUP(AE$3,M_PIB,10,0),"") -> 3.174082531 | AF4: =IF(FICHA!$E$22="Trimestral",VLOOKUP(AF$3,M_PIB,10,0),"") -> 3.101481379 | AG4: =IF(FICHA!$E$22="Trimestral",VLOOKUP(AG$3,M_PIB,10,0),"") -> 0.7872826604 | AH4: =IF(FICHA!$E$22="Trimestral",VLOOKUP(AH$3,M_PIB,10,0),"") -> -16.52744065 | AI4: =IF(FICHA!$E$22="Trimestral",VLOOKUP(AI$3,M_PIB,10,0),"") -> -8.775975956 | AJ4: =IF(FICHA!$E$22="Trimestral",VLOOKUP(AJ$3,M_PIB,10,0),"") -> -3.636740203 | AK4: =IF(FICHA!$E$22="Trimestral",VLOOKUP(AK$3,M_PIB,10,0),"") -> 0.886353478 | AL4: =IF(FICHA!$E$22="Trimestral",VLOOKUP(AL$3,M_PIB,10,0),"") -> 18.0502503 | AM4: =IF(FICHA!$E$22="Trimestral",VLOOKUP(AM$3,M_PIB,10,0),"") -> 13.51094913 | AN4: =IF(FICHA!$E$22="Trimestral",VLOOKUP(AN$3,M_PIB,10,0),"") -> 10.82037024 | AP4: =+VLOOKUP(AP$3,M_PIB,26,0) -> 3.501957286 | AQ4: 3.242214412 | AR4: 3.218601828 | AS4: 3.186855392 | AT4: 0.7872826604 | AU4: -8.07104587 | AV4: -8.315249339 | AW4: -7.048151208 | AX4: 0.886353478 | AY4: 8.859753124 | AZ4: 10.46293406 | BA4: 10.5632927
A5: PIB | B5: PIB Colombia - Construcción (base 2015) | C5: =+VLOOKUP(C$3,M_PIB,19,0) -> -10.13876051 | D5: 1.213949726 | E5: 2.135838169 | F5: 2.61271924 | G5: -21.07391562 | H5: -27.85728885 | I5: 24.87169611 | J5: 7.572264319 | K5: -1.290489891 | L5: -6.093757448 | M5: 1.571487277 | N5: 12.81261511 | AC5: =IF(FICHA!$E$22="Trimestral",VLOOKUP(AC$3,M_PIB,11,0),"") -> 0.5465592335 | AD5: =IF(FICHA!$E$22="Trimestral",VLOOKUP(AD$3,M_PIB,11,0),"") -> -2.719896349 | AE5: =IF(FICHA!$E$22="Trimestral",VLOOKUP(AE$3,M_PIB,11,0),"") -> -8.119014323 | AF5: =IF(FICHA!$E$22="Trimestral",VLOOKUP(AF$3,M_PIB,11,0),"") -> -4.678222678 | AG5: =IF(FICHA!$E$22="Trimestral",VLOOKUP(AG$3,M_PIB,11,0),"") -> -16.27786704 | AH5: =IF(FICHA!$E$22="Trimestral",VLOOKUP(AH$3,M_PIB,11,0),"") -> -40.32500785 | AI5: =IF(FICHA!$E$22="Trimestral",VLOOKUP(AI$3,M_PIB,11,0),"") -> -27.041109 | AJ5: =IF(FICHA!$E$22="Trimestral",VLOOKUP(AJ$3,M_PIB,11,0),"") -> -23.51481214 | AK5: =IF(FICHA!$E$22="Trimestral",VLOOKUP(AK$3,M_PIB,11,0),"") -> -4.34321577 | AL5: =IF(FICHA!$E$22="Trimestral",VLOOKUP(AL$3,M_PIB,11,0),"") -> 24.5138842 | AM5: =IF(FICHA!$E$22="Trimestral",VLOOKUP(AM$3,M_PIB,11,0),"") -> 1.280440634 | AN5: =IF(FICHA!$E$22="Trimestral",VLOOKUP(AN$3,M_PIB,11,0),"") -> 6.214287112 | AP5: =+VLOOKUP(AP$3,M_PIB,27,0) -> 0.5465592335 | AQ5: -1.12348574 | AR5: -3.614129587 | AS5: -3.891257996 | AT5: -16.27786704 | AU5: -28.3739772 | AV5: -27.92161055 | AW5: -26.78331813 | AX5: -4.34321577 | AY5: 7.750409418 | AZ5: 5.527720413 | BA5: 5.71298
A6: PIB | B6: PIB Colombia - Construcción - Edificaciones (base 2015) | C6: =+VLOOKUP(C$3,M_PIB,20,0) -> -14.16840655 | D6: 0.490979935 | E6: 1.748602259 | F6: 0.9226826144 | G6: -21.59998425 | H6: -20.46507226 | I6: 16.22053796 | J6: 8.253600197 | K6: 0.5271069903 | L6: -0.8223010695 | M6: 1.821551759 | N6: 11.5586563 | AC6: =IF(FICHA!$E$22="Trimestral",VLOOKUP(AC$3,M_PIB,12,0),"") -> -14.80597258 | AD6: =IF(FICHA!$E$22="Trimestral",VLOOKUP(AD$3,M_PIB,12,0),"") -> -9.182906746 | AE6: =IF(FICHA!$E$22="Trimestral",VLOOKUP(AE$3,M_PIB,12,0),"") -> -18.48887933 | AF6: =IF(FICHA!$E$22="Trimestral",VLOOKUP(AF$3,M_PIB,12,0),"") -> -11.42901095 | AG6: =IF(FICHA!$E$22="Trimestral",VLOOKUP(AG$3,M_PIB,12,0),"") -> -19.09777441 | AH6: =IF(FICHA!$E$22="Trimestral",VLOOKUP(AH$3,M_PIB,12,0),"") -> -35.96885341 | AI6: =IF(FICHA!$E$22="Trimestral",VLOOKUP(AI$3,M_PIB,12,0),"") -> -26.86155743 | AJ6: =IF(FICHA!$E$22="Trimestral",VLOOKUP(AJ$3,M_PIB,12,0),"") -> -21.54885784 | AK6: =IF(FICHA!$E$22="Trimestral",VLOOKUP(AK$3,M_PIB,12,0),"") -> 0.5926629719 | AL6: =IF(FICHA!$E$22="Trimestral",VLOOKUP(AL$3,M_PIB,12,0),"") -> 25.43607099 | AM6: =IF(FICHA!$E$22="Trimestral",VLOOKUP(AM$3,M_PIB,12,0),"") -> 9.895338798 | AN6: =IF(FICHA!$E$22="Trimestral",VLOOKUP(AN$3,M_PIB,12,0),"") -> 13.2505183 | AP6: =+VLOOKUP(AP$3,M_PIB,28,0) -> -14.80597258 | AQ6: -12.07738168 | AR6: -14.35270554 | AS6: -13.62792548 | AT6: -19.09777441 | AU6: -27.5539716 | AV6: -27.32011324 | AW6: -25.85300326 | AX6: 0.5926629719 | AY6: 11.59842484 | AZ6: 11.01958954 | BA6: 11.61963449
A7: PIB | B7: PIB Colombia - Construcción - Obras civiles (base 2015) | C7: =+VLOOKUP(C$3,M_PIB,21,0) -> -12.11207239 | D7: 10.60240739 | E7: 5.125545946 | F7: 2.441013183 | G7: -27.96929447 | H7: -35.1832889 | I7: 46.52304727 | J7: 4.139740685 | K7: -11.82301448 | L7: -8.951923153 | M7: 3.826005675 | N7: 12.78209832 | AC7: =IF(FICHA!$E$22="Trimestral",VLOOKUP(AC$3,M_PIB,13,0),"") -> 37.91552347 | AD7: =IF(FICHA!$E$22="Trimestral",VLOOKUP(AD$3,M_PIB,13,0),"") -> 8.085735955 | AE7: =IF(FICHA!$E$22="Trimestral",VLOOKUP(AE$3,M_PIB,13,0),"") -> 10.76454033 | AF7: =IF(FICHA!$E$22="Trimestral",VLOOKUP(AF$3,M_PIB,13,0),"") -> 4.682945332 | AG7: =IF(FICHA!$E$22="Trimestral",VLOOKUP(AG$3,M_PIB,13,0),"") -> -14.20452598 | AH7: =IF(FICHA!$E$22="Trimestral",VLOOKUP(AH$3,M_PIB,13,0),"") -> -49.72098181 | AI7: =IF(FICHA!$E$22="Trimestral",VLOOKUP(AI$3,M_PIB,13,0),"") -> -29.9215534 | AJ7: =IF(FICHA!$E$22="Trimestral",VLOOKUP(AJ$3,M_PIB,13,0),"") -> -28.75947797 | AK7: =IF(FICHA!$E$22="Trimestral",VLOOKUP(AK$3,M_PIB,13,0),"") -> -12.79032416 | AL7: =IF(FICHA!$E$22="Trimestral",VLOOKUP(AL$3,M_PIB,13,0),"") -> 22.5034892 | AM7: =IF(FICHA!$E$22="Trimestral",VLOOKUP(AM$3,M_PIB,13,0),"") -> -13.19421619 | AN7: =IF(FICHA!$E$22="Trimestral",VLOOKUP(AN$3,M_PIB,13,0),"") -> -5.990370435 | AP7: =+VLOOKUP(AP$3,M_PIB,29,0) -> 37.91552347 | AQ7: 20.45673469 | AR7: 16.82065214 | AS7: 13.31180926 | AT7: -14.20452598 | AU7: -32.85676062 | AV7: -31.81268607 | AW7: -30.99726027 | AX7: -12.79032416 | AY7: 1.08951174 | AZ7: -4.132227685 | BA7: -4.64457902
A8: PIB | B8: PIB Bogotá (base 2015) | C8: =+VLOOKUP(C$3,M_PIB,22,0) -> -14.08240748 | D8: 7.571351934 | E8: 2.387487551 | F8: 9.839367085 | G8: -16.39210537 | H8: -10.0818628 | I8: 11.84521953 | J8: 14.53162545 | K8: -12.52478672 | L8: 4.677950754 | M8: 7.315761775 | N8: 13.14042958 | AC8: =IF(FICHA!$E$22="Trimestral",VLOOKUP(AC$3,M_PIB,14,0),"") -> 2.281597826 | AD8: =IF(FICHA!$E$22="Trimestral",VLOOKUP(AD$3,M_PIB,14,0),"") -> 3.766947612 | AE8: =IF(FICHA!$E$22="Trimestral",VLOOKUP(AE$3,M_PIB,14,0),"") -> 3.705616364 | AF8: =IF(FICHA!$E$22="Trimestral",VLOOKUP(AF$3,M_PIB,14,0),"") -> 3.940220526 | AG8: =IF(FICHA!$E$22="Trimestral",VLOOKUP(AG$3,M_PIB,14,0),"") -> 1.146025517 | AH8: =IF(FICHA!$E$22="Trimestral",VLOOKUP(AH$3,M_PIB,14,0),"") -> -15.452748 | AI8: =IF(FICHA!$E$22="Trimestral",VLOOKUP(AI$3,M_PIB,14,0),"") -> -7.642953379 | AJ8: =IF(FICHA!$E$22="Trimestral",VLOOKUP(AJ$3,M_PIB,14,0),"") -> -3.697527112 | AK8: =IF(FICHA!$E$22="Trimestral",VLOOKUP(AK$3,M_PIB,14,0),"") -> 0.7569846454 | AL8: =IF(FICHA!$E$22="Trimestral",VLOOKUP(AL$3,M_PIB,14,0),"") -> 17.29596503 | AM8: =IF(FICHA!$E$22="Trimestral",VLOOKUP(AM$3,M_PIB,14,0),"") -> 12.54576541 | AN8: =IF(FICHA!$E$22="Trimestral",VLOOKUP(AN$3,M_PIB,14,0),"") -> 11.17869144 | AP8: =+VLOOKUP(AP$3,M_PIB,30,0) -> 2.281597826 | AQ8: 3.046014423 | AR8: 3.273723742 | AS8: 3.456668128 | AT8: 1.146025517 | AU8: -7.456088845 | AV8: -7.520868436 | AW8: -6.466507649 | AX8: 0.7569846454 | AY8: 8.587486404 | AZ8: 9.957875889 | BA8: 10.30450618
A9: PIB | B9: PIB Bogotá - Construcción (base 2015) | C9: =+VLOOKUP(C$3,M_PIB,23,0) -> -30.09059679 | D9: 30.66848742 | E9: -5.417732391 | F9: 16.77902076 | G9: -34.40655241 | H9: -33.57566437 | I9: 56.714892 | J9: 2.599814074 | K9: -24.4247849 | L9: -1.608961178 | M9: 6.164794334 | N9: 48.44223758 | AC9: =IF(FICHA!$E$22="Trimestral",VLOOKUP(AC$3,M_PIB,15,0),"") -> -26.82773678 | AD9: =IF(FICHA!$E$22="Trimestral",VLOOKUP(AD$3,M_PIB,15,0),"") -> -1.692423055 | AE9: =IF(FICHA!$E$22="Trimestral",VLOOKUP(AE$3,M_PIB,15,0),"") -> -14.51756635 | AF9: =IF(FICHA!$E$22="Trimestral",VLOOKUP(AF$3,M_PIB,15,0),"") -> 0.8976403667 | AG9: =IF(FICHA!$E$22="Trimestral",VLOOKUP(AG$3,M_PIB,15,0),"") -> -5.331417781 | AH9: =IF(FICHA!$E$22="Trimestral",VLOOKUP(AH$3,M_PIB,15,0),"") -> -51.87594344 | AI9: =IF(FICHA!$E$22="Trimestral",VLOOKUP(AI$3,M_PIB,15,0),"") -> -20.26247079 | AJ9: =IF(FICHA!$E$22="Trimestral",VLOOKUP(AJ$3,M_PIB,15,0),"") -> -29.94413193 | AK9: =IF(FICHA!$E$22="Trimestral",VLOOKUP(AK$3,M_PIB,15,0),"") -> -19.28328982 | AL9: =IF(FICHA!$E$22="Trimestral",VLOOKUP(AL$3,M_PIB,15,0),"") -> 19.56161682 | AM9: =IF(FICHA!$E$22="Trimestral",VLOOKUP(AM$3,M_PIB,15,0),"") -> -19.00428671 | AN9: =IF(FICHA!$E$22="Trimestral",VLOOKUP(AN$3,M_PIB,15,0),"") -> 17.18525051 | AP9: =+VLOOKUP(AP$3,M_PIB,31,0) -> -26.82773678 | AQ9: -14.4347049 | AR9: -14.46363086 | AS9: -10.52016189 | AT9: -5.331417781 | AU9: -31.69784015 | AV9: -27.70840438 | AW9: -28.35558569 | AX9: -19.28328982 | AY9: -3.779264483 | AZ9: -9.63786896 | BA9: -2.045478116
A10: PIB | B10: PIB Bogotá - Construcción - Edificaciones (base 2005) | C10: =+VLOOKUP(C$3,M_PIB,24,0) -> -29.81512794 | D10: 9.89574803 | E10: 0.2437696017 | F10: 2.816375083 | G10: -30.43793819 | H10: -25.59618342 | I10: 28.33536499 | J10: 6.764315498 | K10: -2.861533888 | L10: 8.388502999 | M10: -7.269259478 | N10: 33.70300948 | AC10: =IF(FICHA!$E$22="Trimestral",VLOOKUP(AC$3,M_PIB,16,0),"") -> -29.55225004 | AD10: =IF(FICHA!$E$22="Trimestral",VLOOKUP(AD$3,M_PIB,16,0),"") -> -6.184551863 | AE10: =IF(FICHA!$E$22="Trimestral",VLOOKUP(AE$3,M_PIB,16,0),"") -> -28.60858699 | AF10: =IF(FICHA!$E$22="Trimestral",VLOOKUP(AF$3,M_PIB,16,0),"") -> -20.50421908 | AG10: =IF(FICHA!$E$22="Trimestral",VLOOKUP(AG$3,M_PIB,16,0),"") -> -21.20965297 | AH10: =IF(FICHA!$E$22="Trimestral",VLOOKUP(AH$3,M_PIB,16,0),"") -> -46.65578392 | AI10: =IF(FICHA!$E$22="Trimestral",VLOOKUP(AI$3,M_PIB,16,0),"") -> -31.70698321 | AJ10: =IF(FICHA!$E$22="Trimestral",VLOOKUP(AJ$3,M_PIB,16,0),"") -> -29.08466978 | AK10: =IF(FICHA!$E$22="Trimestral",VLOOKUP(AK$3,M_PIB,16,0),"") -> -0.9717909189 | AL10: =IF(FICHA!$E$22="Trimestral",VLOOKUP(AL$3,M_PIB,16,0),"") -> 44.26033274 | AM10: =IF(FICHA!$E$22="Trimestral",VLOOKUP(AM$3,M_PIB,16,0),"") -> 4.237576939 | AN10: =IF(FICHA!$E$22="Trimestral",VLOOKUP(AN$3,M_PIB,16,0),"") -> 30.5387261 | AP10: =+VLOOKUP(AP$3,M_PIB,32,0) -> -29.55225004 | AQ10: -18.98717454 | AR10: -22.57855832 | AS10: -22.04687208 | AT10: -21.20965297 | AU10: -34.53256028 | AV10: -33.56000372 | AW10: -32.39020372 | AX10: -0.9717909189 | AY10: 18.32504959 | AZ10: 13.34094104 | BA10: 18.05602238
A11: PIB | B11: PIB Bogotá - Construcción - Obras civiles (base 2005) | C11: =+VLOOKUP(C$3,M_PIB,25,0) -> -19.55263774 | D11: 57.9227924 | E11: -14.29475561 | F11: 39.26124464 | G11: -32.3059098 | H11: -51.53617078 | I11: 118.2845656 | J11: -4.410405458 | K11: -46.66305126 | L11: -40.31275734 | M11: 62.724328 | N11: 87.80610467 | AC11: =IF(FICHA!$E$22="Trimestral",VLOOKUP(AC$3,M_PIB,17,0),"") -> -19.01183868 | AD11: =IF(FICHA!$E$22="Trimestral",VLOOKUP(AD$3,M_PIB,17,0),"") -> 7.170757246 | AE11: =IF(FICHA!$E$22="Trimestral",VLOOKUP(AE$3,M_PIB,17,0),"") -> 26.37137301 | AF11: =IF(FICHA!$E$22="Trimestral",VLOOKUP(AF$3,M_PIB,17,0),"") -> 51.63319765 | AG11: =IF(FICHA!$E$22="Trimestral",VLOOKUP(AG$3,M_PIB,17,0),"") -> 27.59487782 | AH11: =IF(FICHA!$E$22="Trimestral",VLOOKUP(AH$3,M_PIB,17,0),"") -> -60.8432939 | AI11: =IF(FICHA!$E$22="Trimestral",VLOOKUP(AI$3,M_PIB,17,0),"") -> -0.2709269124 | AJ11: =IF(FICHA!$E$22="Trimestral",VLOOKUP(AJ$3,M_PIB,17,0),"") -> -31.54547997 | AK11: =IF(FICHA!$E$22="Trimestral",VLOOKUP(AK$3,M_PIB,17,0),"") -> -46.06389989 | AL11: =IF(FICHA!$E$22="Trimestral",VLOOKUP(AL$3,M_PIB,17,0),"") -> -33.57319991 | AM11: =IF(FICHA!$E$22="Trimestral",VLOOKUP(AM$3,M_PIB,17,0),"") -> -50.48089463 | AN11: =IF(FICHA!$E$22="Trimestral",VLOOKUP(AN$3,M_PIB,17,0),"") -> -2.709177381 | AP11: =+VLOOKUP(AP$3,M_PIB,33,0) -> -19.01183868 | AQ11: -4.766173559 | AR11: 4.057944738 | AS11: 15.83287932 | AT11: 27.59487782 | AU11: -26.55467175 | AV11: -17.50885815 | AW11: -22.05666947 | AX11: -46.06389989 | AY11: -41.98649495 | AZ11: -45.52082864 | BA11: -33.33864931
A12: LICENCIAS | B12: Área total nueva licenciada | AC12: =IF(FICHA!$E$22="Mensual",VLOOKUP(AC$3,M_LICENCIAS,22,0),"") ->  | AD12: =IF(FICHA!$E$22="Mensual",VLOOKUP(AD$3,M_LICENCIAS,22,0),"") ->  | AE12: =IF(FICHA!$E$22="Mensual",VLOOKUP(AE$3,M_LICENCIAS,22,0),"") ->  | AF12: =IF(FICHA!$E$22="Mensual",VLOOKUP(AF$3,M_LICENCIAS,22,0),"") ->  | AG12: =IF(FICHA!$E$22="Mensual",VLOOKUP(AG$3,M_LICENCIAS,22,0),"") ->  | AH12: =IF(FICHA!$E$22="Mensual",VLOOKUP(AH$3,M_LICENCIAS,22,0),"") ->  | AI12: =IF(FICHA!$E$22="Mensual",VLOOKUP(AI$3,M_LICENCIAS,22,0),"") ->  | AJ12: =IF(FICHA!$E$22="Mensual",VLOOKUP(AJ$3,M_LICENCIAS,22,0),"") ->  | AK12: =IF(FICHA!$E$22="Mensual",VLOOKUP(AK$3,M_LICENCIAS,22,0),"") ->  | AL12: =IF(FICHA!$E$22="Mensual",VLOOKUP(AL$3,M_LICENCIAS,22,0),"") ->  | AM12: =IF(FICHA!$E$22="Mensual",VLOOKUP(AM$3,M_LICENCIAS,22,0),"") ->  | AN12: =IF(FICHA!$E$22="Mensual",VLOOKUP(AN$3,M_LICENCIAS,22,0),"") ->  | AP12: =+VLOOKUP(AP$3,M_LICENCIAS,42,0) -> -9.079654525 | AQ12: -3.881786608 | AR12: 4.918261658 | AS12: -3.183568939 | AT12: 11.7138462 | AU12: 8.066761006 | AV12: -9.911635646 | AW12: -27.09111352 | AX12: -22.56370308 | AY12: -8.026441937 | AZ12: 10.83682668 | BA12: 38.83374396 | BC12: =+VLOOKUP(BC$3,M_LICENCIAS,12,0) -> 182.4771802 | BD12: 36.42653475 | BE12: 7.563978282 | BF12: -12.03407526 | BG12: 58.91561613 | BH12: -25.06042067 | BI12: 2.270308144 | BJ12: 67.64041654 | BK12: -45.53300408 | BL12: 45.5483221 | BM12: -7.437184624 | BN12: -3.289566393
A13: LICENCIAS | B13: Área licenciada nueva para vivienda | AC13: =IF(FICHA!$E$22="Mensual",VLOOKUP(AC$3,M_LICENCIAS,23,0),"") ->  | AD13: =IF(FICHA!$E$22="Mensual",VLOOKUP(AD$3,M_LICENCIAS,23,0),"") ->  | AE13: =IF(FICHA!$E$22="Mensual",VLOOKUP(AE$3,M_LICENCIAS,23,0),"") ->  | AF13: =IF(FICHA!$E$22="Mensual",VLOOKUP(AF$3,M_LICENCIAS,23,0),"") ->  | AG13: =IF(FICHA!$E$22="Mensual",VLOOKUP(AG$3,M_LICENCIAS,23,0),"") ->  | AH13: =IF(FICHA!$E$22="Mensual",VLOOKUP(AH$3,M_LICENCIAS,23,0),"") ->  | AI13: =IF(FICHA!$E$22="Mensual",VLOOKUP(AI$3,M_LICENCIAS,23,0),"") ->  | AJ13: =IF(FICHA!$E$22="Mensual",VLOOKUP(AJ$3,M_LICENCIAS,23,0),"") ->  | AK13: =IF(FICHA!$E$22="Mensual",VLOOKUP(AK$3,M_LICENCIAS,23,0),"") ->  | AL13: =IF(FICHA!$E$22="Mensual",VLOOKUP(AL$3,M_LICENCIAS,23,0),"") ->  | AM13: =IF(FICHA!$E$22="Mensual",VLOOKUP(AM$3,M_LICENCIAS,23,0),"") ->  | AN13: =IF(FICHA!$E$22="Mensual",VLOOKUP(AN$3,M_LICENCIAS,23,0),"") ->  | AP13: =+VLOOKUP(AP$3,M_LICENCIAS,43,0) -> -7.228654198 | AQ13: -8.24073352 | AR13: 3.568418919 | AS13: -4.059619794 | AT13: 22.44228227 | AU13: 15.17508026 | AV13: -6.626266528 | AW13: -24.92563014 | AX13: -20.39261367 | AY13: -2.329969159 | AZ13: 19.14663091 | BA13: 46.36908006 | BC13: =+VLOOKUP(BC$3,M_LICENCIAS,13,0) -> 166.2037785 | BD13: 30.8891032 | BE13: 9.855633417 | BF13: -9.101359053 | BG13: 50.52694803 | BH13: -16.62729093 | BI13: 4.503662632 | BJ13: 58.23285253 | BK13: -41.07778772 | BL13: 37.65438547 | BM13: -1.686227905 | BN13: -11.6081948
A14: LICENCIAS | B14: Unidades licenciadas nuevas para vivienda | AC14: =IF(FICHA!$E$22="Mensual",VLOOKUP(AC$3,M_LICENCIAS,24,0),"") ->  | AD14: =IF(FICHA!$E$22="Mensual",VLOOKUP(AD$3,M_LICENCIAS,24,0),"") ->  | AE14: =IF(FICHA!$E$22="Mensual",VLOOKUP(AE$3,M_LICENCIAS,24,0),"") ->  | AF14: =IF(FICHA!$E$22="Mensual",VLOOKUP(AF$3,M_LICENCIAS,24,0),"") ->  | AG14: =IF(FICHA!$E$22="Mensual",VLOOKUP(AG$3,M_LICENCIAS,24,0),"") ->  | AH14: =IF(FICHA!$E$22="Mensual",VLOOKUP(AH$3,M_LICENCIAS,24,0),"") ->  | AI14: =IF(FICHA!$E$22="Mensual",VLOOKUP(AI$3,M_LICENCIAS,24,0),"") ->  | AJ14: =IF(FICHA!$E$22="Mensual",VLOOKUP(AJ$3,M_LICENCIAS,24,0),"") ->  | AK14: =IF(FICHA!$E$22="Mensual",VLOOKUP(AK$3,M_LICENCIAS,24,0),"") ->  | AL14: =IF(FICHA!$E$22="Mensual",VLOOKUP(AL$3,M_LICENCIAS,24,0),"") ->  | AM14: =IF(FICHA!$E$22="Mensual",VLOOKUP(AM$3,M_LICENCIAS,24,0),"") ->  | AN14: =IF(FICHA!$E$22="Mensual",VLOOKUP(AN$3,M_LICENCIAS,24,0),"") ->  | AP14: =+VLOOKUP(AP$3,M_LICENCIAS,44,0) -> -5.32003325 | AQ14: -6.85733179 | AR14: 1.901473297 | AS14: -4.978949593 | AT14: 21.86859819 | AU14: 13.81207625 | AV14: -3.955631862 | AW14: -21.848912 | AX14: -24.76436333 | AY14: -7.887842306 | AZ14: 13.87039868 | BA14: 38.49706681 | BC14: =+VLOOKUP(BC$3,M_LICENCIAS,14,0) -> 164.4682865 | BD14: 30.34244124 | BE14: 10.78359575 | BF14: -2.503718394 | BG14: 36.09627935 | BH14: -8.649894134 | BI14: -2.297361783 | BJ14: 56.76109406 | BK14: -44.22041216 | BL14: 35.66070859 | BM14: 11.04640903 | BN14: -21.29350072
A15: LICENCIAS | B15: Área licenciada nueva para vivienda VIS | AC15: =IF(FICHA!$E$22="Mensual",VLOOKUP(AC$3,M_LICENCIAS,25,0),"") ->  | AD15: =IF(FICHA!$E$22="Mensual",VLOOKUP(AD$3,M_LICENCIAS,25,0),"") ->  | AE15: =IF(FICHA!$E$22="Mensual",VLOOKUP(AE$3,M_LICENCIAS,25,0),"") ->  | AF15: =IF(FICHA!$E$22="Mensual",VLOOKUP(AF$3,M_LICENCIAS,25,0),"") ->  | AG15: =IF(FICHA!$E$22="Mensual",VLOOKUP(AG$3,M_LICENCIAS,25,0),"") ->  | AH15: =IF(FICHA!$E$22="Mensual",VLOOKUP(AH$3,M_LICENCIAS,25,0),"") ->  | AI15: =IF(FICHA!$E$22="Mensual",VLOOKUP(AI$3,M_LICENCIAS,25,0),"") ->  | AJ15: =IF(FICHA!$E$22="Mensual",VLOOKUP(AJ$3,M_LICENCIAS,25,0),"") ->  | AK15: =IF(FICHA!$E$22="Mensual",VLOOKUP(AK$3,M_LICENCIAS,25,0),"") ->  | AL15: =IF(FICHA!$E$22="Mensual",VLOOKUP(AL$3,M_LICENCIAS,25,0),"") ->  | AM15: =IF(FICHA!$E$22="Mensual",VLOOKUP(AM$3,M_LICENCIAS,25,0),"") ->  | AN15: =IF(FICHA!$E$22="Mensual",VLOOKUP(AN$3,M_LICENCIAS,25,0),"") ->  | AP15: =+VLOOKUP(AP$3,M_LICENCIAS,45,0) -> 1.97303214 | AQ15: -13.66115908 | AR15: -4.057261755 | AS15: -4.763257939 | AT15: 36.71564872 | AU15: 75.2964038 | AV15: 29.61772819 | AW15: -1.11306436 | AX15: -30.38140652 | AY15: -23.91616802 | AZ15: 12.47468755 | BA15: 30.59691834 | BC15: =+VLOOKUP(BC$3,M_LICENCIAS,15,0) -> 252.5079126 | BD15: 25.62383178 | BE15: -29.69266863 | BF15: 36.26325038 | BG15: 40.50192333 | BH15: -15.46133925 | BI15: 10.41811139 | BJ15: 29.73322168 | BK15: -48.76424384 | BL15: 41.49113849 | BM15: 55.64541696 | BN15: -50.1854107
A16: LICENCIAS | B16: Unidades licenciadas nuevas para vivienda VIS | AC16: =IF(FICHA!$E$22="Mensual",VLOOKUP(AC$3,M_LICENCIAS,26,0),"") ->  | AD16: =IF(FICHA!$E$22="Mensual",VLOOKUP(AD$3,M_LICENCIAS,26,0),"") ->  | AE16: =IF(FICHA!$E$22="Mensual",VLOOKUP(AE$3,M_LICENCIAS,26,0),"") ->  | AF16: =IF(FICHA!$E$22="Mensual",VLOOKUP(AF$3,M_LICENCIAS,26,0),"") ->  | AG16: =IF(FICHA!$E$22="Mensual",VLOOKUP(AG$3,M_LICENCIAS,26,0),"") ->  | AH16: =IF(FICHA!$E$22="Mensual",VLOOKUP(AH$3,M_LICENCIAS,26,0),"") ->  | AI16: =IF(FICHA!$E$22="Mensual",VLOOKUP(AI$3,M_LICENCIAS,26,0),"") ->  | AJ16: =IF(FICHA!$E$22="Mensual",VLOOKUP(AJ$3,M_LICENCIAS,26,0),"") ->  | AK16: =IF(FICHA!$E$22="Mensual",VLOOKUP(AK$3,M_LICENCIAS,26,0),"") ->  | AL16: =IF(FICHA!$E$22="Mensual",VLOOKUP(AL$3,M_LICENCIAS,26,0),"") ->  | AM16: =IF(FICHA!$E$22="Mensual",VLOOKUP(AM$3,M_LICENCIAS,26,0),"") ->  | AN16: =IF(FICHA!$E$22="Mensual",VLOOKUP(AN$3,M_LICENCIAS,26,0),"") ->  | AP16: =+VLOOKUP(AP$3,M_LICENCIAS,46,0) -> 6.084115966 | AQ16: -8.685033216 | AR16: -3.336355394 | AS16: -6.867628901 | AT16: 35.18090839 | AU16: 58.88520381 | AV16: 21.1467517 | AW16: -5.371674134 | AX16: -31.50626424 | AY16: -24.39566359 | AZ16: 12.16 | BA16: 30.19952655 | BC16: =+VLOOKUP(BC$3,M_LICENCIAS,16,0) -> 255.060423 | BD16: 22.01659221 | BE16: -24.93026499 | BF16: 39.99071064 | BG16: 11.89449237 | BH16: 5.544848036 | BI16: -0.1123753336 | BJ16: 37.25214456 | BK16: -50.70696721 | BL16: 33.3818333 | BM16: 63.67461431 | BN16: -50.3094354
A17: LICENCIAS | B17: Área total nueva licenciada Bogotá | AC17: =IF(FICHA!$E$22="Mensual",VLOOKUP(AC$3,M_LICENCIAS,27,0),"") ->  | AD17: =IF(FICHA!$E$22="Mensual",VLOOKUP(AD$3,M_LICENCIAS,27,0),"") ->  | AE17: =IF(FICHA!$E$22="Mensual",VLOOKUP(AE$3,M_LICENCIAS,27,0),"") ->  | AF17: =IF(FICHA!$E$22="Mensual",VLOOKUP(AF$3,M_LICENCIAS,27,0),"") ->  | AG17: =IF(FICHA!$E$22="Mensual",VLOOKUP(AG$3,M_LICENCIAS,27,0),"") ->  | AH17: =IF(FICHA!$E$22="Mensual",VLOOKUP(AH$3,M_LICENCIAS,27,0),"") ->  | AI17: =IF(FICHA!$E$22="Mensual",VLOOKUP(AI$3,M_LICENCIAS,27,0),"") ->  | AJ17: =IF(FICHA!$E$22="Mensual",VLOOKUP(AJ$3,M_LICENCIAS,27,0),"") ->  | AK17: =IF(FICHA!$E$22="Mensual",VLOOKUP(AK$3,M_LICENCIAS,27,0),"") ->  | AL17: =IF(FICHA!$E$22="Mensual",VLOOKUP(AL$3,M_LICENCIAS,27,0),"") ->  | AM17: =IF(FICHA!$E$22="Mensual",VLOOKUP(AM$3,M_LICENCIAS,27,0),"") ->  | AN17: =IF(FICHA!$E$22="Mensual",VLOOKUP(AN$3,M_LICENCIAS,27,0),"") ->  | AP17: =+VLOOKUP(AP$3,M_LICENCIAS,47,0) -> -36.08078201 | AQ17: -15.96145698 | AR17: 19.13905815 | AS17: 11.03823496 | AT17: 58.14899759 | AU17: 46.83956301 | AV17: 5.10464865 | AW17: -10.86927123 | AX17: -52.81013693 | AY17: -20.5074348 | AZ17: -12.73877545 | BA17: 1.744820169 | BC17: =+VLOOKUP(BC$3,M_LICENCIAS,17,0) -> 206.1561338 | BD17: 23.11374466 | BE17: 37.34257948 | BF17: -23.63422816 | BG17: 73.04049818 | BH17: -28.69377877 | BI17: -20.80871992 | BJ17: 60.63439379 | BK17: -55.11848972 | BL17: 173.6160468 | BM17: -49.71996904 | BN17: -11.77018513
A18: LICENCIAS | B18: Área licenciada nueva para vivienda Bogotá | AC18: =IF(FICHA!$E$22="Mensual",VLOOKUP(AC$3,M_LICENCIAS,28,0),"") ->  | AD18: =IF(FICHA!$E$22="Mensual",VLOOKUP(AD$3,M_LICENCIAS,28,0),"") ->  | AE18: =IF(FICHA!$E$22="Mensual",VLOOKUP(AE$3,M_LICENCIAS,28,0),"") ->  | AF18: =IF(FICHA!$E$22="Mensual",VLOOKUP(AF$3,M_LICENCIAS,28,0),"") ->  | AG18: =IF(FICHA!$E$22="Mensual",VLOOKUP(AG$3,M_LICENCIAS,28,0),"") ->  | AH18: =IF(FICHA!$E$22="Mensual",VLOOKUP(AH$3,M_LICENCIAS,28,0),"") ->  | AI18: =IF(FICHA!$E$22="Mensual",VLOOKUP(AI$3,M_LICENCIAS,28,0),"") ->  | AJ18: =IF(FICHA!$E$22="Mensual",VLOOKUP(AJ$3,M_LICENCIAS,28,0),"") ->  | AK18: =IF(FICHA!$E$22="Mensual",VLOOKUP(AK$3,M_LICENCIAS,28,0),"") ->  | AL18: =IF(FICHA!$E$22="Mensual",VLOOKUP(AL$3,M_LICENCIAS,28,0),"") ->  | AM18: =IF(FICHA!$E$22="Mensual",VLOOKUP(AM$3,M_LICENCIAS,28,0),"") ->  | AN18: =IF(FICHA!$E$22="Mensual",VLOOKUP(AN$3,M_LICENCIAS,28,0),"") ->  | AP18: =+VLOOKUP(AP$3,M_LICENCIAS,48,0) -> -41.05939546 | AQ18: -19.49719025 | AR18: 19.94612053 | AS18: 10.03540377 | AT18: 86.85202414 | AU18: 32.5934469 | AV18: -4.423333888 | AW18: -18.45678681 | AX18: -57.93281967 | AY18: -20.04656084 | AZ18: -9.014161914 | BA18: 2.368502526 | BC18: =+VLOOKUP(BC$3,M_LICENCIAS,18,0) -> 128.8390148 | BD18: 61.95671865 | BE18: 26.76520386 | BF18: -24.57143086 | BG18: 30.48969196 | BH18: -0.7930071925 | BI18: -19.0265723 | BJ18: 10.4073982 | BK18: -39.44312987 | BL18: 131.9736872 | BM18: -33.0141068 | BN18: -34.23745862
A19: LICENCIAS | B19: Unidades licenciadas nuevas para vivienda Bogotá | AC19: =IF(FICHA!$E$22="Mensual",VLOOKUP(AC$3,M_LICENCIAS,29,0),"") ->  | AD19: =IF(FICHA!$E$22="Mensual",VLOOKUP(AD$3,M_LICENCIAS,29,0),"") ->  | AE19: =IF(FICHA!$E$22="Mensual",VLOOKUP(AE$3,M_LICENCIAS,29,0),"") ->  | AF19: =IF(FICHA!$E$22="Mensual",VLOOKUP(AF$3,M_LICENCIAS,29,0),"") ->  | AG19: =IF(FICHA!$E$22="Mensual",VLOOKUP(AG$3,M_LICENCIAS,29,0),"") ->  | AH19: =IF(FICHA!$E$22="Mensual",VLOOKUP(AH$3,M_LICENCIAS,29,0),"") ->  | AI19: =IF(FICHA!$E$22="Mensual",VLOOKUP(AI$3,M_LICENCIAS,29,0),"") ->  | AJ19: =IF(FICHA!$E$22="Mensual",VLOOKUP(AJ$3,M_LICENCIAS,29,0),"") ->  | AK19: =IF(FICHA!$E$22="Mensual",VLOOKUP(AK$3,M_LICENCIAS,29,0),"") ->  | AL19: =IF(FICHA!$E$22="Mensual",VLOOKUP(AL$3,M_LICENCIAS,29,0),"") ->  | AM19: =IF(FICHA!$E$22="Mensual",VLOOKUP(AM$3,M_LICENCIAS,29,0),"") ->  | AN19: =IF(FICHA!$E$22="Mensual",VLOOKUP(AN$3,M_LICENCIAS,29,0),"") ->  | AP19: =+VLOOKUP(AP$3,M_LICENCIAS,49,0) -> -39.2971246 | AQ19: -19.2485273 | AR19: 24.35016835 | AS19: 16.57286432 | AT19: 128.5789474 | AU19: 41.91640379 | AV19: 4.559731398 | AW19: -10.23364083 | AX19: -64.1031545 | AY19: -32.49513754 | AZ19: -17.36067951 | BA19: -6.031502113 | BC19: =+VLOOKUP(BC$3,M_LICENCIAS,19,0) -> 128.8918206 | BD19: 67.26224784 | BE19: 27.32598208 | BF19: -15.91339648 | BG19: 4.023173479 | BH19: 19.12128713 | BI19: -46.25974026 | BJ19: 50.07249879 | BK19: -49.79066023 | BL19: 111.6741501 | BM19: -5.484848485 | BN19: -42.09682591
A20: LICENCIAS | B20: Área licenciada nueva para vivienda VIS Bogotá | AC20: =IF(FICHA!$E$22="Mensual",VLOOKUP(AC$3,M_LICENCIAS,30,0),"") ->  | AD20: =IF(FICHA!$E$22="Mensual",VLOOKUP(AD$3,M_LICENCIAS,30,0),"") ->  | AE20: =IF(FICHA!$E$22="Mensual",VLOOKUP(AE$3,M_LICENCIAS,30,0),"") ->  | AF20: =IF(FICHA!$E$22="Mensual",VLOOKUP(AF$3,M_LICENCIAS,30,0),"") ->  | AG20: =IF(FICHA!$E$22="Mensual",VLOOKUP(AG$3,M_LICENCIAS,30,0),"") ->  | AH20: =IF(FICHA!$E$22="Mensual",VLOOKUP(AH$3,M_LICENCIAS,30,0),"") ->  | AI20: =IF(FICHA!$E$22="Mensual",VLOOKUP(AI$3,M_LICENCIAS,30,0),"") ->  | AJ20: =IF(FICHA!$E$22="Mensual",VLOOKUP(AJ$3,M_LICENCIAS,30,0),"") ->  | AK20: =IF(FICHA!$E$22="Mensual",VLOOKUP(AK$3,M_LICENCIAS,30,0),"") ->  | AL20: =IF(FICHA!$E$22="Mensual",VLOOKUP(AL$3,M_LICENCIAS,30,0),"") ->  | AM20: =IF(FICHA!$E$22="Mensual",VLOOKUP(AM$3,M_LICENCIAS,30,0),"") ->  | AN20: =IF(FICHA!$E$22="Mensual",VLOOKUP(AN$3,M_LICENCIAS,30,0),"") ->  | AP20: =+VLOOKUP(AP$3,M_LICENCIAS,50,0) -> -56.30161357 | AQ20: -28.02757268 | AR20: 18.36076944 | AS20: 14.47905844 | AT20: 187.7780028 | AU20: 25.29664037 | AV20: -9.043571313 | AW20: -17.85111638 | AX20: -65.25591937 | AY20: -38.06967299 | AZ20: -15.31679476 | BA20: -5.479695601 | BC20: =+VLOOKUP(BC$3,M_LICENCIAS,20,0) -> 55.44136664 | BD20: 132.9764876 | BE20: -3.744632068 | BF20: 23.03434407 | BG20: -33.90886225 | BH20: 80.59764209 | BI20: -60.16805494 | BJ20: 99.68289996 | BK20: -58.74245691 | BL20: 51.44744039 | BM20: 57.4780294 | BN20: -52.54355342
A21: LICENCIAS | B21: Unidades licenciadas nuevas para vivienda VIS Bogotá | AC21: =IF(FICHA!$E$22="Mensual",VLOOKUP(AC$3,M_LICENCIAS,31,0),"") ->  | AD21: =IF(FICHA!$E$22="Mensual",VLOOKUP(AD$3,M_LICENCIAS,31,0),"") ->  | AE21: =IF(FICHA!$E$22="Mensual",VLOOKUP(AE$3,M_LICENCIAS,31,0),"") ->  | AF21: =IF(FICHA!$E$22="Mensual",VLOOKUP(AF$3,M_LICENCIAS,31,0),"") ->  | AG21: =IF(FICHA!$E$22="Mensual",VLOOKUP(AG$3,M_LICENCIAS,31,0),"") ->  | AH21: =IF(FICHA!$E$22="Mensual",VLOOKUP(AH$3,M_LICENCIAS,31,0),"") ->  | AI21: =IF(FICHA!$E$22="Mensual",VLOOKUP(AI$3,M_LICENCIAS,31,0),"") ->  | AJ21: =IF(FICHA!$E$22="Mensual",VLOOKUP(AJ$3,M_LICENCIAS,31,0),"") ->  | AK21: =IF(FICHA!$E$22="Mensual",VLOOKUP(AK$3,M_LICENCIAS,31,0),"") ->  | AL21: =IF(FICHA!$E$22="Mensual",VLOOKUP(AL$3,M_LICENCIAS,31,0),"") ->  | AM21: =IF(FICHA!$E$22="Mensual",VLOOKUP(AM$3,M_LICENCIAS,31,0),"") ->  | AN21: =IF(FICHA!$E$22="Mensual",VLOOKUP(AN$3,M_LICENCIAS,31,0),"") ->  | AP21: =+VLOOKUP(AP$3,M_LICENCIAS,51,0) -> -55.88235294 | AQ21: -24.95736214 | AR21: 28.20823245 | AS21: 20.43661713 | AT21: 246.3945578 | AU21: 37.57575758 | AV21: -3.305004721 | AW21: -13.40441736 | AX21: -66.53574234 | AY21: -42.51101322 | AZ21: -12.1484375 | BA21: -2.462620932 | BC21: =+VLOOKUP(BC$3,M_LICENCIAS,21,0) -> 58.40707965 | BD21: 114.6368715 | BE21: -0.2082248829 | BF21: 25.14345331 | BG21: -39.72488537 | BH21: 97.30290456 | BI21: -66.49141255 | BJ21: 118.5146444 | BK21: -59.21493538 | BL21: 45.07042254 | BM21: 94.98381877 | BN21: -56.5560166
A22: CENSO_EDIFICACIONES | B22: Área Nueva Colombia | C22: =+VLOOKUP(C$3,M_CENSO_EDIFICACIONES,18,0) -> 13.6105177 | D22: -15.81263092 | E22: 2.408884287 | F22: -11.09551906 | G22: -22.63992997 | H22: -33.03073796 | I22: 68.50344693 | J22: 6.914113696 | K22: 12.68843642 | L22: 4.422102361 | M22: 6.080410764 | N22: 8.547507768 | AC22: =IF(FICHA!$E$22="Trimestral",VLOOKUP(AC$3,M_CENSO_EDIFICACIONES,34,0),"") -> 5.936555789 | AD22: =IF(FICHA!$E$22="Trimestral",VLOOKUP(AD$3,M_CENSO_EDIFICACIONES,34,0),"") -> -2.736395646 | AE22: =IF(FICHA!$E$22="Trimestral",VLOOKUP(AE$3,M_CENSO_EDIFICACIONES,34,0),"") -> 5.527400585 | AF22: =IF(FICHA!$E$22="Trimestral",VLOOKUP(AF$3,M_CENSO_EDIFICACIONES,34,0),"") -> -12.91832744 | AG22: =IF(FICHA!$E$22="Trimestral",VLOOKUP(AG$3,M_CENSO_EDIFICACIONES,34,0),"") -> -40.70404374 | AH22: =IF(FICHA!$E$22="Trimestral",VLOOKUP(AH$3,M_CENSO_EDIFICACIONES,34,0),"") -> -52.8313276 | AI22: =IF(FICHA!$E$22="Trimestral",VLOOKUP(AI$3,M_CENSO_EDIFICACIONES,34,0),"") -> -22.38872689 | AJ22: =IF(FICHA!$E$22="Trimestral",VLOOKUP(AJ$3,M_CENSO_EDIFICACIONES,34,0),"") -> -6.666791255 | AK22: =IF(FICHA!$E$22="Trimestral",VLOOKUP(AK$3,M_CENSO_EDIFICACIONES,34,0),"") -> 35.95609926 | AL22: =IF(FICHA!$E$22="Trimestral",VLOOKUP(AL$3,M_CENSO_EDIFICACIONES,34,0),"") -> 111.9901173 | AM22: =IF(FICHA!$E$22="Trimestral",VLOOKUP(AM$3,M_CENSO_EDIFICACIONES,34,0),"") -> 33.45720296 | AN22: =IF(FICHA!$E$22="Trimestral",VLOOKUP(AN$3,M_CENSO_EDIFICACIONES,34,0),"") -> 35.49611248 | AP22: =+VLOOKUP(AP$3,M_CENSO_EDIFICACIONES,50,0) -> 5.936555789 | AQ22: 1.787969761 | AR22: 2.951144515 | AS22: -1.032159509 | AT22: -40.70404374 | AU22: -46.24711723 | AV22: -38.64009535 | AW22: -31.57852704 | AX22: 35.95609926 | AY22: 66.45238351 | AZ22: =+VLOOKUP(AZ$3,M_CENSO_EDIFICACIONES,50,0) -> 53.14587347 | BA22: 47.82851116
A23: CENSO_EDIFICACIONES | B23: Área en Proceso Colombia | C23: =+VLOOKUP(C$3,M_CENSO_EDIFICACIONES,19,0) -> 2.932004926 | D23: -2.156440646 | E23: 1.234080899 | F23: -2.663874903 | G23: -9.880733652 | H23: -29.74971505 | I23: 45.06950025 | J23: -1.322464374 | K23: 1.103563946 | L23: 0.3580290258 | M23: 2.819866605 | N23: 1.501058039 | AC23: =IF(FICHA!$E$22="Trimestral",VLOOKUP(AC$3,M_CENSO_EDIFICACIONES,35,0),"") -> -12.03296757 | AD23: =IF(FICHA!$E$22="Trimestral",VLOOKUP(AD$3,M_CENSO_EDIFICACIONES,35,0),"") -> -10.10084285 | AE23: =IF(FICHA!$E$22="Trimestral",VLOOKUP(AE$3,M_CENSO_EDIFICACIONES,35,0),"") -> -2.025461193 | AF23: =IF(FICHA!$E$22="Trimestral",VLOOKUP(AF$3,M_CENSO_EDIFICACIONES,35,0),"") -> -0.7607501751 | AG23: =IF(FICHA!$E$22="Trimestral",VLOOKUP(AG$3,M_CENSO_EDIFICACIONES,35,0),"") -> -13.11382311 | AH23: =IF(FICHA!$E$22="Trimestral",VLOOKUP(AH$3,M_CENSO_EDIFICACIONES,35,0),"") -> -37.61695992 | AI23: =IF(FICHA!$E$22="Trimestral",VLOOKUP(AI$3,M_CENSO_EDIFICACIONES,35,0),"") -> -10.60444894 | AJ23: =IF(FICHA!$E$22="Trimestral",VLOOKUP(AJ$3,M_CENSO_EDIFICACIONES,35,0),"") -> -9.372469205 | AK23: =IF(FICHA!$E$22="Trimestral",VLOOKUP(AK$3,M_CENSO_EDIFICACIONES,35,0),"") -> 1.67377883 | AL23: =IF(FICHA!$E$22="Trimestral",VLOOKUP(AL$3,M_CENSO_EDIFICACIONES,35,0),"") -> 45.24894887 | AM23: =IF(FICHA!$E$22="Trimestral",VLOOKUP(AM$3,M_CENSO_EDIFICACIONES,35,0),"") -> 2.947053113 | AN23: =IF(FICHA!$E$22="Trimestral",VLOOKUP(AN$3,M_CENSO_EDIFICACIONES,35,0),"") -> 5.892741917 | AP23: =+VLOOKUP(AP$3,M_CENSO_EDIFICACIONES,51,0) -> -12.03296757 | AQ23: -11.08792668 | AR23: -8.25677022 | AS23: -6.525999908 | AT23: -13.11382311 | AU23: -25.23185278 | AV23: -20.35180629 | AW23: -17.66041117 | AX23: 1.67377883 | AY23: 19.65417818 | AZ23: 13.39815419 | BA23: 11.37314336
A24: CENSO_EDIFICACIONES | B24: Área Culminada Colombia | C24: =+VLOOKUP(C$3,M_CENSO_EDIFICACIONES,20,0) -> -26.54364669 | D24: 7.773325731 | E24: -14.08807294 | F24: 5.59784778 | G24: -13.37501766 | H24: -27.73548606 | I24: 3.767033377 | J24: 52.29655172 | K24: -9.682780966 | L24: 0.9842277321 | M24: -3.803324365 | N24: 21.52924264 | AC24: =IF(FICHA!$E$22="Trimestral",VLOOKUP(AC$3,M_CENSO_EDIFICACIONES,36,0),"") -> -16.09125837 | AD24: =IF(FICHA!$E$22="Trimestral",VLOOKUP(AD$3,M_CENSO_EDIFICACIONES,36,0),"") -> -13.93870507 | AE24: =IF(FICHA!$E$22="Trimestral",VLOOKUP(AE$3,M_CENSO_EDIFICACIONES,36,0),"") -> -34.92092957 | AF24: =IF(FICHA!$E$22="Trimestral",VLOOKUP(AF$3,M_CENSO_EDIFICACIONES,36,0),"") -> -28.1793756 | AG24: =IF(FICHA!$E$22="Trimestral",VLOOKUP(AG$3,M_CENSO_EDIFICACIONES,36,0),"") -> -15.30398611 | AH24: =IF(FICHA!$E$22="Trimestral",VLOOKUP(AH$3,M_CENSO_EDIFICACIONES,36,0),"") -> -43.20935877 | AI24: =IF(FICHA!$E$22="Trimestral",VLOOKUP(AI$3,M_CENSO_EDIFICACIONES,36,0),"") -> -31.40653963 | AJ24: =IF(FICHA!$E$22="Trimestral",VLOOKUP(AJ$3,M_CENSO_EDIFICACIONES,36,0),"") -> -1.072344698 | AK24: =IF(FICHA!$E$22="Trimestral",VLOOKUP(AK$3,M_CENSO_EDIFICACIONES,36,0),"") -> 3.144271677 | AL24: =IF(FICHA!$E$22="Trimestral",VLOOKUP(AL$3,M_CENSO_EDIFICACIONES,36,0),"") -> 44.13636864 | AM24: =IF(FICHA!$E$22="Trimestral",VLOOKUP(AM$3,M_CENSO_EDIFICACIONES,36,0),"") -> 33.62085289 | AN24: =IF(FICHA!$E$22="Trimestral",VLOOKUP(AN$3,M_CENSO_EDIFICACIONES,36,0),"") -> 6.626452595 | AP24: =+VLOOKUP(AP$3,M_CENSO_EDIFICACIONES,52,0) -> -16.09125837 | AQ24: -14.98833316 | AR24: -22.32226274 | AS24: -23.84739264 | AT24: -15.30398611 | AU24: -29.77867773 | AV24: -30.28048297 | AW24: -23.10763682 | AX24: 3.144271677 | AY24: 20.34034935 | AZ24: 24.36808095 | BA24: 18.76256458
A25: CENSO_EDIFICACIONES | B25: Área Paralizada Colombia | C25: =+VLOOKUP(C$3,M_CENSO_EDIFICACIONES,21,0) -> -1.095194938 | D25: 1.204029936 | E25: -0.8283571534 | F25: 4.454831681 | G25: 23.22880605 | H25: 63.9591625 | I25: -40.67978467 | J25: -3.30345062 | K25: -0.04813513995 | L25: 2.089039985 | M25: 0.3962805426 | N25: -0.1003981138 | AC25: =IF(FICHA!$E$22="Trimestral",VLOOKUP(AC$3,M_CENSO_EDIFICACIONES,37,0),"") -> 5.357898804 | AD25: =IF(FICHA!$E$22="Trimestral",VLOOKUP(AD$3,M_CENSO_EDIFICACIONES,37,0),"") -> 1.823080551 | AE25: =IF(FICHA!$E$22="Trimestral",VLOOKUP(AE$3,M_CENSO_EDIFICACIONES,37,0),"") -> -2.42067398 | AF25: =IF(FICHA!$E$22="Trimestral",VLOOKUP(AF$3,M_CENSO_EDIFICACIONES,37,0),"") -> 3.688654507 | AG25: =IF(FICHA!$E$22="Trimestral",VLOOKUP(AG$3,M_CENSO_EDIFICACIONES,37,0),"") -> 29.18916415 | AH25: =IF(FICHA!$E$22="Trimestral",VLOOKUP(AH$3,M_CENSO_EDIFICACIONES,37,0),"") -> 109.2974674 | AI25: =IF(FICHA!$E$22="Trimestral",VLOOKUP(AI$3,M_CENSO_EDIFICACIONES,37,0),"") -> 25.19275146 | AJ25: =IF(FICHA!$E$22="Trimestral",VLOOKUP(AJ$3,M_CENSO_EDIFICACIONES,37,0),"") -> 15.89418008 | AK25: =IF(FICHA!$E$22="Trimestral",VLOOKUP(AK$3,M_CENSO_EDIFICACIONES,37,0),"") -> -5.997308612 | AL25: =IF(FICHA!$E$22="Trimestral",VLOOKUP(AL$3,M_CENSO_EDIFICACIONES,37,0),"") -> -41.4693002 | AM25: =IF(FICHA!$E$22="Trimestral",VLOOKUP(AM$3,M_CENSO_EDIFICACIONES,37,0),"") -> -0.9399321104 | AN25: =IF(FICHA!$E$22="Trimestral",VLOOKUP(AN$3,M_CENSO_EDIFICACIONES,37,0),"") -> 2.341411441 | AP25: =+VLOOKUP(AP$3,M_CENSO_EDIFICACIONES,53,0) -> 5.357898804 | AQ25: 3.549762789 | AR25: 1.48324008 | AS25: 2.043121241 | AT25: 29.18916415 | AU25: 69.48300481 | AV25: 54.74272482 | AW25: 44.72133623 | AX25: -5.997308612 | AY25: -28.03086099 | AZ25: -20.73644698 | BA25: -15.96908953
A26: CENSO_EDIFICACIONES | B26: Área Nueva Colombia Vivienda | C26: =+VLOOKUP(C$3,M_CENSO_EDIFICACIONES,22,0) -> 1.813211739 | D26: -10.55473795 | E26: 2.339138098 | F26: -17.90985122 | G26: -18.06172726 | H26: -28.29532735 | I26: 68.54700178 | J26: 11.82063043 | K26: 8.890096674 | L26: 5.056462352 | M26: 4.866406292 | N26: 6.639794927 | AC26: =IF(FICHA!$E$22="Trimestral",VLOOKUP(AC$3,M_CENSO_EDIFICACIONES,38,0),"") -> 1.487421748 | AD26: =IF(FICHA!$E$22="Trimestral",VLOOKUP(AD$3,M_CENSO_EDIFICACIONES,38,0),"") -> -1.39690133 | AE26: =IF(FICHA!$E$22="Trimestral",VLOOKUP(AE$3,M_CENSO_EDIFICACIONES,38,0),"") -> 4.843082864 | AF26: =IF(FICHA!$E$22="Trimestral",VLOOKUP(AF$3,M_CENSO_EDIFICACIONES,38,0),"") -> -23.4942149 | AG26: =IF(FICHA!$E$22="Trimestral",VLOOKUP(AG$3,M_CENSO_EDIFICACIONES,38,0),"") -> -38.42889564 | AH26: =IF(FICHA!$E$22="Trimestral",VLOOKUP(AH$3,M_CENSO_EDIFICACIONES,38,0),"") -> -50.64091958 | AI26: =IF(FICHA!$E$22="Trimestral",VLOOKUP(AI$3,M_CENSO_EDIFICACIONES,38,0),"") -> -18.70827554 | AJ26: =IF(FICHA!$E$22="Trimestral",VLOOKUP(AJ$3,M_CENSO_EDIFICACIONES,38,0),"") -> 10.73304183 | AK26: =IF(FICHA!$E$22="Trimestral",VLOOKUP(AK$3,M_CENSO_EDIFICACIONES,38,0),"") -> 47.15628272 | AL26: =IF(FICHA!$E$22="Trimestral",VLOOKUP(AL$3,M_CENSO_EDIFICACIONES,38,0),"") -> 115.6026644 | AM26: =IF(FICHA!$E$22="Trimestral",VLOOKUP(AM$3,M_CENSO_EDIFICACIONES,38,0),"") -> 34.14345178 | AN26: =IF(FICHA!$E$22="Trimestral",VLOOKUP(AN$3,M_CENSO_EDIFICACIONES,38,0),"") -> 27.9283629 | AP26: =+VLOOKUP(AP$3,M_CENSO_EDIFICACIONES,54,0) -> 1.487421748 | AQ26: 0.1048676618 | AR26: 1.600728609 | AS26: -4.976024478 | AT26: -38.42889564 | AU26: -44.19471775 | AV26: -35.89184051 | AW26: -26.05390109 | AX26: 47.15628272 | AY26: 75.73981117 | AZ26: 58.55646449 | BA26: 48.87884735
A27: CENSO_EDIFICACIONES | B27: Área Nueva Colombia Vivienda VIS | C27: =+VLOOKUP(C$3,M_CENSO_EDIFICACIONES,23,0) -> 46.01367352 | D27: -22.19289204 | E27: -0.2071343164 | F27: -27.33800375 | G27: -10.98042376 | H27: -9.288996559 | I27: 55.18095008 | J27: 32.40094717 | K27: -9.044591528 | L27: 8.662110807 | M27: -4.352147357 | N27: 29.78796665 | AC27: =IF(FICHA!$E$22="Trimestral",VLOOKUP(AC$3,M_CENSO_EDIFICACIONES,39,0),"") -> 56.75702413 | AD27: =IF(FICHA!$E$22="Trimestral",VLOOKUP(AD$3,M_CENSO_EDIFICACIONES,39,0),"") -> 20.26042814 | AE27: =IF(FICHA!$E$22="Trimestral",VLOOKUP(AE$3,M_CENSO_EDIFICACIONES,39,0),"") -> 21.04552706 | AF27: =IF(FICHA!$E$22="Trimestral",VLOOKUP(AF$3,M_CENSO_EDIFICACIONES,39,0),"") -> -17.6204112 | AG27: =IF(FICHA!$E$22="Trimestral",VLOOKUP(AG$3,M_CENSO_EDIFICACIONES,39,0),"") -> -49.77596338 | AH27: =IF(FICHA!$E$22="Trimestral",VLOOKUP(AH$3,M_CENSO_EDIFICACIONES,39,0),"") -> -41.44657374 | AI27: =IF(FICHA!$E$22="Trimestral",VLOOKUP(AI$3,M_CENSO_EDIFICACIONES,39,0),"") -> -8.947636127 | AJ27: =IF(FICHA!$E$22="Trimestral",VLOOKUP(AJ$3,M_CENSO_EDIFICACIONES,39,0),"") -> 65.91092786 | AK27: =IF(FICHA!$E$22="Trimestral",VLOOKUP(AK$3,M_CENSO_EDIFICACIONES,39,0),"") -> 69.51885025 | AL27: =IF(FICHA!$E$22="Trimestral",VLOOKUP(AL$3,M_CENSO_EDIFICACIONES,39,0),"") -> 103.065509 | AM27: =IF(FICHA!$E$22="Trimestral",VLOOKUP(AM$3,M_CENSO_EDIFICACIONES,39,0),"") -> 25.16214055 | AN27: =IF(FICHA!$E$22="Trimestral",VLOOKUP(AN$3,M_CENSO_EDIFICACIONES,39,0),"") -> 22.6920205 | AP27: =+VLOOKUP(AP$3,M_CENSO_EDIFICACIONES,55,0) -> 56.75702413 | AQ27: 38.38007807 | AR27: 32.60788468 | AS27: 19.4342062 | AT27: -49.77596338 | AU27: -46.13108255 | AV27: -34.8290302 | AW27: -16.60471265 | AX27: 69.51885025 | AY27: 85.47519795 | AZ27: 59.86245684 | BA27: 46.48478155
A28: CENSO_EDIFICACIONES | B28: Unidades Nuevas Colombia Vivienda | C28: =+VLOOKUP(C$3,M_CENSO_EDIFICACIONES,24,0) -> 5.643468432 | D28: -8.123805885 | E28: -2.065657406 | F28: -18.8782877 | G28: -14.65117091 | H28: -25.4181149 | I28: 75.82104282 | J28: 14.52538356 | K28: 3.782061755 | L28: 1.702741703 | M28: 3.366525642 | N28: 11.69981781 | AC28: =IF(FICHA!$E$22="Trimestral",VLOOKUP(AC$3,M_CENSO_EDIFICACIONES,40,0),"") -> 8.538170155 | AD28: =IF(FICHA!$E$22="Trimestral",VLOOKUP(AD$3,M_CENSO_EDIFICACIONES,40,0),"") -> 6.270257528 | AE28: =IF(FICHA!$E$22="Trimestral",VLOOKUP(AE$3,M_CENSO_EDIFICACIONES,40,0),"") -> 10.14063426 | AF28: =IF(FICHA!$E$22="Trimestral",VLOOKUP(AF$3,M_CENSO_EDIFICACIONES,40,0),"") -> -22.88874536 | AG28: =IF(FICHA!$E$22="Trimestral",VLOOKUP(AG$3,M_CENSO_EDIFICACIONES,40,0),"") -> -37.70220354 | AH28: =IF(FICHA!$E$22="Trimestral",VLOOKUP(AH$3,M_CENSO_EDIFICACIONES,40,0),"") -> -49.42882493 | AI28: =IF(FICHA!$E$22="Trimestral",VLOOKUP(AI$3,M_CENSO_EDIFICACIONES,40,0),"") -> -9.209818522 | AJ28: =IF(FICHA!$E$22="Trimestral",VLOOKUP(AJ$3,M_CENSO_EDIFICACIONES,40,0),"") -> 28.1750602 | AK28: =IF(FICHA!$E$22="Trimestral",VLOOKUP(AK$3,M_CENSO_EDIFICACIONES,40,0),"") -> 55.85769781 | AL28: =IF(FICHA!$E$22="Trimestral",VLOOKUP(AL$3,M_CENSO_EDIFICACIONES,40,0),"") -> 112.5335819 | AM28: =IF(FICHA!$E$22="Trimestral",VLOOKUP(AM$3,M_CENSO_EDIFICACIONES,40,0),"") -> 24.95010602 | AN28: =IF(FICHA!$E$22="Trimestral",VLOOKUP(AN$3,M_CENSO_EDIFICACIONES,40,0),"") -> 21.86734194 | AP28: =+VLOOKUP(AP$3,M_CENSO_EDIFICACIONES,56,0) -> 8.538170155 | AQ28: 7.440268169 | AR28: 8.287822734 | AS28: -0.02655527804 | AT28: -37.70220354 | AU28: -43.31726876 | AV28: -32.42891488 | AW28: -19.96266916 | AX28: 55.85769781 | AY28: 80.06979903 | AZ28: 56.42706188 | BA28: 45.04251579
A29: CENSO_EDIFICACIONES | B29: Unidades Nuevas Colombia Vivienda VIS | C29: =+VLOOKUP(C$3,M_CENSO_EDIFICACIONES,25,0) -> 41.04800937 | D29: -18.74143871 | E29: -4.668982427 | F29: -24.27392562 | G29: -14.0956694 | H29: -7.808896211 | I29: 54.99463903 | J29: 36.72681155 | K29: -11.3415971 | L29: 10.44797413 | M29: -6.54467169 | N29: 31.78991016 | AC29: =IF(FICHA!$E$22="Trimestral",VLOOKUP(AC$3,M_CENSO_EDIFICACIONES,41,0),"") -> 49.17951576 | AD29: =IF(FICHA!$E$22="Trimestral",VLOOKUP(AD$3,M_CENSO_EDIFICACIONES,41,0),"") -> 21.36391816 | AE29: =IF(FICHA!$E$22="Trimestral",VLOOKUP(AE$3,M_CENSO_EDIFICACIONES,41,0),"") -> 18.85867142 | AF29: =IF(FICHA!$E$22="Trimestral",VLOOKUP(AF$3,M_CENSO_EDIFICACIONES,41,0),"") -> -17.25995316 | AG29: =IF(FICHA!$E$22="Trimestral",VLOOKUP(AG$3,M_CENSO_EDIFICACIONES,41,0),"") -> -49.60773733 | AH29: =IF(FICHA!$E$22="Trimestral",VLOOKUP(AH$3,M_CENSO_EDIFICACIONES,41,0),"") -> -42.8279526 | AI29: =IF(FICHA!$E$22="Trimestral",VLOOKUP(AI$3,M_CENSO_EDIFICACIONES,41,0),"") -> -7.046404458 | AJ29: =IF(FICHA!$E$22="Trimestral",VLOOKUP(AJ$3,M_CENSO_EDIFICACIONES,41,0),"") -> 67.83187093 | AK29: =IF(FICHA!$E$22="Trimestral",VLOOKUP(AK$3,M_CENSO_EDIFICACIONES,41,0),"") -> 73.21252059 | AL29: =IF(FICHA!$E$22="Trimestral",VLOOKUP(AL$3,M_CENSO_EDIFICACIONES,41,0),"") -> 107.5142959 | AM29: =IF(FICHA!$E$22="Trimestral",VLOOKUP(AM$3,M_CENSO_EDIFICACIONES,41,0),"") -> 25.12249957 | AN29: =IF(FICHA!$E$22="Trimestral",VLOOKUP(AN$3,M_CENSO_EDIFICACIONES,41,0),"") -> 20.6046041 | AP29: =+VLOOKUP(AP$3,M_CENSO_EDIFICACIONES,57,0) -> 49.17951576 | AQ29: 35.27990334 | AR29: 29.90621092 | AS29: 17.52382416 | AT29: -49.60773733 | AU29: -46.56834681 | AV29: -34.73503506 | AW29: -15.77797832 | AX29: 73.21252059 | AY29: 89.66655237 | AZ29: 62.14262887 | BA29: 46.84379707
A30: CENSO_EDIFICACIONES | B30: Área Nueva Bogotá | C30: =+VLOOKUP(C$3,M_CENSO_EDIFICACIONES,26,0) -> 1.200396007 | D30: 0.516545624 | E30: 4.611036844 | F30: -3.084451823 | G30: -32.11596178 | H30: -59.15730189 | I30: 216.819222 | J30: -16.16625057 | K30: 31.38344896 | L30: -0.7799313444 | M30: 21.341636 | N30: 4.204660768 | AC30: =IF(FICHA!$E$22="Trimestral",VLOOKUP(AC$3,M_CENSO_EDIFICACIONES,42,0),"") -> -22.51392438 | AD30: =IF(FICHA!$E$22="Trimestral",VLOOKUP(AD$3,M_CENSO_EDIFICACIONES,42,0),"") -> -2.93516044 | AE30: =IF(FICHA!$E$22="Trimestral",VLOOKUP(AE$3,M_CENSO_EDIFICACIONES,42,0),"") -> -9.698971222 | AF30: =IF(FICHA!$E$22="Trimestral",VLOOKUP(AF$3,M_CENSO_EDIFICACIONES,42,0),"") -> 3.131356523 | AG30: =IF(FICHA!$E$22="Trimestral",VLOOKUP(AG$3,M_CENSO_EDIFICACIONES,42,0),"") -> -30.82069612 | AH30: =IF(FICHA!$E$22="Trimestral",VLOOKUP(AH$3,M_CENSO_EDIFICACIONES,42,0),"") -> -71.89050413 | AI30: =IF(FICHA!$E$22="Trimestral",VLOOKUP(AI$3,M_CENSO_EDIFICACIONES,42,0),"") -> -14.86912968 | AJ30: =IF(FICHA!$E$22="Trimestral",VLOOKUP(AJ$3,M_CENSO_EDIFICACIONES,42,0),"") -> -26.36021582 | AK30: =IF(FICHA!$E$22="Trimestral",VLOOKUP(AK$3,M_CENSO_EDIFICACIONES,42,0),"") -> 42.52317745 | AL30: =IF(FICHA!$E$22="Trimestral",VLOOKUP(AL$3,M_CENSO_EDIFICACIONES,42,0),"") -> 246.234703 | AM30: =IF(FICHA!$E$22="Trimestral",VLOOKUP(AM$3,M_CENSO_EDIFICACIONES,42,0),"") -> 32.60775354 | AN30: =IF(FICHA!$E$22="Trimestral",VLOOKUP(AN$3,M_CENSO_EDIFICACIONES,42,0),"") -> 64.83034657 | AP30: =+VLOOKUP(AP$3,M_CENSO_EDIFICACIONES,58,0) -> -22.51392438 | AQ30: -13.79767495 | AR30: -12.43034723 | AS30: -8.996964607 | AT30: -30.82069612 | AU30: -51.40849957 | AV30: -38.83876183 | AW30: -35.71869499 | AX30: 42.52317745 | AY30: 101.5970837 | AZ30: 68.56333233 | BA30: 67.49407049
A31: CENSO_EDIFICACIONES | B31: Área en Proceso Bogotá | C31: =+VLOOKUP(C$3,M_CENSO_EDIFICACIONES,27,0) -> -4.912941148 | D31: -1.889302461 | E31: -1.313469227 | F31: -0.1197111109 | G31: -13.6103025 | H31: -28.44912612 | I31: 37.76233171 | J31: -5.388725606 | K31: 2.979043005 | L31: -4.92585107 | M31: 4.852567619 | N31: 3.165639194 | AC31: =IF(FICHA!$E$22="Trimestral",VLOOKUP(AC$3,M_CENSO_EDIFICACIONES,43,0),"") -> -14.07017114 | AD31: =IF(FICHA!$E$22="Trimestral",VLOOKUP(AD$3,M_CENSO_EDIFICACIONES,43,0),"") -> -14.28832941 | AE31: =IF(FICHA!$E$22="Trimestral",VLOOKUP(AE$3,M_CENSO_EDIFICACIONES,43,0),"") -> -11.21572977 | AF31: =IF(FICHA!$E$22="Trimestral",VLOOKUP(AF$3,M_CENSO_EDIFICACIONES,43,0),"") -> -8.044978622 | AG31: =IF(FICHA!$E$22="Trimestral",VLOOKUP(AG$3,M_CENSO_EDIFICACIONES,43,0),"") -> -16.45586081 | AH31: =IF(FICHA!$E$22="Trimestral",VLOOKUP(AH$3,M_CENSO_EDIFICACIONES,43,0),"") -> -39.07233037 | AI31: =IF(FICHA!$E$22="Trimestral",VLOOKUP(AI$3,M_CENSO_EDIFICACIONES,43,0),"") -> -14.94748302 | AJ31: =IF(FICHA!$E$22="Trimestral",VLOOKUP(AJ$3,M_CENSO_EDIFICACIONES,43,0),"") -> -19.43428367 | AK31: =IF(FICHA!$E$22="Trimestral",VLOOKUP(AK$3,M_CENSO_EDIFICACIONES,43,0),"") -> -3.963312678 | AL31: =IF(FICHA!$E$22="Trimestral",VLOOKUP(AL$3,M_CENSO_EDIFICACIONES,43,0),"") -> 27.60999018 | AM31: =IF(FICHA!$E$22="Trimestral",VLOOKUP(AM$3,M_CENSO_EDIFICACIONES,43,0),"") -> -2.874501626 | AN31: =IF(FICHA!$E$22="Trimestral",VLOOKUP(AN$3,M_CENSO_EDIFICACIONES,43,0),"") -> 5.907189033 | AP31: =+VLOOKUP(AP$3,M_CENSO_EDIFICACIONES,59,0) -> -14.07017114 | AQ31: -14.17834866 | AR31: -13.22780604 | AS31: -12.00311416 | AT31: -16.45586081 | AU31: -27.65625348 | AV31: -23.48415267 | AW31: -22.48413146 | AX31: -3.963312678 | AY31: 9.205360614 | AZ31: 4.797285179 | BA31: 5.082133229
A32: CENSO_EDIFICACIONES | B32: Área Culminada Bogotá | C32: =+VLOOKUP(C$3,M_CENSO_EDIFICACIONES,28,0) -> -18.46748752 | D32: -6.397551826 | E32: 16.03054123 | F32: -26.80094952 | G32: -5.637749889 | H32: -39.94060291 | I32: -9.982674253 | J32: 133.8135578 | K32: -26.16107681 | L32: 42.43968212 | M32: -36.56146779 | N32: 21.71247653 | AC32: =IF(FICHA!$E$22="Trimestral",VLOOKUP(AC$3,M_CENSO_EDIFICACIONES,44,0),"") -> -4.33656762 | AD32: =IF(FICHA!$E$22="Trimestral",VLOOKUP(AD$3,M_CENSO_EDIFICACIONES,44,0),"") -> 0.7198776821 | AE32: =IF(FICHA!$E$22="Trimestral",VLOOKUP(AE$3,M_CENSO_EDIFICACIONES,44,0),"") -> -11.24031208 | AF32: =IF(FICHA!$E$22="Trimestral",VLOOKUP(AF$3,M_CENSO_EDIFICACIONES,44,0),"") -> -35.18197425 | AG32: =IF(FICHA!$E$22="Trimestral",VLOOKUP(AG$3,M_CENSO_EDIFICACIONES,44,0),"") -> -24.98238345 | AH32: =IF(FICHA!$E$22="Trimestral",VLOOKUP(AH$3,M_CENSO_EDIFICACIONES,44,0),"") -> -51.86543826 | AI32: =IF(FICHA!$E$22="Trimestral",VLOOKUP(AI$3,M_CENSO_EDIFICACIONES,44,0),"") -> -62.65686191 | AJ32: =IF(FICHA!$E$22="Trimestral",VLOOKUP(AJ$3,M_CENSO_EDIFICACIONES,44,0),"") -> 19.28203876 | AK32: =IF(FICHA!$E$22="Trimestral",VLOOKUP(AK$3,M_CENSO_EDIFICACIONES,44,0),"") -> -6.661220059 | AL32: =IF(FICHA!$E$22="Trimestral",VLOOKUP(AL$3,M_CENSO_EDIFICACIONES,44,0),"") -> 121.3666269 | AM32: =IF(FICHA!$E$22="Trimestral",VLOOKUP(AM$3,M_CENSO_EDIFICACIONES,44,0),"") -> 56.00523314 | AN32: =IF(FICHA!$E$22="Trimestral",VLOOKUP(AN$3,M_CENSO_EDIFICACIONES,44,0),"") -> -18.79092274 | AP32: =+VLOOKUP(AP$3,M_CENSO_EDIFICACIONES,60,0) -> -4.33656762 | AQ32: -1.956859452 | AR32: -5.508565978 | AS32: -13.73373194 | AT32: -24.98238345 | AU32: -37.97973843 | AV32: -46.84814119 | AW32: -33.07504023 | AX32: -6.661220059 | AY32: 41.37891652 | AZ32: 45.07190708 | BA32: 21.36542457
A33: CENSO_EDIFICACIONES | B33: Área Paralizada Bogotá | C33: =+VLOOKUP(C$3,M_CENSO_EDIFICACIONES,29,0) -> 13.76534887 | D33: -5.270102613 | E33: -14.89962676 | F33: 2.040027157 | G33: 68.05982372 | H33: 85.63030927 | I33: -40.22425191 | J33: -5.729989068 | K33: -0.4508963415 | L33: -0.6182714906 | M33: 1.692228223 | N33: 1.283408203 | AC33: =IF(FICHA!$E$22="Trimestral",VLOOKUP(AC$3,M_CENSO_EDIFICACIONES,45,0),"") -> 13.98407969 | AD33: =IF(FICHA!$E$22="Trimestral",VLOOKUP(AD$3,M_CENSO_EDIFICACIONES,45,0),"") -> 5.11498503 | AE33: =IF(FICHA!$E$22="Trimestral",VLOOKUP(AE$3,M_CENSO_EDIFICACIONES,45,0),"") -> -22.58009847 | AF33: =IF(FICHA!$E$22="Trimestral",VLOOKUP(AF$3,M_CENSO_EDIFICACIONES,45,0),"") -> -6.416539534 | AG33: =IF(FICHA!$E$22="Trimestral",VLOOKUP(AG$3,M_CENSO_EDIFICACIONES,45,0),"") -> 38.24613579 | AH33: =IF(FICHA!$E$22="Trimestral",VLOOKUP(AH$3,M_CENSO_EDIFICACIONES,45,0),"") -> 170.9036286 | AI33: =IF(FICHA!$E$22="Trimestral",VLOOKUP(AI$3,M_CENSO_EDIFICACIONES,45,0),"") -> 90.28667499 | AJ33: =IF(FICHA!$E$22="Trimestral",VLOOKUP(AJ$3,M_CENSO_EDIFICACIONES,45,0),"") -> 75.79696351 | AK33: =IF(FICHA!$E$22="Trimestral",VLOOKUP(AK$3,M_CENSO_EDIFICACIONES,45,0),"") -> 4.132146259 | AL33: =IF(FICHA!$E$22="Trimestral",VLOOKUP(AL$3,M_CENSO_EDIFICACIONES,45,0),"") -> -44.25030735 | AM33: =IF(FICHA!$E$22="Trimestral",VLOOKUP(AM$3,M_CENSO_EDIFICACIONES,45,0),"") -> -5.15701352 | AN33: =IF(FICHA!$E$22="Trimestral",VLOOKUP(AN$3,M_CENSO_EDIFICACIONES,45,0),"") -> 1.899011361 | AP33: =+VLOOKUP(AP$3,M_CENSO_EDIFICACIONES,61,0) -> 13.98407969 | AQ33: 9.489972409 | AR33: -2.352664609 | AS33: -3.318426116 | AT33: 38.24613579 | AU33: 102.779784 | AV33: 99.12205733 | AW33: 93.75658022 | AX33: 4.132146259 | AY33: -27.31146997 | AZ33: -21.11290978 | BA33: -16.31012935
A34: CENSO_EDIFICACIONES | B34: Área Nueva Bogotá Vivienda | C34: =+VLOOKUP(C$3,M_CENSO_EDIFICACIONES,30,0) -> -3.789011425 | D34: -14.90900598 | E34: 22.08229505 | F34: -10.4578704 | G34: -17.60016765 | H34: -67.80315754 | I34: 273.644832 | J34: -9.846148937 | K34: 18.7402937 | L34: 1.400313375 | M34: 18.80651094 | N34: 4.168677158 | AC34: =IF(FICHA!$E$22="Trimestral",VLOOKUP(AC$3,M_CENSO_EDIFICACIONES,46,0),"") -> -1.644349504 | AD34: =IF(FICHA!$E$22="Trimestral",VLOOKUP(AD$3,M_CENSO_EDIFICACIONES,46,0),"") -> -14.86156524 | AE34: =IF(FICHA!$E$22="Trimestral",VLOOKUP(AE$3,M_CENSO_EDIFICACIONES,46,0),"") -> 1.936312813 | AF34: =IF(FICHA!$E$22="Trimestral",VLOOKUP(AF$3,M_CENSO_EDIFICACIONES,46,0),"") -> -10.50714188 | AG34: =IF(FICHA!$E$22="Trimestral",VLOOKUP(AG$3,M_CENSO_EDIFICACIONES,46,0),"") -> -23.35390568 | AH34: =IF(FICHA!$E$22="Trimestral",VLOOKUP(AH$3,M_CENSO_EDIFICACIONES,46,0),"") -> -70.99854982 | AI34: =IF(FICHA!$E$22="Trimestral",VLOOKUP(AI$3,M_CENSO_EDIFICACIONES,46,0),"") -> -11.23821865 | AJ34: =IF(FICHA!$E$22="Trimestral",VLOOKUP(AJ$3,M_CENSO_EDIFICACIONES,46,0),"") -> -10.63182826 | AK34: =IF(FICHA!$E$22="Trimestral",VLOOKUP(AK$3,M_CENSO_EDIFICACIONES,46,0),"") -> 28.78185134 | AL34: =IF(FICHA!$E$22="Trimestral",VLOOKUP(AL$3,M_CENSO_EDIFICACIONES,46,0),"") -> 305.5838736 | AM34: =IF(FICHA!$E$22="Trimestral",VLOOKUP(AM$3,M_CENSO_EDIFICACIONES,46,0),"") -> 28.96205379 | AN34: =IF(FICHA!$E$22="Trimestral",VLOOKUP(AN$3,M_CENSO_EDIFICACIONES,46,0),"") -> 49.00979147 | AP34: =+VLOOKUP(AP$3,M_CENSO_EDIFICACIONES,62,0) -> -1.644349504 | AQ34: -8.196331038 | AR34: -4.794308073 | AS34: -6.25157684 | AT34: -23.35390568 | AU34: -45.25734918 | AV34: -33.0279906 | AW34: -27.57435545 | AX34: 28.78185134 | AY34: 96.19761512 | AZ34: 64.16354037 | BA34: 59.61027393
A35: CENSO_EDIFICACIONES | B35: Área Nueva Bogotá Vivienda VIS | C35: =+VLOOKUP(C$3,M_CENSO_EDIFICACIONES,31,0) -> 113.7699547 | D35: -57.47799999 | E35: 23.16399486 | F35: 9.985176684 | G35: -16.58869972 | H35: -67.20769744 | I35: 217.9355946 | J35: 128.6672733 | K35: -31.69827326 | L35: 14.79475558 | M35: 31.59987508 | N35: 48.55685088 | AC35: =IF(FICHA!$E$22="Trimestral",VLOOKUP(AC$3,M_CENSO_EDIFICACIONES,47,0),"") -> 92.94639492 | AD35: =IF(FICHA!$E$22="Trimestral",VLOOKUP(AD$3,M_CENSO_EDIFICACIONES,47,0),"") -> -20.11761385 | AE35: =IF(FICHA!$E$22="Trimestral",VLOOKUP(AE$3,M_CENSO_EDIFICACIONES,47,0),"") -> -5.385596786 | AF35: =IF(FICHA!$E$22="Trimestral",VLOOKUP(AF$3,M_CENSO_EDIFICACIONES,47,0),"") -> 23.13408066 | AG35: =IF(FICHA!$E$22="Trimestral",VLOOKUP(AG$3,M_CENSO_EDIFICACIONES,47,0),"") -> -51.95408171 | AH35: =IF(FICHA!$E$22="Trimestral",VLOOKUP(AH$3,M_CENSO_EDIFICACIONES,47,0),"") -> -62.9477379 | AI35: =IF(FICHA!$E$22="Trimestral",VLOOKUP(AI$3,M_CENSO_EDIFICACIONES,47,0),"") -> -4.353273084 | AJ35: =IF(FICHA!$E$22="Trimestral",VLOOKUP(AJ$3,M_CENSO_EDIFICACIONES,47,0),"") -> 98.8565814 | AK35: =IF(FICHA!$E$22="Trimestral",VLOOKUP(AK$3,M_CENSO_EDIFICACIONES,47,0),"") -> 62.83462597 | AL35: =IF(FICHA!$E$22="Trimestral",VLOOKUP(AL$3,M_CENSO_EDIFICACIONES,47,0),"") -> 470.0289284 | AM35: =IF(FICHA!$E$22="Trimestral",VLOOKUP(AM$3,M_CENSO_EDIFICACIONES,47,0),"") -> 135.946327 | AN35: =IF(FICHA!$E$22="Trimestral",VLOOKUP(AN$3,M_CENSO_EDIFICACIONES,47,0),"") -> 53.28578862 | AP35: =+VLOOKUP(AP$3,M_CENSO_EDIFICACIONES,63,0) -> 92.94639492 | AQ35: 35.65949494 | AR35: 21.49614707 | AS35: 21.86595758 | AT35: -51.95408171 | AU35: -55.23408233 | AV35: -41.5614086 | AW35: -9.528116811 | AX35: 62.83462597 | AY35: 163.388939 | AZ35: 151.3192728 | BA35: 102.1629266
A36: CENSO_EDIFICACIONES | B36: Unidades Nuevas Bogotá Vivienda | C36: =+VLOOKUP(C$3,M_CENSO_EDIFICACIONES,32,0) -> 20.35737077 | D36: -21.18239661 | E36: 24.20114363 | F36: -9.004739336 | G36: -8.258928571 | H36: -69.7485807 | I36: 288.5254692 | J36: 7.659398289 | K36: 14.36995257 | L36: -9.986550101 | M36: 31.31614992 | N36: 4.959226247 | AC36: =IF(FICHA!$E$22="Trimestral",VLOOKUP(AC$3,M_CENSO_EDIFICACIONES,48,0),"") -> 18.41155235 | AD36: =IF(FICHA!$E$22="Trimestral",VLOOKUP(AD$3,M_CENSO_EDIFICACIONES,48,0),"") -> -14.78933792 | AE36: =IF(FICHA!$E$22="Trimestral",VLOOKUP(AE$3,M_CENSO_EDIFICACIONES,48,0),"") -> 4.175483143 | AF36: =IF(FICHA!$E$22="Trimestral",VLOOKUP(AF$3,M_CENSO_EDIFICACIONES,48,0),"") -> 7.211231653 | AG36: =IF(FICHA!$E$22="Trimestral",VLOOKUP(AG$3,M_CENSO_EDIFICACIONES,48,0),"") -> -18.27942736 | AH36: =IF(FICHA!$E$22="Trimestral",VLOOKUP(AH$3,M_CENSO_EDIFICACIONES,48,0),"") -> -68.63437605 | AI36: =IF(FICHA!$E$22="Trimestral",VLOOKUP(AI$3,M_CENSO_EDIFICACIONES,48,0),"") -> -1.882193636 | AJ36: =IF(FICHA!$E$22="Trimestral",VLOOKUP(AJ$3,M_CENSO_EDIFICACIONES,48,0),"") -> 16.08630952 | AK36: =IF(FICHA!$E$22="Trimestral",VLOOKUP(AK$3,M_CENSO_EDIFICACIONES,48,0),"") -> 44.72019465 | AL36: =IF(FICHA!$E$22="Trimestral",VLOOKUP(AL$3,M_CENSO_EDIFICACIONES,48,0),"") -> 330.616622 | AM36: =IF(FICHA!$E$22="Trimestral",VLOOKUP(AM$3,M_CENSO_EDIFICACIONES,48,0),"") -> 45.5423682 | AN36: =IF(FICHA!$E$22="Trimestral",VLOOKUP(AN$3,M_CENSO_EDIFICACIONES,48,0),"") -> 41.89206512 | AP36: =+VLOOKUP(AP$3,M_CENSO_EDIFICACIONES,64,0) -> 18.41155235 | AQ36: 1.056258896 | AR36: 2.13817399 | AS36: 3.328839961 | AT36: -18.27942736 | AU36: -40.4744255 | AV36: -26.82155689 | AW36: -16.37253126 | AX36: 44.72019465 | AY36: 111.120797 | AZ36: 80.01440168 | BA36: 67.12744291
A37: CENSO_EDIFICACIONES | B37: Unidades Nuevas Bogotá Vivienda VIS | C37: =+VLOOKUP(C$3,M_CENSO_EDIFICACIONES,33,0) -> 137.4233129 | D37: -55.99483204 | E37: 17.26365238 | F37: 6.860290436 | G37: -15.41705717 | H37: -64.59833795 | I37: 175.8998435 | J37: 163.6415201 | K37: -32.4010327 | L37: 28.73965627 | M37: 18.34363412 | N37: 49.80154585 | AC37: =IF(FICHA!$E$22="Trimestral",VLOOKUP(AC$3,M_CENSO_EDIFICACIONES,49,0),"") -> 80.8411215 | AD37: =IF(FICHA!$E$22="Trimestral",VLOOKUP(AD$3,M_CENSO_EDIFICACIONES,49,0),"") -> -13.5971588 | AE37: =IF(FICHA!$E$22="Trimestral",VLOOKUP(AE$3,M_CENSO_EDIFICACIONES,49,0),"") -> 4.939569101 | AF37: =IF(FICHA!$E$22="Trimestral",VLOOKUP(AF$3,M_CENSO_EDIFICACIONES,49,0),"") -> 30.9202454 | AG37: =IF(FICHA!$E$22="Trimestral",VLOOKUP(AG$3,M_CENSO_EDIFICACIONES,49,0),"") -> -53.35917313 | AH37: =IF(FICHA!$E$22="Trimestral",VLOOKUP(AH$3,M_CENSO_EDIFICACIONES,49,0),"") -> -62.47798004 | AI37: =IF(FICHA!$E$22="Trimestral",VLOOKUP(AI$3,M_CENSO_EDIFICACIONES,49,0),"") -> -11.71757636 | AJ37: =IF(FICHA!$E$22="Trimestral",VLOOKUP(AJ$3,M_CENSO_EDIFICACIONES,49,0),"") -> 117.8069353 | AK37: =IF(FICHA!$E$22="Trimestral",VLOOKUP(AK$3,M_CENSO_EDIFICACIONES,49,0),"") -> 74.07202216 | AL37: =IF(FICHA!$E$22="Trimestral",VLOOKUP(AL$3,M_CENSO_EDIFICACIONES,49,0),"") -> 533.0203443 | AM37: =IF(FICHA!$E$22="Trimestral",VLOOKUP(AM$3,M_CENSO_EDIFICACIONES,49,0),"") -> 171.5258083 | AN37: =IF(FICHA!$E$22="Trimestral",VLOOKUP(AN$3,M_CENSO_EDIFICACIONES,49,0),"") -> 54.28141136 | AP37: =+VLOOKUP(AP$3,M_CENSO_EDIFICACIONES,65,0) -> 80.8411215 | AQ37: 35.56312333 | AR37: 25.87296309 | AS37: 26.94924123 | AT37: -53.35917313 | AU37: -56.14570249 | AV37: -44.42536328 | AW37: -8.748969497 | AX37: 74.07202216 | AY37: 194.0671031 | AZ37: 184.62087 | BA37: 116.2055336
A38: STOCK_DE_VIVIENDA | B38: Área Culminada - Bogotá | AC38: =IF(FICHA!$E$22="Mensual",VLOOKUP(AC$3,M_STOCK_DE_VIVIENDA,22,0),"") ->  | AD38: =IF(FICHA!$E$22="Mensual",VLOOKUP(AD$3,M_STOCK_DE_VIVIENDA,22,0),"") ->  | AE38: =IF(FICHA!$E$22="Mensual",VLOOKUP(AE$3,M_STOCK_DE_VIVIENDA,22,0),"") ->  | AF38: =IF(FICHA!$E$22="Mensual",VLOOKUP(AF$3,M_STOCK_DE_VIVIENDA,22,0),"") ->  | AG38: =IF(FICHA!$E$22="Mensual",VLOOKUP(AG$3,M_STOCK_DE_VIVIENDA,22,0),"") ->  | AH38: =IF(FICHA!$E$22="Mensual",VLOOKUP(AH$3,M_STOCK_DE_VIVIENDA,22,0),"") ->  | AI38: =IF(FICHA!$E$22="Mensual",VLOOKUP(AI$3,M_STOCK_DE_VIVIENDA,22,0),"") ->  | AJ38: =IF(FICHA!$E$22="Mensual",VLOOKUP(AJ$3,M_STOCK_DE_VIVIENDA,22,0),"") ->  | AK38: =IF(FICHA!$E$22="Mensual",VLOOKUP(AK$3,M_STOCK_DE_VIVIENDA,22,0),"") ->  | AL38: =IF(FICHA!$E$22="Mensual",VLOOKUP(AL$3,M_STOCK_DE_VIVIENDA,22,0),"") ->  | AM38: =IF(FICHA!$E$22="Mensual",VLOOKUP(AM$3,M_STOCK_DE_VIVIENDA,22,0),"") ->  | AN38: =IF(FICHA!$E$22="Mensual",VLOOKUP(AN$3,M_STOCK_DE_VIVIENDA,22,0),"") ->  | AP38: =+VLOOKUP(AP$3,M_STOCK_DE_VIVIENDA,42,0) -> 49.93802082 | AQ38: 48.59500675 | AR38: 67.28443625 | AS38: 78.76634925 | AT38: -7.683057559 | AU38: 13.8724496 | AV38: 2.297148548 | AW38: -28.27521789 | AX38: 19.98971634 | AY38: -16.16957559 | AZ38: -14.33990193 | BA38: 12.34219321 | BC38: =+VLOOKUP(BC$3,M_STOCK_DE_VIVIENDA,12,0) -> 309.3130902 | BD38: 378.7488126 | BE38: -38.33725446 | BF38: 275.408354 | BG38: -31.23931118 | BH38: 5.297899242 | BI38: -6.717478071 | BJ38: 79.94222588 | BK38: -5.951893174 | BL38: -52.25438521 | BM38: 40.68495097 | BN38: 2.887825625
A39: STOCK_DE_VIVIENDA | B39: Área Nueva - Bogotá | AC39: =IF(FICHA!$E$22="Mensual",VLOOKUP(AC$3,M_STOCK_DE_VIVIENDA,23,0),"") ->  | AD39: =IF(FICHA!$E$22="Mensual",VLOOKUP(AD$3,M_STOCK_DE_VIVIENDA,23,0),"") ->  | AE39: =IF(FICHA!$E$22="Mensual",VLOOKUP(AE$3,M_STOCK_DE_VIVIENDA,23,0),"") ->  | AF39: =IF(FICHA!$E$22="Mensual",VLOOKUP(AF$3,M_STOCK_DE_VIVIENDA,23,0),"") ->  | AG39: =IF(FICHA!$E$22="Mensual",VLOOKUP(AG$3,M_STOCK_DE_VIVIENDA,23,0),"") ->  | AH39: =IF(FICHA!$E$22="Mensual",VLOOKUP(AH$3,M_STOCK_DE_VIVIENDA,23,0),"") ->  | AI39: =IF(FICHA!$E$22="Mensual",VLOOKUP(AI$3,M_STOCK_DE_VIVIENDA,23,0),"") ->  | AJ39: =IF(FICHA!$E$22="Mensual",VLOOKUP(AJ$3,M_STOCK_DE_VIVIENDA,23,0),"") ->  | AK39: =IF(FICHA!$E$22="Mensual",VLOOKUP(AK$3,M_STOCK_DE_VIVIENDA,23,0),"") ->  | AL39: =IF(FICHA!$E$22="Mensual",VLOOKUP(AL$3,M_STOCK_DE_VIVIENDA,23,0),"") ->  | AM39: =IF(FICHA!$E$22="Mensual",VLOOKUP(AM$3,M_STOCK_DE_VIVIENDA,23,0),"") ->  | AN39: =IF(FICHA!$E$22="Mensual",VLOOKUP(AN$3,M_STOCK_DE_VIVIENDA,23,0),"") ->  | AP39: =+VLOOKUP(AP$3,M_STOCK_DE_VIVIENDA,43,0) -> 109.5382412 | AQ39: 42.06666125 | AR39: 14.02873069 | AS39: 4.977065429 | AT39: -66.23675165 | AU39: -33.01142818 | AV39: -36.63064577 | AW39: -48.13856848 | AX39: 15.72026981 | AY39: -25.16217576 | AZ39: -2.740576066 | BA39: 29.32474431 | BC39: =+VLOOKUP(BC$3,M_STOCK_DE_VIVIENDA,13,0) -> 7886.037967 | BD39: -1.315829832 | BE39: -20.41710698 | BF39: 112.2134349 | BG39: -35.37582414 | BH39: 84.96226684 | BI39: -40.9487371 | BJ39: 34.42189109 | BK39: -11.31790013 | BL39: -17.81968701 | BM39: 38.10756323 | BN39: -13.09366659
A40: STOCK_DE_VIVIENDA | B40: Área Nueva - Bogotá vivienda | AC40: =IF(FICHA!$E$22="Mensual",VLOOKUP(AC$3,M_STOCK_DE_VIVIENDA,24,0),"") ->  | AD40: =IF(FICHA!$E$22="Mensual",VLOOKUP(AD$3,M_STOCK_DE_VIVIENDA,24,0),"") ->  | AE40: =IF(FICHA!$E$22="Mensual",VLOOKUP(AE$3,M_STOCK_DE_VIVIENDA,24,0),"") ->  | AF40: =IF(FICHA!$E$22="Mensual",VLOOKUP(AF$3,M_STOCK_DE_VIVIENDA,24,0),"") ->  | AG40: =IF(FICHA!$E$22="Mensual",VLOOKUP(AG$3,M_STOCK_DE_VIVIENDA,24,0),"") ->  | AH40: =IF(FICHA!$E$22="Mensual",VLOOKUP(AH$3,M_STOCK_DE_VIVIENDA,24,0),"") ->  | AI40: =IF(FICHA!$E$22="Mensual",VLOOKUP(AI$3,M_STOCK_DE_VIVIENDA,24,0),"") ->  | AJ40: =IF(FICHA!$E$22="Mensual",VLOOKUP(AJ$3,M_STOCK_DE_VIVIENDA,24,0),"") ->  | AK40: =IF(FICHA!$E$22="Mensual",VLOOKUP(AK$3,M_STOCK_DE_VIVIENDA,24,0),"") ->  | AL40: =IF(FICHA!$E$22="Mensual",VLOOKUP(AL$3,M_STOCK_DE_VIVIENDA,24,0),"") ->  | AM40: =IF(FICHA!$E$22="Mensual",VLOOKUP(AM$3,M_STOCK_DE_VIVIENDA,24,0),"") ->  | AN40: =IF(FICHA!$E$22="Mensual",VLOOKUP(AN$3,M_STOCK_DE_VIVIENDA,24,0),"") ->  | AP40: =+VLOOKUP(AP$3,M_STOCK_DE_VIVIENDA,44,0) -> -1.670841602 | AQ40: -11.56891118 | AR40: -16.29039836 | AS40: -17.18446413 | AT40: -28.30797938 | AU40: 21.18231437 | AV40: -10.60868208 | AW40: -33.25758765 | AX40: 56.64814576 | AY40: -5.260536226 | AZ40: 6.50328209 | BA40: 34.83221098 | BC40: =+VLOOKUP(BC$3,M_STOCK_DE_VIVIENDA,14,0) -> 7312.859767 | BD40: -5.47202855 | BE40: -16.82630125 | BF40: 43.49297077 | BG40: -4.900855252 | BH40: 87.37016362 | BI40: -42.3781678 | BJ40: 3.660649974 | BK40: 16.76458852 | BL40: -13.97579571 | BM40: -7.199216449 | BN40: -9.794008458
A41: STOCK_DE_VIVIENDA | B41: Área Nueva Bogotá vivienda - VIS | AC41: =IF(FICHA!$E$22="Mensual",VLOOKUP(AC$3,M_STOCK_DE_VIVIENDA,25,0),"") ->  | AD41: =IF(FICHA!$E$22="Mensual",VLOOKUP(AD$3,M_STOCK_DE_VIVIENDA,25,0),"") ->  | AE41: =IF(FICHA!$E$22="Mensual",VLOOKUP(AE$3,M_STOCK_DE_VIVIENDA,25,0),"") ->  | AF41: =IF(FICHA!$E$22="Mensual",VLOOKUP(AF$3,M_STOCK_DE_VIVIENDA,25,0),"") ->  | AG41: =IF(FICHA!$E$22="Mensual",VLOOKUP(AG$3,M_STOCK_DE_VIVIENDA,25,0),"") ->  | AH41: =IF(FICHA!$E$22="Mensual",VLOOKUP(AH$3,M_STOCK_DE_VIVIENDA,25,0),"") ->  | AI41: =IF(FICHA!$E$22="Mensual",VLOOKUP(AI$3,M_STOCK_DE_VIVIENDA,25,0),"") ->  | AJ41: =IF(FICHA!$E$22="Mensual",VLOOKUP(AJ$3,M_STOCK_DE_VIVIENDA,25,0),"") ->  | AK41: =IF(FICHA!$E$22="Mensual",VLOOKUP(AK$3,M_STOCK_DE_VIVIENDA,25,0),"") ->  | AL41: =IF(FICHA!$E$22="Mensual",VLOOKUP(AL$3,M_STOCK_DE_VIVIENDA,25,0),"") ->  | AM41: =IF(FICHA!$E$22="Mensual",VLOOKUP(AM$3,M_STOCK_DE_VIVIENDA,25,0),"") ->  | AN41: =IF(FICHA!$E$22="Mensual",VLOOKUP(AN$3,M_STOCK_DE_VIVIENDA,25,0),"") ->  | AP41: =+VLOOKUP(AP$3,M_STOCK_DE_VIVIENDA,45,0) -> 28.55033557 | AQ41: -48.94244604 | AR41: -49.11305325 | AS41: -14.62579495 | AT41: 106.296335 | AU41: 384.2227098 | AV41: 191.9688795 | AW41: 122.3887897 | AX41: -7.170876145 | AY41: -27.8848672 | AZ41: -36.7900803 | BA41: -24.63441723 | BC41: =+VLOOKUP(BC$3,M_STOCK_DE_VIVIENDA,15,0) -> - | BD41: -18.13118037 | BE41: -24.51137783 | BF41: 18.66729679 | BG41: 10.39995449 | BH41: 119.5980417 | BI41: -56.85882243 | BJ41: 22.64499898 | BK41: -22.50656968 | BL41: 4.967877635 | BM41: 36.47169477 | BN41: -96.28534615
A42: STOCK_DE_VIVIENDA | B42: Unidades Nuevas Bogotá vivienda | AC42: =IF(FICHA!$E$22="Mensual",VLOOKUP(AC$3,M_STOCK_DE_VIVIENDA,26,0),"") ->  | AD42: =IF(FICHA!$E$22="Mensual",VLOOKUP(AD$3,M_STOCK_DE_VIVIENDA,26,0),"") ->  | AE42: =IF(FICHA!$E$22="Mensual",VLOOKUP(AE$3,M_STOCK_DE_VIVIENDA,26,0),"") ->  | AF42: =IF(FICHA!$E$22="Mensual",VLOOKUP(AF$3,M_STOCK_DE_VIVIENDA,26,0),"") ->  | AG42: =IF(FICHA!$E$22="Mensual",VLOOKUP(AG$3,M_STOCK_DE_VIVIENDA,26,0),"") ->  | AH42: =IF(FICHA!$E$22="Mensual",VLOOKUP(AH$3,M_STOCK_DE_VIVIENDA,26,0),"") ->  | AI42: =IF(FICHA!$E$22="Mensual",VLOOKUP(AI$3,M_STOCK_DE_VIVIENDA,26,0),"") ->  | AJ42: =IF(FICHA!$E$22="Mensual",VLOOKUP(AJ$3,M_STOCK_DE_VIVIENDA,26,0),"") ->  | AK42: =IF(FICHA!$E$22="Mensual",VLOOKUP(AK$3,M_STOCK_DE_VIVIENDA,26,0),"") ->  | AL42: =IF(FICHA!$E$22="Mensual",VLOOKUP(AL$3,M_STOCK_DE_VIVIENDA,26,0),"") ->  | AM42: =IF(FICHA!$E$22="Mensual",VLOOKUP(AM$3,M_STOCK_DE_VIVIENDA,26,0),"") ->  | AN42: =IF(FICHA!$E$22="Mensual",VLOOKUP(AN$3,M_STOCK_DE_VIVIENDA,26,0),"") ->  | AP42: =+VLOOKUP(AP$3,M_STOCK_DE_VIVIENDA,46,0) -> -8.832399828 | AQ42: -16.84412266 | AR42: -18.28923077 | AS42: -16.0284951 | AT42: 0.9451795841 | AU42: 49.0396927 | AV42: 10.79981925 | AW42: -21.66489926 | AX42: 31.27340824 | AY42: -6.941580756 | AZ42: 6.470908102 | BA42: 38.24285908 | BC42: =+VLOOKUP(BC$3,M_STOCK_DE_VIVIENDA,16,0) -> 7235.483871 | BD42: -8.751099384 | BE42: -18.40963855 | BF42: 40.22445363 | BG42: 2.190395956 | BH42: 97.40313273 | BI42: -41.26122364 | BJ42: 2.986135798 | BK42: -3.210217466 | BL42: -6.847360913 | BM42: -7.503828484 | BN42: -1.490066225
A43: STOCK_DE_VIVIENDA | B43: Unidades Nuevas Bogotá vivienda - VIS | AC43: =IF(FICHA!$E$22="Mensual",VLOOKUP(AC$3,M_STOCK_DE_VIVIENDA,27,0),"") ->  | AD43: =IF(FICHA!$E$22="Mensual",VLOOKUP(AD$3,M_STOCK_DE_VIVIENDA,27,0),"") ->  | AE43: =IF(FICHA!$E$22="Mensual",VLOOKUP(AE$3,M_STOCK_DE_VIVIENDA,27,0),"") ->  | AF43: =IF(FICHA!$E$22="Mensual",VLOOKUP(AF$3,M_STOCK_DE_VIVIENDA,27,0),"") ->  | AG43: =IF(FICHA!$E$22="Mensual",VLOOKUP(AG$3,M_STOCK_DE_VIVIENDA,27,0),"") ->  | AH43: =IF(FICHA!$E$22="Mensual",VLOOKUP(AH$3,M_STOCK_DE_VIVIENDA,27,0),"") ->  | AI43: =IF(FICHA!$E$22="Mensual",VLOOKUP(AI$3,M_STOCK_DE_VIVIENDA,27,0),"") ->  | AJ43: =IF(FICHA!$E$22="Mensual",VLOOKUP(AJ$3,M_STOCK_DE_VIVIENDA,27,0),"") ->  | AK43: =IF(FICHA!$E$22="Mensual",VLOOKUP(AK$3,M_STOCK_DE_VIVIENDA,27,0),"") ->  | AL43: =IF(FICHA!$E$22="Mensual",VLOOKUP(AL$3,M_STOCK_DE_VIVIENDA,27,0),"") ->  | AM43: =IF(FICHA!$E$22="Mensual",VLOOKUP(AM$3,M_STOCK_DE_VIVIENDA,27,0),"") ->  | AN43: =IF(FICHA!$E$22="Mensual",VLOOKUP(AN$3,M_STOCK_DE_VIVIENDA,27,0),"") ->  | AP43: =+VLOOKUP(AP$3,M_STOCK_DE_VIVIENDA,47,0) -> 31.47482014 | AQ43: -48.68131868 | AR43: -47.5250442 | AS43: -11.26011561 | AT43: 146.1012312 | AU43: 409.1006424 | AV43: 213.6440202 | AW43: 137.467431 | AX43: -10.72818232 | AY43: -23.80651945 | AZ43: -33.45864662 | BA43: -19.42067149 | BC43: =+VLOOKUP(BC$3,M_STOCK_DE_VIVIENDA,17,0) -> - | BD43: -15.86638831 | BE43: -26.79900744 | BF43: 23.98305085 | BG43: -0.6835269993 | BH43: 157.1920165 | BI43: -53.92025689 | BJ43: 13.35656214 | BK43: -29.3545082 | BL43: 16.46120377 | BM43: 25.59153176 | BN43: -95.33961329
A44: STOCK_DE_VIVIENDA | B44: Unidades Oferta vivienda | AC44: =IF(FICHA!$E$22="Mensual",VLOOKUP(AC$3,M_STOCK_DE_VIVIENDA,28,0),"") ->  | AD44: =IF(FICHA!$E$22="Mensual",VLOOKUP(AD$3,M_STOCK_DE_VIVIENDA,28,0),"") ->  | AE44: =IF(FICHA!$E$22="Mensual",VLOOKUP(AE$3,M_STOCK_DE_VIVIENDA,28,0),"") ->  | AF44: =IF(FICHA!$E$22="Mensual",VLOOKUP(AF$3,M_STOCK_DE_VIVIENDA,28,0),"") ->  | AG44: =IF(FICHA!$E$22="Mensual",VLOOKUP(AG$3,M_STOCK_DE_VIVIENDA,28,0),"") ->  | AH44: =IF(FICHA!$E$22="Mensual",VLOOKUP(AH$3,M_STOCK_DE_VIVIENDA,28,0),"") ->  | AI44: =IF(FICHA!$E$22="Mensual",VLOOKUP(AI$3,M_STOCK_DE_VIVIENDA,28,0),"") ->  | AJ44: =IF(FICHA!$E$22="Mensual",VLOOKUP(AJ$3,M_STOCK_DE_VIVIENDA,28,0),"") ->  | AK44: =IF(FICHA!$E$22="Mensual",VLOOKUP(AK$3,M_STOCK_DE_VIVIENDA,28,0),"") ->  | AL44: =IF(FICHA!$E$22="Mensual",VLOOKUP(AL$3,M_STOCK_DE_VIVIENDA,28,0),"") ->  | AM44: =IF(FICHA!$E$22="Mensual",VLOOKUP(AM$3,M_STOCK_DE_VIVIENDA,28,0),"") ->  | AN44: =IF(FICHA!$E$22="Mensual",VLOOKUP(AN$3,M_STOCK_DE_VIVIENDA,28,0),"") ->  | AP44: =+VLOOKUP(AP$3,M_STOCK_DE_VIVIENDA,48,0) -> -6.145687742 | AQ44: -7.942367943 | AR44: -5.271505376 | AS44: -3.039501294 | AT44: 19.88524375 | AU44: 17.74294943 | AV44: 14.04551775 | AW44: 12.70196449 | AX44: 39.29706624 | AY44: 37.83599676 | AZ44: 39.18533909 | BA44: 36.61319339 | BC44: =+VLOOKUP(BC$3,M_STOCK_DE_VIVIENDA,18,0) -> 0.5352363961 | BD44: 3.090801538 | BE44: 3.030411706 | BF44: 0.3480803369 | BG44: 9.421069062 | BH44: 6.92978285 | BI44: 12.98212327 | BJ44: -3.686696405 | BK44: 3.87413159 | BL44: -3.637841949 | BM44: 0.7240065324 | BN44: -6.26655137
A45: STOCK_DE_VIVIENDA | B45: Unidades Ventas vivienda | AC45: =IF(FICHA!$E$22="Mensual",VLOOKUP(AC$3,M_STOCK_DE_VIVIENDA,29,0),"") ->  | AD45: =IF(FICHA!$E$22="Mensual",VLOOKUP(AD$3,M_STOCK_DE_VIVIENDA,29,0),"") ->  | AE45: =IF(FICHA!$E$22="Mensual",VLOOKUP(AE$3,M_STOCK_DE_VIVIENDA,29,0),"") ->  | AF45: =IF(FICHA!$E$22="Mensual",VLOOKUP(AF$3,M_STOCK_DE_VIVIENDA,29,0),"") ->  | AG45: =IF(FICHA!$E$22="Mensual",VLOOKUP(AG$3,M_STOCK_DE_VIVIENDA,29,0),"") ->  | AH45: =IF(FICHA!$E$22="Mensual",VLOOKUP(AH$3,M_STOCK_DE_VIVIENDA,29,0),"") ->  | AI45: =IF(FICHA!$E$22="Mensual",VLOOKUP(AI$3,M_STOCK_DE_VIVIENDA,29,0),"") ->  | AJ45: =IF(FICHA!$E$22="Mensual",VLOOKUP(AJ$3,M_STOCK_DE_VIVIENDA,29,0),"") ->  | AK45: =IF(FICHA!$E$22="Mensual",VLOOKUP(AK$3,M_STOCK_DE_VIVIENDA,29,0),"") ->  | AL45: =IF(FICHA!$E$22="Mensual",VLOOKUP(AL$3,M_STOCK_DE_VIVIENDA,29,0),"") ->  | AM45: =IF(FICHA!$E$22="Mensual",VLOOKUP(AM$3,M_STOCK_DE_VIVIENDA,29,0),"") ->  | AN45: =IF(FICHA!$E$22="Mensual",VLOOKUP(AN$3,M_STOCK_DE_VIVIENDA,29,0),"") ->  | AP45: =+VLOOKUP(AP$3,M_STOCK_DE_VIVIENDA,49,0) -> 3.41160833 | AQ45: -15.83817126 | AR45: -15.69282137 | AS45: -10.57227796 | AT45: 95.11568123 | AU45: 86.76438888 | AV45: 53.19660537 | AW45: 28.15291918 | AX45: -8.541941151 | AY45: 0.05771006464 | AZ45: 28.35379928 | BA45: 56.67153048 | BC45: =+VLOOKUP(BC$3,M_STOCK_DE_VIVIENDA,19,0) -> 6.976744186 | BD45: 73.54037267 | BE45: 37.43736578 | BF45: -7.239583333 | BG45: 31.86412128 | BH45: -3.896103896 | BI45: 17.16880815 | BJ45: 25.33560219 | BK45: -37.17001056 | BL45: 8.139255702 | BM45: 16.18561279 | BN45: 3.669023505
A46: STOCK_DE_VIVIENDA | B46: Unidades Oferta vivienda - VIS | AC46: =IF(FICHA!$E$22="Mensual",VLOOKUP(AC$3,M_STOCK_DE_VIVIENDA,30,0),"") ->  | AD46: =IF(FICHA!$E$22="Mensual",VLOOKUP(AD$3,M_STOCK_DE_VIVIENDA,30,0),"") ->  | AE46: =IF(FICHA!$E$22="Mensual",VLOOKUP(AE$3,M_STOCK_DE_VIVIENDA,30,0),"") ->  | AF46: =IF(FICHA!$E$22="Mensual",VLOOKUP(AF$3,M_STOCK_DE_VIVIENDA,30,0),"") ->  | AG46: =IF(FICHA!$E$22="Mensual",VLOOKUP(AG$3,M_STOCK_DE_VIVIENDA,30,0),"") ->  | AH46: =IF(FICHA!$E$22="Mensual",VLOOKUP(AH$3,M_STOCK_DE_VIVIENDA,30,0),"") ->  | AI46: =IF(FICHA!$E$22="Mensual",VLOOKUP(AI$3,M_STOCK_DE_VIVIENDA,30,0),"") ->  | AJ46: =IF(FICHA!$E$22="Mensual",VLOOKUP(AJ$3,M_STOCK_DE_VIVIENDA,30,0),"") ->  | AK46: =IF(FICHA!$E$22="Mensual",VLOOKUP(AK$3,M_STOCK_DE_VIVIENDA,30,0),"") ->  | AL46: =IF(FICHA!$E$22="Mensual",VLOOKUP(AL$3,M_STOCK_DE_VIVIENDA,30,0),"") ->  | AM46: =IF(FICHA!$E$22="Mensual",VLOOKUP(AM$3,M_STOCK_DE_VIVIENDA,30,0),"") ->  | AN46: =IF(FICHA!$E$22="Mensual",VLOOKUP(AN$3,M_STOCK_DE_VIVIENDA,30,0),"") ->  | AP46: =+VLOOKUP(AP$3,M_STOCK_DE_VIVIENDA,50,0) -> 6.409883721 | AQ46: -4.23946557 | AR46: -2.807951569 | AS46: 1.874652993 | AT46: 59.63666166 | AU46: 49.87925946 | AV46: 41.23779653 | AW46: 33.83130831 | AX46: 73.16676649 | AY46: 78.52667383 | AZ46: 87.50781934 | BA46: 87.25386863 | BC46: =+VLOOKUP(BC$3,M_STOCK_DE_VIVIENDA,20,0) -> 7.090239411 | BD46: 8.646221458 | BE46: 8.380232149 | BF46: -4.843813387 | BG46: 26.86732606 | BH46: 11.08273405 | BI46: 15.53727009 | BJ46: -4.027021366 | BK46: 10.4272385 | BL46: -2.895543038 | BM46: 2.076124567 | BN46: -9.167497507
A47: STOCK_DE_VIVIENDA | B47: Unidades Ventas vivienda - VIS | AC47: =IF(FICHA!$E$22="Mensual",VLOOKUP(AC$3,M_STOCK_DE_VIVIENDA,31,0),"") ->  | AD47: =IF(FICHA!$E$22="Mensual",VLOOKUP(AD$3,M_STOCK_DE_VIVIENDA,31,0),"") ->  | AE47: =IF(FICHA!$E$22="Mensual",VLOOKUP(AE$3,M_STOCK_DE_VIVIENDA,31,0),"") ->  | AF47: =IF(FICHA!$E$22="Mensual",VLOOKUP(AF$3,M_STOCK_DE_VIVIENDA,31,0),"") ->  | AG47: =IF(FICHA!$E$22="Mensual",VLOOKUP(AG$3,M_STOCK_DE_VIVIENDA,31,0),"") ->  | AH47: =IF(FICHA!$E$22="Mensual",VLOOKUP(AH$3,M_STOCK_DE_VIVIENDA,31,0),"") ->  | AI47: =IF(FICHA!$E$22="Mensual",VLOOKUP(AI$3,M_STOCK_DE_VIVIENDA,31,0),"") ->  | AJ47: =IF(FICHA!$E$22="Mensual",VLOOKUP(AJ$3,M_STOCK_DE_VIVIENDA,31,0),"") ->  | AK47: =IF(FICHA!$E$22="Mensual",VLOOKUP(AK$3,M_STOCK_DE_VIVIENDA,31,0),"") ->  | AL47: =IF(FICHA!$E$22="Mensual",VLOOKUP(AL$3,M_STOCK_DE_VIVIENDA,31,0),"") ->  | AM47: =IF(FICHA!$E$22="Mensual",VLOOKUP(AM$3,M_STOCK_DE_VIVIENDA,31,0),"") ->  | AN47: =IF(FICHA!$E$22="Mensual",VLOOKUP(AN$3,M_STOCK_DE_VIVIENDA,31,0),"") ->  | AP47: =+VLOOKUP(AP$3,M_STOCK_DE_VIVIENDA,51,0) -> 28.44311377 | AQ47: -17.38437002 | AR47: -24.85749186 | AS47: -16.62635059 | AT47: 137.6845377 | AU47: 123.6679537 | AV47: 92.52235167 | AW47: 55.55125725 | AX47: -10.72245832 | AY47: -3.107198343 | AZ47: 28.46889952 | BA47: 65.18279035 | BC47: =+VLOOKUP(BC$3,M_STOCK_DE_VIVIENDA,21,0) -> 3.098290598 | BD47: 83.31606218 | BE47: 56.81175806 | BF47: -14.5998558 | BG47: 35.9223301 | BH47: -8.01242236 | BI47: 15.42876435 | BJ47: 35.74144487 | BK47: -41.15492351 | BL47: 5.529110216 | BM47: 21.99861207 | BN47: 18.17406143
A48: GALERÍA_INMOBILIARIA | B48: Unidades de viviendas vendidas | AC48: =IF(FICHA!$E$22="Mensual",VLOOKUP(AC$3,M_GALERÍA_INMOBILIARIA,20,0),"") ->  | AD48: =IF(FICHA!$E$22="Mensual",VLOOKUP(AD$3,M_GALERÍA_INMOBILIARIA,20,0),"") ->  | AE48: =IF(FICHA!$E$22="Mensual",VLOOKUP(AE$3,M_GALERÍA_INMOBILIARIA,20,0),"") ->  | AF48: =IF(FICHA!$E$22="Mensual",VLOOKUP(AF$3,M_GALERÍA_INMOBILIARIA,20,0),"") ->  | AG48: =IF(FICHA!$E$22="Mensual",VLOOKUP(AG$3,M_GALERÍA_INMOBILIARIA,20,0),"") ->  | AH48: =IF(FICHA!$E$22="Mensual",VLOOKUP(AH$3,M_GALERÍA_INMOBILIARIA,20,0),"") ->  | AI48: =IF(FICHA!$E$22="Mensual",VLOOKUP(AI$3,M_GALERÍA_INMOBILIARIA,20,0),"") ->  | AJ48: =IF(FICHA!$E$22="Mensual",VLOOKUP(AJ$3,M_GALERÍA_INMOBILIARIA,20,0),"") ->  | AK48: =IF(FICHA!$E$22="Mensual",VLOOKUP(AK$3,M_GALERÍA_INMOBILIARIA,20,0),"") ->  | AL48: =IF(FICHA!$E$22="Mensual",VLOOKUP(AL$3,M_GALERÍA_INMOBILIARIA,20,0),"") ->  | AM48: =IF(FICHA!$E$22="Mensual",VLOOKUP(AM$3,M_GALERÍA_INMOBILIARIA,20,0),"") ->  | AN48: =IF(FICHA!$E$22="Mensual",VLOOKUP(AN$3,M_GALERÍA_INMOBILIARIA,20,0),"") ->  | AP48: =+VLOOKUP(AP$3,M_GALERÍA_INMOBILIARIA,38,0) -> -26.55791191 | AQ48: -17.64605105 | AR48: -17.20743711 | AS48: -8.252810097 | AT48: 91.42603287 | AU48: 68.64988558 | AV48: 51.70996624 | AW48: 16.8619022 | AX48: -19.37804595 | AY48: -4.62563217 | AZ48: 26.19001548 | BA48: 51.94040831 | BC48: =+VLOOKUP(BC$3,M_GALERÍA_INMOBILIARIA,11,0) -> 61.52416357 | BD48: 160.7594937 | BE48: 47.48455428 | BF48: 5.745062837 | BG48: 19.29824561 | BH48: 14.65844402 | BI48: 0.8274720728 | BJ48: -0.5744768158 | BK48: -28.31200991 | BL48: 22.56764537 | BM48: 24.72992015 | BN48: -34.49444549
A49: GALERÍA_INMOBILIARIA | B49: Unidades de viviendas disponibles | AC49: =IF(FICHA!$E$22="Mensual",VLOOKUP(AC$3,M_GALERÍA_INMOBILIARIA,21,0),"") ->  | AD49: =IF(FICHA!$E$22="Mensual",VLOOKUP(AD$3,M_GALERÍA_INMOBILIARIA,21,0),"") ->  | AE49: =IF(FICHA!$E$22="Mensual",VLOOKUP(AE$3,M_GALERÍA_INMOBILIARIA,21,0),"") ->  | AF49: =IF(FICHA!$E$22="Mensual",VLOOKUP(AF$3,M_GALERÍA_INMOBILIARIA,21,0),"") ->  | AG49: =IF(FICHA!$E$22="Mensual",VLOOKUP(AG$3,M_GALERÍA_INMOBILIARIA,21,0),"") ->  | AH49: =IF(FICHA!$E$22="Mensual",VLOOKUP(AH$3,M_GALERÍA_INMOBILIARIA,21,0),"") ->  | AI49: =IF(FICHA!$E$22="Mensual",VLOOKUP(AI$3,M_GALERÍA_INMOBILIARIA,21,0),"") ->  | AJ49: =IF(FICHA!$E$22="Mensual",VLOOKUP(AJ$3,M_GALERÍA_INMOBILIARIA,21,0),"") ->  | AK49: =IF(FICHA!$E$22="Mensual",VLOOKUP(AK$3,M_GALERÍA_INMOBILIARIA,21,0),"") ->  | AL49: =IF(FICHA!$E$22="Mensual",VLOOKUP(AL$3,M_GALERÍA_INMOBILIARIA,21,0),"") ->  | AM49: =IF(FICHA!$E$22="Mensual",VLOOKUP(AM$3,M_GALERÍA_INMOBILIARIA,21,0),"") ->  | AN49: =IF(FICHA!$E$22="Mensual",VLOOKUP(AN$3,M_GALERÍA_INMOBILIARIA,21,0),"") ->  | AP49: =+VLOOKUP(AP$3,M_GALERÍA_INMOBILIARIA,39,0) -> -9.673619632 | AQ49: -9.33827318 | AR49: -8.326420916 | AS49: -5.237688948 | AT49: 21.74527277 | AU49: 18.62737138 | AV49: 17.61342044 | AW49: 17.64990459 | AX49: 28.43881103 | AY49: 27.4102295 | AZ49: 28.84047267 | BA49: 26.78187965 | BC49: =+VLOOKUP(BC$3,M_GALERÍA_INMOBILIARIA,12,0) -> 2.21670509 | BD49: 1.327203331 | BE49: -6.249464943 | BF49: 10.91681125 | BG49: -2.296957971 | BH49: 6.467242469 | BI49: 10.60941828 | BJ49: 3.40953812 | BK49: -0.4359258234 | BL49: -5.931614428 | BM49: 3.014295741 | BN49: -2.251945351
A50: GALERÍA_INMOBILIARIA | B50: Unidades de viviendas nuevas | AC50: =IF(FICHA!$E$22="Mensual",VLOOKUP(AC$3,M_GALERÍA_INMOBILIARIA,22,0),"") ->  | AD50: =IF(FICHA!$E$22="Mensual",VLOOKUP(AD$3,M_GALERÍA_INMOBILIARIA,22,0),"") ->  | AE50: =IF(FICHA!$E$22="Mensual",VLOOKUP(AE$3,M_GALERÍA_INMOBILIARIA,22,0),"") ->  | AF50: =IF(FICHA!$E$22="Mensual",VLOOKUP(AF$3,M_GALERÍA_INMOBILIARIA,22,0),"") ->  | AG50: =IF(FICHA!$E$22="Mensual",VLOOKUP(AG$3,M_GALERÍA_INMOBILIARIA,22,0),"") ->  | AH50: =IF(FICHA!$E$22="Mensual",VLOOKUP(AH$3,M_GALERÍA_INMOBILIARIA,22,0),"") ->  | AI50: =IF(FICHA!$E$22="Mensual",VLOOKUP(AI$3,M_GALERÍA_INMOBILIARIA,22,0),"") ->  | AJ50: =IF(FICHA!$E$22="Mensual",VLOOKUP(AJ$3,M_GALERÍA_INMOBILIARIA,22,0),"") ->  | AK50: =IF(FICHA!$E$22="Mensual",VLOOKUP(AK$3,M_GALERÍA_INMOBILIARIA,22,0),"") ->  | AL50: =IF(FICHA!$E$22="Mensual",VLOOKUP(AL$3,M_GALERÍA_INMOBILIARIA,22,0),"") ->  | AM50: =IF(FICHA!$E$22="Mensual",VLOOKUP(AM$3,M_GALERÍA_INMOBILIARIA,22,0),"") ->  | AN50: =IF(FICHA!$E$22="Mensual",VLOOKUP(AN$3,M_GALERÍA_INMOBILIARIA,22,0),"") ->  | AP50: =+VLOOKUP(AP$3,M_GALERÍA_INMOBILIARIA,40,0) -> -57.97857731 | AQ50: -34.12772586 | AR50: -24.58810213 | AS50: 8.647579143 | AT50: 14.37908497 | AU50: 8.063371956 | AV50: 8.889259506 | AW50: -9.319764328 | AX50: 91.31428571 | AY50: 29.0809628 | AZ50: 84.19359779 | BA50: 75.74719433 | BC50: =+VLOOKUP(BC$3,M_GALERÍA_INMOBILIARIA,13,0) -> -29.28719008 | BD50: 87.87436085 | BE50: -26.8273717 | BF50: 214.8246546 | BG50: -38.26160338 | BH50: 74.11153636 | BI50: 18.62144764 | BJ50: -23.24288551 | BK50: -42.26590792 | BL50: -23.80525687 | BM50: 140.1803214 | BN50: -53.46825526
A51: GALERÍA_INMOBILIARIA | B51: Área de viviendas vendidas | AC51: =IF(FICHA!$E$22="Mensual",VLOOKUP(AC$3,M_GALERÍA_INMOBILIARIA,23,0),"") ->  | AD51: =IF(FICHA!$E$22="Mensual",VLOOKUP(AD$3,M_GALERÍA_INMOBILIARIA,23,0),"") ->  | AE51: =IF(FICHA!$E$22="Mensual",VLOOKUP(AE$3,M_GALERÍA_INMOBILIARIA,23,0),"") ->  | AF51: =IF(FICHA!$E$22="Mensual",VLOOKUP(AF$3,M_GALERÍA_INMOBILIARIA,23,0),"") ->  | AG51: =IF(FICHA!$E$22="Mensual",VLOOKUP(AG$3,M_GALERÍA_INMOBILIARIA,23,0),"") ->  | AH51: =IF(FICHA!$E$22="Mensual",VLOOKUP(AH$3,M_GALERÍA_INMOBILIARIA,23,0),"") ->  | AI51: =IF(FICHA!$E$22="Mensual",VLOOKUP(AI$3,M_GALERÍA_INMOBILIARIA,23,0),"") ->  | AJ51: =IF(FICHA!$E$22="Mensual",VLOOKUP(AJ$3,M_GALERÍA_INMOBILIARIA,23,0),"") ->  | AK51: =IF(FICHA!$E$22="Mensual",VLOOKUP(AK$3,M_GALERÍA_INMOBILIARIA,23,0),"") ->  | AL51: =IF(FICHA!$E$22="Mensual",VLOOKUP(AL$3,M_GALERÍA_INMOBILIARIA,23,0),"") ->  | AM51: =IF(FICHA!$E$22="Mensual",VLOOKUP(AM$3,M_GALERÍA_INMOBILIARIA,23,0),"") ->  | AN51: =IF(FICHA!$E$22="Mensual",VLOOKUP(AN$3,M_GALERÍA_INMOBILIARIA,23,0),"") ->  | AP51: =+VLOOKUP(AP$3,M_GALERÍA_INMOBILIARIA,41,0) -> -32.55227386 | AQ51: -25.77793208 | AR51: -22.95833403 | AS51: -15.18553339 | AT51: 72.20299826 | AU51: 57.25321126 | AV51: 37.85709055 | AW51: 6.765446854 | AX51: -24.34322343 | AY51: -5.79562338 | AZ51: 22.99520085 | BA51: 49.20792204 | BC51: =+VLOOKUP(BC$3,M_GALERÍA_INMOBILIARIA,14,0) -> 54.08550387 | BD51: 159.587875 | BE51: 46.62665304 | BF51: 8.771545698 | BG51: 17.89966289 | BH51: 18.79631582 | BI51: 0.4927856899 | BJ51: -4.720301188 | BK51: -30.53140584 | BL51: 31.5761737 | BM51: 18.72471917 | BN51: -31.02276739
A52: GALERÍA_INMOBILIARIA | B52: Área de viviendas disponibles | AC52: =IF(FICHA!$E$22="Mensual",VLOOKUP(AC$3,M_GALERÍA_INMOBILIARIA,24,0),"") ->  | AD52: =IF(FICHA!$E$22="Mensual",VLOOKUP(AD$3,M_GALERÍA_INMOBILIARIA,24,0),"") ->  | AE52: =IF(FICHA!$E$22="Mensual",VLOOKUP(AE$3,M_GALERÍA_INMOBILIARIA,24,0),"") ->  | AF52: =IF(FICHA!$E$22="Mensual",VLOOKUP(AF$3,M_GALERÍA_INMOBILIARIA,24,0),"") ->  | AG52: =IF(FICHA!$E$22="Mensual",VLOOKUP(AG$3,M_GALERÍA_INMOBILIARIA,24,0),"") ->  | AH52: =IF(FICHA!$E$22="Mensual",VLOOKUP(AH$3,M_GALERÍA_INMOBILIARIA,24,0),"") ->  | AI52: =IF(FICHA!$E$22="Mensual",VLOOKUP(AI$3,M_GALERÍA_INMOBILIARIA,24,0),"") ->  | AJ52: =IF(FICHA!$E$22="Mensual",VLOOKUP(AJ$3,M_GALERÍA_INMOBILIARIA,24,0),"") ->  | AK52: =IF(FICHA!$E$22="Mensual",VLOOKUP(AK$3,M_GALERÍA_INMOBILIARIA,24,0),"") ->  | AL52: =IF(FICHA!$E$22="Mensual",VLOOKUP(AL$3,M_GALERÍA_INMOBILIARIA,24,0),"") ->  | AM52: =IF(FICHA!$E$22="Mensual",VLOOKUP(AM$3,M_GALERÍA_INMOBILIARIA,24,0),"") ->  | AN52: =IF(FICHA!$E$22="Mensual",VLOOKUP(AN$3,M_GALERÍA_INMOBILIARIA,24,0),"") ->  | AP52: =+VLOOKUP(AP$3,M_GALERÍA_INMOBILIARIA,42,0) -> -14.7251511 | AQ52: -14.61066644 | AR52: -14.20306411 | AS52: -12.38841168 | AT52: 9.912143421 | AU52: 8.266781919 | AV52: 8.330531496 | AW52: 8.911946394 | AX52: 14.02797103 | AY52: 12.406057 | AZ52: 12.46440482 | BA52: 10.81012131 | BC52: =+VLOOKUP(BC$3,M_GALERÍA_INMOBILIARIA,15,0) -> 1.336288525 | BD52: 0.0271159785 | BE52: -4.71029886 | BF52: 7.06925044 | BG52: -2.59775394 | BH52: 4.533820205 | BI52: 5.614976587 | BJ52: 2.676348514 | BK52: -1.19493484 | BL52: -5.770271614 | BM52: 1.873401336 | BN52: -2.132848488
A53: GALERÍA_INMOBILIARIA | B53: Área de viviendas nuevas | AC53: =IF(FICHA!$E$22="Mensual",VLOOKUP(AC$3,M_GALERÍA_INMOBILIARIA,25,0),"") ->  | AD53: =IF(FICHA!$E$22="Mensual",VLOOKUP(AD$3,M_GALERÍA_INMOBILIARIA,25,0),"") ->  | AE53: =IF(FICHA!$E$22="Mensual",VLOOKUP(AE$3,M_GALERÍA_INMOBILIARIA,25,0),"") ->  | AF53: =IF(FICHA!$E$22="Mensual",VLOOKUP(AF$3,M_GALERÍA_INMOBILIARIA,25,0),"") ->  | AG53: =IF(FICHA!$E$22="Mensual",VLOOKUP(AG$3,M_GALERÍA_INMOBILIARIA,25,0),"") ->  | AH53: =IF(FICHA!$E$22="Mensual",VLOOKUP(AH$3,M_GALERÍA_INMOBILIARIA,25,0),"") ->  | AI53: =IF(FICHA!$E$22="Mensual",VLOOKUP(AI$3,M_GALERÍA_INMOBILIARIA,25,0),"") ->  | AJ53: =IF(FICHA!$E$22="Mensual",VLOOKUP(AJ$3,M_GALERÍA_INMOBILIARIA,25,0),"") ->  | AK53: =IF(FICHA!$E$22="Mensual",VLOOKUP(AK$3,M_GALERÍA_INMOBILIARIA,25,0),"") ->  | AL53: =IF(FICHA!$E$22="Mensual",VLOOKUP(AL$3,M_GALERÍA_INMOBILIARIA,25,0),"") ->  | AM53: =IF(FICHA!$E$22="Mensual",VLOOKUP(AM$3,M_GALERÍA_INMOBILIARIA,25,0),"") ->  | AN53: =IF(FICHA!$E$22="Mensual",VLOOKUP(AN$3,M_GALERÍA_INMOBILIARIA,25,0),"") ->  | AP53: =+VLOOKUP(AP$3,M_GALERÍA_INMOBILIARIA,43,0) -> -59.0572898 | AQ53: -40.03678697 | AR53: -31.26729626 | AS53: -3.221703573 | AT53: 12.61255237 | AU53: 11.22489453 | AV53: 13.17927349 | AW53: -7.683006393 | AX53: 57.63574584 | AY53: 13.18520264 | AZ53: 56.44836346 | BA53: 60.00763129 | BC53: =+VLOOKUP(BC$3,M_GALERÍA_INMOBILIARIA,16,0) -> -24.79455954 | BD53: 79.73345108 | BE53: -15.53464168 | BF53: 192.5177509 | BG53: -38.20338689 | BH53: 84.39859509 | BI53: 6.559331658 | BJ53: -16.15393459 | BK53: -48.14597615 | BL53: -15.08945737 | BM53: 132.0351968 | BN53: -49.52835621
A54: GALERÍA_INMOBILIARIA | B54: Unidades de viviendas VIS/VIP vendidas | AC54: =IF(FICHA!$E$22="Mensual",VLOOKUP(AC$3,M_GALERÍA_INMOBILIARIA,26,0),"") ->  | AD54: =IF(FICHA!$E$22="Mensual",VLOOKUP(AD$3,M_GALERÍA_INMOBILIARIA,26,0),"") ->  | AE54: =IF(FICHA!$E$22="Mensual",VLOOKUP(AE$3,M_GALERÍA_INMOBILIARIA,26,0),"") ->  | AF54: =IF(FICHA!$E$22="Mensual",VLOOKUP(AF$3,M_GALERÍA_INMOBILIARIA,26,0),"") ->  | AG54: =IF(FICHA!$E$22="Mensual",VLOOKUP(AG$3,M_GALERÍA_INMOBILIARIA,26,0),"") ->  | AH54: =IF(FICHA!$E$22="Mensual",VLOOKUP(AH$3,M_GALERÍA_INMOBILIARIA,26,0),"") ->  | AI54: =IF(FICHA!$E$22="Mensual",VLOOKUP(AI$3,M_GALERÍA_INMOBILIARIA,26,0),"") ->  | AJ54: =IF(FICHA!$E$22="Mensual",VLOOKUP(AJ$3,M_GALERÍA_INMOBILIARIA,26,0),"") ->  | AK54: =IF(FICHA!$E$22="Mensual",VLOOKUP(AK$3,M_GALERÍA_INMOBILIARIA,26,0),"") ->  | AL54: =IF(FICHA!$E$22="Mensual",VLOOKUP(AL$3,M_GALERÍA_INMOBILIARIA,26,0),"") ->  | AM54: =IF(FICHA!$E$22="Mensual",VLOOKUP(AM$3,M_GALERÍA_INMOBILIARIA,26,0),"") ->  | AN54: =IF(FICHA!$E$22="Mensual",VLOOKUP(AN$3,M_GALERÍA_INMOBILIARIA,26,0),"") ->  | AP54: =+VLOOKUP(AP$3,M_GALERÍA_INMOBILIARIA,44,0) -> -39.60720131 | AQ54: -26.2541806 | AR54: -28.86 | AS54: -16.14063778 | AT54: 188.8888889 | AU54: 116.4777022 | AV54: 97.04807422 | AW54: 45.43681747 | AX54: -16.57285804 | AY54: 2.880586592 | AZ54: 44.34298759 | BA54: 70.20648968 | BC54: =+VLOOKUP(BC$3,M_GALERÍA_INMOBILIARIA,17,0) -> 76.39198218 | BD54: 132.7020202 | BE54: 46.66304938 | BF54: -1.331853496 | BG54: 17.21034871 | BH54: 7.805502239 | BI54: 4.183976261 | BJ54: 11.05098263 | BK54: -31.572198 | BL54: 20.87706147 | BM54: 30.97674419 | BN54: -38.99147727
A55: GALERÍA_INMOBILIARIA | B55: Unidades de viviendas VIS/VIP disponibles | AC55: =IF(FICHA!$E$22="Mensual",VLOOKUP(AC$3,M_GALERÍA_INMOBILIARIA,27,0),"") ->  | AD55: =IF(FICHA!$E$22="Mensual",VLOOKUP(AD$3,M_GALERÍA_INMOBILIARIA,27,0),"") ->  | AE55: =IF(FICHA!$E$22="Mensual",VLOOKUP(AE$3,M_GALERÍA_INMOBILIARIA,27,0),"") ->  | AF55: =IF(FICHA!$E$22="Mensual",VLOOKUP(AF$3,M_GALERÍA_INMOBILIARIA,27,0),"") ->  | AG55: =IF(FICHA!$E$22="Mensual",VLOOKUP(AG$3,M_GALERÍA_INMOBILIARIA,27,0),"") ->  | AH55: =IF(FICHA!$E$22="Mensual",VLOOKUP(AH$3,M_GALERÍA_INMOBILIARIA,27,0),"") ->  | AI55: =IF(FICHA!$E$22="Mensual",VLOOKUP(AI$3,M_GALERÍA_INMOBILIARIA,27,0),"") ->  | AJ55: =IF(FICHA!$E$22="Mensual",VLOOKUP(AJ$3,M_GALERÍA_INMOBILIARIA,27,0),"") ->  | AK55: =IF(FICHA!$E$22="Mensual",VLOOKUP(AK$3,M_GALERÍA_INMOBILIARIA,27,0),"") ->  | AL55: =IF(FICHA!$E$22="Mensual",VLOOKUP(AL$3,M_GALERÍA_INMOBILIARIA,27,0),"") ->  | AM55: =IF(FICHA!$E$22="Mensual",VLOOKUP(AM$3,M_GALERÍA_INMOBILIARIA,27,0),"") ->  | AN55: =IF(FICHA!$E$22="Mensual",VLOOKUP(AN$3,M_GALERÍA_INMOBILIARIA,27,0),"") ->  | AP55: =+VLOOKUP(AP$3,M_GALERÍA_INMOBILIARIA,45,0) -> 1.007705987 | AQ55: -0.8383118135 | AR55: 2.696241201 | AS55: 13.29561528 | AT55: 63.79107981 | AU55: 58.37139248 | AV55: 51.5067253 | AW55: 48.25449669 | AX55: 77.70213782 | AY55: 75.82525463 | AZ55: 84.58320884 | BA55: 78.67323706 | BC55: =+VLOOKUP(BC$3,M_GALERÍA_INMOBILIARIA,18,0) -> 6.404910818 | BD55: 6.019375204 | BE55: -11.57084189 | BF55: 23.83606177 | BG55: -2.897056066 | BH55: 11.50912426 | BI55: 20.30478829 | BJ55: 6.635957967 | BK55: 0.4252159827 | BL55: -7.406411721 | BM55: 5.90113958 | BN55: -3.755997258
A56: GALERÍA_INMOBILIARIA | B56: Unidades de viviendas VIS/VIP nuevas | AC56: =IF(FICHA!$E$22="Mensual",VLOOKUP(AC$3,M_GALERÍA_INMOBILIARIA,28,0),"") ->  | AD56: =IF(FICHA!$E$22="Mensual",VLOOKUP(AD$3,M_GALERÍA_INMOBILIARIA,28,0),"") ->  | AE56: =IF(FICHA!$E$22="Mensual",VLOOKUP(AE$3,M_GALERÍA_INMOBILIARIA,28,0),"") ->  | AF56: =IF(FICHA!$E$22="Mensual",VLOOKUP(AF$3,M_GALERÍA_INMOBILIARIA,28,0),"") ->  | AG56: =IF(FICHA!$E$22="Mensual",VLOOKUP(AG$3,M_GALERÍA_INMOBILIARIA,28,0),"") ->  | AH56: =IF(FICHA!$E$22="Mensual",VLOOKUP(AH$3,M_GALERÍA_INMOBILIARIA,28,0),"") ->  | AI56: =IF(FICHA!$E$22="Mensual",VLOOKUP(AI$3,M_GALERÍA_INMOBILIARIA,28,0),"") ->  | AJ56: =IF(FICHA!$E$22="Mensual",VLOOKUP(AJ$3,M_GALERÍA_INMOBILIARIA,28,0),"") ->  | AK56: =IF(FICHA!$E$22="Mensual",VLOOKUP(AK$3,M_GALERÍA_INMOBILIARIA,28,0),"") ->  | AL56: =IF(FICHA!$E$22="Mensual",VLOOKUP(AL$3,M_GALERÍA_INMOBILIARIA,28,0),"") ->  | AM56: =IF(FICHA!$E$22="Mensual",VLOOKUP(AM$3,M_GALERÍA_INMOBILIARIA,28,0),"") ->  | AN56: =IF(FICHA!$E$22="Mensual",VLOOKUP(AN$3,M_GALERÍA_INMOBILIARIA,28,0),"") ->  | AP56: =+VLOOKUP(AP$3,M_GALERÍA_INMOBILIARIA,46,0) -> -78.41163311 | AQ56: -53.44129555 | AR56: -43.48939283 | AS56: -4.769127064 | AT56: 51.46804836 | AU56: 35.42334096 | AV56: 11.5210356 | AW56: -4.477083702 | AX56: 211.4025086 | AY56: 64.04190605 | AZ56: 187.0284388 | BA56: 120.8225269 | BC56: =+VLOOKUP(BC$3,M_GALERÍA_INMOBILIARIA,19,0) -> -31.09631148 | BD56: 78.14126394 | BE56: -34.22370618 | BF56: 199.4923858 | BG56: -40.31779661 | BH56: 61.94533191 | BI56: 28.3647523 | BJ56: -17.67418033 | BK56: -43.35200166 | BL56: -22.26290736 | BM56: 137.2585963 | BN56: -59.71808616
A57: CENSO_CATASTRO | B57: Área construida | P57: =IFERROR(VLOOKUP(P$3,M_CENSO_CATASTRO,7,0),"") -> 5.670029319 | Q57: 3.306872172 | R57: 2.26773299 | S57: 2.540765795 | T57: 3.791420328 | U57: 2.025133993 | V57: 1.574386616 | W57: 1.580592091 | X57: 1.730929741 | Y57: 1.442139609 | Z57: 1.637706151 | AA57: 0.07870492472
A58: CENSO_CATASTRO | B58: Área construida vivienda | P58: =IFERROR(VLOOKUP(P$3,M_CENSO_CATASTRO,8,0),"") -> 4.540541752 | Q58: 2.754972406 | R58: 2.369037689 | S58: 2.894224963 | T58: 2.426128922 | U58: 2.104291787 | V58: 1.66916818 | W58: 1.787900038 | X58: 1.731140373 | Y58: 1.40905185 | Z58: 1.522258004 | AA58: 0.1262725212
A59: CENSO_CATASTRO | B59: Número de predios | P59: =IFERROR(VLOOKUP(P$3,M_CENSO_CATASTRO,9,0),"") -> 4.016153448 | Q59: 3.437335312 | R59: 2.496498389 | S59: 2.543303898 | T59: 2.467718709 | U59: 1.880900356 | V59: 2.159854242 | W59: 2.481518762 | X59: 1.727526157 | Y59: 2.181487044 | Z59: 1.445719694 | AA59: 0.9108142553
A60: CENSO_CATASTRO | B60: Número de predios vivienda | P60: =IFERROR(VLOOKUP(P$3,M_CENSO_CATASTRO,10,0),"") -> 4.136364747 | Q60: 3.821142736 | R60: 2.921763443 | S60: 2.840504936 | T60: 2.780767993 | U60: 2.137170407 | V60: 2.463037178 | W60: 2.84181318 | X60: 1.981547273 | Y60: 2.349910938 | Z60: 1.605020403 | AA60: 0.9446340099
A61: IPC | B61: IPC Colombia | AC61: =IF(FICHA!$E$22="Mensual",VLOOKUP(AC$3,M_IPC,10,0),"") ->  | AD61: =IF(FICHA!$E$22="Mensual",VLOOKUP(AD$3,M_IPC,10,0),"") ->  | AE61: =IF(FICHA!$E$22="Mensual",VLOOKUP(AE$3,M_IPC,10,0),"") ->  | AF61: =IF(FICHA!$E$22="Mensual",VLOOKUP(AF$3,M_IPC,10,0),"") ->  | AG61: =IF(FICHA!$E$22="Mensual",VLOOKUP(AG$3,M_IPC,10,0),"") ->  | AH61: =IF(FICHA!$E$22="Mensual",VLOOKUP(AH$3,M_IPC,10,0),"") ->  | AI61: =IF(FICHA!$E$22="Mensual",VLOOKUP(AI$3,M_IPC,10,0),"") ->  | AJ61: =IF(FICHA!$E$22="Mensual",VLOOKUP(AJ$3,M_IPC,10,0),"") ->  | AK61: =IF(FICHA!$E$22="Mensual",VLOOKUP(AK$3,M_IPC,10,0),"") ->  | AL61: =IF(FICHA!$E$22="Mensual",VLOOKUP(AL$3,M_IPC,10,0),"") ->  | AM61: =IF(FICHA!$E$22="Mensual",VLOOKUP(AM$3,M_IPC,10,0),"") ->  | AN61: =IF(FICHA!$E$22="Mensual",VLOOKUP(AN$3,M_IPC,10,0),"") ->  | AP61: =+VLOOKUP(AP$3,M_IPC,14,0) -> 0.6 | AQ61: 1.18 | AR61: 1.62 | AS61: 2.12 | AT61: 0.42 | AU61: 1.09 | AV61: 1.67 | AW61: 1.83 | AX61: 0.41 | AY61: 1.05 | AZ61: 1.56 | BA61: 2.16 | BC61: =+VLOOKUP(BC$3,M_IPC,6,0) -> -0.3216650899 | BD61: -0.3701594533 | BE61: 0 | BF61: -0.00952653139 | BG61: 0.3144054878 | BH61: -0.05698546871 | BI61: -0.1425449016 | BJ61: 0.3806623525 | BK61: 0.4076602199 | BL61: 0.6326125956 | BM61: 0.5066616626 | BN61: 0.5974607916
A62: IPC | B62: IPC Colombia - Vivienda | AC62: =IF(FICHA!$E$22="Mensual",VLOOKUP(AC$3,M_IPC,11,0),"") ->  | AD62: =IF(FICHA!$E$22="Mensual",VLOOKUP(AD$3,M_IPC,11,0),"") ->  | AE62: =IF(FICHA!$E$22="Mensual",VLOOKUP(AE$3,M_IPC,11,0),"") ->  | AF62: =IF(FICHA!$E$22="Mensual",VLOOKUP(AF$3,M_IPC,11,0),"") ->  | AG62: =IF(FICHA!$E$22="Mensual",VLOOKUP(AG$3,M_IPC,11,0),"") ->  | AH62: =IF(FICHA!$E$22="Mensual",VLOOKUP(AH$3,M_IPC,11,0),"") ->  | AI62: =IF(FICHA!$E$22="Mensual",VLOOKUP(AI$3,M_IPC,11,0),"") ->  | AJ62: =IF(FICHA!$E$22="Mensual",VLOOKUP(AJ$3,M_IPC,11,0),"") ->  | AK62: =IF(FICHA!$E$22="Mensual",VLOOKUP(AK$3,M_IPC,11,0),"") ->  | AL62: =IF(FICHA!$E$22="Mensual",VLOOKUP(AL$3,M_IPC,11,0),"") ->  | AM62: =IF(FICHA!$E$22="Mensual",VLOOKUP(AM$3,M_IPC,11,0),"") ->  | AN62: =IF(FICHA!$E$22="Mensual",VLOOKUP(AN$3,M_IPC,11,0),"") ->  | AP62: =+VLOOKUP(AP$3,M_IPC,15,0) -> 0.2908164447 | AQ62: 0.4001968732 | AR62: 0.6205269253 | AS62: 0.4352750434 | AT62: 0.3019050376 | AU62: 0.4081702374 | AV62: 0.4658309207 | AW62: -0.1884076433 | AX62: 0.2276780544 | AY62: 0.3849623625 | AZ62: 0.6280544296 | BA62: 0.2903532137 | BC62: =+VLOOKUP(BC$3,M_IPC,7,0) -> -0.3379010155 | BD62: -0.8386807312 | BE62: 0.3152541458 | BF62: 0.02695240459 | BG62: 0.565957896 | BH62: 0.05645157394 | BI62: 0.1328858695 | BJ62: -1.994640053 | BK62: 0.2276780544 | BL62: 0.3856997271 | BM62: 0.6331519384 | BN62: 0.2905793911
A63: IPC | B63: IPC Bogotá | AC63: =IF(FICHA!$E$22="Mensual",VLOOKUP(AC$3,M_IPC,12,0),"") ->  | AD63: =IF(FICHA!$E$22="Mensual",VLOOKUP(AD$3,M_IPC,12,0),"") ->  | AE63: =IF(FICHA!$E$22="Mensual",VLOOKUP(AE$3,M_IPC,12,0),"") ->  | AF63: =IF(FICHA!$E$22="Mensual",VLOOKUP(AF$3,M_IPC,12,0),"") ->  | AG63: =IF(FICHA!$E$22="Mensual",VLOOKUP(AG$3,M_IPC,12,0),"") ->  | AH63: =IF(FICHA!$E$22="Mensual",VLOOKUP(AH$3,M_IPC,12,0),"") ->  | AI63: =IF(FICHA!$E$22="Mensual",VLOOKUP(AI$3,M_IPC,12,0),"") ->  | AJ63: =IF(FICHA!$E$22="Mensual",VLOOKUP(AJ$3,M_IPC,12,0),"") ->  | AK63: =IF(FICHA!$E$22="Mensual",VLOOKUP(AK$3,M_IPC,12,0),"") ->  | AL63: =IF(FICHA!$E$22="Mensual",VLOOKUP(AL$3,M_IPC,12,0),"") ->  | AM63: =IF(FICHA!$E$22="Mensual",VLOOKUP(AM$3,M_IPC,12,0),"") ->  | AN63: =IF(FICHA!$E$22="Mensual",VLOOKUP(AN$3,M_IPC,12,0),"") ->  | AP63: =+VLOOKUP(AP$3,M_IPC,16,0) -> 0.55 | AQ63: 1.24 | AR63: 1.53 | AS63: 2 | AT63: 0.28 | AU63: 1.07 | AV63: 1.58 | AW63: 1.75 | AX63: 0.26 | AY63: 0.91 | AZ63: 1.38 | BA63: 1.95 | BC63: =+VLOOKUP(BC$3,M_IPC,8,0) -> -0.3988603989 | BD63: -0.5339435545 | BE63: -0.07668711656 | BF63: -0.1055257099 | BG63: 0.566599443 | BH63: -0.06684491979 | BI63: -0.1337792642 | BJ63: 0.1818007846 | BK63: 0.2578796562 | BL63: 0.6573306659 | BM63: 0.4637516563 | BN63: 0.5652378709
A64: IPC | B64: IPC Bogotá - Vivienda | AC64: =IF(FICHA!$E$22="Mensual",VLOOKUP(AC$3,M_IPC,13,0),"") ->  | AD64: =IF(FICHA!$E$22="Mensual",VLOOKUP(AD$3,M_IPC,13,0),"") ->  | AE64: =IF(FICHA!$E$22="Mensual",VLOOKUP(AE$3,M_IPC,13,0),"") ->  | AF64: =IF(FICHA!$E$22="Mensual",VLOOKUP(AF$3,M_IPC,13,0),"") ->  | AG64: =IF(FICHA!$E$22="Mensual",VLOOKUP(AG$3,M_IPC,13,0),"") ->  | AH64: =IF(FICHA!$E$22="Mensual",VLOOKUP(AH$3,M_IPC,13,0),"") ->  | AI64: =IF(FICHA!$E$22="Mensual",VLOOKUP(AI$3,M_IPC,13,0),"") ->  | AJ64: =IF(FICHA!$E$22="Mensual",VLOOKUP(AJ$3,M_IPC,13,0),"") ->  | AK64: =IF(FICHA!$E$22="Mensual",VLOOKUP(AK$3,M_IPC,13,0),"") ->  | AL64: =IF(FICHA!$E$22="Mensual",VLOOKUP(AL$3,M_IPC,13,0),"") ->  | AM64: =IF(FICHA!$E$22="Mensual",VLOOKUP(AM$3,M_IPC,13,0),"") ->  | AN64: =IF(FICHA!$E$22="Mensual",VLOOKUP(AN$3,M_IPC,13,0),"") ->  | AP64: =+VLOOKUP(AP$3,M_IPC,17,0) -> 0.2636146239 | AQ64: 0.6057619525 | AR64: 0.9787236732 | AS64: 1.441057458 | AT64: 0.383226108 | AU64: 0.8278928966 | AV64: 1.212260106 | AW64: 1.532058046 | AX64: 0.1542936153 | AY64: 0.5496770161 | AZ64: 1.288594942 | BA64: 1.547338289 | BC64: =+VLOOKUP(BC$3,M_IPC,9,0) -> -0.3844405091 | BD64: -1.027219867 | BE64: 0.07202683544 | BF64: -0.2563210447 | BG64: 0.6728465378 | BH64: -0.1194668995 | BI64: 0.247289769 | BJ64: -1.294066018 | BK64: 0.1542936153 | BL64: 0.3947742892 | BM64: 0.7348784675 | BN64: 0.2554516105
A65: MERCADO LABORAL | B65: Tasa ocupación Colombia | C65: =+VLOOKUP(C$3,M_MERCADO_LABORAL,13,0) -> -4.218215942 | D65: =+VLOOKUP(D$3,M_MERCADO_LABORAL,13,0) -> 0.9630187797 | E65: -0.6051568656 | F65: 2.626871068 | G65: -6.675487037 | H65: -18.90338527 | I65: 10.74080683 | J65: 10.16162235 | K65: -2.778700216 | L65: 0.3546350029 | M65: 2.70801584 | N65: 3.132288542 | AC65: =+VLOOKUP(AC$3,M_MERCADO_LABORAL,24,0) -> -0.7070055188 | AD65: -2.857217182 | AE65: -3.056380024 | AF65: -1.356109984 | AG65: -3.886808091 | AH65: -22.79891599 | AI65: -13.98637935 | AJ65: -7.671354525 | AK65: -3.816150384 | AL65: 19.02463688 | AM65: =+VLOOKUP(AM$3,M_MERCADO_LABORAL,24,0) -> 10.39096283 | AN65: 3.34699497
A66: MERCADO LABORAL | B66: Tasa desempleo Colombia | C66: =+VLOOKUP(C$3,M_MERCADO_LABORAL,14,0) -> 28.40624077 | D66: -14.36081258 | E66: 4.739971122 | F66: -9.802866899 | G66: 31.9454028 | H66: 61.53856792 | I66: -13.79262624 | J66: -21.39683962 | K66: 15.71921313 | L66: -5.237284973 | M66: -16.4424918 | N66: -8.60986184 | AC66: =+VLOOKUP(AC$3,M_MERCADO_LABORAL,25,0) -> 10.54245323 | AD66: 7.165323038 | AE66: 11.91822928 | AF66: 3.887633459 | AG66: 6.751008054 | AH66: 101.3611465 | AI66: 65.73248429 | AJ66: 44.4291697 | AK66: 26.66776951 | AL66: -25.69340004 | AM66: -27.9774564 | AN66: -16.26099792
A67: MERCADO LABORAL | B67: Ocupados Colombia | C67: =+VLOOKUP(C$3,M_MERCADO_LABORAL,15,0) -> -3.908134357 | D67: 1.280818326 | E67: -0.289170427 | F67: 2.952393598 | G67: -6.380254821 | H67: -18.64758645 | I67: 11.08913768 | J67: 10.50488403 | K67: -7.241996232 | L67: 0.768408806 | M67: 3.104176182 | N67: 3.522121417 | AC67: =+VLOOKUP(AC$3,M_MERCADO_LABORAL,26,0) -> 0.5217411857 | AD67: -1.606635173 | AE67: -1.812342494 | AF67: -0.0937622263 | AG67: -2.664013654 | AH67: -21.81621806 | AI67: -12.89442729 | AJ67: -6.504444675 | AK67: -7.365042956 | AL67: 14.74370352 | AM67: 6.49605597 | AN67: -0.2333902888
A68: MERCADO LABORAL | B68: Desocupados Colombia | C68: =+VLOOKUP(C$3,M_MERCADO_LABORAL,16,0) -> 27.03763751 | D68: -14.89801174 | E68: 4.996226246 | F68: -8.204458157 | G68: 27.83460392 | H68: 44.19660197 | I68: -7.490460148 | J68: -16.91901018 | K68: 10.10528744 | L68: -5.448660123 | M68: -16.29882044 | N68: -6.553770055 | AC68: =+VLOOKUP(AC$3,M_MERCADO_LABORAL,27,0) -> 12.53615582 | AD68: 6.235645799 | AE68: 11.27430321 | AF68: 4.199922299 | AG68: 4.853617061 | AH68: 77.66371379 | AI68: 56.53503938 | AJ68: 41.67448389 | AK68: 22.02572147 | AL68: -19.98635677 | AM68: -27.60491156 | AN68: -18.57285168
A69: MERCADO LABORAL | B69: Ocupados Colombia - Construcción | C69: =+VLOOKUP(C$3,M_MERCADO_LABORAL,17,0) -> -3.652180645 | D69: 7.35365604 | E69: 2.138935849 | F69: -1.122010225 | G69: -3.94618896 | H69: -27.57285837 | I69: 19.42853999 | J69: 11.14484634 | K69: -11.09911894 | L69: -2.199487912 | M69: 2.156464181 | N69: -0.2799878243 | AC69: =+VLOOKUP(AC$3,M_MERCADO_LABORAL,28,0) -> -2.180172864 | AD69: 7.003780502 | AE69: 3.141895602 | AF69: 4.459919378 | AG69: 4.141156742 | AH69: -29.74020088 | AI69: -17.84694877 | AJ69: -7.65499707 | AK69: -14.53173973 | AL69: 15.41032041 | AM69: -1.280629704 | AN69: -11.42822063
A70: MERCADO LABORAL | B70: Tasa de ocupación Bogotá | C70: =+VLOOKUP(C$3,M_MERCADO_LABORAL,18,0) -> -2.770149453 | D70: 2.670226958 | E70: -0.01049637311 | F70: 0.7174987653 | G70: -5.780413138 | H70: -23.45665203 | I70: 12.83020568 | J70: 10.79113092 | K70: -1.222227979 | L70: 1.088102116 | M70: 3.530788144 | N70: -1.546768544 | AC70: =+VLOOKUP(AC$3,M_MERCADO_LABORAL,29,0) -> -0.2627913601 | AD70: -0.472956108 | AE70: -2.294916946 | AF70: 0.5318060207 | AG70: -2.58068714 | AH70: -27.37134626 | AI70: -18.04433823 | AJ70: -9.847240404 | AK70: -5.485801508 | AL70: 24.82157107 | AM70: 14.5338303 | AN70: 1.779137102
A71: MERCADO LABORAL | B71: Tasa desempleo Bogotá | C71: =+VLOOKUP(C$3,M_MERCADO_LABORAL,19,0) -> 32.58922215 | D71: -23.03797793 | E71: -3.241143303 | F71: -1.390571327 | G71: 19.68179021 | H71: 100.401265 | I71: -7.050365076 | J71: -25.83608216 | K71: 22.42774139 | L71: -11.46543859 | M71: -20.87719412 | N71: -7.614402195 | AC71: =+VLOOKUP(AC$3,M_MERCADO_LABORAL,30,0) -> 15.15123045 | AD71: -2.533965163 | AE71: 3.756317703 | AF71: -2.637018845 | AG71: -12.11521045 | AH71: 128.8430388 | AI71: 119.8339009 | AJ71: 65.33655638 | AK71: 69.1299999 | AL71: -25.28065948 | AM71: -36.39562027 | AN71: -20.76836263
A72: MERCADO LABORAL | B72: Ocupados Bogotá | C72: =+VLOOKUP(C$3,M_MERCADO_LABORAL,20,0) -> -2.425649289 | D72: 3.03256729 | E72: 0.3410049795 | F72: 1.070205822 | G72: -5.451681657 | H72: -23.19057705 | I72: 13.2210218 | J72: 11.17399195 | K72: -10.0781027 | L72: 1.455659345 | M72: 3.883973779 | N72: -1.237633603 | AC72: =+VLOOKUP(AC$3,M_MERCADO_LABORAL,31,0) -> 1.167289835 | AD72: 0.9481578197 | AE72: -0.9054672298 | AF72: 1.955765088 | AG72: -1.206146243 | AH72: -26.35048221 | AI72: -16.89664997 | AJ72: -8.58897444 | AK72: -13.06188205 | AL72: 14.83440105 | AM72: 5.364301769 | AN72: -6.398721556
A73: MERCADO LABORAL | B73: Desocupados Bogotá | C73: =+VLOOKUP(C$3,M_MERCADO_LABORAL,21,0) -> 34.30131017 | D73: -23.4376872 | E73: -3.27224373 | F73: -0.4888870835 | G73: 15.6450459 | H73: 77.79243403 | I73: 2.991401488 | J73: -23.13913078 | K73: 15.11398997 | L73: -12.67127778 | M73: -21.32645495 | N73: -9.872360928 | AC73: =+VLOOKUP(AC$3,M_MERCADO_LABORAL,32,0) -> 18.87096552 | AD73: -1.904425085 | AE73: 3.230090026 | AF73: -1.026713694 | AG73: -14.77543873 | AH73: 97.90784307 | AI73: 110.723446 | AJ73: 62.75958282 | AK73: 62.01217129 | AL73: -20.42228354 | AM73: -39.21180827 | AN73: -28.71930464
A74: MERCADO LABORAL | B74: Ocupados Bogotá - Construcción | C74: =+VLOOKUP(C$3,M_MERCADO_LABORAL,22,0) -> 3.168010298 | D74: 12.11088805 | E74: 0.6740129457 | F74: -0.8525913503 | G74: -0.5266090944 | H74: -32.1406337 | I74: 14.92551342 | J74: 12.19552615 | K74: -23.46535836 | L74: -5.145682567 | M74: 3.126185754 | N74: -4.444276278 | AC74: =+VLOOKUP(AC$3,M_MERCADO_LABORAL,33,0) -> 7.038357219 | AD74: 13.11117298 | AE74: 10.11376677 | AF74: 15.44937752 | AG74: 11.31494178 | AH74: -32.62241037 | AI74: -23.08438041 | AJ74: -12.96203778 | AK74: -33.03315402 | AL74: -6.393253985 | AM74: -16.00379768 | AN74: -28.46133729
A75: TASAS_DE_INTERÉS | B75: Tasa de intervención de política monetaria | AC75: =IF(FICHA!$E$22="Mensual",VLOOKUP(AC$3,M_TASAS_DE_INTERÉS,10,0),"") ->  | AD75: =IF(FICHA!$E$22="Mensual",VLOOKUP(AD$3,M_TASAS_DE_INTERÉS,10,0),"") ->  | AE75: =IF(FICHA!$E$22="Mensual",VLOOKUP(AE$3,M_TASAS_DE_INTERÉS,10,0),"") ->  | AF75: =IF(FICHA!$E$22="Mensual",VLOOKUP(AF$3,M_TASAS_DE_INTERÉS,10,0),"") ->  | AG75: =IF(FICHA!$E$22="Mensual",VLOOKUP(AG$3,M_TASAS_DE_INTERÉS,10,0),"") ->  | AH75: =IF(FICHA!$E$22="Mensual",VLOOKUP(AH$3,M_TASAS_DE_INTERÉS,10,0),"") ->  | AI75: =IF(FICHA!$E$22="Mensual",VLOOKUP(AI$3,M_TASAS_DE_INTERÉS,10,0),"") ->  | AJ75: =IF(FICHA!$E$22="Mensual",VLOOKUP(AJ$3,M_TASAS_DE_INTERÉS,10,0),"") ->  | AK75: =IF(FICHA!$E$22="Mensual",VLOOKUP(AK$3,M_TASAS_DE_INTERÉS,10,0),"") ->  | AL75: =IF(FICHA!$E$22="Mensual",VLOOKUP(AL$3,M_TASAS_DE_INTERÉS,10,0),"") ->  | AM75: =IF(FICHA!$E$22="Mensual",VLOOKUP(AM$3,M_TASAS_DE_INTERÉS,10,0),"") ->  | AN75: =IF(FICHA!$E$22="Mensual",VLOOKUP(AN$3,M_TASAS_DE_INTERÉS,10,0),"") ->  | BC75: =+VLOOKUP(BC$3,M_TASAS_DE_INTERÉS,6,0) -> -0.5 | BD75: -0.5 | BE75: -0.25 | BF75: -0.25 | BG75: -0.25 | BH75: -0.25 | BI75: 0 | BJ75: 0 | BK75: 0 | BL75: 0 | BM75: 0 | BN75: 0
A76: TASAS_DE_INTERÉS | B76: Adquisición de vivienda diferente de VIS (pesos - efectiva anual) | AC76: =IF(FICHA!$E$22="Mensual",VLOOKUP(AC$3,M_TASAS_DE_INTERÉS,11,0),"") ->  | AD76: =IF(FICHA!$E$22="Mensual",VLOOKUP(AD$3,M_TASAS_DE_INTERÉS,11,0),"") ->  | AE76: =IF(FICHA!$E$22="Mensual",VLOOKUP(AE$3,M_TASAS_DE_INTERÉS,11,0),"") ->  | AF76: =IF(FICHA!$E$22="Mensual",VLOOKUP(AF$3,M_TASAS_DE_INTERÉS,11,0),"") ->  | AG76: =IF(FICHA!$E$22="Mensual",VLOOKUP(AG$3,M_TASAS_DE_INTERÉS,11,0),"") ->  | AH76: =IF(FICHA!$E$22="Mensual",VLOOKUP(AH$3,M_TASAS_DE_INTERÉS,11,0),"") ->  | AI76: =IF(FICHA!$E$22="Mensual",VLOOKUP(AI$3,M_TASAS_DE_INTERÉS,11,0),"") ->  | AJ76: =IF(FICHA!$E$22="Mensual",VLOOKUP(AJ$3,M_TASAS_DE_INTERÉS,11,0),"") ->  | AK76: =IF(FICHA!$E$22="Mensual",VLOOKUP(AK$3,M_TASAS_DE_INTERÉS,11,0),"") ->  | AL76: =IF(FICHA!$E$22="Mensual",VLOOKUP(AL$3,M_TASAS_DE_INTERÉS,11,0),"") ->  | AM76: =IF(FICHA!$E$22="Mensual",VLOOKUP(AM$3,M_TASAS_DE_INTERÉS,11,0),"") ->  | AN76: =IF(FICHA!$E$22="Mensual",VLOOKUP(AN$3,M_TASAS_DE_INTERÉS,11,0),"") ->  | BC76: =+VLOOKUP(BC$3,M_TASAS_DE_INTERÉS,7,0) -> 0.07433291898 | BD76: -0.03586013924 | BE76: 0.004763768468 | BF76: 0.002137661213 | BG76: -0.2444988555 | BH76: -0.2111987143 | BI76: -0.149185083 | BJ76: -0.224946367 | BK76: -0.08314450685 | BL76: -0.1177666243 | BM76: -0.1896932361 | BN76: -0.0805754858
A77: TASAS_DE_INTERÉS | B77: Adquisición de vivienda VIS (pesos - efectiva anual) | AC77: =IF(FICHA!$E$22="Mensual",VLOOKUP(AC$3,M_TASAS_DE_INTERÉS,12,0),"") ->  | AD77: =IF(FICHA!$E$22="Mensual",VLOOKUP(AD$3,M_TASAS_DE_INTERÉS,12,0),"") ->  | AE77: =IF(FICHA!$E$22="Mensual",VLOOKUP(AE$3,M_TASAS_DE_INTERÉS,12,0),"") ->  | AF77: =IF(FICHA!$E$22="Mensual",VLOOKUP(AF$3,M_TASAS_DE_INTERÉS,12,0),"") ->  | AG77: =IF(FICHA!$E$22="Mensual",VLOOKUP(AG$3,M_TASAS_DE_INTERÉS,12,0),"") ->  | AH77: =IF(FICHA!$E$22="Mensual",VLOOKUP(AH$3,M_TASAS_DE_INTERÉS,12,0),"") ->  | AI77: =IF(FICHA!$E$22="Mensual",VLOOKUP(AI$3,M_TASAS_DE_INTERÉS,12,0),"") ->  | AJ77: =IF(FICHA!$E$22="Mensual",VLOOKUP(AJ$3,M_TASAS_DE_INTERÉS,12,0),"") ->  | AK77: =IF(FICHA!$E$22="Mensual",VLOOKUP(AK$3,M_TASAS_DE_INTERÉS,12,0),"") ->  | AL77: =IF(FICHA!$E$22="Mensual",VLOOKUP(AL$3,M_TASAS_DE_INTERÉS,12,0),"") ->  | AM77: =IF(FICHA!$E$22="Mensual",VLOOKUP(AM$3,M_TASAS_DE_INTERÉS,12,0),"") ->  | AN77: =IF(FICHA!$E$22="Mensual",VLOOKUP(AN$3,M_TASAS_DE_INTERÉS,12,0),"") ->  | BC77: =+VLOOKUP(BC$3,M_TASAS_DE_INTERÉS,8,0) -> -0.06439814674 | BD77: 0.122734302 | BE77: -0.02382014571 | BF77: -0.008675032542 | BG77: -0.1529284812 | BH77: -0.03236477086 | BI77: -0.09727447979 | BJ77: -0.03676830634 | BK77: 0.00703187093 | BL77: -0.4963962933 | BM77: -0.2380147095 | BN77: 0.09214688785
A78: TASAS_DE_INTERÉS | B78: Tasa de interés - efectiva anual DTF | AC78: =IF(FICHA!$E$22="Mensual",VLOOKUP(AC$3,M_TASAS_DE_INTERÉS,13,0),"") ->  | AD78: =IF(FICHA!$E$22="Mensual",VLOOKUP(AD$3,M_TASAS_DE_INTERÉS,13,0),"") ->  | AE78: =IF(FICHA!$E$22="Mensual",VLOOKUP(AE$3,M_TASAS_DE_INTERÉS,13,0),"") ->  | AF78: =IF(FICHA!$E$22="Mensual",VLOOKUP(AF$3,M_TASAS_DE_INTERÉS,13,0),"") ->  | AG78: =IF(FICHA!$E$22="Mensual",VLOOKUP(AG$3,M_TASAS_DE_INTERÉS,13,0),"") ->  | AH78: =IF(FICHA!$E$22="Mensual",VLOOKUP(AH$3,M_TASAS_DE_INTERÉS,13,0),"") ->  | AI78: =IF(FICHA!$E$22="Mensual",VLOOKUP(AI$3,M_TASAS_DE_INTERÉS,13,0),"") ->  | AJ78: =IF(FICHA!$E$22="Mensual",VLOOKUP(AJ$3,M_TASAS_DE_INTERÉS,13,0),"") ->  | AK78: =IF(FICHA!$E$22="Mensual",VLOOKUP(AK$3,M_TASAS_DE_INTERÉS,13,0),"") ->  | AL78: =IF(FICHA!$E$22="Mensual",VLOOKUP(AL$3,M_TASAS_DE_INTERÉS,13,0),"") ->  | AM78: =IF(FICHA!$E$22="Mensual",VLOOKUP(AM$3,M_TASAS_DE_INTERÉS,13,0),"") ->  | AN78: =IF(FICHA!$E$22="Mensual",VLOOKUP(AN$3,M_TASAS_DE_INTERÉS,13,0),"") ->  | BC78: =+VLOOKUP(BC$3,M_TASAS_DE_INTERÉS,9,0) -> -0.26 | BD78: -0.53 | BE78: -0.42 | BF78: -0.55 | BG78: -0.4 | BH78: -0.36 | BI78: -0.07 | BJ78: -0.03 | BK78: -0.02 | BL78: -0.1 | BM78: -0.04 | BN78: -0.01
A79: ÍNDICES_DE_PRECIOS | B79: Índice del Precio del Suelo en Bogotá (IPSB) | Q79: =IFERROR(VLOOKUP(Q$3,M_INDICES_A,5,0),"") -> 8.346986924 | R79: 29.43053221 | S79: 17.65465475 | T79: 16.16309182 | U79: 7.17739582 | V79: 4.871968158 | W79: 0 | X79: 0 | Y79: 0 | Z79: 0
A80: ÍNDICES_DE_PRECIOS | B80: índice de precios de vivienda usada-Colombia (IPVU) | Q80: =IFERROR(VLOOKUP(Q$3,M_INDICES_A,6,0),"") -> 4.796935039 | R80: 7.289476853 | S80: 7.545605297 | T80: 4.962334731 | U80: 3.637900347 | V80: 4.040560572 | W80: 2.080309231 | X80: 2.570029202 | Y80: 2.852738101 | Z80: 0.8233906054
A81: ÍNDICES_DE_PRECIOS | B81: índice de precios de vivienda usada-Bogotá (IPVU) | Q81: =IFERROR(VLOOKUP(Q$3,M_INDICES_A,7,0),"") -> 5.198339018 | R81: 9.419442754 | S81: 10.4358979 | T81: 6.24421044 | U81: 3.472475706 | V81: 6.167420183 | W81: 1.615885351 | X81: 1.492957155 | Y81: 1.793722591 | Z81: 0.7862569043
A82: ÍNDICES_DE_PRECIOS | B82: Índice de precios de vivienda nueva-Colombia (IPVN) | AC82: =IF(FICHA!$E$22="Mensual",VLOOKUP(AC$3,M_INDICES_M,10,0),"") ->  | AD82: =IF(FICHA!$E$22="Mensual",VLOOKUP(AD$3,M_INDICES_M,10,0),"") ->  | AE82: =IF(FICHA!$E$22="Mensual",VLOOKUP(AE$3,M_INDICES_M,10,0),"") ->  | AF82: =IF(FICHA!$E$22="Mensual",VLOOKUP(AF$3,M_INDICES_M,10,0),"") ->  | AG82: =IF(FICHA!$E$22="Mensual",VLOOKUP(AG$3,M_INDICES_M,10,0),"") ->  | AH82: =IF(FICHA!$E$22="Mensual",VLOOKUP(AH$3,M_INDICES_M,10,0),"") ->  | AI82: =IF(FICHA!$E$22="Mensual",VLOOKUP(AI$3,M_INDICES_M,10,0),"") ->  | AJ82: =IF(FICHA!$E$22="Mensual",VLOOKUP(AJ$3,M_INDICES_M,10,0),"") ->  | AK82: =IF(FICHA!$E$22="Mensual",VLOOKUP(AK$3,M_INDICES_M,10,0),"") ->  | AL82: =IF(FICHA!$E$22="Mensual",VLOOKUP(AL$3,M_INDICES_M,10,0),"") ->  | AM82: =IF(FICHA!$E$22="Mensual",VLOOKUP(AM$3,M_INDICES_M,10,0),"") ->  | AN82: =IF(FICHA!$E$22="Mensual",VLOOKUP(AN$3,M_INDICES_M,10,0),"") ->  | AP82: =+VLOOKUP(AP$3,M_INDICES_M,14,0) -> -0.5130054054 | AQ82: -1.003785876 | AR82: -0.8633270977 | AS82: -0.8993748226 | AT82: -0.5083054395 | AU82: -0.8389630806 | AV82: -0.8451692373 | AW82: -0.6765273047 | AX82: 2.814268627 | AY82: 3.01927436 | AZ82: 3.144061098 | BA82: 2.609878996 | BC82: =+VLOOKUP(BC$3,M_INDICES_M,6,0) -> 0.358061188 | BD82: 0.7589096826 | BE82: -0.08717867748 | BF82: 0.263029646 | BG82: -0.4231459908 | BH82: 1.136361964 | BI82: 1.032885461 | BJ82: 0.1127190996 | BK82: -0.190285687 | BL82: -0.1336154162 | BM82: 0.1148632603 | BN82: -0.348700488
A83: ÍNDICES_DE_PRECIOS | B83: Índice de precios de vivienda nueva-Bogotá (IPVN) | AC83: =IF(FICHA!$E$22="Mensual",VLOOKUP(AC$3,M_INDICES_M,11,0),"") ->  | AD83: =IF(FICHA!$E$22="Mensual",VLOOKUP(AD$3,M_INDICES_M,11,0),"") ->  | AE83: =IF(FICHA!$E$22="Mensual",VLOOKUP(AE$3,M_INDICES_M,11,0),"") ->  | AF83: =IF(FICHA!$E$22="Mensual",VLOOKUP(AF$3,M_INDICES_M,11,0),"") ->  | AG83: =IF(FICHA!$E$22="Mensual",VLOOKUP(AG$3,M_INDICES_M,11,0),"") ->  | AH83: =IF(FICHA!$E$22="Mensual",VLOOKUP(AH$3,M_INDICES_M,11,0),"") ->  | AI83: =IF(FICHA!$E$22="Mensual",VLOOKUP(AI$3,M_INDICES_M,11,0),"") ->  | AJ83: =IF(FICHA!$E$22="Mensual",VLOOKUP(AJ$3,M_INDICES_M,11,0),"") ->  | AK83: =IF(FICHA!$E$22="Mensual",VLOOKUP(AK$3,M_INDICES_M,11,0),"") ->  | AL83: =IF(FICHA!$E$22="Mensual",VLOOKUP(AL$3,M_INDICES_M,11,0),"") ->  | AM83: =IF(FICHA!$E$22="Mensual",VLOOKUP(AM$3,M_INDICES_M,11,0),"") ->  | AN83: =IF(FICHA!$E$22="Mensual",VLOOKUP(AN$3,M_INDICES_M,11,0),"") ->  | AP83: =+VLOOKUP(AP$3,M_INDICES_M,15,0) -> -0.4781550262 | AQ83: -1.181154444 | AR83: -1.249163377 | AS83: -1.607766819 | AT83: -0.4017768001 | AU83: -0.8915988826 | AV83: -1.085355302 | AW83: -0.7124777182 | AX83: 1.537449983 | AY83: 2.224732082 | AZ83: 2.116349695 | BA83: 1.386456284 | BC83: =+VLOOKUP(BC$3,M_INDICES_M,7,0) -> 0.1032933978 | BD83: 0.6263106095 | BE83: -0.1450938029 | BF83: -0.1273612605 | BG83: -0.342400862 | BH83: 1.134080663 | BI83: 0.8572811482 | BJ83: -0.03680283509 | BK83: -0.2180525268 | BL83: 0.1817486037 | BM83: -0.3013158595 | BN83: -0.3404918647
A84: ÍNDICES_DE_PRECIOS | B84: Índice de costos de construcción de vivienda -Colombia (ICCV) | AC84: =IF(FICHA!$E$22="Mensual",VLOOKUP(AC$3,M_INDICES_M,12,0),"") ->  | AD84: =IF(FICHA!$E$22="Mensual",VLOOKUP(AD$3,M_INDICES_M,12,0),"") ->  | AE84: =IF(FICHA!$E$22="Mensual",VLOOKUP(AE$3,M_INDICES_M,12,0),"") ->  | AF84: =IF(FICHA!$E$22="Mensual",VLOOKUP(AF$3,M_INDICES_M,12,0),"") ->  | AG84: =IF(FICHA!$E$22="Mensual",VLOOKUP(AG$3,M_INDICES_M,12,0),"") ->  | AH84: =IF(FICHA!$E$22="Mensual",VLOOKUP(AH$3,M_INDICES_M,12,0),"") ->  | AI84: =IF(FICHA!$E$22="Mensual",VLOOKUP(AI$3,M_INDICES_M,12,0),"") ->  | AJ84: =IF(FICHA!$E$22="Mensual",VLOOKUP(AJ$3,M_INDICES_M,12,0),"") ->  | AK84: =IF(FICHA!$E$22="Mensual",VLOOKUP(AK$3,M_INDICES_M,12,0),"") ->  | AL84: =IF(FICHA!$E$22="Mensual",VLOOKUP(AL$3,M_INDICES_M,12,0),"") ->  | AM84: =IF(FICHA!$E$22="Mensual",VLOOKUP(AM$3,M_INDICES_M,12,0),"") ->  | AN84: =IF(FICHA!$E$22="Mensual",VLOOKUP(AN$3,M_INDICES_M,12,0),"") ->  | AP84: =+VLOOKUP(AP$3,M_INDICES_M,16,0) -> 0.735017749 | AQ84: 1.336395907 | AR84: 1.812486949 | AS84: 1.912716642 | AT84: 0.8649394948 | AU84: 1.770486478 | AV84: 2.152196865 | AW84: 2.485178267 | AX84: 4.29163815 | AY84: 4.053946213 | AZ84: 4.925266338 | BA84: 5.305491719 | BC84: =+VLOOKUP(BC$3,M_INDICES_M,8,0) -> 0.09509469847 | BD84: 0.1977191434 | BE84: 0.09502307045 | BF84: 0.1341964004 | BG84: 0.2128498226 | BH84: 0.2674638137 | BI84: 0.3452063392 | BJ84: 0.4847537138 | BK84: 0.7819794585 | BL84: 0.6678247443 | BM84: 1.215584017 | BN84: 0.6895245312
A85: ÍNDICES_DE_PRECIOS | B85: Índice de costos de construcción de vivienda -Bogotá (ICCV) | AC85: =IF(FICHA!$E$22="Mensual",VLOOKUP(AC$3,M_INDICES_M,13,0),"") ->  | AD85: =IF(FICHA!$E$22="Mensual",VLOOKUP(AD$3,M_INDICES_M,13,0),"") ->  | AE85: =IF(FICHA!$E$22="Mensual",VLOOKUP(AE$3,M_INDICES_M,13,0),"") ->  | AF85: =IF(FICHA!$E$22="Mensual",VLOOKUP(AF$3,M_INDICES_M,13,0),"") ->  | AG85: =IF(FICHA!$E$22="Mensual",VLOOKUP(AG$3,M_INDICES_M,13,0),"") ->  | AH85: =IF(FICHA!$E$22="Mensual",VLOOKUP(AH$3,M_INDICES_M,13,0),"") ->  | AI85: =IF(FICHA!$E$22="Mensual",VLOOKUP(AI$3,M_INDICES_M,13,0),"") ->  | AJ85: =IF(FICHA!$E$22="Mensual",VLOOKUP(AJ$3,M_INDICES_M,13,0),"") ->  | AK85: =IF(FICHA!$E$22="Mensual",VLOOKUP(AK$3,M_INDICES_M,13,0),"") ->  | AL85: =IF(FICHA!$E$22="Mensual",VLOOKUP(AL$3,M_INDICES_M,13,0),"") ->  | AM85: =IF(FICHA!$E$22="Mensual",VLOOKUP(AM$3,M_INDICES_M,13,0),"") ->  | AN85: =IF(FICHA!$E$22="Mensual",VLOOKUP(AN$3,M_INDICES_M,13,0),"") ->  | AP85: =+VLOOKUP(AP$3,M_INDICES_M,17,0) -> 0.7854185342 | AQ85: 1.280573697 | AR85: 1.878174756 | AS85: 1.869637598 | AT85: 0.8261374958 | AU85: 1.619063434 | AV85: 1.851544337 | AW85: 2.312354699 | AX85: 2.787499485 | AY85: 2.475692459 | AZ85: 3.586859053 | BA85: 3.623453033 | BC85: =+VLOOKUP(BC$3,M_INDICES_M,9,0) -> -0.3124365997 | BD85: 0.1562850456 | BE85: 0.01464615128 | BF85: -0.008126777733 | BG85: 0.1300390117 | BH85: 0.174512987 | BI85: 0.0364623425 | BJ85: 0.409039365 | BK85: 0.6897108055 | BL85: 0.4806921968 | BM85: 1.315579652 | BN85: 0.4879200441
A86: CEMENTO | B86: Producción de cemento - Colombia | AC86: =+VLOOKUP(AC$3,M_CEMENTO,8,0) -> 2.4156584 | AD86: 3.965043974 | AE86: 7.645963127 | AF86: -6.162153335 | AG86: 12.53324515 | AH86: 4.923896577 | AI86: -25.92199535 | AJ86: -79.5136707 | AK86: -1.042463908 | AL86: 9.366225426 | AM86: 41.18915162 | AN86: 471.0102957 | AP86: =+VLOOKUP(AP$3,M_CEMENTO,14,0) -> 2.4156584 | AQ86: 3.210537804 | AR86: 4.825281904 | AS86: 1.956566883 | AT86: 12.53324515 | AU86: 8.60089198 | AV86: -4.305571421 | AW86: -22.37808343 | AX86: -1.042463908 | AY86: 4.154409065 | AZ86: 14.87236817 | BA86: 43.80113238 | BC86: =+VLOOKUP(BC$3,M_CEMENTO,5,0) -> 291.4694723 | BD86: 25.54541934 | BE86: 15.7182414 | BF86: -3.159157288 | BG86: 4.784299373 | BH86: 3.693996262 | BI86: 1.979939131 | BJ86: -3.106071533 | BK86: -12.06621023 | BL86: 10.20145959 | BM86: 5.305568957 | BN86: -5.369928794
A87: CEMENTO | B87: Despacho de cemento - Colombia | AC87: =+VLOOKUP(AC$3,M_CEMENTO,9,0) -> 0.8536358071 | AD87: 1.250431752 | AE87: 5.817298617 | AF87: -3.851293963 | AG87: 8.454681547 | AH87: 5.349256925 | AI87: -28.58929447 | AJ87: -75.54143101 | AK87: -0.563364827 | AL87: 5.339893738 | AM87: 60.74502515 | AN87: 333.4633746 | AP87: =+VLOOKUP(AP$3,M_CEMENTO,15,0) -> 0.8536358071 | AQ87: 1.057456048 | AR87: 2.69300573 | AS87: 0.9541666083 | AT87: 8.454681547 | AU87: 6.856487168 | AV87: -5.693737919 | AW87: -23.3690661 | AX87: -0.563364827 | AY87: 2.431870823 | AZ87: 18.06609316 | BA87: 43.5402777 | BC87: =+VLOOKUP(BC$3,M_CEMENTO,6,0) -> 191.2051007 | BD87: 28.19490146 | BE87: 20.78608583 | BF87: -3.749605386 | BG87: 7.521272996 | BH87: 3.351281013 | BI87: -4.030588299 | BJ87: -6.031641588 | BK87: -6.185907834 | BL87: 9.11378673 | BM87: 10.17123442 | BN87: -11.62639065
A88: CEMENTO | B88: Despacho de cemento - Bogotá | AC88: =+VLOOKUP(AC$3,M_CEMENTO,10,0) -> -2.760893812 | AD88: 2.758424252 | AE88: 14.9756282 | AF88: -4.863985901 | AG88: 1.008511662 | AH88: 0.1044741208 | AI88: -43.05080366 | AJ88: -90.89190934 | AK88: -17.32718105 | AL88: -5.902630141 | AM88: 64.05518855 | AN88: 949.7556727 | AP88: =+VLOOKUP(AP$3,M_CEMENTO,16,0) -> -2.760893812 | AQ88: 0.06987612611 | AR88: 5.117747468 | AS88: 2.5264273 | AT88: 1.008511662 | AU88: 0.5323880804 | AV88: -15.61131499 | AW88: -33.74588563 | AX88: -17.32718105 | AY88: -11.33589778 | AZ88: 7.50959553 | BA88: 38.71307812 | BC88: =+VLOOKUP(BC$3,M_CEMENTO,7,0) -> 510.8341835 | BD88: 50.19544556 | BE88: 11.31571544 | BF88: -0.2963167285 | BG88: 13.87413731 | BH88: 7.255398225 | BI88: -12.67607781 | BJ88: -7.484246137 | BK88: -14.30448014 | BL88: 25.50860211 | BM88: 10.80019305 | BN88: -12.32512884
A89: FINANCIACION_VIVIENDA | B89: Total Viviendas Financiadas - Colombia | AC89: =IF(FICHA!$E$22="Trimestral",VLOOKUP(AC$3,M_CHV_FIVI,11,0),"") -> 0.922703359 | AD89: =IF(FICHA!$E$22="Trimestral",VLOOKUP(AD$3,M_CHV_FIVI,11,0),"") -> 3.919162924 | AE89: =IF(FICHA!$E$22="Trimestral",VLOOKUP(AE$3,M_CHV_FIVI,11,0),"") -> 12.57099414 | AF89: =IF(FICHA!$E$22="Trimestral",VLOOKUP(AF$3,M_CHV_FIVI,11,0),"") -> -4.237014949 | AG89: =IF(FICHA!$E$22="Trimestral",VLOOKUP(AG$3,M_CHV_FIVI,11,0),"") -> 6.54422969 | AH89: =IF(FICHA!$E$22="Trimestral",VLOOKUP(AH$3,M_CHV_FIVI,11,0),"") -> -52.9816667 | AI89: =IF(FICHA!$E$22="Trimestral",VLOOKUP(AI$3,M_CHV_FIVI,11,0),"") -> -25.50452884 | AJ89: =IF(FICHA!$E$22="Trimestral",VLOOKUP(AJ$3,M_CHV_FIVI,11,0),"") -> 2.770823252 | AK89: =IF(FICHA!$E$22="Trimestral",VLOOKUP(AK$3,M_CHV_FIVI,11,0),"") -> 11.84543972 | AL89: =IF(FICHA!$E$22="Trimestral",VLOOKUP(AL$3,M_CHV_FIVI,11,0),"") -> 135.5142844 | AM89: =IF(FICHA!$E$22="Trimestral",VLOOKUP(AM$3,M_CHV_FIVI,11,0),"") -> 58.36710751 | AN89: =IF(FICHA!$E$22="Trimestral",VLOOKUP(AN$3,M_CHV_FIVI,11,0),"") -> 18.40607599 | AP89: =IF(FICHA!$E$22="Trimestral",VLOOKUP(AP$3,M_CHV_FIVI,20,0),"") -> 0.922703359 | AQ89: =IF(FICHA!$E$22="Trimestral",VLOOKUP(AQ$3,M_CHV_FIVI,20,0),"") -> 2.535414824 | AR89: =IF(FICHA!$E$22="Trimestral",VLOOKUP(AR$3,M_CHV_FIVI,20,0),"") -> 6.12633516 | AS89: =IF(FICHA!$E$22="Trimestral",VLOOKUP(AS$3,M_CHV_FIVI,20,0),"") -> 3.180638991 | AT89: =IF(FICHA!$E$22="Trimestral",VLOOKUP(AT$3,M_CHV_FIVI,20,0),"") -> 6.54422969 | AU89: =IF(FICHA!$E$22="Trimestral",VLOOKUP(AU$3,M_CHV_FIVI,20,0),"") -> -25.92529588 | AV89: =IF(FICHA!$E$22="Trimestral",VLOOKUP(AV$3,M_CHV_FIVI,20,0),"") -> -25.76559461 | AW89: =IF(FICHA!$E$22="Trimestral",VLOOKUP(AW$3,M_CHV_FIVI,20,0),"") -> -18.23747176 | AX89: =IF(FICHA!$E$22="Trimestral",VLOOKUP(AX$3,M_CHV_FIVI,20,0),"") -> 11.84543972 | AY89: =IF(FICHA!$E$22="Trimestral",VLOOKUP(AY$3,M_CHV_FIVI,20,0),"") -> 54.66356091 | AZ89: =IF(FICHA!$E$22="Trimestral",VLOOKUP(AZ$3,M_CHV_FIVI,20,0),"") -> 56.07417789 | BA89: =IF(FICHA!$E$22="Trimestral",VLOOKUP(BA$3,M_CHV_FIVI,20,0),"") -> 43.58377344
A90: FINANCIACION_VIVIENDA | B90: Total Vivienda Financiadas Nuevas - Colombia | AC90: =IF(FICHA!$E$22="Trimestral",VLOOKUP(AC$3,M_CHV_FIVI,12,0),"") -> -3.822597677 | AD90: =IF(FICHA!$E$22="Trimestral",VLOOKUP(AD$3,M_CHV_FIVI,12,0),"") -> -6.175334113 | AE90: =IF(FICHA!$E$22="Trimestral",VLOOKUP(AE$3,M_CHV_FIVI,12,0),"") -> 7.316241647 | AF90: =IF(FICHA!$E$22="Trimestral",VLOOKUP(AF$3,M_CHV_FIVI,12,0),"") -> -13.68917829 | AG90: =IF(FICHA!$E$22="Trimestral",VLOOKUP(AG$3,M_CHV_FIVI,12,0),"") -> 8.309178744 | AH90: =IF(FICHA!$E$22="Trimestral",VLOOKUP(AH$3,M_CHV_FIVI,12,0),"") -> -48.70593569 | AI90: =IF(FICHA!$E$22="Trimestral",VLOOKUP(AI$3,M_CHV_FIVI,12,0),"") -> -21.22752399 | AJ90: =IF(FICHA!$E$22="Trimestral",VLOOKUP(AJ$3,M_CHV_FIVI,12,0),"") -> 11.42718715 | AK90: =IF(FICHA!$E$22="Trimestral",VLOOKUP(AK$3,M_CHV_FIVI,12,0),"") -> 9.15578623 | AL90: =IF(FICHA!$E$22="Trimestral",VLOOKUP(AL$3,M_CHV_FIVI,12,0),"") -> 126.0754272 | AM90: =IF(FICHA!$E$22="Trimestral",VLOOKUP(AM$3,M_CHV_FIVI,12,0),"") -> 51.31472818 | AN90: =IF(FICHA!$E$22="Trimestral",VLOOKUP(AN$3,M_CHV_FIVI,12,0),"") -> 12.37033356 | AP90: =IF(FICHA!$E$22="Trimestral",VLOOKUP(AP$3,M_CHV_FIVI,21,0),"") -> -3.822597677 | AQ90: =IF(FICHA!$E$22="Trimestral",VLOOKUP(AQ$3,M_CHV_FIVI,21,0),"") -> -5.101765477 | AR90: =IF(FICHA!$E$22="Trimestral",VLOOKUP(AR$3,M_CHV_FIVI,21,0),"") -> -0.6168735225 | AS90: =IF(FICHA!$E$22="Trimestral",VLOOKUP(AS$3,M_CHV_FIVI,21,0),"") -> -4.432625659 | AT90: =IF(FICHA!$E$22="Trimestral",VLOOKUP(AT$3,M_CHV_FIVI,21,0),"") -> 8.309178744 | AU90: =IF(FICHA!$E$22="Trimestral",VLOOKUP(AU$3,M_CHV_FIVI,21,0),"") -> -22.33889148 | AV90: =IF(FICHA!$E$22="Trimestral",VLOOKUP(AV$3,M_CHV_FIVI,21,0),"") -> -21.90546986 | AW90: =IF(FICHA!$E$22="Trimestral",VLOOKUP(AW$3,M_CHV_FIVI,21,0),"") -> -13.11820894 | AX90: =IF(FICHA!$E$22="Trimestral",VLOOKUP(AX$3,M_CHV_FIVI,21,0),"") -> 9.15578623 | AY90: =IF(FICHA!$E$22="Trimestral",VLOOKUP(AY$3,M_CHV_FIVI,21,0),"") -> 50.66687588 | AZ90: =IF(FICHA!$E$22="Trimestral",VLOOKUP(AZ$3,M_CHV_FIVI,21,0),"") -> 50.92172478 | BA90: =IF(FICHA!$E$22="Trimestral",VLOOKUP(BA$3,M_CHV_FIVI,21,0),"") -> 37.8874748
A91: FINANCIACION_VIVIENDA | B91: Total Vivienda Financiadas Usadas - Colombia | AC91: =IF(FICHA!$E$22="Trimestral",VLOOKUP(AC$3,M_CHV_FIVI,13,0),"") -> 9.31292009 | AD91: =IF(FICHA!$E$22="Trimestral",VLOOKUP(AD$3,M_CHV_FIVI,13,0),"") -> 22.91680566 | AE91: =IF(FICHA!$E$22="Trimestral",VLOOKUP(AE$3,M_CHV_FIVI,13,0),"") -> 22.58609487 | AF91: =IF(FICHA!$E$22="Trimestral",VLOOKUP(AF$3,M_CHV_FIVI,13,0),"") -> 15.35128443 | AG91: =IF(FICHA!$E$22="Trimestral",VLOOKUP(AG$3,M_CHV_FIVI,13,0),"") -> 3.798592608 | AH91: =IF(FICHA!$E$22="Trimestral",VLOOKUP(AH$3,M_CHV_FIVI,13,0),"") -> -59.12396874 | AI91: =IF(FICHA!$E$22="Trimestral",VLOOKUP(AI$3,M_CHV_FIVI,13,0),"") -> -32.64072935 | AJ91: =IF(FICHA!$E$22="Trimestral",VLOOKUP(AJ$3,M_CHV_FIVI,13,0),"") -> -10.65199893 | AK91: =IF(FICHA!$E$22="Trimestral",VLOOKUP(AK$3,M_CHV_FIVI,13,0),"") -> 16.21141315 | AL91: =IF(FICHA!$E$22="Trimestral",VLOOKUP(AL$3,M_CHV_FIVI,13,0),"") -> 152.5295445 | AM91: =IF(FICHA!$E$22="Trimestral",VLOOKUP(AM$3,M_CHV_FIVI,13,0),"") -> 72.12779352 | AN91: =IF(FICHA!$E$22="Trimestral",VLOOKUP(AN$3,M_CHV_FIVI,13,0),"") -> 30.07807808 | AP91: =IF(FICHA!$E$22="Trimestral",VLOOKUP(AP$3,M_CHV_FIVI,22,0),"") -> 9.31292009 | AQ91: =IF(FICHA!$E$22="Trimestral",VLOOKUP(AQ$3,M_CHV_FIVI,22,0),"") -> 16.4981148 | AR91: =IF(FICHA!$E$22="Trimestral",VLOOKUP(AR$3,M_CHV_FIVI,22,0),"") -> 18.63876259 | AS91: =IF(FICHA!$E$22="Trimestral",VLOOKUP(AS$3,M_CHV_FIVI,22,0),"") -> 17.75248648 | AT91: =IF(FICHA!$E$22="Trimestral",VLOOKUP(AT$3,M_CHV_FIVI,22,0),"") -> 3.798592608 | AU91: =IF(FICHA!$E$22="Trimestral",VLOOKUP(AU$3,M_CHV_FIVI,22,0),"") -> -31.26644687 | AV91: =IF(FICHA!$E$22="Trimestral",VLOOKUP(AV$3,M_CHV_FIVI,22,0),"") -> -31.76574807 | AW91: =IF(FICHA!$E$22="Trimestral",VLOOKUP(AW$3,M_CHV_FIVI,22,0),"") -> -26.18973385 | AX91: =IF(FICHA!$E$22="Trimestral",VLOOKUP(AX$3,M_CHV_FIVI,22,0),"") -> 16.21141315 | AY91: =IF(FICHA!$E$22="Trimestral",VLOOKUP(AY$3,M_CHV_FIVI,22,0),"") -> 61.38883999 | AZ91: =IF(FICHA!$E$22="Trimestral",VLOOKUP(AZ$3,M_CHV_FIVI,22,0),"") -> 65.2404606 | BA91: =IF(FICHA!$E$22="Trimestral",VLOOKUP(BA$3,M_CHV_FIVI,22,0),"") -> 53.99946239
A92: CARTERA_HIPOTECARIA | B92: Número de créditos - Colombia | C92: =IF(FICHA!$E$22="Trimestral",VLOOKUP(C$3,M_CHV_FIVI,8,0),"") -> 0.4415462082 | D92: =IF(FICHA!$E$22="Trimestral",VLOOKUP(D$3,M_CHV_FIVI,8,0),"") -> 0.9325662942 | E92: =IF(FICHA!$E$22="Trimestral",VLOOKUP(E$3,M_CHV_FIVI,8,0),"") -> 1.272896987 | F92: =IF(FICHA!$E$22="Trimestral",VLOOKUP(F$3,M_CHV_FIVI,8,0),"") -> 0.9918573587 | G92: =IF(FICHA!$E$22="Trimestral",VLOOKUP(G$3,M_CHV_FIVI,8,0),"") -> 0.5169427981 | H92: =IF(FICHA!$E$22="Trimestral",VLOOKUP(H$3,M_CHV_FIVI,8,0),"") -> -0.3113450722 | I92: =IF(FICHA!$E$22="Trimestral",VLOOKUP(I$3,M_CHV_FIVI,8,0),"") -> 0.9225364377 | J92: =IF(FICHA!$E$22="Trimestral",VLOOKUP(J$3,M_CHV_FIVI,8,0),"") -> 0.9995607415 | K92: =IF(FICHA!$E$22="Trimestral",VLOOKUP(K$3,M_CHV_FIVI,8,0),"") -> 0.1760900168 | L92: =IF(FICHA!$E$22="Trimestral",VLOOKUP(L$3,M_CHV_FIVI,8,0),"") -> 0.5151820805 | M92: =IF(FICHA!$E$22="Trimestral",VLOOKUP(M$3,M_CHV_FIVI,8,0),"") -> 1.394246187 | N92: =IF(FICHA!$E$22="Trimestral",VLOOKUP(N$3,M_CHV_FIVI,8,0),"") -> 1.476845617 | AC92: =IF(FICHA!$E$22="Trimestral",VLOOKUP(AC$3,M_CHV_FIVI,14,0),"") -> 3.900574881 | AD92: =IF(FICHA!$E$22="Trimestral",VLOOKUP(AD$3,M_CHV_FIVI,14,0),"") -> 3.962735213 | AE92: =IF(FICHA!$E$22="Trimestral",VLOOKUP(AE$3,M_CHV_FIVI,14,0),"") -> 4.029938996 | AF92: =IF(FICHA!$E$22="Trimestral",VLOOKUP(AF$3,M_CHV_FIVI,14,0),"") -> 3.686997417 | AG92: =IF(FICHA!$E$22="Trimestral",VLOOKUP(AG$3,M_CHV_FIVI,14,0),"") -> 3.764830209 | AH92: =IF(FICHA!$E$22="Trimestral",VLOOKUP(AH$3,M_CHV_FIVI,14,0),"") -> 2.486013505 | AI92: =IF(FICHA!$E$22="Trimestral",VLOOKUP(AI$3,M_CHV_FIVI,14,0),"") -> 2.131456096 | AJ92: =IF(FICHA!$E$22="Trimestral",VLOOKUP(AJ$3,M_CHV_FIVI,14,0),"") -> 2.139246404 | AK92: =IF(FICHA!$E$22="Trimestral",VLOOKUP(AK$3,M_CHV_FIVI,14,0),"") -> 1.792892394 | AL92: =IF(FICHA!$E$22="Trimestral",VLOOKUP(AL$3,M_CHV_FIVI,14,0),"") -> 2.636865959 | AM92: =IF(FICHA!$E$22="Trimestral",VLOOKUP(AM$3,M_CHV_FIVI,14,0),"") -> 3.116588448 | AN92: =IF(FICHA!$E$22="Trimestral",VLOOKUP(AN$3,M_CHV_FIVI,14,0),"") -> 3.603877577
A93: CARTERA_HIPOTECARIA | B93: Número de créditos - Bogotá | C93: =IF(FICHA!$E$22="Trimestral",VLOOKUP(C$3,M_CHV_FIVI,9,0),"") -> -0.2266265695 | D93: =IF(FICHA!$E$22="Trimestral",VLOOKUP(D$3,M_CHV_FIVI,9,0),"") -> 0.1513553777 | E93: =IF(FICHA!$E$22="Trimestral",VLOOKUP(E$3,M_CHV_FIVI,9,0),"") -> 0.3580339267 | F93: =IF(FICHA!$E$22="Trimestral",VLOOKUP(F$3,M_CHV_FIVI,9,0),"") -> -0.6422049972 | G93: =IF(FICHA!$E$22="Trimestral",VLOOKUP(G$3,M_CHV_FIVI,9,0),"") -> -1.680395316 | H93: =IF(FICHA!$E$22="Trimestral",VLOOKUP(H$3,M_CHV_FIVI,9,0),"") -> -1.218874807 | I93: =IF(FICHA!$E$22="Trimestral",VLOOKUP(I$3,M_CHV_FIVI,9,0),"") -> 0.02053919861 | J93: =IF(FICHA!$E$22="Trimestral",VLOOKUP(J$3,M_CHV_FIVI,9,0),"") -> -0.945948359 | K93: =IF(FICHA!$E$22="Trimestral",VLOOKUP(K$3,M_CHV_FIVI,9,0),"") -> 1.470555097 | L93: =IF(FICHA!$E$22="Trimestral",VLOOKUP(L$3,M_CHV_FIVI,9,0),"") -> -0.2529402359 | M93: =IF(FICHA!$E$22="Trimestral",VLOOKUP(M$3,M_CHV_FIVI,9,0),"") -> 1.076887113 | N93: =IF(FICHA!$E$22="Trimestral",VLOOKUP(N$3,M_CHV_FIVI,9,0),"") -> 0.5196012352 | AC93: =IF(FICHA!$E$22="Trimestral",VLOOKUP(AC$3,M_CHV_FIVI,15,0),"") -> 0.8882364378 | AD93: =IF(FICHA!$E$22="Trimestral",VLOOKUP(AD$3,M_CHV_FIVI,15,0),"") -> 0.8961253703 | AE93: =IF(FICHA!$E$22="Trimestral",VLOOKUP(AE$3,M_CHV_FIVI,15,0),"") -> 0.8538800483 | AF93: =IF(FICHA!$E$22="Trimestral",VLOOKUP(AF$3,M_CHV_FIVI,15,0),"") -> -0.3618679733 | AG93: =IF(FICHA!$E$22="Trimestral",VLOOKUP(AG$3,M_CHV_FIVI,15,0),"") -> -1.813666156 | AH93: =IF(FICHA!$E$22="Trimestral",VLOOKUP(AH$3,M_CHV_FIVI,15,0),"") -> -3.157011714 | AI93: =IF(FICHA!$E$22="Trimestral",VLOOKUP(AI$3,M_CHV_FIVI,15,0),"") -> -3.482685671 | AJ93: =IF(FICHA!$E$22="Trimestral",VLOOKUP(AJ$3,M_CHV_FIVI,15,0),"") -> -3.777745495 | AK93: =IF(FICHA!$E$22="Trimestral",VLOOKUP(AK$3,M_CHV_FIVI,15,0),"") -> -0.6940110398 | AL93: =IF(FICHA!$E$22="Trimestral",VLOOKUP(AL$3,M_CHV_FIVI,15,0),"") -> 0.2770559291 | AM93: =IF(FICHA!$E$22="Trimestral",VLOOKUP(AM$3,M_CHV_FIVI,15,0),"") -> 1.336112996 | AN93: =IF(FICHA!$E$22="Trimestral",VLOOKUP(AN$3,M_CHV_FIVI,15,0),"") -> 2.835426722
A94: CARTERA_HIPOTECARIA | B94: Número de créditos - Bogotá - VIS/VIP | C94: =IF(FICHA!$E$22="Trimestral",VLOOKUP(C$3,M_CHV_FIVI,10,0),"") -> 0.242482777 | D94: =IF(FICHA!$E$22="Trimestral",VLOOKUP(D$3,M_CHV_FIVI,10,0),"") -> -4.242408712 | E94: =IF(FICHA!$E$22="Trimestral",VLOOKUP(E$3,M_CHV_FIVI,10,0),"") -> -0.1418272704 | F94: =IF(FICHA!$E$22="Trimestral",VLOOKUP(F$3,M_CHV_FIVI,10,0),"") -> 1.29326516 | G94: =IF(FICHA!$E$22="Trimestral",VLOOKUP(G$3,M_CHV_FIVI,10,0),"") -> -3.433953279 | H94: =IF(FICHA!$E$22="Trimestral",VLOOKUP(H$3,M_CHV_FIVI,10,0),"") -> 3.919892606 | I94: =IF(FICHA!$E$22="Trimestral",VLOOKUP(I$3,M_CHV_FIVI,10,0),"") -> 0.02319953179 | J94: =IF(FICHA!$E$22="Trimestral",VLOOKUP(J$3,M_CHV_FIVI,10,0),"") -> 0.9815342931 | K94: =IF(FICHA!$E$22="Trimestral",VLOOKUP(K$3,M_CHV_FIVI,10,0),"") -> -0.6874951061 | L94: =IF(FICHA!$E$22="Trimestral",VLOOKUP(L$3,M_CHV_FIVI,10,0),"") -> -1.001850217 | M94: =IF(FICHA!$E$22="Trimestral",VLOOKUP(M$3,M_CHV_FIVI,10,0),"") -> 2.76889913 | N94: =IF(FICHA!$E$22="Trimestral",VLOOKUP(N$3,M_CHV_FIVI,10,0),"") -> 1.464684822 | AC94: =IF(FICHA!$E$22="Trimestral",VLOOKUP(AC$3,M_CHV_FIVI,16,0),"") -> -1.114410817 | AD94: =IF(FICHA!$E$22="Trimestral",VLOOKUP(AD$3,M_CHV_FIVI,16,0),"") -> -4.260072453 | AE94: =IF(FICHA!$E$22="Trimestral",VLOOKUP(AE$3,M_CHV_FIVI,16,0),"") -> -5.391097995 | AF94: =IF(FICHA!$E$22="Trimestral",VLOOKUP(AF$3,M_CHV_FIVI,16,0),"") -> -2.906710916 | AG94: =IF(FICHA!$E$22="Trimestral",VLOOKUP(AG$3,M_CHV_FIVI,16,0),"") -> -6.467648943 | AH94: =IF(FICHA!$E$22="Trimestral",VLOOKUP(AH$3,M_CHV_FIVI,16,0),"") -> 1.504974658 | AI94: =IF(FICHA!$E$22="Trimestral",VLOOKUP(AI$3,M_CHV_FIVI,16,0),"") -> 1.672722985 | AJ94: =IF(FICHA!$E$22="Trimestral",VLOOKUP(AJ$3,M_CHV_FIVI,16,0),"") -> 1.359824334 | AK94: =IF(FICHA!$E$22="Trimestral",VLOOKUP(AK$3,M_CHV_FIVI,16,0),"") -> 4.24262349 | AL94: =IF(FICHA!$E$22="Trimestral",VLOOKUP(AL$3,M_CHV_FIVI,16,0),"") -> -0.6944041675 | AM94: =IF(FICHA!$E$22="Trimestral",VLOOKUP(AM$3,M_CHV_FIVI,16,0),"") -> 2.031596759 | AN94: =IF(FICHA!$E$22="Trimestral",VLOOKUP(AN$3,M_CHV_FIVI,16,0),"") -> 2.519771357
A95: IPP | B95: Indice de Precios de Producción - Materiales de construcción | AC95: =+VLOOKUP(AC$3,M_IPP_MC,4,0) -> 2.451025903 | AD95: 2.621377146 | AE95: 2.290919128 | AF95: =+VLOOKUP(AF$3,M_IPP_MC,4,0) -> 2.919438285 | AG95: 3.534209334 | AH95: 3.651735924 | AI95: 5.07285483 | AJ95: 5.323159785 | AK95: 4.402625821 | AL95: 5.163137799 | AM95: 4.622496148 | AN95: 5.829711071 | AP95: =+VLOOKUP(AP$3,M_IPP_MC,5,0) -> 0.17 | AQ95: 0.93 | AR95: 0.92 | AS95: 1.12 | AT95: 0.3 | AU95: 2.65 | AV95: 3.52 | AW95: 3 | AX95: 1.03 | AY95: 2.65 | AZ95: 3.52 | BA95: 5.17 | BC95: =+VLOOKUP(BC$3,M_IPP_MC,3,0) -> 0.34 | BD95: -0.39 | BE95: -0.11 | BF95: 0.28 | BG95: 0.36 | BH95: 0.36 | BI95: 0.1 | BJ95: -0.3 | BK95: 1.03 | BL95: 1.6 | BM95: 0.85 | BN95: 1.59

Sheet PIB (hidden)
C1: 1 | D1: 2 | E1: 3 | F1: 4 | G1: 5 | H1: 6 | I1: 7 | J1: 8 | K1: 9 | L1: 10 | M1: 11 | N1: 12 | O1: 13 | P1: 14 | Q1: 15 | R1: 16 | S1: 17 | T1: 18 | U1: 19 | V1: 20 | W1: 21 | X1: 22 | Y1: 23 | Z1: 24 | AA1: 25 | AB1: 26 | AC1: 27 | AD1: 28 | AE1: 29 | AF1: 30 | AG1: 31 | AH1: 32 | AI1: 33
A2: año | B2: trimeste | C2: LLAVE | D2: PIB_COLOMBIA | E2: PIB_COLOMBIA_CONST | F2: PIB_COLOMBIA_EDIF | G2: PIB_COLOMBIA_OCIV | H2: PIB_BOGOTÁ | I2: PIB_BOGOTÁ_CONST | J2: PIB_BOGOTÁ_EDIF | K2: PIB_BOGOTÁ_OCIV | L2: VAR_ANUAL_PIB_COL | M2: VAR_ANUAL_PIB_COL_CONST | N2: VAR_ANUAL_PIB_COL_EDIF | O2: VAR_ANUAL_PIB_COL_OCIV | P2: VAR_ANUAL_PIB_BOG | Q2: VAR_ANUAL_PIB_BOG_CONST | R2: VAR_ANUAL_PIB_BOG_EDIF | S2: VAR_ANUAL_PIB_BOG_OCIV | T2: VAR_TRIMESTRAL_PIB_COL | U2: VAR_TRIMESTRAL_PIB_COL_CONST | V2: VAR_TRIMESTRAL_PIB_COL_EDIF | W2: VAR_TRIMESTRAL_PIB_COL_OCIV | X2: VAR_TRIMESTRAL_PIB_BOG | Y2: VAR_TRIMESTRAL_PIB_BOG_CONST | Z2: VAR_TRIMESTRAL_PIB_BOG_EDIF | AA2: VAR_TRIMESTRAL_PIB_BOG_OCIV | AB2: VAR_AÑO_CORRIDO_PIB_COL | AC2: VAR_AÑO_CORRIDO_PIB_COL_CONST | AD2: VAR_AÑO_CORRIDO_PIB_COL_EDIF | AE2: VAR_AÑO_CORRIDO_PIB_COL_OCIV | AF2: VAR_AÑO_CORRIDO_PIB_BOG | AG2: VAR_AÑO_CORRIDO_PIB_BOG_CONST | AH2: VAR_AÑO_CORRIDO_PIB_BOG_EDIF | AI2: VAR_AÑO_CORRIDO_PIB_BOG_OCIV
A3: 2000 | B3: 01 | C3: =+(A3*100)+B3 -> 200001 | D3: 0 | E3: 0 | F3: 0 | G3: 0 | H3: 0 | I3: 0 | J3: 0 | K3: 0 | L3: 0 | M3: 0 | N3: 0 | O3: 0 | P3: 0 | Q3: 0 | R3: 0 | S3: 0 | T3: 0 | U3: 0 | V3: 0 | W3: 0 | X3: 0 | Y3: 0 | Z3: 0 | AA3: 0 | AB3: 0 | AC3: 0 | AD3: 0 | AE3: 0 | AF3: 0 | AG3: 0 | AH3: 0 | AI3: 0
A4: 2000 | B4: 02 | C4: =+(A4*100)+B4 -> 200002 | D4: 0 | E4: 0 | F4: 0 | G4: 0 | H4: 0 | I4: 0 | J4: 0 | K4: 0 | L4: 0 | M4: 0 | N4: 0 | O4: 0 | P4: 0 | Q4: 0 | R4: 0 | S4: 0 | T4: 0 | U4: 0 | V4: 0 | W4: 0 | X4: 0 | Y4: 0 | Z4: =+J4/J3*100-100 ->  | AA4: =+K4/K3*100-100 ->  | AB4: 0 | AC4: 0 | AD4: 0 | AE4: 0 | AF4: 0 | AG4: 0 | AH4: 0 | AI4: 0
A5: 2000 | B5: 03 | C5: 200003 | D5: 0 | E5: 0 | F5: 0 | G5: 0 | H5: 0 | I5: 0 | J5: 0 | K5: 0 | L5: 0 | M5: 0 | N5: 0 | O5: 0 | P5: 0 | Q5: 0 | R5: 0 | S5: 0 | T5: 0 | U5: 0 | V5: 0 | W5: 0 | X5: 0 | Y5: 0 | Z5: =+J5/J4*100-100 ->  | AA5: =+K5/K4*100-100 ->  | AB5: 0 | AC5: 0 | AD5: 0 | AE5: 0 | AF5: 0 | AG5: 0 | AH5: 0 | AI5: 0
A6: 2000 | B6: 04 | C6: 200004 | D6: 0 | E6: 0 | F6: 0 | G6: 0 | H6: 0 | I6: 0 | J6: 0 | K6: 0 | L6: 0 | M6: 0 | N6: 0 | O6: 0 | P6: 0 | Q6: 0 | R6: 0 | S6: 0 | T6: 0 | U6: 0 | V6: 0 | W6: 0 | X6: 0 | Y6: 0 | AB6: 0 | AC6: 0 | AD6: 0 | AE6: 0 | AF6: 0 | AG6: 0 | AH6: 0 | AI6: 0
A7: 2001 | B7: 01 | C7: 200101 | D7: 0 | E7: 0 | F7: 0 | G7: 0 | H7: 0 | I7: 0 | J7: 0 | K7: 0 | L7: 0 | M7: 0 | N7: 0 | O7: 0 | P7: 0 | Q7: 0 | R7: =+J7/J3*100-100 ->  | S7: =+K7/K3*100-100 ->  | T7: 0 | U7: 0 | V7: 0 | W7: 0 | X7: 0 | Y7: 0 | AB7: 0 | AC7: 0 | AD7: 0 | AE7: 0 | AF7: 0 | AG7: 0 | AH7: 0 | AI7: 0
A8: 2001 | B8: 02 | C8: 200102 | D8: 0 | E8: 0 | F8: 0 | G8: 0 | H8: 0 | I8: 0 | J8: 0 | K8: 0 | L8: 0 | M8: 0 | N8: 0 | O8: 0 | P8: 0 | Q8: 0 | R8: =+J8/J4*100-100 ->  | S8: =+K8/K4*100-100 ->  | T8: 0 | U8: 0 | V8: 0 | W8: 0 | X8: 0 | Y8: 0 | AB8: 0 | AC8: 0 | AD8: 0 | AE8: 0 | AF8: 0 | AG8: 0 | AH8: 0 | AI8: 0
A9: 2001 | B9: 03 | C9: 200103 | D9: 0 | E9: 0 | F9: 0 | G9: 0 | H9: 0 | I9: 0 | J9: 0 | K9: 0 | L9: 0 | M9: 0 | N9: 0 | O9: 0 | P9: 0 | Q9: 0 | T9: 0 | U9: 0 | V9: 0 | W9: 0 | X9: 0 | Y9: 0 | AB9: 0 | AC9: 0 | AD9: 0 | AE9: 0 | AF9: 0 | AG9: 0 | AH9: 0 | AI9: 0
A10: 2001 | B10: 04 | C10: 200104 | D10: 0 | E10: 0 | F10: 0 | G10: 0 | H10: 0 | I10: 0 | J10: 0 | K10: 0 | L10: 0 | M10: 0 | N10: 0 | O10: 0 | P10: 0 | Q10: 0 | T10: 0 | U10: 0 | V10: 0 | W10: 0 | X10: 0 | Y10: 0 | AB10: 0 | AC10: 0 | AD10: 0 | AE10: 0 | AF10: 0 | AG10: 0 | AH10: =+IF($B10="04",(SUM(J7:J10)/SUM(J3:J6))*100-100,IF($B10="03",(SUM(J8:J10)/SUM(J4:J6))*100-100,IF($B10="02",(SUM(J9:J10)/SUM(J5:J6)*100-100),IF($B10="01",(J10/J6)*100-100,"")))) ->  | AI10: =+IF($B10="04",(SUM(K7:K10)/SUM(K3:K6))*100-100,IF($B10="03",(SUM(K8:K10)/SUM(K4:K6))*100-100,IF($B10="02",(SUM(K9:K10)/SUM(K5:K6)*100-100),IF($B10="01",(K10/K6)*100-100,"")))) -> 
A11: 2002 | B11: 01 | C11: 200201 | D11: 0 | E11: 0 | F11: 0 | G11: 0 | H11: 0 | I11: 0 | J11: 0 | K11: 0 | L11: 0 | M11: 0 | N11: 0 | O11: 0 | P11: 0 | Q11: 0 | T11: 0 | U11: 0 | V11: 0 | W11: 0 | X11: 0 | Y11: 0 | AB11: 0 | AC11: 0 | AD11: 0 | AE11: 0 | AF11: 0 | AG11: 0 | AH11: =+IF($B11="04",(SUM(J8:J11)/SUM(J4:J7))*100-100,IF($B11="03",(SUM(J9:J11)/SUM(J5:J7))*100-100,IF($B11="02",(SUM(J10:J11)/SUM(J6:J7)*100-100),IF($B11="01",(J11/J7)*100-100,"")))) ->  | AI11: =+IF($B11="04",(SUM(K8:K11)/SUM(K4:K7))*100-100,IF($B11="03",(SUM(K9:K11)/SUM(K5:K7))*100-100,IF($B11="02",(SUM(K10:K11)/SUM(K6:K7)*100-100),IF($B11="01",(K11/K7)*100-100,"")))) -> 
A12: 2002 | B12: 02 | C12: 200202 | D12: 0 | E12: 0 | F12: 0 | G12: 0 | H12: 0 | I12: 0 | J12: 0 | K12: 0 | L12: 0 | M12: 0 | N12: 0 | O12: 0 | P12: 0 | Q12: 0 | T12: 0 | U12: 0 | V12: 0 | W12: 0 | X12: 0 | Y12: 0 | AB12: 0 | AC12: 0 | AD12: 0 | AE12: 0 | AF12: 0 | AG12: 0
A13: 2002 | B13: 03 | C13: 200203 | D13: 0 | E13: 0 | F13: 0 | G13: 0 | H13: 0 | I13: 0 | J13: 0 | K13: 0 | L13: 0 | M13: 0 | N13: 0 | O13: 0 | P13: 0 | Q13: 0 | T13: 0 | U13: 0 | V13: 0 | W13: 0 | X13: 0 | Y13: 0 | AB13: 0 | AC13: 0 | AD13: 0 | AE13: 0 | AF13: 0 | AG13: 0
A14: 2002 | B14: 04 | C14: 200204 | D14: 0 | E14: 0 | F14: 0 | G14: 0 | H14: 0 | I14: 0 | J14: 0 | K14: 0 | L14: 0 | M14: 0 | N14: 0 | O14: 0 | P14: 0 | Q14: 0 | T14: 0 | U14: 0 | V14: 0 | W14: 0 | X14: 0 | Y14: 0 | AB14: 0 | AC14: 0 | AD14: 0 | AE14: 0 | AF14: 0 | AG14: 0
A15: 2003 | B15: 01 | C15: 200301 | D15: 0 | E15: 0 | F15: 0 | G15: 0 | H15: 0 | I15: 0 | J15: 0 | K15: 0 | L15: 0 | M15: 0 | N15: 0 | O15: 0 | P15: 0 | Q15: 0 | T15: 0 | U15: 0 | V15: 0 | W15: 0 | X15: 0 | Y15: 0 | AB15: 0 | AC15: 0 | AD15: 0 | AE15: 0 | AF15: 0 | AG15: 0
A16: 2003 | B16: 02 | C16: 200302 | D16: 0 | E16: 0 | F16: 0 | G16: 0 | H16: 0 | I16: 0 | J16: 0 | K16: 0 | L16: 0 | M16: 0 | N16: 0 | O16: 0 | P16: 0 | Q16: 0 | T16: 0 | U16: 0 | V16: 0 | W16: 0 | X16: 0 | Y16: 0 | AB16: 0 | AC16: 0 | AD16: 0 | AE16: 0 | AF16: 0 | AG16: 0
A17: 2003 | B17: 03 | C17: 200303 | D17: 0 | E17: 0 | F17: 0 | G17: 0 | H17: 0 | I17: 0 | J17: 0 | K17: 0 | L17: 0 | M17: 0 | N17: 0 | O17: 0 | P17: 0 | Q17: 0 | T17: 0 | U17: 0 | V17: 0 | W17: 0 | X17: 0 | Y17: 0 | AB17: 0 | AC17: 0 | AD17: 0 | AE17: 0 | AF17: 0 | AG17: 0
A18: 2003 | B18: 04 | C18: 200304 | D18: 0 | E18: 0 | F18: 0 | G18: 0 | H18: 0 | I18: 0 | J18: 0 | K18: 0 | L18: 0 | M18: 0 | N18: 0 | O18: 0 | P18: 0 | Q18: 0 | T18: 0 | U18: 0 | V18: 0 | W18: 0 | X18: 0 | Y18: 0 | AB18: 0 | AC18: 0 | AD18: 0 | AE18: 0 | AF18: 0 | AG18: 0
A19: 2004 | B19: 01 | C19: 200401 | D19: 0 | E19: 0 | F19: 0 | G19: 0 | H19: 0 | I19: 0 | J19: 0 | K19: 0 | L19: 0 | M19: 0 | N19: 0 | O19: 0 | P19: 0 | Q19: 0 | T19: 0 | U19: 0 | V19: 0 | W19: 0 | X19: 0 | Y19: 0 | AB19: 0 | AC19: 0 | AD19: 0 | AE19: 0 | AF19: 0 | AG19: 0
A20: 2004 | B20: 02 | C20: 200402 | D20: 0 | E20: 0 | F20: 0 | G20: 0 | H20: 0 | I20: 0 | J20: 0 | K20: 0 | L20: 0 | M20: 0 | N20: 0 | O20: 0 | P20: 0 | Q20: 0 | T20: 0 | U20: 0 | V20: 0 | W20: 0 | X20: 0 | Y20: 0 | AB20: 0 | AC20: 0 | AD20: 0 | AE20: 0 | AF20: 0 | AG20: 0
A21: 2004 | B21: 03 | C21: 200403 | D21: 0 | E21: 0 | F21: 0 | G21: 0 | H21: 0 | I21: 0 | J21: 0 | K21: 0 | L21: 0 | M21: 0 | N21: 0 | O21: 0 | P21: 0 | Q21: 0 | T21: 0 | U21: 0 | V21: 0 | W21: 0 | X21: 0 | Y21: 0 | AB21: 0 | AC21: 0 | AD21: 0 | AE21: 0 | AF21: 0 | AG21: 0
A22: 2004 | B22: 04 | C22: 200404 | D22: 0 | E22: 0 | F22: 0 | G22: 0 | H22: 0 | I22: 0 | J22: 0 | K22: 0 | L22: 0 | M22: 0 | N22: 0 | O22: 0 | P22: 0 | Q22: 0 | T22: 0 | U22: 0 | V22: 0 | W22: 0 | X22: 0 | Y22: 0 | AB22: 0 | AC22: 0 | AD22: 0 | AE22: 0 | AF22: 0 | AG22: 0
A23: 2005 | B23: 01 | C23: 200501 | D23: 119523.6619 | E23: 7666.450828 | F23: 4985.245237 | G23: 1234.615349 | H23: 31111.76649 | I23: 1947.720495 | J23: 1204.870279 | K23: 464.1770958 | L23: 0 | M23: 0 | N23: 0 | O23: 0 | P23: 0 | Q23: 0 | R23: =+J23/J19*100-100 ->  | T23: 0 | U23: 0 | V23: 0 | W23: 0 | X23: 0 | Y23: 0 | Z23: =+J23/J22*100-100 ->  | AA23: =+K23/K22*100-100 ->  | AB23: 0 | AC23: 0 | AD23: 0 | AE23: 0 | AF23: 0 | AG23: 0 | AH23: =+IF($B23="04",(SUM(J20:J23)/SUM(J16:J19))*100-100,IF($B23="03",(SUM(J21:J23)/SUM(J17:J19))*100-100,IF($B23="02",(SUM(J22:J23)/SUM(J18:J19)*100-100),IF($B23="01",(J23/J19)*100-100,"")))) -> 
A24: 2005 | B24: 02 | C24: 200502 | D24: 125245.1767 | E24: 6241.040804 | F24: 3930.392855 | G24: 1155.524561 | H24: 33163.85929 | I24: 1819.319273 | J24: 1342.903315 | K24: 213.4798152 | L24: 0 | M24: 0 | N24: 0 | O24: 0 | P24: 0 | Q24: 0 | T24: =+D24/D23*100-100 -> 4.786930669 | U24: =+E24/E23*100-100 -> -18.59282811 | V24: =+F24/F23*100-100 -> -21.15948828 | W24: =+G24/G23*100-100 -> -6.406107653 | X24: =+H24/H23*100-100 -> 6.595873613 | Y24: =+I24/I23*100-100 -> -6.592384367 | Z24: 11.45625704 | AA24: -54.00897263 | AB24: 0 | AC24: 0 | AD24: 0 | AE24: 0 | AF24: 0 | AG24: 0
A25: 2005 | B25: 03 | C25: 200503 | D25: 128851.4513 | E25: 7060.647131 | F25: 4185.93815 | G25: 1528.347766 | H25: 34180.36034 | I25: 2192.597494 | J25: 1633.494488 | K25: 251.8786379 | L25: 0 | M25: 0 | N25: 0 | O25: 0 | P25: 0 | Q25: 0 | T25: 2.879372034 | U25: 13.13252634 | V25: 6.501774851 | W25: 32.26441207 | X25: 3.06508673 | Y25: 20.51746639 | Z25: 21.63902416 | AA25: 17.98709762 | AB25: 0 | AC25: 0 | AD25: 0 | AE25: 0 | AF25: 0 | AG25: 0
A26: 2005 | B26: 04 | C26: 200504 | D26: 141232.71 | E26: 8839.861237 | F26: 4471.423758 | G26: 2392.512324 | H26: 36758.87389 | I26: 2008.345082 | J26: 1571.909417 | K26: 154.0196441 | L26: 0 | M26: 0 | N26: 0 | O26: 0 | P26: 0 | Q26: 0 | T26: 9.608940056 | U26: 25.19902317 | V26: 6.820110526 | W26: 56.5424033 | X26: 7.543845428 | Y26: -8.403385125 | Z26: -3.770142557 | AA26: -38.85164483 | AB26: 0 | AC26: 0 | AD26: 0 | AE26: 0 | AF26: 0 | AG26: 0
A27: 2006 | B27: 01 | C27: 200601 | D27: 127106.1887 | E27: 8038.803439 | F27: 5285.621665 | G27: 1249.123737 | H27: 33253.79836 | I27: 1773.393884 | J27: 1123.956326 | K27: 387.8197095 | L27: =+D27/D23*100-100 -> 6.343954535 | M27: =+E27/E23*100-100 -> 4.856909926 | N27: =+F27/F23*100-100 -> 6.025308953 | O27: =+G27/G23*100-100 -> 1.175134254 | P27: =+H27/H23*100-100 -> 6.884957399 | Q27: =+I27/I23*100-100 -> -8.950288843 | R27: -6.715573815 | S27: -16.45005472 | T27: -10.00230143 | U27: -9.061882042 | V27: 18.20891848 | W27: -47.79029039 | X27: -9.535318027 | Y27: -11.69874638 | Z27: -28.4973858 | AA27: 151.798861 | AB27: =+IF($B27="04",(SUM(D24:D27)/SUM(D20:D23))*100-100,IF($B27="03",(SUM(D25:D27)/SUM(D21:D23))*100-100,IF($B27="02",(SUM(D26:D27)/SUM(D22:D23)*100-100),IF($B27="01",(D27/D23)*100-100,"")))) -> 6.343954535 | AC27: 4.856909926 | AD27: 6.025308953 | AE27: 1.175134254 | AF27: =+IF($B27="04",(SUM(H24:H27)/SUM(H20:H23))*100-100,IF($B27="03",(SUM(H25:H27)/SUM(H21:H23))*100-100,IF($B27="02",(SUM(H26:H27)/SUM(H22:H23)*100-100),IF($B27="01",(H27/H23)*100-100,"")))) -> 6.884957399 | AG27: =+IF($B27="04",(SUM(I24:I27)/SUM(I20:I23))*100-100,IF($B27="03",(SUM(I25:I27)/SUM(I21:I23))*100-100,IF($B27="02",(SUM(I26:I27)/SUM(I22:I23)*100-100),IF($B27="01",(I27/I23)*100-100,"")))) -> -8.950288843 | AH27: -6.715573815 | AI27: -16.45005472
A28: 2006 | B28: 02 | C28: 200602 | D28: 131888.7254 | E28: 6923.528277 | F28: 3953.244824 | G28: 1538.832477 | H28: 35248.19698 | I28: 2156.612539 | J28: 1520.351199 | K28: 276.3460762 | L28: 5.304434712 | M28: 10.93547527 | N28: 0.5814169064 | O28: 33.17176715 | P28: 6.284967259 | Q28: 18.53953129 | R28: 13.21374974 | S28: 29.44833965 | T28: 3.762630867 | U28: -13.87364638 | V28: -25.20757113 | W28: 23.19295774 | X28: 5.997506221 | Y28: 21.60933665 | Z28: 35.26781808 | AA28: -28.74367408 | AB28: 5.812045144 | AC28: 7.584689696 | AD28: 3.625409564 | AE28: 16.64405933 | AF28: 6.57538455 | AG28: 4.326119867 | AH28: 3.788952463 | AI28: -1.990848908
A29: 2006 | B29: 03 | C29: 200603 | D29: 138733.2538 | E29: 8326.853245 | F29: 5063.777275 | G29: 1717.524159 | H29: 36446.37821 | I29: 2196.420446 | J29: 1696.968788 | K29: 214.1594728 | L29: 7.66914331 | M29: 17.933287 | N29: 20.97114421 | O29: 12.37783683 | P29: 6.629590372 | Q29: 0.1743572479 | R29: 3.885798245 | S29: -14.97513463 | T29: 5.189623604 | U29: 20.26892809 | V29: 28.09166902 | W29: 11.61215951 | X29: 3.39926956 | Y29: 1.845853462 | Z29: 11.61689416 | AA29: -22.50316136 | AB29: 6.452507668 | AC29: 11.06939545 | AD29: 9.167351316 | AE29: 14.98008277 | AF29: 6.594202853 | AG29: 2.798653695 | AH29: 3.826787169 | AI29: -5.509234199
A30: 2006 | B30: 04 | C30: 200604 | D30: 151706.8322 | E30: 10137.81504 | F30: 5398.356236 | G30: 2575.519627 | H30: 39192.95367 | I30: 1723.663165 | J30: 1398.080993 | K30: 117.8535363 | L30: 7.416215506 | M30: 14.68296578 | N30: 20.73014163 | O30: 7.649168655 | P30: 6.621747412 | Q30: -14.1749503 | R30: -11.05842502 | S30: -23.4814903 | T30: 9.351455436 | U30: 21.74845334 | V30: 6.60730009 | W30: 49.95536531 | X30: 7.535935222 | Y30: -21.52398837 | Z30: -17.61304023 | AA30: -44.96926296 | AB30: =+IF($B30="04",(SUM(D27:D30)/SUM(D23:D26))*100-100,IF($B30="03",(SUM(D28:D30)/SUM(D24:D26))*100-100,IF($B30="02",(SUM(D29:D30)/SUM(D25:D26)*100-100),IF($B30="01",(D30/D26)*100-100,"")))) -> 6.716868698 | AC30: =+IF($B30="04",(SUM(E27:E30)/SUM(E23:E26))*100-100,IF($B30="03",(SUM(E28:E30)/SUM(E24:E26))*100-100,IF($B30="02",(SUM(E29:E30)/SUM(E25:E26)*100-100),IF($B30="01",(E30/E26)*100-100,"")))) -> 12.14103596 | AD30: =+IF($B30="04",(SUM(F27:F30)/SUM(F23:F26))*100-100,IF($B30="03",(SUM(F28:F30)/SUM(F24:F26))*100-100,IF($B30="02",(SUM(F29:F30)/SUM(F25:F26)*100-100),IF($B30="01",(F30/F26)*100-100,"")))) -> 12.10948614 | AE30: =+IF($B30="04",(SUM(G27:G30)/SUM(G23:G26))*100-100,IF($B30="03",(SUM(G28:G30)/SUM(G24:G26))*100-100,IF($B30="02",(SUM(G29:G30)/SUM(G25:G26)*100-100),IF($B30="01",(G30/G26)*100-100,"")))) -> 12.20091903 | AF30: 6.601690987 | AG30: -1.479575426 | AH30: -0.2402184498 | AI30: -8.063862249
A31: 2007 | B31: 01 | C31: 200701 | D31: 135763.9035 | E31: 8601.811866 | F31: 5498.661653 | G31: 1488.974586 | H31: 36042.45989 | I31: 2185.975279 | J31: 1494.032773 | K31: 406.4987263 | L31: 6.811403078 | M31: 7.00363469 | N31: 4.030556886 | O31: 19.20152841 | P31: 8.385993995 | Q31: 23.26507374 | R31: 32.92623016 | S31: 4.8164176 | T31: -10.50903801 | U31: -15.15122506 | V31: 1.858073318 | W31: -42.18741063 | X31: -8.038418849 | Y31: 26.82148832 | Z31: 6.86310597 | AA31: 244.918565 | AB31: 6.811403078 | AC31: 7.00363469 | AD31: 4.030556886 | AE31: 19.20152841 | AF31: 8.385993995 | AG31: 23.26507374 | AH31: 32.92623016 | AI31: 4.8164176
A32: 2007 | B32: 02 | C32: 200702 | D32: 140940.5332 | E32: 8286.40723 | F32: 4831.780597 | G32: 1835.391155 | H32: 36928.0457 | I32: 1577.234155 | J32: 1111.949843 | K32: 215.6449996 | L32: 6.863215772 | M32: 19.68474596 | N32: 22.22315623 | O32: 19.27166748 | P32: 4.76577205 | Q32: -26.86520519 | R32: -26.86230366 | S32: -21.96560106 | T32: 3.812964645 | U32: -3.666723249 | V32: -12.12806129 | W32: 23.2654454 | X32: 2.457062626 | Y32: -27.84757585 | Z32: -25.57393231 | AA32: -46.95063339 | AB32: 6.837787805 | AC32: 12.87157253 | AD32: 11.8150399 | AE32: 19.24024217 | AF32: 6.523182618 | AG32: -4.244191255 | AH32: -1.449336298 | AI32: -6.327043759
A33: 2007 | B33: 03 | C33: 200703 | D33: 148224.0705 | E33: 8747.711876 | F33: 4918.114142 | G33: 2121.734779 | H33: 38303.65999 | I33: 1929.173185 | J33: 1461.511301 | K33: 214.1053061 | L33: 6.841053949 | M33: 5.05423379 | N33: -2.876570701 | O33: 23.53449398 | P33: 5.095929596 | Q33: -12.16740001 | R33: -13.87518079 | S33: -0.02529270038 | T33: 5.167808858 | U33: 5.567004281 | V33: 1.786785282 | W33: 15.60123152 | X33: 3.725120727 | Y33: 22.31368299 | Z33: 31.43680088 | AA33: -0.7139945329 | AB33: 6.838927083 | AC33: 10.07654847 | AD33: 6.613550919 | AE33: 20.87724436 | AF33: 6.027527453 | AG33: -7.084786285 | AH33: -6.306495518 | AI33: -4.790506273
A34: 2007 | B34: 04 | C34: 200704 | D34: 161528.4928 | E34: 10111.06903 | F34: 5161.443608 | G34: 2752.89948 | H34: 41984.66511 | I34: 1903.982664 | J34: 1427.750784 | K34: 184.4027653 | L34: 6.474105665 | M34: -0.263824204 | N34: -4.388606785 | O34: 6.887148178 | P34: 7.122993256 | Q34: 10.46141166 | R34: 2.122179664 | S34: 56.46774041 | T34: 8.975885115 | U34: 15.58530016 | V34: 4.947617295 | W34: 29.74757767 | X34: 9.610061091 | Y34: -1.305767709 | Z34: -2.30997307 | AA34: -13.87286534 | AB34: 6.738194691 | AC34: 6.940497203 | AD34: 3.598802091 | AE34: 15.78873041 | AF34: =+IF($B34="04",(SUM(H31:H34)/SUM(H27:H30))*100-100,IF($B34="03",(SUM(H32:H34)/SUM(H28:H30))*100-100,IF($B34="02",(SUM(H33:H34)/SUM(H29:H30)*100-100),IF($B34="01",(H34/H30)*100-100,"")))) -> 6.325391648 | AG34: -3.232125367 | AH34: -4.253309083 | AI34: 2.456687742
A35: 2008 | B35: 01 | C35: 200801 | D35: 142741.7244 | E35: 8726.790206 | F35: 5546.460694 | G35: 1502.57422 | H35: 37277.82468 | I35: 2170.59607 | J35: 1421.203012 | K35: 433.4999431 | L35: 5.139673169 | M35: 1.452930414 | N35: 0.8692849996 | O35: 0.9133556635 | P35: 3.427526276 | Q35: -0.7035399287 | R35: -4.874709718 | S35: 6.642386574 | T35: -11.63062196 | U35: -13.69072665 | V35: 7.459484498 | W35: -45.41848583 | X35: -11.21085621 | Y35: 14.00293245 | Z35: -0.4586074314 | AA35: 135.0832117 | AB35: 5.139673169 | AC35: 1.452930414 | AD35: 0.8692849996 | AE35: 0.9133556635 | AF35: 3.427526276 | AG35: -0.7035399287 | AH35: -4.874709718 | AI35: 6.642386574
A36: 2008 | B36: 02 | C36: 200802 | D36: 147704.1756 | E36: 9751.518491 | F36: 5565.446037 | G36: 2193.310445 | H36: 38971.8632 | I36: 2283.940455 | J36: 1666.231311 | K36: 252.4423217 | L36: 4.798933487 | M36: 17.68089861 | N36: 15.18416296 | O36: 19.50098153 | P36: 5.534594249 | Q36: 44.80668244 | R36: 49.84770412 | S36: 17.06384204 | T36: 3.476524598 | U36: 11.74232748 | V36: 0.3422965516 | W36: 45.97019014 | X36: 4.544359916 | Y36: 5.221809148 | Z36: 17.24090762 | AA36: -41.76646948 | AB36: 4.966116023 | AC36: 9.415377624 | AD36: 7.564675954 | AE36: 11.17563327 | AF36: 4.493846178 | AG36: 18.37067807 | AH36: 18.47486257 | AI36: 10.25463028
A37: 2008 | B37: 03 | C37: 200803 | D37: 153170.608 | E37: 10704.98452 | F37: 6346.493019 | G37: 2328.895421 | H37: 39638.41517 | I37: 2378.11656 | J37: 1906.23727 | K37: 183.0203883 | L37: 3.337202578 | M37: 22.37468126 | N37: 29.04322339 | O37: 9.763738816 | P37: 3.484667474 | Q37: 23.27128423 | R37: 30.42918441 | S37: -14.51851816 | T37: 3.700932891 | U37: 9.777616013 | V37: 14.03386137 | W37: 6.18175032 | X37: 1.710341558 | Y37: 4.123404571 | Z37: 14.4041201 | AA37: -27.50011681 | AB37: 4.397916485 | AC37: 13.83746217 | AD37: 14.49214798 | AE37: 10.6255763 | AF37: 4.146458824 | AG37: 20.03151478 | AH37: 22.77022891 | AI37: 3.911947269
A38: 2008 | B38: 04 | C38: 200804 | D38: 162096.4919 | E38: 10105.70678 | F38: 5469.60025 | G38: 2522.219914 | H38: 42404.83131 | I38: 1940.07241 | J38: 1497.698367 | K38: 163.7448105 | L38: 0.3516402107 | M38: -0.05303347383 | N38: 5.97035763 | O38: -8.379512863 | P38: 1.000761097 | Q38: 1.895487081 | R38: 4.899145127 | S38: -11.20262741 | T38: 5.827412993 | U38: -5.598118766 | V38: -13.81696578 | W38: 8.301123846 | X38: 6.979129028 | Y38: -18.41979311 | Z38: -21.43169216 | AA38: -10.53192924 | AB38: 3.283446186 | AC38: 9.908523792 | AD38: 12.33708966 | AE38: 4.244420051 | AF38: 3.284707074 | AG38: 15.48582996 | AH38: 18.12704098 | AI38: 1.181173292
A39: 2009 | B39: 01 | C39: 200901 | D39: 143090.2217 | E39: 8654.067176 | F39: 5341.835756 | G39: 1600.486427 | H39: 38024.23089 | I39: 1979.088815 | J39: 1381.893171 | K39: 343.9794003 | L39: 0.2441452992 | M39: -0.8333308005 | N39: -3.689288526 | O39: 6.516297558 | P39: 2.002279418 | Q39: -8.822795631 | R39: -2.765955399 | S39: -20.65064695 | T39: -11.72528169 | U39: -14.36455296 | V39: -2.335901869 | W39: -36.54453293 | X39: -10.33042766 | Y39: 2.011079866 | Z39: -7.732210849 | AA39: 110.0704134 | AB39: 0.2441452992 | AC39: -0.8333308005 | AD39: -3.689288526 | AE39: 6.516297558 | AF39: 2.002279418 | AG39: -8.822795631 | AH39: -2.765955399 | AI39: -20.65064695
A40: 2009 | B40: 02 | C40: 200902 | D40: 148674.9106 | E40: 10541.04423 | F40: 5813.091591 | G40: 2561.278578 | H40: 39802.41993 | I40: 2564.95315 | J40: 1706.922971 | K40: 417.104313 | L40: 0.6572156978 | M40: 8.096438876 | N40: 4.449698233 | O40: 16.77683766 | P40: 2.131170187 | Q40: 12.30385385 | R40: 2.442137556 | S40: 65.22756969 | T40: 3.90291448 | U40: 21.80451123 | V40: 8.821982877 | W40: 60.03125896 | X40: 4.676462875 | Y40: 29.60273084 | Z40: 23.52061703 | AA40: 21.25851506 | AB40: 0.4542092825 | AC40: 3.879157531 | AD40: 0.3871578211 | AE40: 12.60538091 | AF40: 2.068156585 | AG40: 2.009309831 | AH40: 0.04475622868 | AI40: 10.95448588
A41: 2009 | B41: 03 | C41: 200903 | D41: 153914.9555 | E41: 10303.75136 | F41: 5742.724689 | G41: 2534.066881 | H41: 40054.56646 | I41: 2064.08143 | J41: 1583.573201 | K41: 217.4714878 | L41: 0.4859597422 | M41: -3.748096615 | N41: -9.513416747 | O41: 8.809818532 | P41: 1.049868651 | Q41: -13.20520344 | R41: -16.9267527 | S41: 18.82364023 | T41: 3.524498423 | U41: -2.251132412 | V41: -1.210490167 | W41: -1.062426293 | X41: 0.6334954944 | Y41: -19.52751925 | Z41: -7.226440327 | AA41: -47.86160656 | AB41: 0.4651719882 | AC41: 1.081336292 | AD41: -3.211907859 | AE41: 11.13819577 | AF41: 1.719860954 | AG41: -3.286127464 | AH41: -6.433788112 | AI41: 12.61188241
A42: 2009 | B42: 04 | C42: 200904 | D42: 166935.9122 | E42: 10817.13724 | F42: 5426.347964 | G42: 3046.168114 | H42: 43727.98696 | I42: 2268.398588 | J42: 1762.07911 | K42: 204.4893356 | L42: 2.985518201 | M42: 7.039888202 | N42: -0.7907760041 | O42: 20.77329564 | P42: 3.12029457 | Q42: 16.92339817 | R42: 17.65246922 | S42: 24.88294127 | T42: 8.459838517 | U42: 4.982514195 | V42: -5.509174521 | W42: 20.20867074 | X42: 9.171040452 | Y42: 9.898696602 | Z42: 11.27234965 | AA42: -5.969588162 | AB42: =+IF($B42="04",(SUM(D39:D42)/SUM(D35:D38))*100-100,IF($B42="03",(SUM(D40:D42)/SUM(D36:D38))*100-100,IF($B42="02",(SUM(D41:D42)/SUM(D37:D38)*100-100),IF($B42="01",(D42/D38)*100-100,"")))) -> 1.139648645 | AC42: =+IF($B42="04",(SUM(E39:E42)/SUM(E35:E38))*100-100,IF($B42="03",(SUM(E40:E42)/SUM(E36:E38))*100-100,IF($B42="02",(SUM(E41:E42)/SUM(E37:E38)*100-100),IF($B42="01",(E42/E38)*100-100,"")))) -> 2.613963196 | AD42: -2.634333566 | AE42: 13.98151398 | AF42: 2.09502079 | AG42: 1.183172656 | AH42: -0.8765716103 | AI42: 14.55756623
A43: 2010 | B43: 01 | C43: 201001 | D43: 148308.035 | E43: 8899.2823 | F43: 5309.677854 | G43: 1760.006583 | H43: 38749.42854 | I43: 1971.99164 | J43: 1520.814796 | K43: 245.3153031 | L43: 3.646519855 | M43: 2.833524626 | N43: -0.602000944 | O43: 9.966979649 | P43: 1.907198732 | Q43: -0.3586082052 | R43: 10.05299309 | S43: -28.68314124 | T43: -11.15869974 | U43: -17.72978279 | V43: -2.15006687 | W43: -42.22227672 | X43: -11.38529068 | Y43: -13.066793 | Z43: -13.69202509 | AA43: 19.96483945 | AB43: 3.646519855 | AC43: 2.833524626 | AD43: -0.602000944 | AE43: 9.966979649 | AF43: 1.907198732 | AG43: -0.3586082052 | AH43: 10.05299309 | AI43: -28.68314124
A44: 2010 | B44: 02 | C44: 201002 | D44: 155597.2636 | E44: 9686.502835 | F44: 5113.316454 | G44: 2515.928013 | H44: 40798.8879 | I44: 2147.364005 | J44: 1426.217517 | K44: 346.3787621 | L44: 4.656033053 | M44: -8.106800161 | N44: -12.03791694 | O44: -1.770622128 | P44: 2.503536166 | Q44: -16.28057592 | R44: -16.44511552 | S44: -16.95632211 | T44: 4.914924952 | U44: 8.845887885 | V44: -3.698179161 | W44: 42.94992058 | X44: 5.289005403 | Y44: 8.893159655 | Z44: -6.220170878 | AA44: 41.19737241 | AB44: 4.160938022 | AC44: -3.174382544 | AD44: -6.561522242 | AE44: 2.7432974 | AF44: 2.21218003 | AG44: -9.346003471 | AH44: -4.590232084 | AI44: -22.25637536
A45: 2010 | B45: 03 | C45: 201003 | D45: 160238.0576 | E45: 10006.49843 | F45: 5696.714403 | G45: 2366.538424 | H45: 41785.97975 | I45: 2136.12097 | J45: 1544.626493 | K45: 274.4122293 | L45: 4.108179166 | M45: -2.884900064 | N45: -0.801192614 | O45: -6.611051146 | P45: 4.32263645 | Q45: 3.490150116 | R45: -2.459419544 | S45: 26.18308364 | T45: 2.982567898 | U45: 3.303520403 | V45: 11.40938478 | W45: -5.937752932 | X45: 2.419408714 | Y45: -0.5235737825 | Z45: 8.302308335 | AA45: -20.77683181 | AB45: 4.142717829 | AC45: -3.07326829 | AD45: -4.603854567 | AE45: -0.7968967455 | AF45: 2.929286783 | AG45: -5.336564684 | AH45: -3.868053903 | AI45: -11.49131969
A46: 2010 | B46: 04 | C46: 201004 | D46: 176007.6437 | E46: 11455.71643 | F46: 5915.291289 | G46: 3108.52698 | H46: 46074.64916 | I46: 2184.074962 | J46: 1688.904073 | K46: 193.2246567 | L46: 5.434260023 | M46: 5.903402918 | N46: 9.010541311 | O46: 2.047124914 | P46: 5.366499503 | Q46: -3.717319619 | R46: -4.152766837 | S46: -5.50868772 | T46: 9.841348757 | U46: 14.48276846 | V46: 3.836893868 | W46: 31.35332809 | X46: 10.26341713 | Y46: 2.244909949 | Z46: 9.340612814 | AA46: -29.58598924 | AB46: 4.494658971 | AC46: -0.664748487 | AD46: -1.294570865 | AE46: 0.09238349415 | AF46: 3.588744309 | AG46: -4.922765988 | AH46: -3.946022537 | AI46: -10.45722131
A47: 2011 | B47: 01 | C47: 201101 | D47: 158438.9394 | E47: 9161.481049 | F47: 5415.410478 | G47: 1827.314661 | H47: 41039.10258 | I47: 2057.015655 | J47: 1340.224359 | K47: 454.1832762 | L47: 6.830988202 | M47: 2.946290944 | N47: 1.991319001 | O47: 3.824308268 | P47: 5.908923383 | Q47: 4.311580914 | R47: -11.87458443 | S47: 85.14265944 | T47: -9.981784883 | U47: -20.02699173 | V47: -8.450654184 | W47: -41.21605917 | X47: -10.92910456 | Y47: -5.817534159 | Z47: -20.64532376 | AA47: 135.0545133 | AB47: 6.830988202 | AC47: 2.946290944 | AD47: 1.991319001 | AE47: 3.824308268 | AF47: 5.908923383 | AG47: 4.311580914 | AH47: -11.87458443 | AI47: 85.14265944
A48: 2011 | B48: 02 | C48: 201102 | D48: 165998.5071 | E48: 10405.85492 | F48: 5179.010989 | G48: 2990.935609 | H48: 43313.42941 | I48: 2289.154479 | J48: 1498.438097 | K48: 413.8682605 | L48: 6.684721347 | M48: 7.426334339 | N48: 1.284773506 | O48: 18.88001538 | P48: 6.163259923 | Q48: 6.603001307 | R48: 5.063784372 | S48: 19.48430613 | T48: 4.771281461 | U48: 13.58267147 | V48: -4.365310622 | W48: 63.67928706 | X48: 5.541853232 | Y48: 11.28522394 | Z48: 11.80501881 | AA48: -8.876376082 | AB48: 6.756100655 | AC48: 5.281191123 | AD48: 1.644701647 | AE48: 12.682974 | AF48: 6.039367979 | AG48: 5.506067163 | AH48: -3.677253783 | AI48: 46.7061422
A49: 2011 | B49: 03 | C49: 201103 | D49: 172846.2101 | E49: 11085.06487 | F49: 6121.225079 | G49: 2789.950209 | H49: 44588.31491 | I49: 2321.259834 | J49: 1766.633673 | K49: 247.4562963 | L49: 7.868388196 | M49: 10.77865998 | N49: 7.451851124 | O49: 17.89160833 | P49: 6.706400504 | Q49: 8.667058935 | R49: 14.37287147 | S49: -9.823152936 | T49: 4.125159359 | U49: 6.527190303 | V49: 18.19293476 | W49: -6.719816997 | X49: 2.943395423 | Y49: 1.402498409 | Z49: 17.89834209 | AA49: -40.20892154 | AB49: 7.140100108 | AC49: 7.20515125 | AD49: 3.696951639 | AE49: 14.53867341 | AF49: 6.269085449 | AG49: 6.585483046 | AH49: 2.529963389 | AI49: 28.79571943
A50: 2011 | B50: 04 | C50: 201104 | D50: 187344.3435 | E50: 11883.59915 | F50: 5995.353453 | G50: 3394.799521 | H50: 47928.87019 | I50: 1878.480976 | J50: 1464.168886 | K50: 164.3337819 | L50: 6.441026922 | M50: 3.735102258 | N50: 1.353477973 | O50: 9.209266738 | P50: 4.024384472 | Q50: -13.9919184 | R50: -13.30656905 | S50: -14.95196071 | T50: 8.387880414 | U50: 7.203695144 | V50: -2.05631429 | W50: 21.6795737 | X50: 7.491997135 | Y50: -19.07493729 | Z50: -17.12096807 | AA50: -33.59078579 | AB50: 6.947891982 | AC50: 6.212544946 | AD50: 3.067846608 | AE50: 12.83970875 | AF50: 5.65129403 | AG50: 1.260249013 | AH50: -1.797536334 | AI50: 20.81603143
A51: 2012 | B51: 01 | C51: 201201 | D51: 167862.5816 | E51: 10312.55099 | F51: 5879.805045 | G51: 2234.232454 | H51: 42501.81951 | I51: 1746.863242 | J51: 1244.049388 | K51: 297.8211276 | L51: 5.947806953 | M51: 12.56423431 | N51: 8.575426896 | O51: 22.26862194 | P51: 3.564203015 | Q51: -15.07778576 | R51: -7.176035178 | S51: -34.42710394 | T51: -10.39890582 | U51: -13.22030591 | V51: -1.927299361 | W51: -34.18661573 | X51: -11.323135 | Y51: -7.006604581 | Z51: -15.03375059 | AA51: 81.22940041 | AB51: 5.947806953 | AC51: 12.56423431 | AD51: 8.575426896 | AE51: 22.26862194 | AF51: 3.564203015 | AG51: -15.07778576 | AH51: -7.176035178 | AI51: -34.42710394
A52: 2012 | B52: 02 | C52: 201202 | D52: 174220.7526 | E52: 12122.89688 | F52: 6090.299762 | G52: 3464.235638 | H52: 45134.99158 | I52: 2341.535793 | J52: 1480.625356 | K52: 463.5954185 | L52: 4.953204465 | M52: 16.50072935 | N52: 17.5958069 | O52: 15.82448072 | P52: 4.205536686 | Q52: 2.288238508 | R52: -1.188753825 | S52: 12.01521419 | T52: 3.787723801 | U52: 17.55478238 | V52: 3.579960828 | W52: 55.05260571 | X52: 6.195433737 | Y52: 34.04230719 | Z52: 19.01660587 | AA52: 55.6623676 | AB52: 5.438918322 | AC52: 14.65765143 | AD52: 12.9849784 | AE52: 18.26841225 | AF52: 3.893515722 | AG52: -5.930994217 | AH52: -4.015543004 | AI52: -12.28440779
A53: 2012 | B53: 03 | C53: 201203 | D53: 177091.745 | E53: 10611.86333 | F53: 5609.861965 | G53: 2874.856733 | H53: 45624.44777 | I53: 1888.33163 | J53: 1405.793244 | K53: 217.1922122 | L53: 2.456249915 | M53: -4.268820709 | N53: -8.353934192 | O53: 3.043298887 | P53: 2.323776668 | Q53: -18.65057058 | R53: -20.42531142 | S53: -12.23007238 | T53: 1.647904932 | U53: -12.46429433 | V53: -7.8885739 | W53: -17.01324524 | X53: 1.084427352 | Y53: -19.35499616 | Z53: -5.054088285 | AA53: -53.15048348 | AB53: 4.402200297 | AC53: 7.813124879 | AD53: 5.170725656 | AE53: 12.68531696 | AF53: 3.350693018 | AG53: -10.35930345 | AH53: -10.3104801 | AI53: -12.27235441
A54: 2012 | B54: 04 | C54: 201204 | D54: 192239.9209 | E54: 12003.6888 | F54: 6465.033229 | G54: 3088.675175 | H54: 49842.50832 | I54: 1834.916226 | J54: 1477.515535 | K54: 125.3464084 | L54: 2.613143959 | M54: 1.010549429 | N54: 7.834063147 | O54: -9.017449901 | P54: 3.992662732 | Q54: -2.319147802 | R54: 0.9115511863 | S54: -23.7245033 | T54: 8.553857724 | U54: 13.11575004 | V54: 15.24406963 | W54: 7.437533827 | X54: 9.24517613 | Y54: -2.828708873 | Z54: 5.101908938 | AA54: -42.28779792 | AB54: 3.912635767 | AC54: 5.912638706 | AD54: 5.873805645 | AE54: 5.989275652 | AF54: 3.524656563 | AG54: -8.591992803 | AH54: -7.603330626 | AI54: -13.74282929
A55: 2013 | B55: 01 | C55: 201301 | D55: 172298.3943 | E55: 10962.22898 | F55: 6177.76148 | G55: 2371.752586 | H55: 43721.00958 | I55: 1687.885676 | J55: 1306.428866 | K55: 188.5996796 | L55: 2.642526159 | M55: 6.29987659 | N55: 5.067454337 | O55: 6.155139821 | P55: 2.868559715 | Q55: -3.376198247 | R55: 5.01422843 | S55: -36.67350562 | T55: -10.37324949 | U55: -8.676164771 | V55: -4.443469017 | W55: -23.21133007 | X55: -12.28168274 | Y55: -8.012929851 | Z55: -11.57934825 | AA55: 50.46277118 | AB55: 2.642526159 | AC55: 6.29987659 | AD55: 5.067454337 | AE55: 6.155139821 | AF55: 2.868559715 | AG55: -3.376198247 | AH55: 5.01422843 | AI55: -36.67350562
A56: 2013 | B56: 02 | C56: 201302 | D56: 183518.2262 | E56: 12732.17091 | F56: 6573.352086 | G56: 3476.654463 | H56: 46826.86169 | I56: 2027.311054 | J56: 1414.288202 | K56: 277.4723183 | L56: 5.336605152 | M56: 5.025812243 | N56: 7.931503263 | O56: 0.3584867351 | P56: 3.748466676 | Q56: -13.41960006 | R56: -4.480347065 | S56: -40.14774364 | T56: 6.511861025 | U56: 16.1458216 | V56: 6.403461953 | W56: 46.5858827 | X56: 7.103797785 | Y56: 20.10950051 | Z56: 8.256043552 | AA56: 47.12236991 | AB56: 4.014602559 | AC56: 5.61144145 | AD56: 6.524661001 | AE56: 2.631215167 | AF56: 3.321732221 | AG56: -9.128323863 | AH56: -0.145253177 | AI56: -38.78882717
A57: 2013 | B57: 03 | C57: 201303 | D57: 187863.7096 | E57: 13125.75101 | F57: 7023.130988 | G57: 3472.395658 | H57: 47539.77979 | I57: 1950.979064 | J57: 1400.646343 | K57: 250.1430536 | L57: 6.082702872 | M57: 23.68940874 | N57: 25.19258107 | O57: 20.78499837 | P57: 4.198038792 | Q57: 3.317607603 | R57: -0.3661207793 | S57: 15.17128127 | T57: 2.36787564 | U57: 3.09122535 | V57: 6.842458695 | W57: -0.1224972075 | X57: 1.522455415 | Y57: -3.765183952 | Z57: -0.9645742038 | AA57: -9.849366199 | AB57: 4.720036059 | AC57: 11.41648008 | AD57: 12.48169471 | AE57: 8.718646467 | AF57: 3.621751924 | AG57: -5.196066017 | AH57: -0.2204248486 | AI57: -26.81293259
A58: 2013 | B58: 04 | C58: 201304 | D58: 204258.6699 | E58: 13310.8491 | F58: 6669.755446 | G58: 3856.197293 | H58: 52072.51756 | I58: 1732.848016 | J58: 1349.639572 | K58: 136.880829 | L58: 6.251952769 | M58: 10.88965502 | N58: 3.166607341 | O58: 24.84955764 | P58: 4.47411118 | Q58: -5.562554196 | R58: -8.6547965 | S58: 9.202035193 | T58: 8.727050231 | U58: 1.410190469 | V58: -5.031595491 | W58: 11.05293499 | X58: 9.534620894 | Y58: -11.18059397 | Z58: -3.641659491 | AA58: -45.27898055 | AB58: 5.13399352 | AC58: 11.2761093 | AD58: 9.977126222 | AE58: 12.99091065 | AF58: 3.853771855 | AG58: -5.282152231 | AH58: -2.442598843 | AI58: -22.72368423
A59: 2014 | B59: 01 | C59: 201401 | D59: 183399.0484 | E59: 12603.64248 | F59: 6688.844763 | G59: 3071.778192 | H59: 45817.0707 | I59: 1669.254707 | J59: 1176.895695 | K59: 276.6007123 | L59: 6.442691606 | M59: 14.97335536 | N59: 8.272952659 | O59: 29.51511937 | P59: 4.794173648 | Q59: -1.103805154 | R59: -9.915057337 | S59: 46.66022385 | T59: -10.21235548 | U59: -5.313009054 | V59: 0.2862071565 | W59: -20.34177821 | X59: -12.01295261 | Y59: =+I59/I58*100-100 -> -3.669872312 | Z59: -12.79925998 | AA59: 102.0741066 | AB59: 6.442691606 | AC59: 14.97335536 | AD59: 8.272952659 | AE59: 29.51511937 | AF59: 4.794173648 | AG59: -1.103805154 | AH59: -9.915057337 | AI59: 46.66022385
A60: 2014 | B60: 02 | C60: 201402 | D60: 189783.232 | E60: 13637.00186 | F60: 6739.606803 | G60: 4050.944313 | H60: 48312.34478 | I60: 1854.261538 | J60: 1329.196965 | K60: 228.3831033 | L60: 3.41383299 | M60: 7.106650942 | N60: 2.529222756 | O60: 16.5184621 | P60: 3.172288359 | Q60: -8.535913392 | R60: -6.016541496 | S60: -17.69157203 | T60: 3.481034173 | U60: 8.198894717 | V60: 0.7589059381 | W60: 31.87619871 | X60: =+H60/H59*100-100 -> 5.446166755 | Y60: =+I60/I59*100-100 -> 11.08319965 | Z60: 12.94093193 | AA60: -17.43220712 | AB60: 4.880508366 | AC60: 10.74618668 | AD60: 5.311990956 | AE60: 21.78910336 | AF60: 3.955415132 | AG60: -5.159362984 | AH60: -7.888523588 | AI60: 8.348885541
A61: 2014 | B61: 03 | C61: 201403 | D61: 195860.8617 | E61: 14239.80992 | F61: 7637.680808 | G61: 3780.742038 | H61: 50013.61153 | I61: 2387.030715 | J61: 1879.900233 | K61: 166.2276748 | L61: 4.256890344 | M61: 8.487582226 | N61: 8.750368198 | O61: 8.879932181 | P61: 5.203708885 | Q61: 22.35040138 | R61: 34.21662387 | S61: -33.54695545 | T61: 3.202406069 | U61: 4.420385555 | V61: 13.3253175 | W61: -6.670105883 | X61: 3.5213914 | Y61: 28.7321484 | Z61: 41.43127637 | AA61: -27.21542335 | AB61: 4.665022927 | AC61: 9.941033008 | AD61: 6.533184195 | AE61: 16.97988774 | AF61: 4.385168334 | AG61: 4.312805951 | AH61: 6.420920867 | AI61: -6.283526296
A62: 2014 | B62: 04 | C62: 201404 | D62: 212545.8579 | E62: 14121.54574 | F62: 7227.867626 | G62: 4010.535457 | H62: 54852.56813 | I62: 1897.255615 | J62: 1454.920663 | K62: 142.0871976 | L62: 4.057202545 | M62: 6.09049535 | N62: 8.367805755 | O62: 4.002340964 | P62: =+H62/H58*100-100 -> 5.338805757 | Q62: 9.487710275 | R62: 7.800681994 | S62: 3.803577626 | T62: 8.518800538 | U62: -0.8305179298 | V62: -5.365675691 | W62: 6.077997836 | X62: 9.675279287 | Y62: -20.51817334 | Z62: -22.60649595 | AA62: -14.522538 | AB62: 4.499030001 | AC62: 8.918633181 | AD62: 6.995915898 | AE62: 13.18205965 | AF62: 4.646307677 | AG62: 5.524766193 | AH62: 6.761293597 | AI62: -4.665031612
A63: 2015 | B63: 01 | C63: 201501 | D63: 188742.9948 | E63: 13450.17079 | F63: 7180.810452 | G63: 3262.897353 | H63: 47749.03417 | I63: 1994.791857 | J63: 1397.935073 | K63: 301.8947118 | L63: 2.913835403 | M63: 6.71653698 | N63: 7.355017294 | O63: 6.221776087 | P63: =+H63/H59*100-100 -> 4.216689196 | Q63: =+I63/I59*100-100 -> 19.50194592 | R63: 18.78156065 | S63: 9.144589424 | T63: -11.19893056 | U63: -4.754259677 | V63: -0.6510519563 | W63: -18.64185248 | X63: -12.9502304 | Y63: 5.140911983 | Z63: -3.916748966 | AA63: 112.4714379 | AB63: 2.913835403 | AC63: 6.71653698 | AD63: 7.355017294 | AE63: 6.221776087 | AF63: =+IF($B63="04",(SUM(H60:H63)/SUM(H56:H59))*100-100,IF($B63="03",(SUM(H61:H63)/SUM(H57:H59))*100-100,IF($B63="02",(SUM(H62:H63)/SUM(H58:H59)*100-100),IF($B63="01",(H63/H59)*100-100,"")))) -> 4.216689196 | AG63: =+IF($B63="04",(SUM(I60:I63)/SUM(I56:I59))*100-100,IF($B63="03",(SUM(I61:I63)/SUM(I57:I59))*100-100,IF($B63="02",(SUM(I62:I63)/SUM(I58:I59)*100-100),IF($B63="01",(I63/I59)*100-100,"")))) -> 19.50194592 | AH63: =+IF($B63="04",(SUM(J60:J63)/SUM(J56:J59))*100-100,IF($B63="03",(SUM(J61:J63)/SUM(J57:J59))*100-100,IF($B63="02",(SUM(J62:J63)/SUM(J58:J59)*100-100),IF($B63="01",(J63/J59)*100-100,"")))) -> 18.78156065 | AI63: 9.144589424
